Workbook

Sheet Cover Sheet
C2: Model Details
C4: Model Name: | D4: TasNetworks (Public Lighting Model)
C6: Created By:
C7: Phone Number:
C8: Email:
C10: Date:
C12: Customer Details:
B20: Model Description/Scope
B22: Model Description
B29: Scope/Disclaimer

Sheet Price Comparison
E2: Annual Pricing Model Cents per day (Nominal) | H2: Annuity Model 2024-2029 cents per day (Nominal)
A3: Light Type | B3: Contract/Public | C3: 2019–20 | D3: 2020–21 | E3: 2021–22 | F3: 2022–23 | G3: 2023–24 | H3: 2024-25 | I3: 2025-26 | J3: 2026-27 | K3: 2027-28 | L3: 2028-29 | M3: 2029-30 | N3: 2030-31 | O3: 2031-32 | P3: 2032-33 | Q3: 2033-34
A4: 50W Mercury Vapour | B4: Contract Lighting | C4: 18.508 | D4: 19.17 | E4: 19.66 | F4: 20.48 | G4: 21.33 | H4: 16.95273259 | I4: 17.70256451 | J4: 18.48556206 | K4: 19.30319216 | L4: 20.15698665 | M4: 21.0485451 | N4: 21.97953785 | O4: 22.95170909 | P4: 23.96688019 | Q4: 25.02695306
A5: 80W Mercury Vapour | B5: Contract Lighting | C5: 18.471 | D5: 19.13 | E5: 19.62 | F5: 20.44 | G5: 21.29 | H5: 16.93757332 | I5: 17.68673473 | J5: 18.46903211 | K5: 19.28593109 | L5: 20.13896211 | M5: 21.02972332 | N5: 21.95988356 | O5: 22.93118548 | P5: 23.94544881 | Q5: 25.00457375
A6: 125W Mercury Vapour | B6: Contract Lighting | C6: 21.625 | D6: 22.4 | E6: 22.98 | F6: 23.94 | G6: 24.94 | H6: 19.83299463 | I6: 20.71022267 | J6: 21.62625117 | K6: 22.58279628 | L6: 23.58165009 | M6: 24.62468394 | N6: 25.71385196 | O6: 26.85119468 | P6: 28.03884291 | Q6: 29.27902171
A7: 250W Mercury Vapour | B7: Contract Lighting | C7: 21.625 | D7: 22.4 | E7: 22.98 | F7: 23.94 | G7: 24.94 | H7: 20.15017328 | I7: 21.04143037 | J7: 21.97210843 | K7: 22.94395106 | L7: 23.95877902 | M7: 25.01849356 | N7: 26.12508007 | O7: 27.28061171 | P7: 28.48725338 | Q7: 29.7472657
A8: 400W Mercury Vapour | B8: Contract Lighting | C8: 21.761 | D8: 22.54 | E8: 23.12 | F8: 24.08 | G8: 25.08 | H8: 21.13435999 | I8: 22.06914839 | J8: 23.04528317 | K8: 24.06459312 | L8: 25.1289879 | M8: 26.24046165 | N8: 27.40109671 | O8: 28.61306752 | P8: 29.87864469 | Q8: 31.20019928
A9: 70W Sodium Vapour | B9: Contract Lighting | C9: 18.919 | D9: 19.6 | E9: 20.1 | F9: 20.94 | G9: 21.81 | H9: 18.02204445 | I9: 18.81917283 | J9: 19.65155878 | K9: 20.52076179 | L9: 21.42841028 | M9: 22.37620475 | N9: 23.36592086 | O9: 24.39941285 | P9: 25.47861696 | Q9: 26.60555506
A10: 100W Sodium Vapour | B10: Contract Lighting | C10: 22.51 | D10: 23.31 | E10: 23.91 | F10: 24.9 | G10: 25.94 | H10: 21.55998575 | I10: 22.51359989 | J10: 23.5093931 | K10: 24.54923097 | L10: 25.63506164 | M10: 26.76891941 | N10: 27.95292855 | O10: 29.18930729 | P10: 30.48037198 | Q10: 31.82854141
A11: 150W Sodium Vapour | B11: Contract Lighting | C11: 22.749 | D11: 23.56 | E11: 24.17 | F11: 25.18 | G11: 26.23 | H11: 20.75304594 | I11: 21.67096854 | J11: 22.62949153 | K11: 23.63041071 | L11: 24.67560128 | M11: 25.76702141 | N11: 26.90671585 | O11: 28.09681983 | P11: 29.33956299 | Q11: 30.63727359
A12: 250W Sodium Vapour | B12: Contract Lighting | C12: 22.907 | D12: 23.73 | E12: 24.34 | F12: 25.35 | G12: 26.4 | H12: 21.54949087 | I12: 22.50264082 | J12: 23.49794929 | K12: 24.537281 | L12: 25.62258311 | M12: 26.75588895 | N12: 27.93932174 | O12: 29.17509864 | P12: 30.46553487 | Q12: 31.81304804
A13: 400W Sodium Vapour | B13: Contract Lighting | C13: 22.961 | D13: 23.78 | E13: 24.39 | F13: 25.4 | G13: 26.46 | H13: 21.85267635 | I13: 22.81923641 | J13: 23.82854814 | K13: 24.88250248 | L13: 25.983074 | M13: 27.13232462 | N13: 28.33240743 | O13: 29.58557081 | P13: 30.89416252 | Q13: 32.26063422
A14: 250W Sodium Vapour - Flood Light | B14: Contract Lighting | C14: 22.907 | D14: 23.73 | E14: 24.34 | F14: 25.35 | G14: 26.4 | H14: 22.1115501 | I14: 23.08956034 | J14: 24.1108287 | K14: 25.17726852 | L14: 26.29087776 | M14: 27.45374276 | N14: 28.66804214 | O14: 29.93605089 | P14: 31.2601446 | Q14: 32.64280395
A15: 400W Sodium Vapour - Flood Light | B15: Contract Lighting | C15: 22.961 | D15: 23.78 | E15: 24.39 | F15: 25.4 | G15: 26.46 | H15: 21.85267635 | I15: 22.81923641 | J15: 23.82854814 | K15: 24.88250248 | L15: 25.983074 | M15: 27.13232462 | N15: 28.33240743 | O15: 29.58557081 | P15: 30.89416252 | Q15: 32.26063422
A16: 1x20W Fluorescent | B16: Contract Lighting | C16: 18.547 | D16: 19.21 | E16: 19.7 | F16: 20.52 | G16: 21.37 | H16: 17.27340954 | I16: 18.03742524 | J16: 18.83523392 | K16: 19.66833027 | L16: 20.53827509 | M16: 21.44669821 | N16: 22.39530156 | O16: 23.38586234 | P16: 24.42023636 | Q16: 25.50036151
A17: 1x40W Fluorescent | B17: Contract Lighting | C17: 18.564 | D17: 19.22 | E17: 19.71 | F17: 20.53 | G17: 21.38 | H17: 17.27340954 | I17: 18.03742524 | J17: 18.83523392 | K17: 19.66833027 | L17: 20.53827509 | M17: 21.44669821 | N17: 22.39530156 | O17: 23.38586234 | P17: 24.42023636 | Q17: 25.50036151
A18: 2x20W Fluorescent | B18: Contract Lighting | C18: 18.81 | D18: 19.48 | E18: 19.98 | F18: 20.81 | G18: 21.68 | H18: 17.27340954 | I18: 18.03742524 | J18: 18.83523392 | K18: 19.66833027 | L18: 20.53827509 | M18: 21.44669821 | N18: 22.39530156 | O18: 23.38586234 | P18: 24.42023636 | Q18: 25.50036151
A19: 2x24W Fluorescent | B19: Contract Lighting | C19: 18.689 | D19: 19.36 | E19: 19.86 | F19: 20.69 | G19: 21.55 | H19: 17.27340954 | I19: 18.03742524 | J19: 18.83523392 | K19: 19.66833027 | L19: 20.53827509 | M19: 21.44669821 | N19: 22.39530156 | O19: 23.38586234 | P19: 24.42023636 | Q19: 25.50036151
A20: 2x40W Fluorescent | B20: Contract Lighting | C20: 18.844 | D20: 19.51 | E20: 20.01 | F20: 20.84 | G20: 21.71 | H20: 17.27340954 | I20: 18.03742524 | J20: 18.83523392 | K20: 19.66833027 | L20: 20.53827509 | M20: 21.44669821 | N20: 22.39530156 | O20: 23.38586234 | P20: 24.42023636 | Q20: 25.50036151
A21: 4x40W Fluorescent | B21: Contract Lighting | C21: 22.602 | D21: 23.41 | E21: 24.01 | F21: 25.01 | G21: 26.05 | H21: 17.27340954 | I21: 18.03742524 | J21: 18.83523392 | K21: 19.66833027 | L21: 20.53827509 | M21: 21.44669821 | N21: 22.39530156 | O21: 23.38586234 | P21: 24.42023636 | Q21: 25.50036151
A22: 32W Compact Fluorescent | B22: Contract Lighting | C22: 18.667 | D22: 19.34 | E22: 19.84 | F22: 20.67 | G22: 21.53 | H22: 17.27340954 | I22: 18.03742524 | J22: 18.83523392 | K22: 19.66833027 | L22: 20.53827509 | M22: 21.44669821 | N22: 22.39530156 | O22: 23.38586234 | P22: 24.42023636 | Q22: 25.50036151
A23: 42W Compact Fluorescent | B23: Contract Lighting | C23: 18.667 | D23: 19.34 | E23: 19.84 | F23: 20.67 | G23: 21.53 | H23: 17.27340954 | I23: 18.03742524 | J23: 18.83523392 | K23: 19.66833027 | L23: 20.53827509 | M23: 21.44669821 | N23: 22.39530156 | O23: 23.38586234 | P23: 24.42023636 | Q23: 25.50036151
A24: 60W Incandescent | B24: Contract Lighting | C24: 18.396 | D24: 19.06 | E24: 19.55 | F24: 20.36 | G24: 21.21 | H24: 18.02204445 | I24: 18.81917283 | J24: 19.65155878 | K24: 20.52076179 | L24: 21.42841028 | M24: 22.37620475 | N24: 23.36592086 | O24: 24.39941285 | P24: 25.47861696 | Q24: 26.60555506
A25: 100W Incandescent | B25: Contract Lighting | C25: 21.595 | D25: 22.37 | E25: 22.95 | F25: 23.9 | G25: 24.89 | H25: 21.57397893 | I25: 22.528212 | J25: 23.52465151 | K25: 24.56516427 | L25: 25.65169969 | M25: 26.78629337 | N25: 27.97107097 | O25: 29.20825216 | P25: 30.50015479 | Q25: 31.84919923
A26: 100W Metal Halide | B26: Contract Lighting | C26: 22.75 | D26: 23.56 | E26: 24.17 | F26: 25.18 | G26: 26.23 | H26: 21.15651585 | I26: 22.09228422 | J26: 23.06944232 | K26: 24.08982084 | L26: 25.15533146 | M26: 26.26797041 | N26: 27.4298222 | O26: 28.64306356 | P26: 29.90996748 | Q26: 31.2329075
A27: 150W Metal Halide | B27: Contract Lighting | C27: 22.562 | D27: 23.37 | E27: 23.97 | F27: 24.97 | G27: 26.01 | H27: 23.14004853 | I27: 24.16355002 | J27: 25.23232174 | K27: 26.34836602 | L27: 27.51377377 | M27: 28.73072837 | N27: 30.00150977 | O27: 31.32849878 | P27: 32.71418149 | Q27: 34.16115397
A28: 250W Metal Halide | B28: Contract Lighting | C28: 22.562 | D28: 23.37 | E28: 23.97 | F28: 24.97 | G28: 26.01 | H28: 22.19550916 | I28: 23.17723297 | J28: 24.20237916 | K28: 25.27286832 | L28: 26.39070601 | M28: 27.55798648 | N28: 28.77689664 | O28: 30.0497201 | P28: 31.37884148 | Q28: 32.76675089
A29: 400W Metal Halide | B29: Contract Lighting | C29: 23.187 | D29: 24.02 | E29: 24.64 | F29: 25.67 | G29: 26.74 | H29: 21.65910408 | I29: 22.6171023 | J29: 23.61747349 | K29: 24.66209184 | L29: 25.75291444 | M29: 26.89198492 | N29: 28.08143734 | O29: 29.32350011 | P29: 30.62050025 | Q29: 31.97486766
A30: 400W Metal Halide - Flood Light | B30: Contract Lighting | C30: 23.187 | D30: 24.02 | E30: 24.64 | F30: 25.67 | G30: 26.74 | H30: 21.65910408 | I30: 22.6171023 | J30: 23.61747349 | K30: 24.66209184 | L30: 25.75291444 | M30: 26.89198492 | N30: 28.08143734 | O30: 29.32350011 | P30: 30.62050025 | Q30: 31.97486766
A31: LED 18 | B31: Contract Lighting | C31: 13.471 | D31: 13.95 | E31: 14.31 | F31: 14.91 | G31: 15.53 | H31: 11.6073394 | I31: 12.12074062 | J31: 12.65684996 | K31: 13.21667181 | L31: 13.801255 | M31: 14.41169473 | N31: 15.04913466 | O31: 15.71476904 | P31: 16.40984492 | Q31: 17.13566451
A32: LED 20 | B32: Contract Lighting | C32: 0 | D32: 0 | E32: 0 | F32: 0 | G32: 0 | H32: 11.6073394 | I32: 12.12074062 | J32: 12.65684996 | K32: 13.21667181 | L32: 13.801255 | M32: 14.41169473 | N32: 15.04913466 | O32: 15.71476904 | P32: 16.40984492 | Q32: 17.13566451
A33: LED 200 | B33: Contract Lighting | C33: 0 | D33: 0 | E33: 0 | F33: 0 | G33: 0 | H33: 12.57869903 | I33: 13.1350642 | J33: 13.71603782 | K33: 14.32270834 | L33: 14.95621234 | M33: 15.61773669 | N33: 16.30852076 | O33: 17.02985871 | P33: 17.78310198 | Q33: 18.56966176
A34: LED 240 | B34: Contract Lighting | C34: 0 | D34: 0 | E34: 0 | F34: 0 | G34: 0 | H34: 12.57869903 | I34: 13.1350642 | J34: 13.71603782 | K34: 14.32270834 | L34: 14.95621234 | M34: 15.61773669 | N34: 16.30852076 | O34: 17.02985871 | P34: 17.78310198 | Q34: 18.56966176
A35: LED 25 | B35: Contract Lighting | C35: 13.471 | D35: 13.95 | E35: 14.31 | F35: 14.91 | G35: 15.53 | H35: 11.6073394 | I35: 12.12074062 | J35: 12.65684996 | K35: 13.21667181 | L35: 13.801255 | M35: 14.41169473 | N35: 15.04913466 | O35: 15.71476904 | P35: 16.40984492 | Q35: 17.13566451
A36: LED 265 | B36: Contract Lighting | C36: 0 | D36: 0 | E36: 0 | F36: 0 | G36: 0 | H36: 12.57869903 | I36: 13.1350642 | J36: 13.71603782 | K36: 14.32270834 | L36: 14.95621234 | M36: 15.61773669 | N36: 16.30852076 | O36: 17.02985871 | P36: 17.78310198 | Q36: 18.56966176
A37: LED 30 | B37: Contract Lighting | C37: 13.471 | D37: 13.95 | E37: 14.31 | F37: 14.91 | G37: 15.53 | H37: 11.6073394 | I37: 12.12074062 | J37: 12.65684996 | K37: 13.21667181 | L37: 13.801255 | M37: 14.41169473 | N37: 15.04913466 | O37: 15.71476904 | P37: 16.40984492 | Q37: 17.13566451
A38: LED 75 | B38: Contract Lighting | C38: 0 | D38: 0 | E38: 0 | F38: 0 | G38: 0 | H38: 12.10409714 | I38: 12.63947033 | J38: 13.19852347 | K38: 13.78230394 | L38: 14.39190545 | M38: 15.02847009 | N38: 15.69319046 | O38: 16.3873119 | P38: 17.11213484 | Q38: 17.86901725
A39: LED 155 | B39: Contract Lighting | C39: 0 | D39: 0 | E39: 0 | F39: 0 | G39: 0 | H39: 12.57869903 | I39: 13.1350642 | J39: 13.71603782 | K39: 14.32270834 | L39: 14.95621234 | M39: 15.61773669 | N39: 16.30852076 | O39: 17.02985871 | P39: 17.78310198 | Q39: 18.56966176
A40: LED 14 | B40: Contract Lighting | C40: 13.07 | D40: 13.54 | E40: 13.89 | F40: 14.47 | G40: 15.07 | H40: 11.6073394 | I40: 12.12074062 | J40: 12.65684996 | K40: 13.21667181 | L40: 13.801255 | M40: 14.41169473 | N40: 15.04913466 | O40: 15.71476904 | P40: 16.40984492 | Q40: 17.13566451
A41: LED 17 | B41: Contract Lighting | C41: 13.471 | D41: 13.95 | E41: 14.31 | F41: 14.91 | G41: 15.53 | H41: 11.6073394 | I41: 12.12074062 | J41: 12.65684996 | K41: 13.21667181 | L41: 13.801255 | M41: 14.41169473 | N41: 15.04913466 | O41: 15.71476904 | P41: 16.40984492 | Q41: 17.13566451
A42: LED 175 | B42: Contract Lighting | C42: 0 | D42: 0 | E42: 0 | F42: 0 | G42: 0 | H42: 12.57869903 | I42: 13.1350642 | J42: 13.71603782 | K42: 14.32270834 | L42: 14.95621234 | M42: 15.61773669 | N42: 16.30852076 | O42: 17.02985871 | P42: 17.78310198 | Q42: 18.56966176
A43: LED 14 New Tech | B43: Contract Lighting | C43: 13.07 | D43: 13.54 | E43: 13.89 | F43: 14.47 | G43: 15.07 | H43: 11.6073394 | I43: 12.12074062 | J43: 12.65684996 | K43: 13.21667181 | L43: 13.801255 | M43: 14.41169473 | N43: 15.04913466 | O43: 15.71476904 | P43: 16.40984492 | Q43: 17.13566451
A44: LED 75 New Tech | B44: Contract Lighting | C44: 13.743 | D44: 14.23 | E44: 14.6 | F44: 15.21 | G44: 15.84 | H44: 12.10409714 | I44: 12.63947033 | J44: 13.19852347 | K44: 13.78230394 | L44: 14.39190545 | M44: 15.02847009 | N44: 15.69319046 | O44: 16.3873119 | P44: 17.11213484 | Q44: 17.86901725
A46: 50W Mercury Vapour | B46: Public Lighting | C46: 37.039 | D46: 38.36 | E46: 39.35 | F46: 40.99 | G46: 42.7 | H46: 39.97850352 | I46: 41.74678235 | J46: 43.59327346 | K46: 45.52143624 | L46: 47.53488309 | M46: 49.63738618 | N46: 51.83288455 | O46: 54.12549143 | P46: 56.51950202 | Q46: 59.01940147
A47: 80W Mercury Vapour | B47: Public Lighting | C47: 37.025 | D47: 38.35 | E47: 39.34 | F47: 40.98 | G47: 42.69 | H47: 39.96334424 | I47: 41.73095257 | J47: 43.57674351 | K47: 45.50417516 | L47: 47.51685854 | M47: 49.6185644 | N47: 51.81323027 | O47: 54.10496783 | P47: 56.49807064 | Q47: 58.99702216
A48: 125W Mercury Vapour | B48: Public Lighting | C48: 45.522 | D48: 47.15 | E48: 48.36 | F48: 50.37 | G48: 52.47 | H48: 43.26456765 | I48: 45.17819154 | J48: 47.17645642 | K48: 49.26310604 | L48: 51.44204971 | M48: 53.71736968 | N48: 56.09332874 | O48: 58.57437823 | P48: 61.16516637 | Q48: 63.870547
A49: 250W Mercury Vapour | B49: Public Lighting | C49: 45.913 | D49: 47.55 | E49: 48.77 | F49: 50.8 | G49: 52.91 | H49: 43.58174631 | I49: 45.50939924 | J49: 47.52231368 | K49: 49.62426082 | L49: 51.81917864 | M49: 54.1111793 | N49: 56.50455685 | O49: 59.00379527 | P49: 61.61357684 | Q49: 64.33879099
A50: 400W Mercury Vapour | B50: Public Lighting | C50: 47.292 | D50: 48.98 | E50: 50.24 | F50: 52.33 | G50: 54.51 | H50: 47.46485262 | I50: 49.56425821 | J50: 51.75652207 | K50: 54.04575139 | L50: 56.43623501 | M50: 58.9324515 | N50: 61.53907749 | O50: 64.26099648 | P50: 67.10330796 | Q50: 70.07133699
A51: 70W Sodium Vapour | B51: Public Lighting | C51: 39.272 | D51: 40.67 | E51: 41.72 | F51: 43.46 | G51: 45.27 | H51: 41.01749683 | I51: 42.8317311 | J51: 44.7262103 | K51: 46.70448372 | L51: 48.77025763 | M51: 50.92740226 | N51: 53.17995899 | O51: 55.53214798 | P51: 57.98837602 | Q51: 60.55324486
A52: 100W Sodium Vapour | B52: Public Lighting | C52: 45.517 | D52: 47.15 | E52: 48.36 | F52: 50.37 | G52: 52.47 | H52: 45.47082505 | I52: 47.48203333 | J52: 49.58219884 | K52: 51.77525623 | L52: 54.06531417 | M52: 56.45666308 | N52: 58.95378311 | O52: 61.56135261 | P52: 64.28425685 | Q52: 67.12759715
A53: 150W Sodium Vapour | B53: Public Lighting | C53: 47.847 | D53: 49.56 | E53: 50.84 | F53: 52.96 | G53: 55.16 | H53: 45.68188879 | I53: 47.70243257 | J53: 49.81234651 | K53: 52.0155835 | L53: 54.31627129 | M53: 56.71872021 | N53: 59.22743123 | O53: 61.84710439 | P53: 64.58264764 | Q53: 67.43918599
A54: 250W Sodium Vapour | B54: Public Lighting | C54: 48.946 | D54: 50.7 | E54: 52.01 | F54: 54.17 | G54: 56.42 | H54: 47.17566032 | I54: 49.26227472 | J54: 51.44118163 | K54: 53.7164632 | L54: 56.09238217 | M54: 58.57338979 | N54: 61.16413421 | O54: 63.86946918 | P54: 66.69446312 | Q54: 69.64440864
A55: 400W Sodium Vapour | B55: Public Lighting | C55: 49.493 | D55: 51.26 | E55: 52.58 | F55: 54.77 | G55: 57.05 | H55: 48.00125769 | I55: 50.12438888 | J55: 52.34142774 | K55: 54.65652787 | L55: 57.07402659 | M55: 59.59845307 | N55: 62.2345368 | O55: 64.98721647 | P55: 67.8616492 | Q55: 70.86322022
A56: 250W Sodium Vapour - Flood Light | B56: Public Lighting | C56: 52.247 | D56: 54.12 | E56: 55.51 | F56: 57.82 | G56: 60.23 | H56: 48.93996658 | I56: 51.10461756 | J56: 53.36501265 | K56: 55.7253867 | L56: 58.19016184 | M56: 60.7639558 | N56: 63.45159059 | O56: 66.25810145 | P56: 69.18874636 | Q56: 72.24901587
A57: 400W Sodium Vapour - Flood Light | B57: Public Lighting | C57: 51.67 | D57: 53.52 | E57: 54.9 | F57: 57.18 | G57: 59.56 | H57: 48.00125769 | I57: 50.12438888 | J57: 52.34142774 | K57: 54.65652787 | L57: 57.07402659 | M57: 59.59845307 | N57: 62.2345368 | O57: 64.98721647 | P57: 67.8616492 | Q57: 70.86322022
A58: 1x20W Fluorescent | B58: Public Lighting | C58: 40.721 | D58: 42.17 | E58: 43.26 | F58: 45.06 | G58: 46.94 | H58: 42.18942531 | I58: 44.05549485 | J58: 46.00410202 | K58: 48.03889754 | L58: 50.16369356 | M58: 52.38247089 | N58: 54.69938639 | O58: 57.11878078 | P58: 59.64518677 | Q58: 62.28333757
A59: 1x40W Fluorescent | B59: Public Lighting | C59: 39.768 | D59: 41.19 | E59: 42.25 | F59: 44.01 | G59: 45.84 | H59: 42.18942531 | I59: 44.05549485 | J59: 46.00410202 | K59: 48.03889754 | L59: 50.16369356 | M59: 52.38247089 | N59: 54.69938639 | O59: 57.11878078 | P59: 59.64518677 | Q59: 62.28333757
A60: 2x20W Fluorescent | B60: Public Lighting | C60: 40.984 | D60: 42.44 | E60: 43.53 | F60: 45.34 | G60: 47.23 | H60: 42.18942531 | I60: 44.05549485 | J60: 46.00410202 | K60: 48.03889754 | L60: 50.16369356 | M60: 52.38247089 | N60: 54.69938639 | O60: 57.11878078 | P60: 59.64518677 | Q60: 62.28333757
A61: 2x24W Fluorescent | B61: Public Lighting | C61: 40.951 | D61: 42.41 | E61: 43.5 | F61: 45.31 | G61: 47.2 | H61: 42.18942531 | I61: 44.05549485 | J61: 46.00410202 | K61: 48.03889754 | L61: 50.16369356 | M61: 52.38247089 | N61: 54.69938639 | O61: 57.11878078 | P61: 59.64518677 | Q61: 62.28333757
A62: 2x40W Fluorescent | B62: Public Lighting | C62: 40.049 | D62: 41.48 | E62: 42.55 | F62: 44.32 | G62: 46.16 | H62: 42.18942531 | I62: 44.05549485 | J62: 46.00410202 | K62: 48.03889754 | L62: 50.16369356 | M62: 52.38247089 | N62: 54.69938639 | O62: 57.11878078 | P62: 59.64518677 | Q62: 62.28333757
A63: 4x40W Fluorescent | B63: Public Lighting | C63: 47.492 | D63: 49.19 | E63: 50.46 | F63: 52.56 | G63: 54.75 | H63: 42.18942531 | I63: 44.05549485 | J63: 46.00410202 | K63: 48.03889754 | L63: 50.16369356 | M63: 52.38247089 | N63: 54.69938639 | O63: 57.11878078 | P63: 59.64518677 | Q63: 62.28333757
A64: 32W Compact Fluorescent | B64: Public Lighting | C64: 39.01 | D64: 40.4 | E64: 41.44 | F64: 43.16 | G64: 44.96 | H64: 42.18942531 | I64: 44.05549485 | J64: 46.00410202 | K64: 48.03889754 | L64: 50.16369356 | M64: 52.38247089 | N64: 54.69938639 | O64: 57.11878078 | P64: 59.64518677 | Q64: 62.28333757
A65: 42W Compact Fluorescent | B65: Public Lighting | C65: 39.03 | D65: 40.42 | E65: 41.46 | F65: 43.19 | G65: 44.99 | H65: 42.18942531 | I65: 44.05549485 | J65: 46.00410202 | K65: 48.03889754 | L65: 50.16369356 | M65: 52.38247089 | N65: 54.69938639 | O65: 57.11878078 | P65: 59.64518677 | Q65: 62.28333757
A66: 60W Incandescent | B66: Public Lighting | C66: 36.549 | D66: 37.86 | E66: 38.83 | F66: 40.45 | G66: 42.13 | H66: 41.01749683 | I66: 42.8317311 | J66: 44.7262103 | K66: 46.70448372 | L66: 48.77025763 | M66: 50.92740226 | N66: 53.17995899 | O66: 55.53214798 | P66: 57.98837602 | Q66: 60.55324486
A67: 100W Incandescent | B67: Public Lighting | C67: 42.463 | D67: 43.98 | E67: 45.11 | F67: 46.99 | G67: 48.95 | H67: 44.97406731 | I67: 46.96330363 | J67: 49.04052534 | K67: 51.20962411 | L67: 53.47466372 | M67: 55.83988771 | N67: 58.30972732 | O67: 60.88880976 | P67: 63.58196692 | Q67: 66.39424442
A68: 100W Metal Halide | B68: Public Lighting | C68: 45.885 | D68: 47.53 | E68: 48.75 | F68: 50.78 | G68: 52.89 | H68: 44.6312345 | I68: 46.60530707 | J68: 48.66669433 | K68: 50.81925827 | L68: 53.06703172 | M68: 55.41422584 | N68: 57.86523811 | O68: 60.42466046 | P68: 63.09728796 | Q68: 65.88812775
A69: 150W Metal Halide | B69: Public Lighting | C69: 48.007 | D69: 49.72 | E69: 51 | F69: 53.12 | G69: 55.33 | H69: 47.96860695 | I69: 50.09029397 | J69: 52.30582479 | K69: 54.61935017 | L69: 57.03520449 | M69: 59.55791384 | N69: 62.19220449 | O69: 64.94301177 | P69: 67.8154893 | Q69: 70.81501863
A70: 250W Metal Halide | B70: Public Lighting | C70: 48.831 | D70: 50.57 | E70: 51.87 | F70: 54.03 | G70: 56.28 | H70: 46.96343048 | I70: 49.04065781 | J70: 51.20976243 | K70: 53.47480816 | L70: 55.84003855 | M70: 58.30988482 | N70: 60.88897423 | O70: 63.58213867 | P70: 66.39442377 | Q70: 69.33109832
A71: 400W Metal Halide | B71: Public Lighting | C71: 53.069 | D71: 54.97 | E71: 56.39 | F71: 58.74 | G71: 61.18 | H71: 56.02401187 | I71: 58.50199542 | J71: 61.08958202 | K71: 63.79161949 | L71: 66.61317008 | M71: 69.55951995 | N71: 72.63618905 | O71: 75.8489415 | P71: 79.20379638 | Q71: 82.70703897
A72: 400W Metal Halide - Flood Light | B72: Public Lighting | C72: 53.069 | D72: 54.97 | E72: 56.39 | F72: 58.74 | G72: 61.18 | H72: 47.62810634 | I72: 49.73473277 | J72: 51.93453684 | K72: 54.23163988 | L72: 56.63034549 | M72: 59.13514763 | N72: 61.75073902 | O72: 64.48201996 | P72: 67.33410747 | Q72: 70.31234493
A73: LED 18 | B73: Public Lighting | C73: 37.242 | D73: 38.57 | E73: 39.56 | F73: 41.21 | G73: 42.92 | H73: 37.75708684 | I73: 39.42711077 | J73: 41.17100109 | K73: 42.99202497 | L73: 44.89359408 | M73: 46.87927101 | N73: 48.9527759 | O73: 51.11799344 | P73: 53.37898016 | Q73: 55.739972
A74: LED 20 | B74: Public Lighting | C74: 0 | D74: 0 | E74: 0 | F74: 0 | G74: 0 | H74: 53.63817538 | I74: 56.01063162 | J74: 58.48802335 | K74: 61.07499195 | L74: 63.7763841 | M74: 66.59726081 | N74: 69.542907 | O74: 72.6188413 | P74: 75.83082645 | Q74: 79.18488008
A75: LED 200 | B75: Public Lighting | C75: 0 | D75: 0 | E75: 0 | F75: 0 | G75: 0 | H75: 52.70996138 | I75: 55.04136202 | J75: 57.47588224 | K75: 60.0180831 | L75: 62.67272738 | M75: 65.44478854 | N75: 68.33946002 | O75: 71.36216497 | P75: 74.5185664 | Q75: 77.8145778
A76: LED 240 | B76: Public Lighting | C76: 0 | D76: 0 | E76: 0 | F76: 0 | G76: 0 | H76: 52.70996138 | I76: 55.04136202 | J76: 57.47588224 | K76: 60.0180831 | L76: 62.67272738 | M76: 65.44478854 | N76: 68.33946002 | O76: 71.36216497 | P76: 74.5185664 | Q76: 77.8145778
A77: LED 25 | B77: Public Lighting | C77: 37.442 | D77: 38.78 | E77: 39.78 | F77: 41.44 | G77: 43.16 | H77: 49.72008613 | I77: 51.91924238 | J77: 54.21566893 | K77: 56.61366814 | L77: 59.11773262 | M77: 61.73255373 | N77: 64.46303032 | O77: 67.31427791 | P77: 70.29163829 | Q77: 73.40068953
A78: LED 265 | B78: Public Lighting | C78: 0 | D78: 0 | E78: 0 | F78: 0 | G78: 0 | H78: 48.66010306 | I78: 50.81237547 | J78: 53.05984448 | K78: 55.40672071 | L78: 57.85740102 | M78: 60.41647673 | N78: 63.08874225 | O78: 65.87920406 | P78: 68.79309007 | Q78: 71.83585941
A79: LED 30 | B79: Public Lighting | C79: 37.442 | D79: 38.78 | E79: 39.78 | F79: 41.44 | G79: 43.16 | H79: 37.83288321 | I79: 39.50625967 | J79: 41.2536508 | K79: 43.07833034 | L79: 44.9837168 | M79: 46.97337993 | N79: 49.05104732 | O79: 51.22061148 | P79: 53.48613708 | Q79: 55.85186855
A80: LED 75 | B80: Public Lighting | C80: 0 | D80: 0 | E80: 0 | F80: 0 | G80: 0 | H80: 47.11618932 | I80: 49.20017328 | J80: 51.37633339 | K80: 53.64874668 | L80: 56.02167049 | M80: 58.49955048 | N80: 61.08702894 | O80: 63.78895349 | P80: 66.61038616 | Q80: 69.55661289
A81: LED 155 | B81: Public Lighting | C81: 0 | D81: 0 | E81: 0 | F81: 0 | G81: 0 | H81: 36.01143815 | I81: 37.60425074 | J81: 39.26751461 | K81: 41.00434587 | L81: 42.81799847 | M81: 44.71187026 | N81: 46.68950941 | O81: 48.754621 | P81: 50.91107401 | Q81: 53.16290853
A82: LED 14 | B82: Public Lighting | C82: 36.883 | D82: 38.2 | E82: 39.18 | F82: 40.81 | G82: 42.51 | H82: 36.54784323 | I82: 38.16438141 | J82: 39.85242027 | K82: 41.61512235 | L82: 43.45579004 | M82: 45.37787183 | N82: 47.38496872 | O82: 49.48084099 | P82: 51.66941525 | Q82: 53.95479176
A83: LED 17 | B83: Public Lighting | C83: 37.242 | D83: 38.57 | E83: 39.56 | F83: 41.21 | G83: 42.92 | H83: 43.31937426 | I83: 45.23542228 | J83: 47.23621852 | K83: 49.32551146 | L83: 51.50721537 | M83: 53.78541767 | N83: 56.16438654 | O83: 58.64857897 | P83: 61.24264907 | Q83: 63.95145681
A84: LED 175 | B84: Public Lighting | C84: 0 | D84: 0 | E84: 0 | F84: 0 | G84: 0 | H84: 47.54298118 | I84: 49.64584246 | J84: 51.84171486 | K84: 54.13471231 | L84: 56.52913074 | M84: 59.02945608 | N84: 61.64037265 | O84: 64.366772 | P84: 67.21376201 | Q84: 70.1866765
A85: LED 14 New Tech | B85: Public Lighting | C85: 36.883 | D85: 38.2 | E85: 39.18 | F85: 40.81 | G85: 42.51 | H85: 37.27432228 | I85: 38.92299317 | J85: 40.64458599 | K85: 42.44232614 | L85: 44.31958167 | M85: 46.2798696 | N85: 48.32686252 | O85: 50.46439545 | P85: 52.69647305 | Q85: 55.02727709
A86: LED 75 New Tech | B86: Public Lighting | C86: 47.324 | D86: 49.01 | E86: 50.27 | F86: 52.36 | G86: 54.54 | H86: 47.11618932 | I86: 49.20017328 | J86: 51.37633339 | K86: 53.64874668 | L86: 56.02167049 | M86: 58.49955048 | N86: 61.08702894 | O86: 63.78895349 | P86: 66.61038616 | Q86: 69.55661289

Sheet Smoothed Prices with Price Path
P3: THIS TAKES 21/22 SMOOTHED PRICES ADDS CPI | AL3: THIS TAKES 21/22 SMOOTHED PRICES and multiplys by no.days in year/100 to convert $s into cents | AW3: THIS TAKES nominal and multiplys by no days in year/100
B4: Private Contract Lights
F5: Adjustment ('A') | K5: Adjustment ('A')
C6: Adjustment CL | D6: 0 | E6: 0 | F6: 0 | G6: 0 | H6: 0 | I6: 0 | J6: 0 | K6: 0 | L6: 0 | M6: 0
C7: Adjustment PL | D7: 0 | E7: 0 | F7: 0 | G7: 0 | H7: 0 | I7: 0 | J7: 0 | K7: 0 | L7: 0 | M7: 0
D8: X Factor | I8: X Factor | O8: Days | P8: 365 | Q8: 365 | R8: 365 | S8: 366 | T8: 365 | U8: 365 | V8: 365 | W8: 366 | X8: 365 | Y8: 365 | AL8: 365 | AM8: 365 | AN8: 365 | AO8: 366 | AP8: 365 | AQ8: 365 | AR8: 365 | AS8: 366 | AT8: 365 | AU8: 365 | AW8: 365 | AX8: 365 | AY8: 365 | AZ8: 366 | BA8: 365 | BB8: 365 | BC8: 365 | BD8: 366 | BE8: 365 | BF8: 365
D9: 0.0104 | E9: 0.0104 | F9: 0.0104 | G9: 0.0104 | H9: 0.0104 | I9: 0.0104 | J9: 0.0104 | K9: 0.0104 | L9: 0.0104 | M9: 0.0104 | O9: CPI | P9: 1.166097991 | Q9: 1.205141893 | R9: 1.245493084 | S9: 1.287195334 | T9: 1.330293881 | U9: 1.374835476 | V9: 1.420868436 | W9: 1.468442696 | X9: 1.517609861 | Y9: 1.568423268
B10: Private Contract Lights | D10: Price (cents) per Light per day Real 2021/22 Smoothed | I10: Price (cents) per Light per day Real 2021/22 Smoothed | P10: Price (cents) per Light per day Nominal Smoothed | AA10: Volumes | AL10: Smooth Real 2021/22 Cost Dollars Per Year | AW10: Smooth Nominal Cost Dollars Per Year | BI10: Revenue Real Real Dollars Per Year | BU10: Revenue Nominal Dollars Per Year | BZ10: Revenue Nominal Dollars Per Year
C11: Offered / No Longer Offered / NA | D11: 2024-25 | E11: 2025-26 | F11: 2026-27 | G11: 2027-28 | H11: 2028-29 | I11: 2029-30 | J11: 2030-31 | K11: 2031-32 | L11: 2032-33 | M11: 2033-34 | P11: 2024-25 | Q11: 2025-26 | R11: 2026-27 | S11: 2027-28 | T11: 2028-29 | U11: 2029-30 | V11: 2030-31 | W11: 2031-32 | X11: 2032-33 | Y11: 2033-34 | AA11: 2024-25 | AB11: 2025-26 | AC11: 2026-27 | AD11: 2027-28 | AE11: 2028-29 | AF11: 2029-30 | AG11: 2030-31 | AH11: 2031-32 | AI11: 2032-33 | AJ11: 2033-34 | AL11: 2024-25 | AM11: 2025-26 | AN11: 2026-27 | AO11: 2027-28 | AP11: 2028-29 | AQ11: 2029-30 | AR11: 2030-31 | AS11: 2031-32 | AT11: 2032-33 | AU11: 2033-34 | AW11: 2024-25 | AX11: 2025-26 | AY11: 2026-27 | AZ11: 2027-28 | BA11: 2028-29 | BB11: 2029-30 | BC11: 2030-31 | BD11: 2031-32 | BE11: 2032-33 | BF11: 2033-34 | BI11: 2028-29 | BJ11: 2029-30 | BK11: 2030-31 | BL11: 2031-32 | BM11: 2032-33 | BN11: 2033-34 | BO11: 2034-35 | BP11: 2035-36 | BU11: 2028-29 | BV11: 2029-30 | BW11: 2030-31 | BX11: 2031-32 | BY11: 2032-33 | BZ11: 2033-34 | CA11: 2034-35 | CB11: 2035-36
B12: 50W Mercury Vapour | C12: Obsolete, no new Connections | D12: 14.538 | E12: 14.6891952 | F12: 14.84196283 | G12: 14.99631924 | H12: 15.15228096 | I12: 15.30986469 | J12: 15.46908728 | K12: 15.62996579 | L12: 15.79251743 | M12: 15.95675961 | P12: 16.95273259 | Q12: 17.70256451 | R12: 18.48556206 | S12: 19.30319216 | T12: 20.15698665 | U12: 21.0485451 | V12: 21.97953785 | W12: 22.95170909 | X12: 23.96688019 | Y12: 25.02695306 | AA12: 68.4 | AB12: 34.2 | AC12: 0 | AD12: 0 | AE12: 0 | AF12: 0 | AG12: 0 | AH12: 0 | AI12: 0 | AJ12: 0 | AL12: 53.0637 | AM12: 53.61556248 | AN12: 54.17316433 | AO12: 54.88652843 | AP12: 55.30582552 | AQ12: 55.8810061 | AR12: 56.46216857 | AS12: 57.20567478 | AT12: 57.64268862 | AU12: 58.24217258 | AW12: 61.87747395 | AX12: 64.61436047 | AY12: 67.4723015 | AZ12: 70.64968331 | BA12: 73.57300128 | BB12: 76.82718963 | BC12: 80.22531315 | BD12: 84.00325527 | BE12: 87.47911269 | BF12: 91.34837865 | BI12: 3629.55708 | BJ12: 1833.652237 | BK12: 0 | BL12: 0 | BM12: 0 | BN12: 0 | BO12: 0 | BP12: 0 | BQ12: 0 | BR12: 0 | BU12: 4232.419218 | BV12: 2209.811128 | BW12: 0 | BX12: 0 | BY12: 0 | BZ12: 0 | CA12: 0 | CB12: 0 | CC12: 0 | CD12: 0
B13: 80W Mercury Vapour | C13: Obsolete, no new Connections | D13: 14.525 | E13: 14.67606 | F13: 14.82869102 | G13: 14.98290941 | H13: 15.13873167 | I13: 15.29617448 | J13: 15.45525469 | K13: 15.61598934 | L13: 15.77839563 | M13: 15.94249094 | P13: 16.93757332 | Q13: 17.68673473 | R13: 18.46903211 | S13: 19.28593109 | T13: 20.13896211 | U13: 21.02972332 | V13: 21.95988356 | W13: 22.93118548 | X13: 23.94544881 | Y13: 25.00457375 | AA13: 97.9 | AB13: 48.95 | AC13: 0 | AD13: 0 | AE13: 0 | AF13: 0 | AG13: 0 | AH13: 0 | AI13: 0 | AJ13: 0 | AL13: 53.01625 | AM13: 53.567619 | AN13: 54.12472224 | AO13: 54.83744844 | AP13: 55.25637059 | AQ13: 55.83103684 | AR13: 56.41167963 | AS13: 57.15452099 | AT13: 57.59114405 | AU13: 58.19009195 | AW13: 61.8221426 | AX13: 64.55658177 | AY13: 67.41196721 | AZ13: 70.58650778 | BA13: 73.50721169 | BB13: 76.75849012 | BC13: 80.15357501 | BD13: 83.92813887 | BE13: 87.40088814 | BF13: 91.26669417 | BI13: 5190.290875 | BJ13: 2622.13495 | BK13: 0 | BL13: 0 | BM13: 0 | BN13: 0 | BO13: 0 | BP13: 0 | BQ13: 0 | BR13: 0 | BU13: 6052.387761 | BV13: 3160.044678 | BW13: 0 | BX13: 0 | BY13: 0 | BZ13: 0 | CA13: 0 | CB13: 0 | CC13: 0 | CD13: 0
B14: 125W Mercury Vapour | C14: Obsolete, no new Connections | D14: 17.008 | E14: 17.1848832 | F14: 17.36360599 | G14: 17.54418749 | H14: 17.72664704 | I14: 17.91100417 | J14: 18.09727861 | K14: 18.28549031 | L14: 18.47565941 | M14: 18.66780626 | P14: 19.83299463 | Q14: 20.71022267 | R14: 21.62625117 | S14: 22.58279628 | T14: 23.58165009 | U14: 24.62468394 | V14: 25.71385196 | W14: 26.85119468 | X14: 28.03884291 | Y14: 29.27902171 | AA14: 138.8 | AB14: 69.4 | AC14: 0 | AD14: 0 | AE14: 0 | AF14: 0 | AG14: 0 | AH14: 0 | AI14: 0 | AJ14: 0 | AL14: 62.0792 | AM14: 62.72482368 | AN14: 63.37716185 | AO14: 64.2117262 | AP14: 64.70226169 | AQ14: 65.37516521 | AR14: 66.05506693 | AS14: 66.92489453 | AT14: 67.43615683 | AU14: 68.13749287 | AW14: 72.39043039 | AX14: 75.59231276 | AY14: 78.93581675 | AZ14: 82.65303437 | BA14: 86.07302282 | BB14: 89.88009638 | BC14: 93.85555964 | BD14: 98.27537252 | BE14: 102.3417766 | BF14: 106.8684292 | BI14: 8616.59296 | BJ14: 4353.102763 | BK14: 0 | BL14: 0 | BM14: 0 | BN14: 0 | BO14: 0 | BP14: 0 | BQ14: 0 | BR14: 0 | BU14: 10047.79174 | BV14: 5246.106505 | BW14: 0 | BX14: 0 | BY14: 0 | BZ14: 0 | CA14: 0 | CB14: 0 | CC14: 0 | CD14: 0
B15: 250W Mercury Vapour | C15: Obsolete, no new Connections | D15: 17.28 | E15: 17.459712 | F15: 17.641293 | G15: 17.82476245 | H15: 18.01013998 | I15: 18.19744544 | J15: 18.38669887 | K15: 18.57792054 | L15: 18.77113091 | M15: 18.96635067 | P15: 20.15017328 | Q15: 21.04143037 | R15: 21.97210843 | S15: 22.94395106 | T15: 23.95877902 | U15: 25.01849356 | V15: 26.12508007 | W15: 27.28061171 | X15: 28.48725338 | Y15: 29.7472657 | AA15: 11.2 | AB15: 5.6 | AC15: 0 | AD15: 0 | AE15: 0 | AF15: 0 | AG15: 0 | AH15: 0 | AI15: 0 | AJ15: 0 | AL15: 63.072 | AM15: 63.7279488 | AN15: 64.39071947 | AO15: 65.23863057 | AP15: 65.73701093 | AQ15: 66.42067585 | AR15: 67.11145088 | AS15: 67.99518917 | AT15: 68.51462783 | AU15: 69.22717996 | AW15: 73.54813248 | AX15: 76.80122086 | AY15: 80.19819576 | AZ15: 83.97486089 | BA15: 87.44954341 | BB15: 91.3175015 | BC15: 95.35654225 | BD15: 99.84703887 | BE15: 103.9784748 | BF15: 108.5775198 | BI15: 706.4064 | BJ15: 356.8765133 | BK15: 0 | BL15: 0 | BM15: 0 | BN15: 0 | BO15: 0 | BP15: 0 | BQ15: 0 | BR15: 0 | BU15: 823.7390837 | BV15: 430.0868368 | BW15: 0 | BX15: 0 | BY15: 0 | BZ15: 0 | CA15: 0 | CB15: 0 | CC15: 0 | CD15: 0
B16: 0 | C16: NA | AA16: 0 | AB16: 0 | AC16: 0 | AD16: 0 | AE16: 0 | AF16: 0 | AG16: 0 | AH16: 0 | AI16: 0 | AJ16: 0 | BI16: 0 | BJ16: 0 | BK16: 0 | BL16: 0 | BM16: 0 | BN16: 0 | BO16: 0 | BP16: 0 | BQ16: 0 | BR16: 0 | BU16: 0 | BV16: 0 | BW16: 0 | BX16: 0 | BY16: 0 | BZ16: 0 | CA16: 0 | CB16: 0 | CC16: 0 | CD16: 0
B17: 400W Mercury Vapour | C17: Obsolete, no new Connections | D17: 18.124 | E17: 18.3124896 | F17: 18.50293949 | G17: 18.69537006 | H17: 18.88980191 | I17: 19.08625585 | J17: 19.28475291 | K17: 19.48531434 | L17: 19.68796161 | M17: 19.89271641 | P17: 21.13435999 | Q17: 22.06914839 | R17: 23.04528317 | S17: 24.06459312 | T17: 25.1289879 | U17: 26.24046165 | V17: 27.40109671 | W17: 28.61306752 | X17: 29.87864469 | Y17: 31.20019928 | AA17: 10.4 | AB17: 5.2 | AC17: 0 | AD17: 0 | AE17: 0 | AF17: 0 | AG17: 0 | AH17: 0 | AI17: 0 | AJ17: 0 | AL17: 66.1526 | AM17: 66.84058704 | AN17: 67.53572915 | AO17: 68.42505443 | AP17: 68.94777698 | AQ17: 69.66483386 | AR17: 70.38934813 | AS17: 71.31625049 | AT17: 71.86105988 | AU17: 72.6084149 | AW17: 77.14041395 | AX17: 80.55239161 | AY17: 84.11528356 | AZ17: 88.07641081 | BA17: 91.72080583 | BB17: 95.77768502 | BC17: 100.014003 | BD17: 104.7238271 | BE17: 109.0570531 | BF17: 113.8807274 | BI17: 687.98704 | BJ17: 347.5710526 | BK17: 0 | BL17: 0 | BM17: 0 | BN17: 0 | BO17: 0 | BP17: 0 | BQ17: 0 | BR17: 0 | BU17: 802.260305 | BV17: 418.8724363 | BW17: 0 | BX17: 0 | BY17: 0 | BZ17: 0 | CA17: 0 | CB17: 0 | CC17: 0 | CD17: 0
B18: 70W Sodium Vapour | C18: Offered | D18: 15.455 | E18: 15.615732 | F18: 15.77813561 | G18: 15.94222822 | H18: 16.1080274 | I18: 16.27555088 | J18: 16.44481661 | K18: 16.6158427 | L18: 16.78864747 | M18: 16.9632494 | P18: 18.02204445 | Q18: 18.81917283 | R18: 19.65155878 | S18: 20.52076179 | T18: 21.42841028 | U18: 22.37620475 | V18: 23.36592086 | W18: 24.39941285 | X18: 25.47861696 | Y18: 26.60555506 | AA18: 32.66666667 | AB18: 16.33333333 | AC18: 0 | AD18: 0 | AE18: 0 | AF18: 0 | AG18: 0 | AH18: 0 | AI18: 0 | AJ18: 0 | AL18: 56.41075 | AM18: 56.9974218 | AN18: 57.59019499 | AO18: 58.3485553 | AP18: 58.7943 | AQ18: 59.40576072 | AR18: 60.02358063 | AS18: 60.81398429 | AT18: 61.27856326 | AU18: 61.91586031 | AW18: 65.78046223 | AX18: 68.68998081 | AY18: 71.72818955 | AZ18: 75.10598814 | BA18: 78.21369753 | BB18: 81.67314732 | BC18: 85.28561113 | BD18: 89.30185103 | BE18: 92.99695189 | BF18: 97.11027597 | BI18: 1842.751167 | BJ18: 930.9578894 | BK18: 0 | BL18: 0 | BM18: 0 | BN18: 0 | BO18: 0 | BP18: 0 | BQ18: 0 | BR18: 0 | BU18: 2148.828433 | BV18: 1121.936353 | BW18: 0 | BX18: 0 | BY18: 0 | BZ18: 0 | CA18: 0 | CB18: 0 | CC18: 0 | CD18: 0
B19: 0 | C19: NA | AA19: 0 | AB19: 0 | AC19: 0 | AD19: 0 | AE19: 0 | AF19: 0 | AG19: 0 | AH19: 0 | AI19: 0 | AJ19: 0 | BI19: 0 | BJ19: 0 | BK19: 0 | BL19: 0 | BM19: 0 | BN19: 0 | BO19: 0 | BP19: 0 | BQ19: 0 | BR19: 0 | BU19: 0 | BV19: 0 | BW19: 0 | BX19: 0 | BY19: 0 | BZ19: 0 | CA19: 0 | CB19: 0 | CC19: 0 | CD19: 0
B20: 100W Sodium Vapour | C20: Offered | D20: 18.489 | E20: 18.6812856 | F20: 18.87557097 | G20: 19.07187691 | H20: 19.27022443 | I20: 19.47063476 | J20: 19.67312936 | K20: 19.87772991 | L20: 20.0844583 | M20: 20.29333667 | P20: 21.55998575 | Q20: 22.51359989 | R20: 23.5093931 | S20: 24.54923097 | T20: 25.63506164 | U20: 26.76891941 | V20: 27.95292855 | W20: 29.18930729 | X20: 30.48037198 | Y20: 31.82854141 | AA20: 0.8 | AB20: 0.4 | AC20: 0 | AD20: 0 | AE20: 0 | AF20: 0 | AG20: 0 | AH20: 0 | AI20: 0 | AJ20: 0 | AL20: 67.48485 | AM20: 68.18669244 | AN20: 68.89583404 | AO20: 69.80306948 | AP20: 70.33631916 | AQ20: 71.06781688 | AR20: 71.80692218 | AS20: 72.75249147 | AT20: 73.3082728 | AU20: 74.07067883 | AW20: 78.69394799 | AX20: 82.17463962 | AY20: 85.80928481 | AZ20: 89.85018536 | BA20: 93.567975 | BB20: 97.70655586 | BC20: 102.0281892 | BD20: 106.8328647 | BE20: 111.2533577 | BF20: 116.1741762 | BI20: 53.98788 | BJ20: 27.27467698 | BK20: 0 | BL20: 0 | BM20: 0 | BN20: 0 | BO20: 0 | BP20: 0 | BQ20: 0 | BR20: 0 | BU20: 62.9551584 | BV20: 32.86985585 | BW20: 0 | BX20: 0 | BY20: 0 | BZ20: 0 | CA20: 0 | CB20: 0 | CC20: 0 | CD20: 0
B21: 0 | C21: NA | AA21: 0 | AB21: 0 | AC21: 0 | AD21: 0 | AE21: 0 | AF21: 0 | AG21: 0 | AH21: 0 | AI21: 0 | AJ21: 0 | BI21: 0 | BJ21: 0 | BK21: 0 | BL21: 0 | BM21: 0 | BN21: 0 | BO21: 0 | BP21: 0 | BQ21: 0 | BR21: 0 | BU21: 0 | BV21: 0 | BW21: 0 | BX21: 0 | BY21: 0 | BZ21: 0 | CA21: 0 | CB21: 0 | CC21: 0 | CD21: 0
B22: 150W Sodium Vapour | C22: Offered | D22: 17.797 | E22: 17.9820888 | F22: 18.16910252 | G22: 18.35806119 | H22: 18.54898503 | I22: 18.74189447 | J22: 18.93681017 | K22: 19.133753 | L22: 19.33274403 | M22: 19.53380457 | P22: 20.75304594 | Q22: 21.67096854 | R22: 22.62949153 | S22: 23.63041071 | T22: 24.67560128 | U22: 25.76702141 | V22: 26.90671585 | W22: 28.09681983 | X22: 29.33956299 | Y22: 30.63727359 | AA22: 66.4 | AB22: 33.2 | AC22: 0 | AD22: 0 | AE22: 0 | AF22: 0 | AG22: 0 | AH22: 0 | AI22: 0 | AJ22: 0 | AL22: 64.95905 | AM22: 65.63462412 | AN22: 66.31722421 | AO22: 67.19050395 | AP22: 67.70379535 | AQ22: 68.40791482 | AR22: 69.11935713 | AS22: 70.02953598 | AT22: 70.56451571 | AU22: 71.29838667 | AW22: 75.74861769 | AX22: 79.09903517 | AY22: 82.5976441 | AZ22: 86.48730319 | BA22: 90.06594468 | BB22: 94.04962814 | BC22: 98.20951287 | BD22: 102.8343606 | BE22: 107.0894049 | BF22: 111.8260486 | BI22: 4313.28092 | BJ22: 2179.069521 | BK22: 0 | BL22: 0 | BM22: 0 | BN22: 0 | BO22: 0 | BP22: 0 | BQ22: 0 | BR22: 0 | BU22: 5029.708215 | BV22: 2626.087968 | BW22: 0 | BX22: 0 | BY22: 0 | BZ22: 0 | CA22: 0 | CB22: 0 | CC22: 0 | CD22: 0
B23: 0 | C23: NA | AA23: 0 | AB23: 0 | AC23: 0 | AD23: 0 | AE23: 0 | AF23: 0 | AG23: 0 | AH23: 0 | AI23: 0 | AJ23: 0 | BI23: 0 | BJ23: 0 | BK23: 0 | BL23: 0 | BM23: 0 | BN23: 0 | BO23: 0 | BP23: 0 | BQ23: 0 | BR23: 0 | BU23: 0 | BV23: 0 | BW23: 0 | BX23: 0 | BY23: 0 | BZ23: 0 | CA23: 0 | CB23: 0 | CC23: 0 | CD23: 0
B24: 0 | C24: NA | AA24: 0 | AB24: 0 | AC24: 0 | AD24: 0 | AE24: 0 | AF24: 0 | AG24: 0 | AH24: 0 | AI24: 0 | AJ24: 0 | BI24: 0 | BJ24: 0 | BK24: 0 | BL24: 0 | BM24: 0 | BN24: 0 | BO24: 0 | BP24: 0 | BQ24: 0 | BR24: 0 | BU24: 0 | BV24: 0 | BW24: 0 | BX24: 0 | BY24: 0 | BZ24: 0 | CA24: 0 | CB24: 0 | CC24: 0 | CD24: 0
B25: 0 | C25: NA | AA25: 0 | AB25: 0 | AC25: 0 | AD25: 0 | AE25: 0 | AF25: 0 | AG25: 0 | AH25: 0 | AI25: 0 | AJ25: 0 | BI25: 0 | BJ25: 0 | BK25: 0 | BL25: 0 | BM25: 0 | BN25: 0 | BO25: 0 | BP25: 0 | BQ25: 0 | BR25: 0 | BU25: 0 | BV25: 0 | BW25: 0 | BX25: 0 | BY25: 0 | BZ25: 0 | CA25: 0 | CB25: 0 | CC25: 0 | CD25: 0
B26: 250W Sodium Vapour | C26: Offered | D26: 18.48 | E26: 18.672192 | F26: 18.8663828 | G26: 19.06259318 | H26: 19.26084415 | I26: 19.46115693 | J26: 19.66355296 | K26: 19.86805391 | L26: 20.07468167 | M26: 20.28345836 | P26: 21.54949087 | Q26: 22.50264082 | R26: 23.49794929 | S26: 24.537281 | T26: 25.62258311 | U26: 26.75588895 | V26: 27.93932174 | W26: 29.17509864 | X26: 30.46553487 | Y26: 31.81304804 | AA26: 69.7 | AB26: 34.85 | AC26: 0 | AD26: 0 | AE26: 0 | AF26: 0 | AG26: 0 | AH26: 0 | AI26: 0 | AJ26: 0 | AL26: 67.452 | AM26: 68.1535008 | AN26: 68.86229721 | AO26: 69.76909103 | AP26: 70.30208114 | AQ26: 71.03322278 | AR26: 71.7719683 | AS26: 72.71707731 | AT26: 73.27258809 | AU26: 74.03462301 | AW26: 78.65564168 | AX26: 82.13463898 | AY26: 85.76751491 | AZ26: 89.80644845 | BA26: 93.52242837 | BB26: 97.65899466 | BC26: 101.9785243 | BD26: 106.780861 | BE26: 111.1992023 | BF26: 116.1176254 | BI26: 4701.4044 | BJ26: 2375.149503 | BK26: 0 | BL26: 0 | BM26: 0 | BN26: 0 | BO26: 0 | BP26: 0 | BQ26: 0 | BR26: 0 | BU26: 5482.298225 | BV26: 2862.392168 | BW26: 0 | BX26: 0 | BY26: 0 | BZ26: 0 | CA26: 0 | CB26: 0 | CC26: 0 | CD26: 0
B27: 0 | C27: NA | AA27: 0 | AB27: 0 | AC27: 0 | AD27: 0 | AE27: 0 | AF27: 0 | AG27: 0 | AH27: 0 | AI27: 0 | AJ27: 0 | BI27: 0 | BJ27: 0 | BK27: 0 | BL27: 0 | BM27: 0 | BN27: 0 | BO27: 0 | BP27: 0 | BQ27: 0 | BR27: 0 | BU27: 0 | BV27: 0 | BW27: 0 | BX27: 0 | BY27: 0 | BZ27: 0 | CA27: 0 | CB27: 0 | CC27: 0 | CD27: 0
B28: 0 | C28: NA | AA28: 0 | AB28: 0 | AC28: 0 | AD28: 0 | AE28: 0 | AF28: 0 | AG28: 0 | AH28: 0 | AI28: 0 | AJ28: 0 | BI28: 0 | BJ28: 0 | BK28: 0 | BL28: 0 | BM28: 0 | BN28: 0 | BO28: 0 | BP28: 0 | BQ28: 0 | BR28: 0 | BU28: 0 | BV28: 0 | BW28: 0 | BX28: 0 | BY28: 0 | BZ28: 0 | CA28: 0 | CB28: 0 | CC28: 0 | CD28: 0
B29: 0 | C29: NA | AA29: 0 | AB29: 0 | AC29: 0 | AD29: 0 | AE29: 0 | AF29: 0 | AG29: 0 | AH29: 0 | AI29: 0 | AJ29: 0 | BI29: 0 | BJ29: 0 | BK29: 0 | BL29: 0 | BM29: 0 | BN29: 0 | BO29: 0 | BP29: 0 | BQ29: 0 | BR29: 0 | BU29: 0 | BV29: 0 | BW29: 0 | BX29: 0 | BY29: 0 | BZ29: 0 | CA29: 0 | CB29: 0 | CC29: 0 | CD29: 0
B30: 400W Sodium Vapour | C30: Offered | D30: 18.74 | E30: 18.934896 | F30: 19.13181892 | G30: 19.33078984 | H30: 19.53183005 | I30: 19.73496108 | J30: 19.94020468 | K30: 20.14758281 | L30: 20.35711767 | M30: 20.56883169 | P30: 21.85267635 | Q30: 22.81923641 | R30: 23.82854814 | S30: 24.88250248 | T30: 25.983074 | U30: 27.13232462 | V30: 28.33240743 | W30: 29.58557081 | X30: 30.89416252 | Y30: 32.26063422 | AA30: 38 | AB30: 19 | AC30: 0 | AD30: 0 | AE30: 0 | AF30: 0 | AG30: 0 | AH30: 0 | AI30: 0 | AJ30: 0 | AL30: 68.401 | AM30: 69.1123704 | AN30: 69.83113905 | AO30: 70.7506908 | AP30: 71.29117968 | AQ30: 72.03260795 | AR30: 72.78174707 | AS30: 73.74015307 | AT30: 74.30347948 | AU30: 75.07623567 | AW30: 79.76226867 | AX30: 83.2902129 | AY30: 86.97420073 | AZ30: 91.06995909 | BA30: 94.83822011 | BB30: 99.03298484 | BC30: 103.4132871 | BD30: 108.2831891 | BE30: 112.7636932 | BF30: 117.7513149 | BI30: 2599.238 | BJ30: 1313.135038 | BK30: 0 | BL30: 0 | BM30: 0 | BN30: 0 | BO30: 0 | BP30: 0 | BQ30: 0 | BR30: 0 | BU30: 3030.966209 | BV30: 1582.514045 | BW30: 0 | BX30: 0 | BY30: 0 | BZ30: 0 | CA30: 0 | CB30: 0 | CC30: 0 | CD30: 0
B31: 0 | C31: NA | AA31: 0 | AB31: 0 | AC31: 0 | AD31: 0 | AE31: 0 | AF31: 0 | AG31: 0 | AH31: 0 | AI31: 0 | AJ31: 0 | BI31: 0 | BJ31: 0 | BK31: 0 | BL31: 0 | BM31: 0 | BN31: 0 | BO31: 0 | BP31: 0 | BQ31: 0 | BR31: 0 | BU31: 0 | BV31: 0 | BW31: 0 | BX31: 0 | BY31: 0 | BZ31: 0 | CA31: 0 | CB31: 0 | CC31: 0 | CD31: 0
B32: 250W Sodium Vapour - Flood Light | C32: Offered | D32: 18.962 | E32: 19.1592048 | F32: 19.35846053 | G32: 19.55978852 | H32: 19.76321032 | I32: 19.96874771 | J32: 20.17642268 | K32: 20.38625748 | L32: 20.59827456 | M32: 20.81249661 | P32: 22.1115501 | Q32: 23.08956034 | R32: 24.1108287 | S32: 25.17726852 | T32: 26.29087776 | U32: 27.45374276 | V32: 28.66804214 | W32: 29.93605089 | X32: 31.2601446 | Y32: 32.64280395 | AA32: 0 | AB32: 0 | AC32: 0 | AD32: 0 | AE32: 0 | AF32: 0 | AG32: 0 | AH32: 0 | AI32: 0 | AJ32: 0 | AL32: 69.2113 | AM32: 69.93109752 | AN32: 70.65838093 | AO32: 71.58882598 | AP32: 72.13571767 | AQ32: 72.88592913 | AR32: 73.64394279 | AS32: 74.61370237 | AT32: 75.18370213 | AU32: 75.96561264 | AW32: 80.70715787 | AX32: 84.27689526 | AY32: 88.00452477 | AZ32: 92.14880279 | BA32: 95.96170382 | BB32: 100.2061611 | BC32: 104.6383538 | BD32: 109.5659462 | BE32: 114.0995278 | BF32: 119.1462344 | BI32: 0 | BJ32: 0 | BK32: 0 | BL32: 0 | BM32: 0 | BN32: 0 | BO32: 0 | BP32: 0 | BQ32: 0 | BR32: 0 | BU32: 0 | BV32: 0 | BW32: 0 | BX32: 0 | BY32: 0 | BZ32: 0 | CA32: 0 | CB32: 0 | CC32: 0 | CD32: 0
B33: 400W Sodium Vapour - Flood Light | C33: Offered | D33: 18.74 | E33: 18.934896 | F33: 19.13181892 | G33: 19.33078984 | H33: 19.53183005 | I33: 19.73496108 | J33: 19.94020468 | K33: 20.14758281 | L33: 20.35711767 | M33: 20.56883169 | P33: 21.85267635 | Q33: 22.81923641 | R33: 23.82854814 | S33: 24.88250248 | T33: 25.983074 | U33: 27.13232462 | V33: 28.33240743 | W33: 29.58557081 | X33: 30.89416252 | Y33: 32.26063422 | AA33: 0 | AB33: 0 | AC33: 0 | AD33: 0 | AE33: 0 | AF33: 0 | AG33: 0 | AH33: 0 | AI33: 0 | AJ33: 0 | AL33: 68.401 | AM33: 69.1123704 | AN33: 69.83113905 | AO33: 70.7506908 | AP33: 71.29117968 | AQ33: 72.03260795 | AR33: 72.78174707 | AS33: 73.74015307 | AT33: 74.30347948 | AU33: 75.07623567 | AW33: 79.76226867 | AX33: 83.2902129 | AY33: 86.97420073 | AZ33: 91.06995909 | BA33: 94.83822011 | BB33: 99.03298484 | BC33: 103.4132871 | BD33: 108.2831891 | BE33: 112.7636932 | BF33: 117.7513149 | BI33: 0 | BJ33: 0 | BK33: 0 | BL33: 0 | BM33: 0 | BN33: 0 | BO33: 0 | BP33: 0 | BQ33: 0 | BR33: 0 | BU33: 0 | BV33: 0 | BW33: 0 | BX33: 0 | BY33: 0 | BZ33: 0 | CA33: 0 | CB33: 0 | CC33: 0 | CD33: 0
B34: 1x20W Fluorescent | C34: Obsolete, no new Connections | D34: 14.813 | E34: 14.9670552 | F34: 15.12271257 | G34: 15.27998878 | H34: 15.43890067 | I34: 15.59946524 | J34: 15.76169967 | K34: 15.92562135 | L34: 16.09124781 | M34: 16.25859679 | P34: 17.27340954 | Q34: 18.03742524 | R34: 18.83523392 | S34: 19.66833027 | T34: 20.53827509 | U34: 21.44669821 | V34: 22.39530156 | W34: 23.38586234 | X34: 24.42023636 | Y34: 25.50036151 | AA34: 10.8 | AB34: 5.4 | AC34: 0 | AD34: 0 | AE34: 0 | AF34: 0 | AG34: 0 | AH34: 0 | AI34: 0 | AJ34: 0 | AL34: 54.06745 | AM34: 54.62975148 | AN34: 55.1979009 | AO34: 55.92475895 | AP34: 56.35198744 | AQ34: 56.93804811 | AR34: 57.53020381 | AS34: 58.28777414 | AT34: 58.73305451 | AU34: 59.34387828 | AW34: 63.04794481 | AX34: 65.83660212 | AY34: 68.74860381 | AZ34: 71.98608879 | BA34: 74.96470408 | BB34: 78.28044848 | BC34: 81.74285071 | BD34: 85.59225618 | BE34: 89.13386272 | BF34: 93.0763195 | BI34: 583.92846 | BJ34: 295.000658 | BK34: 0 | BL34: 0 | BM34: 0 | BN34: 0 | BO34: 0 | BP34: 0 | BQ34: 0 | BR34: 0 | BU34: 680.917804 | BV34: 355.5176515 | BW34: 0 | BX34: 0 | BY34: 0 | BZ34: 0 | CA34: 0 | CB34: 0 | CC34: 0 | CD34: 0
B35: 1x40W Fluorescent | C35: Obsolete, no new Connections | D35: 14.813 | E35: 14.9670552 | F35: 15.12271257 | G35: 15.27998878 | H35: 15.43890067 | I35: 15.59946524 | J35: 15.76169967 | K35: 15.92562135 | L35: 16.09124781 | M35: 16.25859679 | P35: 17.27340954 | Q35: 18.03742524 | R35: 18.83523392 | S35: 19.66833027 | T35: 20.53827509 | U35: 21.44669821 | V35: 22.39530156 | W35: 23.38586234 | X35: 24.42023636 | Y35: 25.50036151 | AA35: 4 | AB35: 2 | AC35: 0 | AD35: 0 | AE35: 0 | AF35: 0 | AG35: 0 | AH35: 0 | AI35: 0 | AJ35: 0 | AL35: 54.06745 | AM35: 54.62975148 | AN35: 55.1979009 | AO35: 55.92475895 | AP35: 56.35198744 | AQ35: 56.93804811 | AR35: 57.53020381 | AS35: 58.28777414 | AT35: 58.73305451 | AU35: 59.34387828 | AW35: 63.04794481 | AX35: 65.83660212 | AY35: 68.74860381 | AZ35: 71.98608879 | BA35: 74.96470408 | BB35: 78.28044848 | BC35: 81.74285071 | BD35: 85.59225618 | BE35: 89.13386272 | BF35: 93.0763195 | BI35: 216.2698 | BJ35: 109.259503 | BK35: 0 | BL35: 0 | BM35: 0 | BN35: 0 | BO35: 0 | BP35: 0 | BQ35: 0 | BR35: 0 | BU35: 252.1917793 | BV35: 131.6732042 | BW35: 0 | BX35: 0 | BY35: 0 | BZ35: 0 | CA35: 0 | CB35: 0 | CC35: 0 | CD35: 0
B36: 2x20W Fluorescent | C36: Obsolete, no new Connections | D36: 14.813 | E36: 14.9670552 | F36: 15.12271257 | G36: 15.27998878 | H36: 15.43890067 | I36: 15.59946524 | J36: 15.76169967 | K36: 15.92562135 | L36: 16.09124781 | M36: 16.25859679 | P36: 17.27340954 | Q36: 18.03742524 | R36: 18.83523392 | S36: 19.66833027 | T36: 20.53827509 | U36: 21.44669821 | V36: 22.39530156 | W36: 23.38586234 | X36: 24.42023636 | Y36: 25.50036151 | AA36: 18.4 | AB36: 9.2 | AC36: 0 | AD36: 0 | AE36: 0 | AF36: 0 | AG36: 0 | AH36: 0 | AI36: 0 | AJ36: 0 | AL36: 54.06745 | AM36: 54.62975148 | AN36: 55.1979009 | AO36: 55.92475895 | AP36: 56.35198744 | AQ36: 56.93804811 | AR36: 57.53020381 | AS36: 58.28777414 | AT36: 58.73305451 | AU36: 59.34387828 | AW36: 63.04794481 | AX36: 65.83660212 | AY36: 68.74860381 | AZ36: 71.98608879 | BA36: 74.96470408 | BB36: 78.28044848 | BC36: 81.74285071 | BD36: 85.59225618 | BE36: 89.13386272 | BF36: 93.0763195 | BI36: 994.84108 | BJ36: 502.5937136 | BK36: 0 | BL36: 0 | BM36: 0 | BN36: 0 | BO36: 0 | BP36: 0 | BQ36: 0 | BR36: 0 | BU36: 1160.082185 | BV36: 605.6967395 | BW36: 0 | BX36: 0 | BY36: 0 | BZ36: 0 | CA36: 0 | CB36: 0 | CC36: 0 | CD36: 0
B37: 2x24W Fluorescent | C37: Obsolete, no new Connections | D37: 14.813 | E37: 14.9670552 | F37: 15.12271257 | G37: 15.27998878 | H37: 15.43890067 | I37: 15.59946524 | J37: 15.76169967 | K37: 15.92562135 | L37: 16.09124781 | M37: 16.25859679 | P37: 17.27340954 | Q37: 18.03742524 | R37: 18.83523392 | S37: 19.66833027 | T37: 20.53827509 | U37: 21.44669821 | V37: 22.39530156 | W37: 23.38586234 | X37: 24.42023636 | Y37: 25.50036151 | AA37: 0 | AB37: 0 | AC37: 0 | AD37: 0 | AE37: 0 | AF37: 0 | AG37: 0 | AH37: 0 | AI37: 0 | AJ37: 0 | AL37: 54.06745 | AM37: 54.62975148 | AN37: 55.1979009 | AO37: 55.92475895 | AP37: 56.35198744 | AQ37: 56.93804811 | AR37: 57.53020381 | AS37: 58.28777414 | AT37: 58.73305451 | AU37: 59.34387828 | AW37: 63.04794481 | AX37: 65.83660212 | AY37: 68.74860381 | AZ37: 71.98608879 | BA37: 74.96470408 | BB37: 78.28044848 | BC37: 81.74285071 | BD37: 85.59225618 | BE37: 89.13386272 | BF37: 93.0763195 | BI37: 0 | BJ37: 0 | BK37: 0 | BL37: 0 | BM37: 0 | BN37: 0 | BO37: 0 | BP37: 0 | BQ37: 0 | BR37: 0 | BU37: 0 | BV37: 0 | BW37: 0 | BX37: 0 | BY37: 0 | BZ37: 0 | CA37: 0 | CB37: 0 | CC37: 0 | CD37: 0
B38: 2x40W Fluorescent | C38: Obsolete, no new Connections | D38: 14.813 | E38: 14.9670552 | F38: 15.12271257 | G38: 15.27998878 | H38: 15.43890067 | I38: 15.59946524 | J38: 15.76169967 | K38: 15.92562135 | L38: 16.09124781 | M38: 16.25859679 | P38: 17.27340954 | Q38: 18.03742524 | R38: 18.83523392 | S38: 19.66833027 | T38: 20.53827509 | U38: 21.44669821 | V38: 22.39530156 | W38: 23.38586234 | X38: 24.42023636 | Y38: 25.50036151 | AA38: 1.2 | AB38: 0.6 | AC38: 0 | AD38: 0 | AE38: 0 | AF38: 0 | AG38: 0 | AH38: 0 | AI38: 0 | AJ38: 0 | AL38: 54.06745 | AM38: 54.62975148 | AN38: 55.1979009 | AO38: 55.92475895 | AP38: 56.35198744 | AQ38: 56.93804811 | AR38: 57.53020381 | AS38: 58.28777414 | AT38: 58.73305451 | AU38: 59.34387828 | AW38: 63.04794481 | AX38: 65.83660212 | AY38: 68.74860381 | AZ38: 71.98608879 | BA38: 74.96470408 | BB38: 78.28044848 | BC38: 81.74285071 | BD38: 85.59225618 | BE38: 89.13386272 | BF38: 93.0763195 | BI38: 64.88094 | BJ38: 32.77785089 | BK38: 0 | BL38: 0 | BM38: 0 | BN38: 0 | BO38: 0 | BP38: 0 | BQ38: 0 | BR38: 0 | BU38: 75.65753378 | BV38: 39.50196127 | BW38: 0 | BX38: 0 | BY38: 0 | BZ38: 0 | CA38: 0 | CB38: 0 | CC38: 0 | CD38: 0
B39: 4x40W Fluorescent | C39: Obsolete, no new Connections | D39: 14.813 | E39: 14.9670552 | F39: 15.12271257 | G39: 15.27998878 | H39: 15.43890067 | I39: 15.59946524 | J39: 15.76169967 | K39: 15.92562135 | L39: 16.09124781 | M39: 16.25859679 | P39: 17.27340954 | Q39: 18.03742524 | R39: 18.83523392 | S39: 19.66833027 | T39: 20.53827509 | U39: 21.44669821 | V39: 22.39530156 | W39: 23.38586234 | X39: 24.42023636 | Y39: 25.50036151 | AA39: 0.4 | AB39: 0.2 | AC39: 0 | AD39: 0 | AE39: 0 | AF39: 0 | AG39: 0 | AH39: 0 | AI39: 0 | AJ39: 0 | AL39: 54.06745 | AM39: 54.62975148 | AN39: 55.1979009 | AO39: 55.92475895 | AP39: 56.35198744 | AQ39: 56.93804811 | AR39: 57.53020381 | AS39: 58.28777414 | AT39: 58.73305451 | AU39: 59.34387828 | AW39: 63.04794481 | AX39: 65.83660212 | AY39: 68.74860381 | AZ39: 71.98608879 | BA39: 74.96470408 | BB39: 78.28044848 | BC39: 81.74285071 | BD39: 85.59225618 | BE39: 89.13386272 | BF39: 93.0763195 | BI39: 21.62698 | BJ39: 10.9259503 | BK39: 0 | BL39: 0 | BM39: 0 | BN39: 0 | BO39: 0 | BP39: 0 | BQ39: 0 | BR39: 0 | BU39: 25.21917793 | BV39: 13.16732042 | BW39: 0 | BX39: 0 | BY39: 0 | BZ39: 0 | CA39: 0 | CB39: 0 | CC39: 0 | CD39: 0
B40: 32W Compact Fluorescent | C40: Not Offered | D40: 14.813 | E40: 14.9670552 | F40: 15.12271257 | G40: 15.27998878 | H40: 15.43890067 | I40: 15.59946524 | J40: 15.76169967 | K40: 15.92562135 | L40: 16.09124781 | M40: 16.25859679 | P40: 17.27340954 | Q40: 18.03742524 | R40: 18.83523392 | S40: 19.66833027 | T40: 20.53827509 | U40: 21.44669821 | V40: 22.39530156 | W40: 23.38586234 | X40: 24.42023636 | Y40: 25.50036151 | AA40: 0 | AB40: 0 | AC40: 0 | AD40: 0 | AE40: 0 | AF40: 0 | AG40: 0 | AH40: 0 | AI40: 0 | AJ40: 0 | AL40: 54.06745 | AM40: 54.62975148 | AN40: 55.1979009 | AO40: 55.92475895 | AP40: 56.35198744 | AQ40: 56.93804811 | AR40: 57.53020381 | AS40: 58.28777414 | AT40: 58.73305451 | AU40: 59.34387828 | AW40: 63.04794481 | AX40: 65.83660212 | AY40: 68.74860381 | AZ40: 71.98608879 | BA40: 74.96470408 | BB40: 78.28044848 | BC40: 81.74285071 | BD40: 85.59225618 | BE40: 89.13386272 | BF40: 93.0763195 | BI40: 0 | BJ40: 0 | BK40: 0 | BL40: 0 | BM40: 0 | BN40: 0 | BO40: 0 | BP40: 0 | BQ40: 0 | BR40: 0 | BU40: 0 | BV40: 0 | BW40: 0 | BX40: 0 | BY40: 0 | BZ40: 0 | CA40: 0 | CB40: 0 | CC40: 0 | CD40: 0
B41: 42W Compact Fluorescent | C41: Offered | D41: 14.813 | E41: 14.9670552 | F41: 15.12271257 | G41: 15.27998878 | H41: 15.43890067 | I41: 15.59946524 | J41: 15.76169967 | K41: 15.92562135 | L41: 16.09124781 | M41: 16.25859679 | P41: 17.27340954 | Q41: 18.03742524 | R41: 18.83523392 | S41: 19.66833027 | T41: 20.53827509 | U41: 21.44669821 | V41: 22.39530156 | W41: 23.38586234 | X41: 24.42023636 | Y41: 25.50036151 | AA41: 8.333333333 | AB41: 4.166666667 | AC41: 0 | AD41: 0 | AE41: 0 | AF41: 0 | AG41: 0 | AH41: 0 | AI41: 0 | AJ41: 0 | AL41: 54.06745 | AM41: 54.62975148 | AN41: 55.1979009 | AO41: 55.92475895 | AP41: 56.35198744 | AQ41: 56.93804811 | AR41: 57.53020381 | AS41: 58.28777414 | AT41: 58.73305451 | AU41: 59.34387828 | AW41: 63.04794481 | AX41: 65.83660212 | AY41: 68.74860381 | AZ41: 71.98608879 | BA41: 74.96470408 | BB41: 78.28044848 | BC41: 81.74285071 | BD41: 85.59225618 | BE41: 89.13386272 | BF41: 93.0763195 | BI41: 450.5620833 | BJ41: 227.6239645 | BK41: 0 | BL41: 0 | BM41: 0 | BN41: 0 | BO41: 0 | BP41: 0 | BQ41: 0 | BR41: 0 | BU41: 525.3995401 | BV41: 274.3191755 | BW41: 0 | BX41: 0 | BY41: 0 | BZ41: 0 | CA41: 0 | CB41: 0 | CC41: 0 | CD41: 0
B42: 0 | C42: NA | AA42: 0 | AB42: 0 | AC42: 0 | AD42: 0 | AE42: 0 | AF42: 0 | AG42: 0 | AH42: 0 | AI42: 0 | AJ42: 0 | BI42: 0 | BJ42: 0 | BK42: 0 | BL42: 0 | BM42: 0 | BN42: 0 | BO42: 0 | BP42: 0 | BQ42: 0 | BR42: 0 | BU42: 0 | BV42: 0 | BW42: 0 | BX42: 0 | BY42: 0 | BZ42: 0 | CA42: 0 | CB42: 0 | CC42: 0 | CD42: 0
B43: 60W Incandescent | C43: Obsolete, no new Connections | D43: 15.455 | E43: 15.615732 | F43: 15.77813561 | G43: 15.94222822 | H43: 16.1080274 | I43: 16.27555088 | J43: 16.44481661 | K43: 16.6158427 | L43: 16.78864747 | M43: 16.9632494 | P43: 18.02204445 | Q43: 18.81917283 | R43: 19.65155878 | S43: 20.52076179 | T43: 21.42841028 | U43: 22.37620475 | V43: 23.36592086 | W43: 24.39941285 | X43: 25.47861696 | Y43: 26.60555506 | AA43: 4 | AB43: 2 | AC43: 0 | AD43: 0 | AE43: 0 | AF43: 0 | AG43: 0 | AH43: 0 | AI43: 0 | AJ43: 0 | AL43: 56.41075 | AM43: 56.9974218 | AN43: 57.59019499 | AO43: 58.3485553 | AP43: 58.7943 | AQ43: 59.40576072 | AR43: 60.02358063 | AS43: 60.81398429 | AT43: 61.27856326 | AU43: 61.91586031 | AW43: 65.78046223 | AX43: 68.68998081 | AY43: 71.72818955 | AZ43: 75.10598814 | BA43: 78.21369753 | BB43: 81.67314732 | BC43: 85.28561113 | BD43: 89.30185103 | BE43: 92.99695189 | BF43: 97.11027597 | BI43: 225.643 | BJ43: 113.9948436 | BK43: 0 | BL43: 0 | BM43: 0 | BN43: 0 | BO43: 0 | BP43: 0 | BQ43: 0 | BR43: 0 | BU43: 263.1218489 | BV43: 137.3799616 | BW43: 0 | BX43: 0 | BY43: 0 | BZ43: 0 | CA43: 0 | CB43: 0 | CC43: 0 | CD43: 0
B44: 100W Incandescent | C44: Obsolete, no new Connections | D44: 18.501 | E44: 18.6934104 | F44: 18.88782187 | G44: 19.08425522 | H44: 19.28273147 | I44: 19.48327188 | J44: 19.6858979 | K44: 19.89063124 | L44: 20.09749381 | M44: 20.30650774 | P44: 21.57397893 | Q44: 22.528212 | R44: 23.52465151 | S44: 24.56516427 | T44: 25.65169969 | U44: 26.78629337 | V44: 27.97107097 | W44: 29.20825216 | X44: 30.50015479 | Y44: 31.84919923 | AA44: 2 | AB44: 1 | AC44: 0 | AD44: 0 | AE44: 0 | AF44: 0 | AG44: 0 | AH44: 0 | AI44: 0 | AJ44: 0 | AL44: 67.52865 | AM44: 68.23094796 | AN44: 68.94054982 | AO44: 69.84837409 | AP44: 70.38196986 | AQ44: 71.11394235 | AR44: 71.85352735 | AS44: 72.79971035 | AT44: 73.3558524 | AU44: 74.11875326 | AW44: 78.74502309 | AX44: 82.2279738 | AY44: 85.864978 | AZ44: 89.90850123 | BA44: 93.62870385 | BB44: 97.76997079 | BC44: 102.094409 | BD44: 106.9022029 | BE44: 111.325565 | BF44: 116.2495772 | BI44: 135.0573 | BJ44: 68.23094796 | BK44: 0 | BL44: 0 | BM44: 0 | BN44: 0 | BO44: 0 | BP44: 0 | BQ44: 0 | BR44: 0 | BU44: 157.4900462 | BV44: 82.2279738 | BW44: 0 | BX44: 0 | BY44: 0 | BZ44: 0 | CA44: 0 | CB44: 0 | CC44: 0 | CD44: 0
B45: 100W Metal Halide | C45: Offered | D45: 18.143 | E45: 18.3316872 | F45: 18.52233675 | G45: 18.71496905 | H45: 18.90960473 | I45: 19.10626462 | J45: 19.30496977 | K45: 19.50574145 | L45: 19.70860117 | M45: 19.91357062 | P45: 21.15651585 | Q45: 22.09228422 | R45: 23.06944232 | S45: 24.08982084 | T45: 25.15533146 | U45: 26.26797041 | V45: 27.4298222 | W45: 28.64306356 | X45: 29.90996748 | Y45: 31.2329075 | AA45: 0 | AB45: 0 | AC45: 0 | AD45: 0 | AE45: 0 | AF45: 0 | AG45: 0 | AH45: 0 | AI45: 0 | AJ45: 0 | AL45: 66.22195 | AM45: 66.91065828 | AN45: 67.60652913 | AO45: 68.49678672 | AP45: 69.02005725 | AQ45: 69.73786585 | AR45: 70.46313965 | AS45: 71.39101372 | AT45: 71.93639425 | AU45: 72.68453275 | AW45: 77.22128284 | AX45: 80.63683739 | AY45: 84.20346445 | AZ45: 88.16874428 | BA45: 91.81695984 | BB45: 95.878092 | BC45: 100.118851 | BD45: 104.8336126 | BE45: 109.1713813 | BF45: 114.0001124 | BI45: 0 | BJ45: 0 | BK45: 0 | BL45: 0 | BM45: 0 | BN45: 0 | BO45: 0 | BP45: 0 | BQ45: 0 | BR45: 0 | BU45: 0 | BV45: 0 | BW45: 0 | BX45: 0 | BY45: 0 | BZ45: 0 | CA45: 0 | CB45: 0 | CC45: 0 | CD45: 0
B46: 150W Metal Halide | C46: Offered | D46: 19.844 | E46: 20.0503776 | F46: 20.25890153 | G46: 20.4695941 | H46: 20.68247788 | I46: 20.89757565 | J46: 21.11491044 | K46: 21.33450551 | L46: 21.55638436 | M46: 21.78057076 | P46: 23.14004853 | Q46: 24.16355002 | R46: 25.23232174 | S46: 26.34836602 | T46: 27.51377377 | U46: 28.73072837 | V46: 30.00150977 | W46: 31.32849878 | X46: 32.71418149 | Y46: 34.16115397 | AA46: 10.8 | AB46: 5.4 | AC46: 0 | AD46: 0 | AE46: 0 | AF46: 0 | AG46: 0 | AH46: 0 | AI46: 0 | AJ46: 0 | AL46: 72.4306 | AM46: 73.18387824 | AN46: 73.94499057 | AO46: 74.91871442 | AP46: 75.49104427 | AQ46: 76.27615113 | AR46: 77.0694231 | AS46: 78.08429016 | AT46: 78.68080293 | AU46: 79.49908328 | AW46: 84.46117713 | AX46: 88.19695757 | AY46: 92.09797435 | AZ46: 96.43501964 | BA46: 100.4252743 | BB46: 104.8671586 | BC46: 109.5055107 | BD46: 114.6623055 | BE46: 119.4067624 | BF46: 124.688212 | BI46: 782.25048 | BJ46: 395.1929425 | BK46: 0 | BL46: 0 | BM46: 0 | BN46: 0 | BO46: 0 | BP46: 0 | BQ46: 0 | BR46: 0 | BU46: 912.180713 | BV46: 476.2635709 | BW46: 0 | BX46: 0 | BY46: 0 | BZ46: 0 | CA46: 0 | CB46: 0 | CC46: 0 | CD46: 0
B47: 250W Metal Halide | C47: Offered | D47: 19.034 | E47: 19.2319536 | F47: 19.43196592 | G47: 19.63405836 | H47: 19.83825257 | I47: 20.0445704 | J47: 20.25303393 | K47: 20.46366548 | L47: 20.6764876 | M47: 20.89152307 | P47: 22.19550916 | Q47: 23.17723297 | R47: 24.20237916 | S47: 25.27286832 | T47: 26.39070601 | U47: 27.55798648 | V47: 28.77689664 | W47: 30.0497201 | X47: 31.37884148 | Y47: 32.76675089 | AA47: 16 | AB47: 8 | AC47: 0 | AD47: 0 | AE47: 0 | AF47: 0 | AG47: 0 | AH47: 0 | AI47: 0 | AJ47: 0 | AL47: 69.4741 | AM47: 70.19663064 | AN47: 70.9266756 | AO47: 71.86065361 | AP47: 72.40962188 | AQ47: 73.16268195 | AR47: 73.92357384 | AS47: 74.89701566 | AT47: 75.46917975 | AU47: 76.25405922 | AW47: 81.01360842 | AX47: 84.59690034 | AY47: 88.33868392 | AZ47: 92.49869804 | BA47: 96.32607692 | BB47: 100.5866507 | BC47: 105.0356727 | BD47: 109.9819756 | BE47: 114.5327714 | BF47: 119.5986408 | BI47: 1111.5856 | BJ47: 561.5730451 | BK47: 0 | BL47: 0 | BM47: 0 | BN47: 0 | BO47: 0 | BP47: 0 | BQ47: 0 | BR47: 0 | BU47: 1296.217735 | BV47: 676.7752027 | BW47: 0 | BX47: 0 | BY47: 0 | BZ47: 0 | CA47: 0 | CB47: 0 | CC47: 0 | CD47: 0
B48: 400W Metal Halide | C48: Offered | D48: 18.574 | E48: 18.7671696 | F48: 18.96234816 | G48: 19.15955658 | H48: 19.35881597 | I48: 19.56014766 | J48: 19.7635732 | K48: 19.96911436 | L48: 20.17679315 | M48: 20.38663179 | P48: 21.65910408 | Q48: 22.6171023 | R48: 23.61747349 | S48: 24.66209184 | T48: 25.75291444 | U48: 26.89198492 | V48: 28.08143734 | W48: 29.32350011 | X48: 30.62050025 | Y48: 31.97486766 | AA48: 3.6 | AB48: 1.8 | AC48: 0 | AD48: 0 | AE48: 0 | AF48: 0 | AG48: 0 | AH48: 0 | AI48: 0 | AJ48: 0 | AL48: 67.7951 | AM48: 68.50016904 | AN48: 69.2125708 | AO48: 70.1239771 | AP48: 70.6596783 | AQ48: 71.39453896 | AR48: 72.13704216 | AS48: 73.08695854 | AT48: 73.64529498 | AU48: 74.41120605 | AW48: 79.0557299 | AX48: 82.5524234 | AY48: 86.20377825 | AZ48: 90.26325614 | BA48: 93.99813769 | BB48: 98.15574496 | BC48: 102.4972463 | BD48: 107.3240104 | BE48: 111.7648259 | BF48: 116.708267 | BI48: 244.06236 | BJ48: 123.3003043 | BK48: 0 | BL48: 0 | BM48: 0 | BN48: 0 | BO48: 0 | BP48: 0 | BQ48: 0 | BR48: 0 | BU48: 284.6006276 | BV48: 148.5943621 | BW48: 0 | BX48: 0 | BY48: 0 | BZ48: 0 | CA48: 0 | CB48: 0 | CC48: 0 | CD48: 0
B49: 400W Metal Halide - Flood Light | C49: Offered | D49: 18.574 | E49: 18.7671696 | F49: 18.96234816 | G49: 19.15955658 | H49: 19.35881597 | I49: 19.56014766 | J49: 19.7635732 | K49: 19.96911436 | L49: 20.17679315 | M49: 20.38663179 | P49: 21.65910408 | Q49: 22.6171023 | R49: 23.61747349 | S49: 24.66209184 | T49: 25.75291444 | U49: 26.89198492 | V49: 28.08143734 | W49: 29.32350011 | X49: 30.62050025 | Y49: 31.97486766 | AA49: 0.8 | AB49: 0.4 | AC49: 0 | AD49: 0 | AE49: 0 | AF49: 0 | AG49: 0 | AH49: 0 | AI49: 0 | AJ49: 0 | AL49: 67.7951 | AM49: 68.50016904 | AN49: 69.2125708 | AO49: 70.1239771 | AP49: 70.6596783 | AQ49: 71.39453896 | AR49: 72.13704216 | AS49: 73.08695854 | AT49: 73.64529498 | AU49: 74.41120605 | AW49: 79.0557299 | AX49: 82.5524234 | AY49: 86.20377825 | AZ49: 90.26325614 | BA49: 93.99813769 | BB49: 98.15574496 | BC49: 102.4972463 | BD49: 107.3240104 | BE49: 111.7648259 | BF49: 116.708267 | BI49: 54.23608 | BJ49: 27.40006762 | BK49: 0 | BL49: 0 | BM49: 0 | BN49: 0 | BO49: 0 | BP49: 0 | BQ49: 0 | BR49: 0 | BU49: 63.24458392 | BV49: 33.02096936 | BW49: 0 | BX49: 0 | BY49: 0 | BZ49: 0 | CA49: 0 | CB49: 0 | CC49: 0 | CD49: 0
B50: LED 18 | C50: Offered | D50: 9.954 | E50: 10.0575216 | F50: 10.16211982 | G50: 10.26780587 | H50: 10.37459105 | I50: 10.4824868 | J50: 10.59150466 | K50: 10.70165631 | L50: 10.81295354 | M50: 10.92540825 | P50: 11.6073394 | Q50: 12.12074062 | R50: 12.65684996 | S50: 13.21667181 | T50: 13.801255 | U50: 14.41169473 | V50: 15.04913466 | W50: 15.71476904 | X50: 16.40984492 | Y50: 17.13566451 | AA50: 5429.483333 | AB50: 5607.133333 | AC50: 5784.783333 | AD50: 5784.783333 | AE50: 5784.783333 | AF50: 5784.783333 | AG50: 5784.783333 | AH50: 5784.783333 | AI50: 5784.783333 | AJ50: 5784.783333 | AL50: 36.3321 | AM50: 36.70995384 | AN50: 37.09173736 | AO50: 37.58016949 | AP50: 37.86725734 | AQ50: 38.26107682 | AR50: 38.65899201 | AS50: 39.16806209 | AT50: 39.46728041 | AU50: 39.87774012 | AW50: 42.36678881 | AX50: 44.24070327 | AY50: 46.19750235 | AZ50: 48.37301882 | BA50: 50.37458073 | BB50: 52.60268576 | BC50: 54.92934152 | BD50: 57.51605468 | BE50: 59.89593394 | BF50: 62.54517548 | BI50: 197264.5314 | BJ50: 205837.6058 | BK50: 214567.6641 | BL50: 217393.1381 | BM50: 219053.8791 | BN50: 221332.0395 | BO50: 223633.8927 | BP50: 226578.7528 | BQ50: 228309.6659 | BR50: 230684.0864 | BU50: 230029.7737 | BV50: 248063.522 | BW50: 267242.5416 | BX50: 279827.4331 | BY50: 291406.0351 | BZ50: 304295.1399 | CA50: 317754.3394 | CB50: 332717.9145 | CC50: 346485.0004 | CD50: 361810.2887
B51: 0 | C51: NA | AA51: 0 | AB51: 0 | AC51: 0 | AD51: 0 | AE51: 0 | AF51: 0 | AG51: 0 | AH51: 0 | AI51: 0 | AJ51: 0 | BI51: 0 | BJ51: 0 | BK51: 0 | BL51: 0 | BM51: 0 | BN51: 0 | BO51: 0 | BP51: 0 | BQ51: 0 | BR51: 0 | BU51: 0 | BV51: 0 | BW51: 0 | BX51: 0 | BY51: 0 | BZ51: 0 | CA51: 0 | CB51: 0 | CC51: 0 | CD51: 0
B52: 0 | C52: NA | AA52: 0 | AB52: 0 | AC52: 0 | AD52: 0 | AE52: 0 | AF52: 0 | AG52: 0 | AH52: 0 | AI52: 0 | AJ52: 0 | BI52: 0 | BJ52: 0 | BK52: 0 | BL52: 0 | BM52: 0 | BN52: 0 | BO52: 0 | BP52: 0 | BQ52: 0 | BR52: 0 | BU52: 0 | BV52: 0 | BW52: 0 | BX52: 0 | BY52: 0 | BZ52: 0 | CA52: 0 | CB52: 0 | CC52: 0 | CD52: 0
B53: 0 | C53: NA | AA53: 0 | AB53: 0 | AC53: 0 | AD53: 0 | AE53: 0 | AF53: 0 | AG53: 0 | AH53: 0 | AI53: 0 | AJ53: 0 | BI53: 0 | BJ53: 0 | BK53: 0 | BL53: 0 | BM53: 0 | BN53: 0 | BO53: 0 | BP53: 0 | BQ53: 0 | BR53: 0 | BU53: 0 | BV53: 0 | BW53: 0 | BX53: 0 | BY53: 0 | BZ53: 0 | CA53: 0 | CB53: 0 | CC53: 0 | CD53: 0
B54: LED 20 | C54: Offered | D54: 9.954 | E54: 10.0575216 | F54: 10.16211982 | G54: 10.26780587 | H54: 10.37459105 | I54: 10.4824868 | J54: 10.59150466 | K54: 10.70165631 | L54: 10.81295354 | M54: 10.92540825 | P54: 11.6073394 | Q54: 12.12074062 | R54: 12.65684996 | S54: 13.21667181 | T54: 13.801255 | U54: 14.41169473 | V54: 15.04913466 | W54: 15.71476904 | X54: 16.40984492 | Y54: 17.13566451 | AA54: 2 | AB54: 2 | AC54: 2 | AD54: 2 | AE54: 2 | AF54: 2 | AG54: 2 | AH54: 2 | AI54: 2 | AJ54: 2 | AL54: 36.3321 | AM54: 36.70995384 | AN54: 37.09173736 | AO54: 37.58016949 | AP54: 37.86725734 | AQ54: 38.26107682 | AR54: 38.65899201 | AS54: 39.16806209 | AT54: 39.46728041 | AU54: 39.87774012 | AW54: 42.36678881 | AX54: 44.24070327 | AY54: 46.19750235 | AZ54: 48.37301882 | BA54: 50.37458073 | BB54: 52.60268576 | BC54: 54.92934152 | BD54: 57.51605468 | BE54: 59.89593394 | BF54: 62.54517548 | BI54: 72.6642 | BJ54: 73.41990768 | BK54: 74.18347472 | BL54: 75.16033897 | BM54: 75.73451468 | BN54: 76.52215363 | BO54: 77.31798403 | BP54: 78.33612419 | BQ54: 78.93456081 | BR54: 79.75548024 | BU54: 84.73357762 | BV54: 88.48140654 | BW54: 92.3950047 | BX54: 96.74603765 | BY54: 100.7491615 | BZ54: 105.2053715 | CA54: 109.858683 | CB54: 115.0321094 | CC54: 119.7918679 | CD54: 125.090351
B55: LED 200 | C55: Offered | D55: 10.787 | E55: 10.8991848 | F55: 11.01253632 | G55: 11.1270667 | H55: 11.24278819 | I55: 11.35971319 | J55: 11.47785421 | K55: 11.59722389 | L55: 11.71783502 | M55: 11.8397005 | P55: 12.57869903 | Q55: 13.1350642 | R55: 13.71603782 | S55: 14.32270834 | T55: 14.95621234 | U55: 15.61773669 | V55: 16.30852076 | W55: 17.02985871 | X55: 17.78310198 | Y55: 18.56966176 | AA55: 1 | AB55: 1 | AC55: 1 | AD55: 1 | AE55: 1 | AF55: 1 | AG55: 1 | AH55: 1 | AI55: 1 | AJ55: 1 | AL55: 39.37255 | AM55: 39.78202452 | AN55: 40.19575758 | AO55: 40.72506412 | AP55: 41.03617691 | AQ55: 41.46295315 | AR55: 41.89416786 | AS55: 42.44583944 | AT55: 42.77009782 | AU55: 43.21490684 | AW55: 45.91225145 | AX55: 47.94298434 | AY55: 50.06353806 | AZ55: 52.42111252 | BA55: 54.59017504 | BB55: 57.00473893 | BC55: 59.52610076 | BD55: 62.32928289 | BE55: 64.90832223 | BF55: 67.77926541 | BI55: 39.37255 | BJ55: 39.78202452 | BK55: 40.19575758 | BL55: 40.72506412 | BM55: 41.03617691 | BN55: 41.46295315 | BO55: 41.89416786 | BP55: 42.44583944 | BQ55: 42.77009782 | BR55: 43.21490684 | BU55: 45.91225145 | BV55: 47.94298434 | BW55: 50.06353806 | BX55: 52.42111252 | BY55: 54.59017504 | BZ55: 57.00473893 | CA55: 59.52610076 | CB55: 62.32928289 | CC55: 64.90832223 | CD55: 67.77926541
B56: LED 240 | C56: Offered | D56: 10.787 | E56: 10.8991848 | F56: 11.01253632 | G56: 11.1270667 | H56: 11.24278819 | I56: 11.35971319 | J56: 11.47785421 | K56: 11.59722389 | L56: 11.71783502 | M56: 11.8397005 | P56: 12.57869903 | Q56: 13.1350642 | R56: 13.71603782 | S56: 14.32270834 | T56: 14.95621234 | U56: 15.61773669 | V56: 16.30852076 | W56: 17.02985871 | X56: 17.78310198 | Y56: 18.56966176 | AA56: 6 | AB56: 6 | AC56: 6 | AD56: 6 | AE56: 6 | AF56: 6 | AG56: 6 | AH56: 6 | AI56: 6 | AJ56: 6 | AL56: 39.37255 | AM56: 39.78202452 | AN56: 40.19575758 | AO56: 40.72506412 | AP56: 41.03617691 | AQ56: 41.46295315 | AR56: 41.89416786 | AS56: 42.44583944 | AT56: 42.77009782 | AU56: 43.21490684 | AW56: 45.91225145 | AX56: 47.94298434 | AY56: 50.06353806 | AZ56: 52.42111252 | BA56: 54.59017504 | BB56: 57.00473893 | BC56: 59.52610076 | BD56: 62.32928289 | BE56: 64.90832223 | BF56: 67.77926541 | BI56: 236.2353 | BJ56: 238.6921471 | BK56: 241.1745455 | BL56: 244.3503847 | BM56: 246.2170614 | BN56: 248.7777189 | BO56: 251.3650071 | BP56: 254.6750367 | BQ56: 256.6205869 | BR56: 259.289441 | BU56: 275.4735087 | BV56: 287.6579061 | BW56: 300.3812284 | BX56: 314.5266751 | BY56: 327.5410503 | BZ56: 342.0284336 | CA56: 357.1566046 | CB56: 373.9756973 | CC56: 389.4499334 | CD56: 406.6755924
B57: LED 25 | C57: Offered | D57: 9.954 | E57: 10.0575216 | F57: 10.16211982 | G57: 10.26780587 | H57: 10.37459105 | I57: 10.4824868 | J57: 10.59150466 | K57: 10.70165631 | L57: 10.81295354 | M57: 10.92540825 | P57: 11.6073394 | Q57: 12.12074062 | R57: 12.65684996 | S57: 13.21667181 | T57: 13.801255 | U57: 14.41169473 | V57: 15.04913466 | W57: 15.71476904 | X57: 16.40984492 | Y57: 17.13566451 | AA57: 51 | AB57: 51 | AC57: 51 | AD57: 51 | AE57: 51 | AF57: 51 | AG57: 51 | AH57: 51 | AI57: 51 | AJ57: 51 | AL57: 36.3321 | AM57: 36.70995384 | AN57: 37.09173736 | AO57: 37.58016949 | AP57: 37.86725734 | AQ57: 38.26107682 | AR57: 38.65899201 | AS57: 39.16806209 | AT57: 39.46728041 | AU57: 39.87774012 | AW57: 42.36678881 | AX57: 44.24070327 | AY57: 46.19750235 | AZ57: 48.37301882 | BA57: 50.37458073 | BB57: 52.60268576 | BC57: 54.92934152 | BD57: 57.51605468 | BE57: 59.89593394 | BF57: 62.54517548 | BI57: 1852.9371 | BJ57: 1872.207646 | BK57: 1891.678605 | BL57: 1916.588644 | BM57: 1931.230124 | BN57: 1951.314918 | BO57: 1971.608593 | BP57: 1997.571167 | BQ57: 2012.831301 | BR57: 2033.764746 | BU57: 2160.706229 | BV57: 2256.275867 | BW57: 2356.07262 | BX57: 2467.02396 | BY57: 2569.103617 | BZ57: 2682.736974 | CA57: 2801.396418 | CB57: 2933.318789 | CC57: 3054.692631 | CD57: 3189.803949
B58: 0 | C58: NA | AA58: 0 | AB58: 0 | AC58: 0 | AD58: 0 | AE58: 0 | AF58: 0 | AG58: 0 | AH58: 0 | AI58: 0 | AJ58: 0 | BI58: 0 | BJ58: 0 | BK58: 0 | BL58: 0 | BM58: 0 | BN58: 0 | BO58: 0 | BP58: 0 | BQ58: 0 | BR58: 0 | BU58: 0 | BV58: 0 | BW58: 0 | BX58: 0 | BY58: 0 | BZ58: 0 | CA58: 0 | CB58: 0 | CC58: 0 | CD58: 0
B59: 0 | C59: NA | AA59: 0 | AB59: 0 | AC59: 0 | AD59: 0 | AE59: 0 | AF59: 0 | AG59: 0 | AH59: 0 | AI59: 0 | AJ59: 0 | BI59: 0 | BJ59: 0 | BK59: 0 | BL59: 0 | BM59: 0 | BN59: 0 | BO59: 0 | BP59: 0 | BQ59: 0 | BR59: 0 | BU59: 0 | BV59: 0 | BW59: 0 | BX59: 0 | BY59: 0 | BZ59: 0 | CA59: 0 | CB59: 0 | CC59: 0 | CD59: 0
B60: 0 | C60: NA | AA60: 0 | AB60: 0 | AC60: 0 | AD60: 0 | AE60: 0 | AF60: 0 | AG60: 0 | AH60: 0 | AI60: 0 | AJ60: 0 | BI60: 0 | BJ60: 0 | BK60: 0 | BL60: 0 | BM60: 0 | BN60: 0 | BO60: 0 | BP60: 0 | BQ60: 0 | BR60: 0 | BU60: 0 | BV60: 0 | BW60: 0 | BX60: 0 | BY60: 0 | BZ60: 0 | CA60: 0 | CB60: 0 | CC60: 0 | CD60: 0
B61: LED 265 | C61: Offered | D61: 10.787 | E61: 10.8991848 | F61: 11.01253632 | G61: 11.1270667 | H61: 11.24278819 | I61: 11.35971319 | J61: 11.47785421 | K61: 11.59722389 | L61: 11.71783502 | M61: 11.8397005 | P61: 12.57869903 | Q61: 13.1350642 | R61: 13.71603782 | S61: 14.32270834 | T61: 14.95621234 | U61: 15.61773669 | V61: 16.30852076 | W61: 17.02985871 | X61: 17.78310198 | Y61: 18.56966176 | AA61: 0.9166666667 | AB61: 0.9166666667 | AC61: 0.9166666667 | AD61: 0.9166666667 | AE61: 0.9166666667 | AF61: 0.9166666667 | AG61: 0.9166666667 | AH61: 0.9166666667 | AI61: 0.9166666667 | AJ61: 0.9166666667 | AL61: 39.37255 | AM61: 39.78202452 | AN61: 40.19575758 | AO61: 40.72506412 | AP61: 41.03617691 | AQ61: 41.46295315 | AR61: 41.89416786 | AS61: 42.44583944 | AT61: 42.77009782 | AU61: 43.21490684 | AW61: 45.91225145 | AX61: 47.94298434 | AY61: 50.06353806 | AZ61: 52.42111252 | BA61: 54.59017504 | BB61: 57.00473893 | BC61: 59.52610076 | BD61: 62.32928289 | BE61: 64.90832223 | BF61: 67.77926541 | BI61: 36.09150417 | BJ61: 36.46685581 | BK61: 36.84611111 | BL61: 37.33130878 | BM61: 37.6164955 | BN61: 38.00770705 | BO61: 38.4029872 | BP61: 38.90868616 | BQ61: 39.205923 | BR61: 39.6136646 | BU61: 42.08623049 | BV61: 43.94773565 | BW61: 45.89157656 | BX61: 48.05268648 | BY61: 50.04099379 | BZ61: 52.25434402 | CA61: 54.56559237 | CB61: 57.13517598 | CC61: 59.49929538 | CD61: 62.13099329
B62: LED 30 | C62: Offered | D62: 9.954 | E62: 10.0575216 | F62: 10.16211982 | G62: 10.26780587 | H62: 10.37459105 | I62: 10.4824868 | J62: 10.59150466 | K62: 10.70165631 | L62: 10.81295354 | M62: 10.92540825 | P62: 11.6073394 | Q62: 12.12074062 | R62: 12.65684996 | S62: 13.21667181 | T62: 13.801255 | U62: 14.41169473 | V62: 15.04913466 | W62: 15.71476904 | X62: 16.40984492 | Y62: 17.13566451 | AA62: 30 | AB62: 30 | AC62: 30 | AD62: 30 | AE62: 30 | AF62: 30 | AG62: 30 | AH62: 30 | AI62: 30 | AJ62: 30 | AL62: 36.3321 | AM62: 36.70995384 | AN62: 37.09173736 | AO62: 37.58016949 | AP62: 37.86725734 | AQ62: 38.26107682 | AR62: 38.65899201 | AS62: 39.16806209 | AT62: 39.46728041 | AU62: 39.87774012 | AW62: 42.36678881 | AX62: 44.24070327 | AY62: 46.19750235 | AZ62: 48.37301882 | BA62: 50.37458073 | BB62: 52.60268576 | BC62: 54.92934152 | BD62: 57.51605468 | BE62: 59.89593394 | BF62: 62.54517548 | BI62: 1089.963 | BJ62: 1101.298615 | BK62: 1112.752121 | BL62: 1127.405085 | BM62: 1136.01772 | BN62: 1147.832304 | BO62: 1159.76976 | BP62: 1175.041863 | BQ62: 1184.018412 | BR62: 1196.332204 | BU62: 1271.003664 | BV62: 1327.221098 | BW62: 1385.925071 | BX62: 1451.190565 | BY62: 1511.237422 | BZ62: 1578.080573 | CA62: 1647.880246 | CB62: 1725.481641 | CC62: 1796.878018 | CD62: 1876.355264
B63: LED 75 | C63: Offered | D63: 10.38 | E63: 10.487952 | F63: 10.5970267 | G63: 10.70723578 | H63: 10.81859103 | I63: 10.93110438 | J63: 11.04478786 | K63: 11.15965366 | L63: 11.27571405 | M63: 11.39298148 | P63: 12.10409714 | Q63: 12.63947033 | R63: 13.19852347 | S63: 13.78230394 | T63: 14.39190545 | U63: 15.02847009 | V63: 15.69319046 | W63: 16.3873119 | X63: 17.11213484 | Y63: 17.86901725 | AA63: 6.333333333 | AB63: 6.333333333 | AC63: 6.333333333 | AD63: 6.333333333 | AE63: 6.333333333 | AF63: 6.333333333 | AG63: 6.333333333 | AH63: 6.333333333 | AI63: 6.333333333 | AJ63: 6.333333333 | AL63: 37.887 | AM63: 38.2810248 | AN63: 38.67914746 | AO63: 39.18848295 | AP63: 39.48785726 | AQ63: 39.89853098 | AR63: 40.3134757 | AS63: 40.84433238 | AT63: 41.1563563 | AU63: 41.5843824 | AW63: 44.17995458 | AX63: 46.1340667 | AY63: 48.17461065 | AZ63: 50.44323241 | BA63: 52.53045489 | BB63: 54.85391583 | BC63: 57.28014517 | BD63: 59.97756154 | BE63: 62.45929218 | BF63: 65.22191295 | BI63: 239.951 | BJ63: 242.4464904 | BK63: 244.9679339 | BL63: 248.1937253 | BM63: 250.0897627 | BN63: 252.6906962 | BO63: 255.3186794 | BP63: 258.6807718 | BQ63: 260.6569232 | BR63: 263.3677552 | BU63: 279.806379 | BV63: 292.1824224 | BW63: 305.1058674 | BX63: 319.4738052 | BY63: 332.692881 | BZ63: 347.4081336 | CA63: 362.7742527 | CB63: 379.8578898 | CC63: 395.5755171 | CD63: 413.0721153
B64: LED 155 | C64: Offered | D64: 10.787 | E64: 10.8991848 | F64: 11.01253632 | G64: 11.1270667 | H64: 11.24278819 | I64: 11.35971319 | J64: 11.47785421 | K64: 11.59722389 | L64: 11.71783502 | M64: 11.8397005 | P64: 12.57869903 | Q64: 13.1350642 | R64: 13.71603782 | S64: 14.32270834 | T64: 14.95621234 | U64: 15.61773669 | V64: 16.30852076 | W64: 17.02985871 | X64: 17.78310198 | Y64: 18.56966176 | AA64: 0 | AB64: 0 | AC64: 0 | AD64: 0 | AE64: 0 | AF64: 0 | AG64: 0 | AH64: 0 | AI64: 0 | AJ64: 0 | AL64: 39.37255 | AM64: 39.78202452 | AN64: 40.19575758 | AO64: 40.72506412 | AP64: 41.03617691 | AQ64: 41.46295315 | AR64: 41.89416786 | AS64: 42.44583944 | AT64: 42.77009782 | AU64: 43.21490684 | AW64: 45.91225145 | AX64: 47.94298434 | AY64: 50.06353806 | AZ64: 52.42111252 | BA64: 54.59017504 | BB64: 57.00473893 | BC64: 59.52610076 | BD64: 62.32928289 | BE64: 64.90832223 | BF64: 67.77926541 | BI64: 0 | BJ64: 0 | BK64: 0 | BL64: 0 | BM64: 0 | BN64: 0 | BO64: 0 | BP64: 0 | BQ64: 0 | BR64: 0 | BU64: 0 | BV64: 0 | BW64: 0 | BX64: 0 | BY64: 0 | BZ64: 0 | CA64: 0 | CB64: 0 | CC64: 0 | CD64: 0
B65: LED 14 | C65: Offered | D65: 9.954 | E65: 10.0575216 | F65: 10.16211982 | G65: 10.26780587 | H65: 10.37459105 | I65: 10.4824868 | J65: 10.59150466 | K65: 10.70165631 | L65: 10.81295354 | M65: 10.92540825 | P65: 11.6073394 | Q65: 12.12074062 | R65: 12.65684996 | S65: 13.21667181 | T65: 13.801255 | U65: 14.41169473 | V65: 15.04913466 | W65: 15.71476904 | X65: 16.40984492 | Y65: 17.13566451 | AA65: 15464.25 | AB65: 15593.9 | AC65: 15723.55 | AD65: 15723.55 | AE65: 15723.55 | AF65: 15723.55 | AG65: 15723.55 | AH65: 15723.55 | AI65: 15723.55 | AJ65: 15723.55 | AL65: 36.3321 | AM65: 36.70995384 | AN65: 37.09173736 | AO65: 37.58016949 | AP65: 37.86725734 | AQ65: 38.26107682 | AR65: 38.65899201 | AS65: 39.16806209 | AT65: 39.46728041 | AU65: 39.87774012 | AW65: 42.36678881 | AX65: 44.24070327 | AY65: 46.19750235 | AZ65: 48.37301882 | BA65: 50.37458073 | BB65: 52.60268576 | BC65: 54.92934152 | BD65: 57.51605468 | BE65: 59.89593394 | BF65: 62.54517548 | BI65: 561848.6774 | BJ65: 572451.3492 | BK65: 583213.787 | BL65: 590893.6739 | BM65: 595407.7141 | BN65: 601599.9544 | BO65: 607856.5939 | BP65: 615860.9827 | BQ65: 620565.7568 | BR65: 627019.6407 | BU65: 655170.6139 | BV65: 689885.1027 | BW65: 726388.7381 | BX65: 760595.5801 | BY65: 792067.2389 | BZ65: 827100.9597 | CA65: 863684.2479 | CB65: 904356.5616 | CC65: 941776.7122 | CD65: 983432.1939
B66: 0 | C66: NA | AA66: 0 | AB66: 0 | AC66: 0 | AD66: 0 | AE66: 0 | AF66: 0 | AG66: 0 | AH66: 0 | AI66: 0 | AJ66: 0 | BI66: 0 | BJ66: 0 | BK66: 0 | BL66: 0 | BM66: 0 | BN66: 0 | BO66: 0 | BP66: 0 | BQ66: 0 | BR66: 0 | BU66: 0 | BV66: 0 | BW66: 0 | BX66: 0 | BY66: 0 | BZ66: 0 | CA66: 0 | CB66: 0 | CC66: 0 | CD66: 0
B67: 0 | C67: NA | AA67: 0 | AB67: 0 | AC67: 0 | AD67: 0 | AE67: 0 | AF67: 0 | AG67: 0 | AH67: 0 | AI67: 0 | AJ67: 0 | BI67: 0 | BJ67: 0 | BK67: 0 | BL67: 0 | BM67: 0 | BN67: 0 | BO67: 0 | BP67: 0 | BQ67: 0 | BR67: 0 | BU67: 0 | BV67: 0 | BW67: 0 | BX67: 0 | BY67: 0 | BZ67: 0 | CA67: 0 | CB67: 0 | CC67: 0 | CD67: 0
B68: 0 | C68: NA | AA68: 0 | AB68: 0 | AC68: 0 | AD68: 0 | AE68: 0 | AF68: 0 | AG68: 0 | AH68: 0 | AI68: 0 | AJ68: 0 | BI68: 0 | BJ68: 0 | BK68: 0 | BL68: 0 | BM68: 0 | BN68: 0 | BO68: 0 | BP68: 0 | BQ68: 0 | BR68: 0 | BU68: 0 | BV68: 0 | BW68: 0 | BX68: 0 | BY68: 0 | BZ68: 0 | CA68: 0 | CB68: 0 | CC68: 0 | CD68: 0
B69: LED 17 | C69: Offered | D69: 9.954 | E69: 10.0575216 | F69: 10.16211982 | G69: 10.26780587 | H69: 10.37459105 | I69: 10.4824868 | J69: 10.59150466 | K69: 10.70165631 | L69: 10.81295354 | M69: 10.92540825 | P69: 11.6073394 | Q69: 12.12074062 | R69: 12.65684996 | S69: 13.21667181 | T69: 13.801255 | U69: 14.41169473 | V69: 15.04913466 | W69: 15.71476904 | X69: 16.40984492 | Y69: 17.13566451 | AA69: 6 | AB69: 6 | AC69: 6 | AD69: 6 | AE69: 6 | AF69: 6 | AG69: 6 | AH69: 6 | AI69: 6 | AJ69: 6 | AL69: 36.3321 | AM69: 36.70995384 | AN69: 37.09173736 | AO69: 37.58016949 | AP69: 37.86725734 | AQ69: 38.26107682 | AR69: 38.65899201 | AS69: 39.16806209 | AT69: 39.46728041 | AU69: 39.87774012 | AW69: 42.36678881 | AX69: 44.24070327 | AY69: 46.19750235 | AZ69: 48.37301882 | BA69: 50.37458073 | BB69: 52.60268576 | BC69: 54.92934152 | BD69: 57.51605468 | BE69: 59.89593394 | BF69: 62.54517548 | BI69: 217.9926 | BJ69: 220.259723 | BK69: 222.5504242 | BL69: 225.4810169 | BM69: 227.203544 | BN69: 229.5664609 | BO69: 231.9539521 | BP69: 235.0083726 | BQ69: 236.8036824 | BR69: 239.2664407 | BU69: 254.2007329 | BV69: 265.4442196 | BW69: 277.1850141 | BX69: 290.2381129 | BY69: 302.2474844 | BZ69: 315.6161146 | CA69: 329.5760491 | CB69: 345.0963281 | CC69: 359.3756037 | CD69: 375.2710529
B70: LED 175 | C70: Offered | D70: 10.787 | E70: 10.8991848 | F70: 11.01253632 | G70: 11.1270667 | H70: 11.24278819 | I70: 11.35971319 | J70: 11.47785421 | K70: 11.59722389 | L70: 11.71783502 | M70: 11.8397005 | P70: 12.57869903 | Q70: 13.1350642 | R70: 13.71603782 | S70: 14.32270834 | T70: 14.95621234 | U70: 15.61773669 | V70: 16.30852076 | W70: 17.02985871 | X70: 17.78310198 | Y70: 18.56966176 | AA70: 9.166666667 | AB70: 9.166666667 | AC70: 9.166666667 | AD70: 9.166666667 | AE70: 9.166666667 | AF70: 9.166666667 | AG70: 9.166666667 | AH70: 9.166666667 | AI70: 9.166666667 | AJ70: 9.166666667 | AL70: 39.37255 | AM70: 39.78202452 | AN70: 40.19575758 | AO70: 40.72506412 | AP70: 41.03617691 | AQ70: 41.46295315 | AR70: 41.89416786 | AS70: 42.44583944 | AT70: 42.77009782 | AU70: 43.21490684 | AW70: 45.91225145 | AX70: 47.94298434 | AY70: 50.06353806 | AZ70: 52.42111252 | BA70: 54.59017504 | BB70: 57.00473893 | BC70: 59.52610076 | BD70: 62.32928289 | BE70: 64.90832223 | BF70: 67.77926541 | BI70: 360.9150417 | BJ70: 364.6685581 | BK70: 368.4611111 | BL70: 373.3130878 | BM70: 376.164955 | BN70: 380.0770705 | BO70: 384.029872 | BP70: 389.0868616 | BQ70: 392.05923 | BR70: 396.136646 | BU70: 420.8623049 | BV70: 439.4773565 | BW70: 458.9157656 | BX70: 480.5268648 | BY70: 500.4099379 | BZ70: 522.5434402 | CA70: 545.6559237 | CB70: 571.3517598 | CC70: 594.9929538 | CD70: 621.3099329
B71: LED 14 New Tech | C71: Offered | D71: 9.954 | E71: 10.0575216 | F71: 10.16211982 | G71: 10.26780587 | H71: 10.37459105 | I71: 10.4824868 | J71: 10.59150466 | K71: 10.70165631 | L71: 10.81295354 | M71: 10.92540825 | P71: 11.6073394 | Q71: 12.12074062 | R71: 12.65684996 | S71: 13.21667181 | T71: 13.801255 | U71: 14.41169473 | V71: 15.04913466 | W71: 15.71476904 | X71: 16.40984492 | Y71: 17.13566451 | AA71: 0 | AB71: 0 | AC71: 0 | AD71: 0 | AE71: 0 | AF71: 0 | AG71: 0 | AH71: 0 | AI71: 0 | AJ71: 0 | AL71: 36.3321 | AM71: 36.70995384 | AN71: 37.09173736 | AO71: 37.58016949 | AP71: 37.86725734 | AQ71: 38.26107682 | AR71: 38.65899201 | AS71: 39.16806209 | AT71: 39.46728041 | AU71: 39.87774012 | AW71: 42.36678881 | AX71: 44.24070327 | AY71: 46.19750235 | AZ71: 48.37301882 | BA71: 50.37458073 | BB71: 52.60268576 | BC71: 54.92934152 | BD71: 57.51605468 | BE71: 59.89593394 | BF71: 62.54517548 | BI71: 0 | BJ71: 0 | BK71: 0 | BL71: 0 | BM71: 0 | BN71: 0 | BO71: 0 | BP71: 0 | BQ71: 0 | BR71: 0 | BU71: 0 | BV71: 0 | BW71: 0 | BX71: 0 | BY71: 0 | BZ71: 0 | CA71: 0 | CB71: 0 | CC71: 0 | CD71: 0
B72: LED 75 New Tech | C72: Offered | D72: 10.38 | E72: 10.487952 | F72: 10.5970267 | G72: 10.70723578 | H72: 10.81859103 | I72: 10.93110438 | J72: 11.04478786 | K72: 11.15965366 | L72: 11.27571405 | M72: 11.39298148 | P72: 12.10409714 | Q72: 12.63947033 | R72: 13.19852347 | S72: 13.78230394 | T72: 14.39190545 | U72: 15.02847009 | V72: 15.69319046 | W72: 16.3873119 | X72: 17.11213484 | Y72: 17.86901725 | AA72: 0 | AB72: 0 | AC72: 0 | AD72: 0 | AE72: 0 | AF72: 0 | AG72: 0 | AH72: 0 | AI72: 0 | AJ72: 0 | AL72: 37.887 | AM72: 38.2810248 | AN72: 38.67914746 | AO72: 39.18848295 | AP72: 39.48785726 | AQ72: 39.89853098 | AR72: 40.3134757 | AS72: 40.84433238 | AT72: 41.1563563 | AU72: 41.5843824 | AW72: 44.17995458 | AX72: 46.1340667 | AY72: 48.17461065 | AZ72: 50.44323241 | BA72: 52.53045489 | BB72: 54.85391583 | BC72: 57.28014517 | BD72: 59.97756154 | BE72: 62.45929218 | BF72: 65.22191295 | BI72: 0 | BJ72: 0 | BK72: 0 | BL72: 0 | BM72: 0 | BN72: 0 | BO72: 0 | BP72: 0 | BQ72: 0 | BR72: 0 | BU72: 0 | BV72: 0 | BW72: 0 | BX72: 0 | BY72: 0 | BZ72: 0 | CA72: 0 | CB72: 0 | CC72: 0 | CD72: 0
B73: 0 | C73: NA | AA73: 0 | AB73: 0 | AC73: 0 | AD73: 0 | AE73: 0 | AF73: 0 | AG73: 0 | AH73: 0 | AI73: 0 | AJ73: 0 | BI73: 0 | BJ73: 0 | BK73: 0 | BL73: 0 | BM73: 0 | BN73: 0 | BO73: 0 | BP73: 0 | BQ73: 0 | BR73: 0 | BU73: 0 | BV73: 0 | BW73: 0 | BX73: 0 | BY73: 0 | BZ73: 0 | CA73: 0 | CB73: 0 | CC73: 0 | CD73: 0
B74: 0 | C74: NA | AA74: 0 | AB74: 0 | AC74: 0 | AD74: 0 | AE74: 0 | AF74: 0 | AG74: 0 | AH74: 0 | AI74: 0 | AJ74: 0 | BI74: 0 | BJ74: 0 | BK74: 0 | BL74: 0 | BM74: 0 | BN74: 0 | BO74: 0 | BP74: 0 | BQ74: 0 | BR74: 0 | BU74: 0 | BV74: 0 | BW74: 0 | BX74: 0 | BY74: 0 | BZ74: 0 | CA74: 0 | CB74: 0 | CC74: 0 | CD74: 0
B75: 0 | C75: NA | AA75: 0 | AB75: 0 | AC75: 0 | AD75: 0 | AE75: 0 | AF75: 0 | AG75: 0 | AH75: 0 | AI75: 0 | AJ75: 0 | BI75: 0 | BJ75: 0 | BK75: 0 | BL75: 0 | BM75: 0 | BN75: 0 | BO75: 0 | BP75: 0 | BQ75: 0 | BR75: 0 | BU75: 0 | BV75: 0 | BW75: 0 | BX75: 0 | BY75: 0 | BZ75: 0 | CA75: 0 | CB75: 0 | CC75: 0 | CD75: 0
B76: 0 | C76: NA | AA76: 0 | AB76: 0 | AC76: 0 | AD76: 0 | AE76: 0 | AF76: 0 | AG76: 0 | AH76: 0 | AI76: 0 | AJ76: 0 | BI76: 0 | BJ76: 0 | BK76: 0 | BL76: 0 | BM76: 0 | BN76: 0 | BO76: 0 | BP76: 0 | BQ76: 0 | BR76: 0 | BU76: 0 | BV76: 0 | BW76: 0 | BX76: 0 | BY76: 0 | BZ76: 0 | CA76: 0 | CB76: 0 | CC76: 0 | CD76: 0
B77: 0 | C77: NA | AA77: 0 | AB77: 0 | AC77: 0 | AD77: 0 | AE77: 0 | AF77: 0 | AG77: 0 | AH77: 0 | AI77: 0 | AJ77: 0 | BI77: 0 | BJ77: 0 | BK77: 0 | BL77: 0 | BM77: 0 | BN77: 0 | BO77: 0 | BP77: 0 | BQ77: 0 | BR77: 0 | BU77: 0 | BV77: 0 | BW77: 0 | BX77: 0 | BY77: 0 | BZ77: 0 | CA77: 0 | CB77: 0 | CC77: 0 | CD77: 0
B78: 0 | C78: NA | AA78: 0 | AB78: 0 | AC78: 0 | AD78: 0 | AE78: 0 | AF78: 0 | AG78: 0 | AH78: 0 | AI78: 0 | AJ78: 0 | BI78: 0 | BJ78: 0 | BK78: 0 | BL78: 0 | BM78: 0 | BN78: 0 | BO78: 0 | BP78: 0 | BQ78: 0 | BR78: 0 | BU78: 0 | BV78: 0 | BW78: 0 | BX78: 0 | BY78: 0 | BZ78: 0 | CA78: 0 | CB78: 0 | CC78: 0 | CD78: 0
B79: 0 | C79: NA | AA79: 0 | AB79: 0 | AC79: 0 | AD79: 0 | AE79: 0 | AF79: 0 | AG79: 0 | AH79: 0 | AI79: 0 | AJ79: 0 | BI79: 0 | BJ79: 0 | BK79: 0 | BL79: 0 | BM79: 0 | BN79: 0 | BO79: 0 | BP79: 0 | BQ79: 0 | BR79: 0 | BU79: 0 | BV79: 0 | BW79: 0 | BX79: 0 | BY79: 0 | BZ79: 0 | CA79: 0 | CB79: 0 | CC79: 0 | CD79: 0
B80: 0 | C80: NA | AA80: 0 | AB80: 0 | AC80: 0 | AD80: 0 | AE80: 0 | AF80: 0 | AG80: 0 | AH80: 0 | AI80: 0 | AJ80: 0 | BI80: 0 | BJ80: 0 | BK80: 0 | BL80: 0 | BM80: 0 | BN80: 0 | BO80: 0 | BP80: 0 | BQ80: 0 | BR80: 0 | BU80: 0 | BV80: 0 | BW80: 0 | BX80: 0 | BY80: 0 | BZ80: 0 | CA80: 0 | CB80: 0 | CC80: 0 | CD80: 0
B81: 0 | C81: NA | AA81: 0 | AB81: 0 | AC81: 0 | AD81: 0 | AE81: 0 | AF81: 0 | AG81: 0 | AH81: 0 | AI81: 0 | AJ81: 0 | BI81: 0 | BJ81: 0 | BK81: 0 | BL81: 0 | BM81: 0 | BN81: 0 | BO81: 0 | BP81: 0 | BQ81: 0 | BR81: 0 | BU81: 0 | BV81: 0 | BW81: 0 | BX81: 0 | BY81: 0 | BZ81: 0 | CA81: 0 | CB81: 0 | CC81: 0 | CD81: 0
B82: 0 | C82: NA | AA82: 0 | AB82: 0 | AC82: 0 | AD82: 0 | AE82: 0 | AF82: 0 | AG82: 0 | AH82: 0 | AI82: 0 | AJ82: 0 | BI82: 0 | BJ82: 0 | BK82: 0 | BL82: 0 | BM82: 0 | BN82: 0 | BO82: 0 | BP82: 0 | BQ82: 0 | BR82: 0 | BU82: 0 | BV82: 0 | BW82: 0 | BX82: 0 | BY82: 0 | BZ82: 0 | CA82: 0 | CB82: 0 | CC82: 0 | CD82: 0
AA83: 21620.75 | AB83: 21620.75 | AC83: 21620.75 | AD83: 21620.75 | AE83: 21620.75 | AF83: 21620.75 | AG83: 21620.75 | AH83: 21620.75 | AI83: 21620.75 | AJ83: 21620.75 | BI83: 800485.772 | BJ83: 801284.9949 | BK83: 802014.2611 | BL83: 812575.3607 | BM83: 818782.9036 | BN83: 827298.2458 | BO83: 835902.1476 | BP83: 846909.4903 | BQ83: 853379.3234 | BR83: 862254.4684 | BU83: 933444.8504 | BV83: 965662.1158 | BW83: 998903.2154 | BX83: 1045943.213 | BY83: 1089221.887 | BZ83: 1137398.978 | CA83: 1187706.977 | CB83: 1243638.055 | CC83: 1295096.877 | CD83: 1352379.971
AA84: TRUE | AB84: TRUE | AC84: TRUE | AD84: TRUE | AE84: TRUE | AF84: TRUE | AG84: TRUE | AH84: TRUE | AI84: TRUE | AJ84: TRUE
B85: Public Road Lights
C86: Offered / No Longer Offered / NA | D86: 2024-25 | E86: 2025-26 | F86: 2026-27 | G86: 2027-28 | H86: 2028-29 | I86: 2029-30 | J86: 2030-31 | K86: 2031-32 | L86: 2032-33 | M86: 2033-34 | P86: 2024-25 | Q86: 2025-26 | R86: 2026-27 | S86: 2027-28 | T86: 2028-29 | U86: 2029-30 | V86: 2030-31 | W86: 2031-32 | X86: 2032-33 | Y86: 2033-34 | AA86: 2024-25 | AB86: 2025-26 | AC86: 2026-27 | AD86: 2027-28 | AE86: 2028-29 | AF86: 2029-30 | AG86: 2030-31 | AH86: 2031-32 | AI86: 2032-33 | AJ86: 2033-34 | AL86: 2028-29 | AM86: 2029-30 | AN86: 2030-31 | AO86: 2031-32 | AP86: 2032-33 | AQ86: 2033-34 | AR86: 2034-35 | AS86: 2035-36 | AW86: 2028-29 | AX86: 2029-30 | AY86: 2030-31 | AZ86: 2031-32 | BA86: 2032-33 | BB86: 2033-34 | BC86: 2034-35 | BD86: 2035-36 | BI86: 2028-29 | BJ86: 2029-30 | BK86: 2030-31 | BL86: 2031-32 | BM86: 2032-33 | BN86: 2033-34 | BO86: 2034-35 | BP86: 2035-36 | BU86: 2028-29 | BV86: 2029-30 | BW86: 2030-31 | BX86: 2031-32 | BY86: 2032-33 | BZ86: 2033-34 | CA86: 2034-35 | CB86: 2035-36
B87: 50W Mercury Vapour | C87: Obsolete, no new Connections | D87: 34.284 | E87: 34.6405536 | F87: 35.00081536 | G87: 35.36482384 | H87: 35.73261801 | I87: 36.10423723 | J87: 36.4797213 | K87: 36.8591104 | L87: 37.24244515 | M87: 37.62976658 | P87: 39.97850352 | Q87: 41.74678235 | R87: 43.59327346 | S87: 45.52143624 | T87: 47.53488309 | U87: 49.63738618 | V87: 51.83288455 | W87: 54.12549143 | X87: 56.51950202 | Y87: 59.01940147 | AA87: 53.6 | AB87: 26.8 | AC87: 0 | AD87: 0 | AE87: 0 | AF87: 0 | AG87: 0 | AH87: 0 | AI87: 0 | AJ87: 0 | AL87: 0 | AM87: 0 | AN87: 0 | AO87: 0 | AP87: 0 | AQ87: 0 | AR87: 0 | AS87: 0 | AT87: 0 | AU87: 0 | AW87: 0 | AX87: 0 | AY87: 0 | AZ87: 0 | BA87: 0 | BB87: 0 | BC87: 0 | BD87: 0 | BE87: 0 | BF87: 0 | BI87: 0 | BJ87: 0 | BK87: 0 | BL87: 0 | BM87: 0 | BN87: 0 | BO87: 0 | BP87: 0 | BQ87: 0 | BR87: 0 | BU87: 0 | BV87: 0 | BW87: 0 | BX87: 0 | BY87: 0 | BZ87: 0 | CA87: 0 | CB87: 0 | CC87: 0 | CD87: 0
B88: 80W Mercury Vapour | C88: Obsolete, no new Connections | D88: 34.271 | E88: 34.6274184 | F88: 34.98754355 | G88: 35.351414 | H88: 35.71906871 | I88: 36.09054702 | J88: 36.46588871 | K88: 36.84513396 | L88: 37.22832335 | M88: 37.61549791 | P88: 39.96334424 | Q88: 41.73095257 | R88: 43.57674351 | S88: 45.50417516 | T88: 47.51685854 | U88: 49.6185644 | V88: 51.81323027 | W88: 54.10496783 | X88: 56.49807064 | Y88: 58.99702216 | AA88: 1165.566667 | AB88: 582.7833333 | AC88: 0 | AD88: 0 | AE88: 0 | AF88: 0 | AG88: 0 | AH88: 0 | AI88: 0 | AJ88: 0 | AL88: 0 | AM88: 0 | AN88: 0 | AO88: 0 | AP88: 0 | AQ88: 0 | AR88: 0 | AS88: 0 | AT88: 0 | AU88: 0 | AW88: 0 | AX88: 0 | AY88: 0 | AZ88: 0 | BA88: 0 | BB88: 0 | BC88: 0 | BD88: 0 | BE88: 0 | BF88: 0 | BI88: 0 | BJ88: 0 | BK88: 0 | BL88: 0 | BM88: 0 | BN88: 0 | BO88: 0 | BP88: 0 | BQ88: 0 | BR88: 0 | BU88: 0 | BV88: 0 | BW88: 0 | BX88: 0 | BY88: 0 | BZ88: 0 | CA88: 0 | CB88: 0 | CC88: 0 | CD88: 0
B89: 125W Mercury Vapour | C89: Obsolete, no new Connections | D89: 37.102 | E89: 37.4878608 | F89: 37.87773455 | G89: 38.27166299 | H89: 38.66968829 | I89: 39.07185304 | J89: 39.47820032 | K89: 39.8887736 | L89: 40.30361685 | M89: 40.72277446 | P89: 43.26456765 | Q89: 45.17819154 | R89: 47.17645642 | S89: 49.26310604 | T89: 51.44204971 | U89: 53.71736968 | V89: 56.09332874 | W89: 58.57437823 | X89: 61.16516637 | Y89: 63.870547 | AA89: 37.6 | AB89: 18.8 | AC89: 0 | AD89: 0 | AE89: 0 | AF89: 0 | AG89: 0 | AH89: 0 | AI89: 0 | AJ89: 0 | AL89: 0 | AM89: 0 | AN89: 0 | AO89: 0 | AP89: 0 | AQ89: 0 | AR89: 0 | AS89: 0 | AT89: 0 | AU89: 0 | AW89: 0 | AX89: 0 | AY89: 0 | AZ89: 0 | BA89: 0 | BB89: 0 | BC89: 0 | BD89: 0 | BE89: 0 | BF89: 0 | BI89: 0 | BJ89: 0 | BK89: 0 | BL89: 0 | BM89: 0 | BN89: 0 | BO89: 0 | BP89: 0 | BQ89: 0 | BR89: 0 | BU89: 0 | BV89: 0 | BW89: 0 | BX89: 0 | BY89: 0 | BZ89: 0 | CA89: 0 | CB89: 0 | CC89: 0 | CD89: 0
B90: 250W Mercury Vapour | C90: Obsolete, no new Connections | D90: 37.374 | E90: 37.7626896 | F90: 38.15542157 | G90: 38.55223796 | H90: 38.95318123 | I90: 39.35829432 | J90: 39.76762058 | K90: 40.18120383 | L90: 40.59908835 | M90: 41.02131887 | P90: 43.58174631 | Q90: 45.50939924 | R90: 47.52231368 | S90: 49.62426082 | T90: 51.81917864 | U90: 54.1111793 | V90: 56.50455685 | W90: 59.00379527 | X90: 61.61357684 | Y90: 64.33879099 | AA90: 130.8 | AB90: 65.4 | AC90: 0 | AD90: 0 | AE90: 0 | AF90: 0 | AG90: 0 | AH90: 0 | AI90: 0 | AJ90: 0 | AL90: 0 | AM90: 0 | AN90: 0 | AO90: 0 | AP90: 0 | AQ90: 0 | AR90: 0 | AS90: 0 | AT90: 0 | AU90: 0 | AW90: 0 | AX90: 0 | AY90: 0 | AZ90: 0 | BA90: 0 | BB90: 0 | BC90: 0 | BD90: 0 | BE90: 0 | BF90: 0 | BI90: 0 | BJ90: 0 | BK90: 0 | BL90: 0 | BM90: 0 | BN90: 0 | BO90: 0 | BP90: 0 | BQ90: 0 | BR90: 0 | BU90: 0 | BV90: 0 | BW90: 0 | BX90: 0 | BY90: 0 | BZ90: 0 | CA90: 0 | CB90: 0 | CC90: 0 | CD90: 0
B91: 0 | C91: NA | AA91: 0 | AB91: 0 | AC91: 0 | AD91: 0 | AE91: 0 | AF91: 0 | AG91: 0 | AH91: 0 | AI91: 0 | AJ91: 0 | BI91: 0 | BJ91: 0 | BK91: 0 | BL91: 0 | BM91: 0 | BN91: 0 | BO91: 0 | BP91: 0 | BQ91: 0 | BR91: 0 | BU91: 0 | BV91: 0 | BW91: 0 | BX91: 0 | BY91: 0 | BZ91: 0 | CA91: 0 | CB91: 0 | CC91: 0 | CD91: 0
B92: 400W Mercury Vapour | C92: Obsolete, no new Connections | D92: 40.704 | E92: 41.1273216 | F92: 41.55504574 | G92: 41.98721822 | H92: 42.42388529 | I92: 42.8650937 | J92: 43.31089067 | K92: 43.76132393 | L92: 44.2164417 | M92: 44.6762927 | P92: 47.46485262 | Q92: 49.56425821 | R92: 51.75652207 | S92: 54.04575139 | T92: 56.43623501 | U92: 58.9324515 | V92: 61.53907749 | W92: 64.26099648 | X92: 67.10330796 | Y92: 70.07133699 | AA92: 78.4 | AB92: 39.2 | AC92: 0 | AD92: 0 | AE92: 0 | AF92: 0 | AG92: 0 | AH92: 0 | AI92: 0 | AJ92: 0 | AL92: 0 | AM92: 0 | AN92: 0 | AO92: 0 | AP92: 0 | AQ92: 0 | AR92: 0 | AS92: 0 | AT92: 0 | AU92: 0 | AW92: 0 | AX92: 0 | AY92: 0 | AZ92: 0 | BA92: 0 | BB92: 0 | BC92: 0 | BD92: 0 | BE92: 0 | BF92: 0 | BI92: 0 | BJ92: 0 | BK92: 0 | BL92: 0 | BM92: 0 | BN92: 0 | BO92: 0 | BP92: 0 | BQ92: 0 | BR92: 0 | BU92: 0 | BV92: 0 | BW92: 0 | BX92: 0 | BY92: 0 | BZ92: 0 | CA92: 0 | CB92: 0 | CC92: 0 | CD92: 0
B93: 70W Sodium Vapour | C93: Offered | D93: 35.175 | E93: 35.54082 | F93: 35.91044453 | G93: 36.28391315 | H93: 36.66126585 | I93: 37.04254301 | J93: 37.42778546 | K93: 37.81703443 | L93: 38.21033159 | M93: 38.60771904 | P93: 41.01749683 | Q93: 42.8317311 | R93: 44.7262103 | S93: 46.70448372 | T93: 48.77025763 | U93: 50.92740226 | V93: 53.17995899 | W93: 55.53214798 | X93: 57.98837602 | Y93: 60.55324486 | AA93: 54.6 | AB93: 27.3 | AC93: 0 | AD93: 0 | AE93: 0 | AF93: 0 | AG93: 0 | AH93: 0 | AI93: 0 | AJ93: 0 | AL93: 0 | AM93: 0 | AN93: 0 | AO93: 0 | AP93: 0 | AQ93: 0 | AR93: 0 | AS93: 0 | AT93: 0 | AU93: 0 | AW93: 0 | AX93: 0 | AY93: 0 | AZ93: 0 | BA93: 0 | BB93: 0 | BC93: 0 | BD93: 0 | BE93: 0 | BF93: 0 | BI93: 0 | BJ93: 0 | BK93: 0 | BL93: 0 | BM93: 0 | BN93: 0 | BO93: 0 | BP93: 0 | BQ93: 0 | BR93: 0 | BU93: 0 | BV93: 0 | BW93: 0 | BX93: 0 | BY93: 0 | BZ93: 0 | CA93: 0 | CB93: 0 | CC93: 0 | CD93: 0
B94: 0 | C94: NA | AA94: 0 | AB94: 0 | AC94: 0 | AD94: 0 | AE94: 0 | AF94: 0 | AG94: 0 | AH94: 0 | AI94: 0 | AJ94: 0 | BI94: 0 | BJ94: 0 | BK94: 0 | BL94: 0 | BM94: 0 | BN94: 0 | BO94: 0 | BP94: 0 | BQ94: 0 | BR94: 0 | BU94: 0 | BV94: 0 | BW94: 0 | BX94: 0 | BY94: 0 | BZ94: 0 | CA94: 0 | CB94: 0 | CC94: 0 | CD94: 0
B95: 100W Sodium Vapour | C95: Offered | D95: 38.994 | E95: 39.3995376 | F95: 39.80929279 | G95: 40.22330944 | H95: 40.64163185 | I95: 41.06430483 | J95: 41.4913736 | K95: 41.92288388 | L95: 42.35888187 | M95: 42.79941424 | P95: 45.47082505 | Q95: 47.48203333 | R95: 49.58219884 | S95: 51.77525623 | T95: 54.06531417 | U95: 56.45666308 | V95: 58.95378311 | W95: 61.56135261 | X95: 64.28425685 | Y95: 67.12759715 | AA95: 97.2 | AB95: 48.6 | AC95: 0 | AD95: 0 | AE95: 0 | AF95: 0 | AG95: 0 | AH95: 0 | AI95: 0 | AJ95: 0 | AL95: 0 | AM95: 0 | AN95: 0 | AO95: 0 | AP95: 0 | AQ95: 0 | AR95: 0 | AS95: 0 | AT95: 0 | AU95: 0 | AW95: 0 | AX95: 0 | AY95: 0 | AZ95: 0 | BA95: 0 | BB95: 0 | BC95: 0 | BD95: 0 | BE95: 0 | BF95: 0 | BI95: 0 | BJ95: 0 | BK95: 0 | BL95: 0 | BM95: 0 | BN95: 0 | BO95: 0 | BP95: 0 | BQ95: 0 | BR95: 0 | BU95: 0 | BV95: 0 | BW95: 0 | BX95: 0 | BY95: 0 | BZ95: 0 | CA95: 0 | CB95: 0 | CC95: 0 | CD95: 0
B96: 0 | C96: NA | AA96: 0 | AB96: 0 | AC96: 0 | AD96: 0 | AE96: 0 | AF96: 0 | AG96: 0 | AH96: 0 | AI96: 0 | AJ96: 0 | BI96: 0 | BJ96: 0 | BK96: 0 | BL96: 0 | BM96: 0 | BN96: 0 | BO96: 0 | BP96: 0 | BQ96: 0 | BR96: 0 | BU96: 0 | BV96: 0 | BW96: 0 | BX96: 0 | BY96: 0 | BZ96: 0 | CA96: 0 | CB96: 0 | CC96: 0 | CD96: 0
B97: 150W Sodium Vapour | C97: Offered | D97: 39.175 | E97: 39.58242 | F97: 39.99407717 | G97: 40.41001557 | H97: 40.83027973 | I97: 41.25491464 | J97: 41.68396575 | K97: 42.117479 | L97: 42.55550078 | M97: 42.99807799 | P97: 45.68188879 | Q97: 47.70243257 | R97: 49.81234651 | S97: 52.0155835 | T97: 54.31627129 | U97: 56.71872021 | V97: 59.22743123 | W97: 61.84710439 | X97: 64.58264764 | Y97: 67.43918599 | AA97: 1605.6 | AB97: 802.8 | AC97: 0 | AD97: 0 | AE97: 0 | AF97: 0 | AG97: 0 | AH97: 0 | AI97: 0 | AJ97: 0 | AL97: 0 | AM97: 0 | AN97: 0 | AO97: 0 | AP97: 0 | AQ97: 0 | AR97: 0 | AS97: 0 | AT97: 0 | AU97: 0 | AW97: 0 | AX97: 0 | AY97: 0 | AZ97: 0 | BA97: 0 | BB97: 0 | BC97: 0 | BD97: 0 | BE97: 0 | BF97: 0 | BI97: 0 | BJ97: 0 | BK97: 0 | BL97: 0 | BM97: 0 | BN97: 0 | BO97: 0 | BP97: 0 | BQ97: 0 | BR97: 0 | BU97: 0 | BV97: 0 | BW97: 0 | BX97: 0 | BY97: 0 | BZ97: 0 | CA97: 0 | CB97: 0 | CC97: 0 | CD97: 0
B98: 0 | C98: NA | AA98: 0 | AB98: 0 | AC98: 0 | AD98: 0 | AE98: 0 | AF98: 0 | AG98: 0 | AH98: 0 | AI98: 0 | AJ98: 0 | BI98: 0 | BJ98: 0 | BK98: 0 | BL98: 0 | BM98: 0 | BN98: 0 | BO98: 0 | BP98: 0 | BQ98: 0 | BR98: 0 | BU98: 0 | BV98: 0 | BW98: 0 | BX98: 0 | BY98: 0 | BZ98: 0 | CA98: 0 | CB98: 0 | CC98: 0 | CD98: 0
B99: 0 | C99: NA | AA99: 0 | AB99: 0 | AC99: 0 | AD99: 0 | AE99: 0 | AF99: 0 | AG99: 0 | AH99: 0 | AI99: 0 | AJ99: 0 | BI99: 0 | BJ99: 0 | BK99: 0 | BL99: 0 | BM99: 0 | BN99: 0 | BO99: 0 | BP99: 0 | BQ99: 0 | BR99: 0 | BU99: 0 | BV99: 0 | BW99: 0 | BX99: 0 | BY99: 0 | BZ99: 0 | CA99: 0 | CB99: 0 | CC99: 0 | CD99: 0
B100: 0 | C100: NA | AA100: 0 | AB100: 0 | AC100: 0 | AD100: 0 | AE100: 0 | AF100: 0 | AG100: 0 | AH100: 0 | AI100: 0 | AJ100: 0 | BI100: 0 | BJ100: 0 | BK100: 0 | BL100: 0 | BM100: 0 | BN100: 0 | BO100: 0 | BP100: 0 | BQ100: 0 | BR100: 0 | BU100: 0 | BV100: 0 | BW100: 0 | BX100: 0 | BY100: 0 | BZ100: 0 | CA100: 0 | CB100: 0 | CC100: 0 | CD100: 0
B101: 250W Sodium Vapour | C101: Offered | D101: 40.456 | E101: 40.8767424 | F101: 41.30186052 | G101: 41.73139987 | H101: 42.16540643 | I101: 42.60392666 | J101: 43.04700749 | K101: 43.49469637 | L101: 43.94704121 | M101: 44.40409044 | P101: 47.17566032 | Q101: 49.26227472 | R101: 51.44118163 | S101: 53.7164632 | T101: 56.09238217 | U101: 58.57338979 | V101: 61.16413421 | W101: 63.86946918 | X101: 66.69446312 | Y101: 69.64440864 | AA101: 1994.233333 | AB101: 997.1166667 | AC101: 0 | AD101: 0 | AE101: 0 | AF101: 0 | AG101: 0 | AH101: 0 | AI101: 0 | AJ101: 0 | AL101: 0 | AM101: 0 | AN101: 0 | AO101: 0 | AP101: 0 | AQ101: 0 | AR101: 0 | AS101: 0 | AT101: 0 | AU101: 0 | AW101: 0 | AX101: 0 | AY101: 0 | AZ101: 0 | BA101: 0 | BB101: 0 | BC101: 0 | BD101: 0 | BE101: 0 | BF101: 0 | BI101: 0 | BJ101: 0 | BK101: 0 | BL101: 0 | BM101: 0 | BN101: 0 | BO101: 0 | BP101: 0 | BQ101: 0 | BR101: 0 | BU101: 0 | BV101: 0 | BW101: 0 | BX101: 0 | BY101: 0 | BZ101: 0 | CA101: 0 | CB101: 0 | CC101: 0 | CD101: 0
B102: 0 | C102: NA | AA102: 0 | AB102: 0 | AC102: 0 | AD102: 0 | AE102: 0 | AF102: 0 | AG102: 0 | AH102: 0 | AI102: 0 | AJ102: 0 | BI102: 0 | BJ102: 0 | BK102: 0 | BL102: 0 | BM102: 0 | BN102: 0 | BO102: 0 | BP102: 0 | BQ102: 0 | BR102: 0 | BU102: 0 | BV102: 0 | BW102: 0 | BX102: 0 | BY102: 0 | BZ102: 0 | CA102: 0 | CB102: 0 | CC102: 0 | CD102: 0
B103: 0 | C103: NA | AA103: 0 | AB103: 0 | AC103: 0 | AD103: 0 | AE103: 0 | AF103: 0 | AG103: 0 | AH103: 0 | AI103: 0 | AJ103: 0 | BI103: 0 | BJ103: 0 | BK103: 0 | BL103: 0 | BM103: 0 | BN103: 0 | BO103: 0 | BP103: 0 | BQ103: 0 | BR103: 0 | BU103: 0 | BV103: 0 | BW103: 0 | BX103: 0 | BY103: 0 | BZ103: 0 | CA103: 0 | CB103: 0 | CC103: 0 | CD103: 0
B104: 0 | C104: NA | AA104: 0 | AB104: 0 | AC104: 0 | AD104: 0 | AE104: 0 | AF104: 0 | AG104: 0 | AH104: 0 | AI104: 0 | AJ104: 0 | BI104: 0 | BJ104: 0 | BK104: 0 | BL104: 0 | BM104: 0 | BN104: 0 | BO104: 0 | BP104: 0 | BQ104: 0 | BR104: 0 | BU104: 0 | BV104: 0 | BW104: 0 | BX104: 0 | BY104: 0 | BZ104: 0 | CA104: 0 | CB104: 0 | CC104: 0 | CD104: 0
B105: 400W Sodium Vapour | C105: Offered | D105: 41.164 | E105: 41.5921056 | F105: 42.0246635 | G105: 42.46172 | H105: 42.90332189 | I105: 43.34951643 | J105: 43.80035141 | K105: 44.25587506 | L105: 44.71613616 | M105: 45.18118398 | P105: 48.00125769 | Q105: 50.12438888 | R105: 52.34142774 | S105: 54.65652787 | T105: 57.07402659 | U105: 59.59845307 | V105: 62.2345368 | W105: 64.98721647 | X105: 67.8616492 | Y105: 70.86322022 | AA105: 174.7 | AB105: 87.35 | AC105: 0 | AD105: 0 | AE105: 0 | AF105: 0 | AG105: 0 | AH105: 0 | AI105: 0 | AJ105: 0 | AL105: 0 | AM105: 0 | AN105: 0 | AO105: 0 | AP105: 0 | AQ105: 0 | AR105: 0 | AS105: 0 | AT105: 0 | AU105: 0 | AW105: 0 | AX105: 0 | AY105: 0 | AZ105: 0 | BA105: 0 | BB105: 0 | BC105: 0 | BD105: 0 | BE105: 0 | BF105: 0 | BI105: 0 | BJ105: 0 | BK105: 0 | BL105: 0 | BM105: 0 | BN105: 0 | BO105: 0 | BP105: 0 | BQ105: 0 | BR105: 0 | BU105: 0 | BV105: 0 | BW105: 0 | BX105: 0 | BY105: 0 | BZ105: 0 | CA105: 0 | CB105: 0 | CC105: 0 | CD105: 0
B106: 0 | C106: NA | AA106: 0 | AB106: 0 | AC106: 0 | AD106: 0 | AE106: 0 | AF106: 0 | AG106: 0 | AH106: 0 | AI106: 0 | AJ106: 0 | BI106: 0 | BJ106: 0 | BK106: 0 | BL106: 0 | BM106: 0 | BN106: 0 | BO106: 0 | BP106: 0 | BQ106: 0 | BR106: 0 | BU106: 0 | BV106: 0 | BW106: 0 | BX106: 0 | BY106: 0 | BZ106: 0 | CA106: 0 | CB106: 0 | CC106: 0 | CD106: 0
B107: 250W Sodium Vapour - Flood Light | C107: Offered | D107: 41.969 | E107: 42.4054776 | F107: 42.84649457 | G107: 43.29209811 | H107: 43.74233593 | I107: 44.19725622 | J107: 44.65690769 | K107: 45.12133953 | L107: 45.59060146 | M107: 46.06474372 | P107: 48.93996658 | Q107: 51.10461756 | R107: 53.36501265 | S107: 55.7253867 | T107: 58.19016184 | U107: 60.7639558 | V107: 63.45159059 | W107: 66.25810145 | X107: 69.18874636 | Y107: 72.24901587 | AA107: 9.133333333 | AB107: 4.566666667 | AC107: 0 | AD107: 0 | AE107: 0 | AF107: 0 | AG107: 0 | AH107: 0 | AI107: 0 | AJ107: 0 | AL107: 0 | AM107: 0 | AN107: 0 | AO107: 0 | AP107: 0 | AQ107: 0 | AR107: 0 | AS107: 0 | AT107: 0 | AU107: 0 | AW107: 0 | AX107: 0 | AY107: 0 | AZ107: 0 | BA107: 0 | BB107: 0 | BC107: 0 | BD107: 0 | BE107: 0 | BF107: 0 | BI107: 0 | BJ107: 0 | BK107: 0 | BL107: 0 | BM107: 0 | BN107: 0 | BO107: 0 | BP107: 0 | BQ107: 0 | BR107: 0 | BU107: 0 | BV107: 0 | BW107: 0 | BX107: 0 | BY107: 0 | BZ107: 0 | CA107: 0 | CB107: 0 | CC107: 0 | CD107: 0
B108: 400W Sodium Vapour - Flood Light | C108: Offered | D108: 41.164 | E108: 41.5921056 | F108: 42.0246635 | G108: 42.46172 | H108: 42.90332189 | I108: 43.34951643 | J108: 43.80035141 | K108: 44.25587506 | L108: 44.71613616 | M108: 45.18118398 | P108: 48.00125769 | Q108: 50.12438888 | R108: 52.34142774 | S108: 54.65652787 | T108: 57.07402659 | U108: 59.59845307 | V108: 62.2345368 | W108: 64.98721647 | X108: 67.8616492 | Y108: 70.86322022 | AA108: 3.733333333 | AB108: 1.866666667 | AC108: 0 | AD108: 0 | AE108: 0 | AF108: 0 | AG108: 0 | AH108: 0 | AI108: 0 | AJ108: 0 | AL108: 0 | AM108: 0 | AN108: 0 | AO108: 0 | AP108: 0 | AQ108: 0 | AR108: 0 | AS108: 0 | AT108: 0 | AU108: 0 | AW108: 0 | AX108: 0 | AY108: 0 | AZ108: 0 | BA108: 0 | BB108: 0 | BC108: 0 | BD108: 0 | BE108: 0 | BF108: 0 | BI108: 0 | BJ108: 0 | BK108: 0 | BL108: 0 | BM108: 0 | BN108: 0 | BO108: 0 | BP108: 0 | BQ108: 0 | BR108: 0 | BU108: 0 | BV108: 0 | BW108: 0 | BX108: 0 | BY108: 0 | BZ108: 0 | CA108: 0 | CB108: 0 | CC108: 0 | CD108: 0
B109: 1x20W Fluorescent | C109: Obsolete, no new Connections | D109: 36.18 | E109: 36.556272 | F109: 36.93645723 | G109: 37.32059638 | H109: 37.70873059 | I109: 38.10090138 | J109: 38.49715076 | K109: 38.89752113 | L109: 39.30205535 | M109: 39.71079672 | P109: 42.18942531 | Q109: 44.05549485 | R109: 46.00410202 | S109: 48.03889754 | T109: 50.16369356 | U109: 52.38247089 | V109: 54.69938639 | W109: 57.11878078 | X109: 59.64518677 | Y109: 62.28333757 | AA109: 2.4 | AB109: 1.2 | AC109: 0 | AD109: 0 | AE109: 0 | AF109: 0 | AG109: 0 | AH109: 0 | AI109: 0 | AJ109: 0 | AL109: 0 | AM109: 0 | AN109: 0 | AO109: 0 | AP109: 0 | AQ109: 0 | AR109: 0 | AS109: 0 | AT109: 0 | AU109: 0 | AW109: 0 | AX109: 0 | AY109: 0 | AZ109: 0 | BA109: 0 | BB109: 0 | BC109: 0 | BD109: 0 | BE109: 0 | BF109: 0 | BI109: 0 | BJ109: 0 | BK109: 0 | BL109: 0 | BM109: 0 | BN109: 0 | BO109: 0 | BP109: 0 | BQ109: 0 | BR109: 0 | BU109: 0 | BV109: 0 | BW109: 0 | BX109: 0 | BY109: 0 | BZ109: 0 | CA109: 0 | CB109: 0 | CC109: 0 | CD109: 0
B110: 1x40W Fluorescent | C110: Obsolete, no new Connections | D110: 36.18 | E110: 36.556272 | F110: 36.93645723 | G110: 37.32059638 | H110: 37.70873059 | I110: 38.10090138 | J110: 38.49715076 | K110: 38.89752113 | L110: 39.30205535 | M110: 39.71079672 | P110: 42.18942531 | Q110: 44.05549485 | R110: 46.00410202 | S110: 48.03889754 | T110: 50.16369356 | U110: 52.38247089 | V110: 54.69938639 | W110: 57.11878078 | X110: 59.64518677 | Y110: 62.28333757 | AA110: 16 | AB110: 8 | AC110: 0 | AD110: 0 | AE110: 0 | AF110: 0 | AG110: 0 | AH110: 0 | AI110: 0 | AJ110: 0 | AL110: 0 | AM110: 0 | AN110: 0 | AO110: 0 | AP110: 0 | AQ110: 0 | AR110: 0 | AS110: 0 | AT110: 0 | AU110: 0 | AW110: 0 | AX110: 0 | AY110: 0 | AZ110: 0 | BA110: 0 | BB110: 0 | BC110: 0 | BD110: 0 | BE110: 0 | BF110: 0 | BI110: 0 | BJ110: 0 | BK110: 0 | BL110: 0 | BM110: 0 | BN110: 0 | BO110: 0 | BP110: 0 | BQ110: 0 | BR110: 0 | BU110: 0 | BV110: 0 | BW110: 0 | BX110: 0 | BY110: 0 | BZ110: 0 | CA110: 0 | CB110: 0 | CC110: 0 | CD110: 0
B111: 2x20W Fluorescent | C111: Obsolete, no new Connections | D111: 36.18 | E111: 36.556272 | F111: 36.93645723 | G111: 37.32059638 | H111: 37.70873059 | I111: 38.10090138 | J111: 38.49715076 | K111: 38.89752113 | L111: 39.30205535 | M111: 39.71079672 | P111: 42.18942531 | Q111: 44.05549485 | R111: 46.00410202 | S111: 48.03889754 | T111: 50.16369356 | U111: 52.38247089 | V111: 54.69938639 | W111: 57.11878078 | X111: 59.64518677 | Y111: 62.28333757 | AA111: 2 | AB111: 1 | AC111: 0 | AD111: 0 | AE111: 0 | AF111: 0 | AG111: 0 | AH111: 0 | AI111: 0 | AJ111: 0 | AL111: 0 | AM111: 0 | AN111: 0 | AO111: 0 | AP111: 0 | AQ111: 0 | AR111: 0 | AS111: 0 | AT111: 0 | AU111: 0 | AW111: 0 | AX111: 0 | AY111: 0 | AZ111: 0 | BA111: 0 | BB111: 0 | BC111: 0 | BD111: 0 | BE111: 0 | BF111: 0 | BI111: 0 | BJ111: 0 | BK111: 0 | BL111: 0 | BM111: 0 | BN111: 0 | BO111: 0 | BP111: 0 | BQ111: 0 | BR111: 0 | BU111: 0 | BV111: 0 | BW111: 0 | BX111: 0 | BY111: 0 | BZ111: 0 | CA111: 0 | CB111: 0 | CC111: 0 | CD111: 0
B112: 2x24W Fluorescent | C112: Obsolete, no new Connections | D112: 36.18 | E112: 36.556272 | F112: 36.93645723 | G112: 37.32059638 | H112: 37.70873059 | I112: 38.10090138 | J112: 38.49715076 | K112: 38.89752113 | L112: 39.30205535 | M112: 39.71079672 | P112: 42.18942531 | Q112: 44.05549485 | R112: 46.00410202 | S112: 48.03889754 | T112: 50.16369356 | U112: 52.38247089 | V112: 54.69938639 | W112: 57.11878078 | X112: 59.64518677 | Y112: 62.28333757 | AA112: 0.4 | AB112: 0.2 | AC112: 0 | AD112: 0 | AE112: 0 | AF112: 0 | AG112: 0 | AH112: 0 | AI112: 0 | AJ112: 0 | AL112: 0 | AM112: 0 | AN112: 0 | AO112: 0 | AP112: 0 | AQ112: 0 | AR112: 0 | AS112: 0 | AT112: 0 | AU112: 0 | AW112: 0 | AX112: 0 | AY112: 0 | AZ112: 0 | BA112: 0 | BB112: 0 | BC112: 0 | BD112: 0 | BE112: 0 | BF112: 0 | BI112: 0 | BJ112: 0 | BK112: 0 | BL112: 0 | BM112: 0 | BN112: 0 | BO112: 0 | BP112: 0 | BQ112: 0 | BR112: 0 | BU112: 0 | BV112: 0 | BW112: 0 | BX112: 0 | BY112: 0 | BZ112: 0 | CA112: 0 | CB112: 0 | CC112: 0 | CD112: 0
B113: 2x40W Fluorescent | C113: Obsolete, no new Connections | D113: 36.18 | E113: 36.556272 | F113: 36.93645723 | G113: 37.32059638 | H113: 37.70873059 | I113: 38.10090138 | J113: 38.49715076 | K113: 38.89752113 | L113: 39.30205535 | M113: 39.71079672 | P113: 42.18942531 | Q113: 44.05549485 | R113: 46.00410202 | S113: 48.03889754 | T113: 50.16369356 | U113: 52.38247089 | V113: 54.69938639 | W113: 57.11878078 | X113: 59.64518677 | Y113: 62.28333757 | AA113: 0.8 | AB113: 0.4 | AC113: 0 | AD113: 0 | AE113: 0 | AF113: 0 | AG113: 0 | AH113: 0 | AI113: 0 | AJ113: 0 | AL113: 0 | AM113: 0 | AN113: 0 | AO113: 0 | AP113: 0 | AQ113: 0 | AR113: 0 | AS113: 0 | AT113: 0 | AU113: 0 | AW113: 0 | AX113: 0 | AY113: 0 | AZ113: 0 | BA113: 0 | BB113: 0 | BC113: 0 | BD113: 0 | BE113: 0 | BF113: 0 | BI113: 0 | BJ113: 0 | BK113: 0 | BL113: 0 | BM113: 0 | BN113: 0 | BO113: 0 | BP113: 0 | BQ113: 0 | BR113: 0 | BU113: 0 | BV113: 0 | BW113: 0 | BX113: 0 | BY113: 0 | BZ113: 0 | CA113: 0 | CB113: 0 | CC113: 0 | CD113: 0
B114: 4x40W Fluorescent | C114: Obsolete, no new Connections | D114: 36.18 | E114: 36.556272 | F114: 36.93645723 | G114: 37.32059638 | H114: 37.70873059 | I114: 38.10090138 | J114: 38.49715076 | K114: 38.89752113 | L114: 39.30205535 | M114: 39.71079672 | P114: 42.18942531 | Q114: 44.05549485 | R114: 46.00410202 | S114: 48.03889754 | T114: 50.16369356 | U114: 52.38247089 | V114: 54.69938639 | W114: 57.11878078 | X114: 59.64518677 | Y114: 62.28333757 | AA114: 0.4 | AB114: 0.2 | AC114: 0 | AD114: 0 | AE114: 0 | AF114: 0 | AG114: 0 | AH114: 0 | AI114: 0 | AJ114: 0 | AL114: 0 | AM114: 0 | AN114: 0 | AO114: 0 | AP114: 0 | AQ114: 0 | AR114: 0 | AS114: 0 | AT114: 0 | AU114: 0 | AW114: 0 | AX114: 0 | AY114: 0 | AZ114: 0 | BA114: 0 | BB114: 0 | BC114: 0 | BD114: 0 | BE114: 0 | BF114: 0 | BI114: 0 | BJ114: 0 | BK114: 0 | BL114: 0 | BM114: 0 | BN114: 0 | BO114: 0 | BP114: 0 | BQ114: 0 | BR114: 0 | BU114: 0 | BV114: 0 | BW114: 0 | BX114: 0 | BY114: 0 | BZ114: 0 | CA114: 0 | CB114: 0 | CC114: 0 | CD114: 0
B115: 32W Compact Fluorescent | C115: Not Offered | D115: 36.18 | E115: 36.556272 | F115: 36.93645723 | G115: 37.32059638 | H115: 37.70873059 | I115: 38.10090138 | J115: 38.49715076 | K115: 38.89752113 | L115: 39.30205535 | M115: 39.71079672 | P115: 42.18942531 | Q115: 44.05549485 | R115: 46.00410202 | S115: 48.03889754 | T115: 50.16369356 | U115: 52.38247089 | V115: 54.69938639 | W115: 57.11878078 | X115: 59.64518677 | Y115: 62.28333757 | AA115: 0 | AB115: 0 | AC115: 0 | AD115: 0 | AE115: 0 | AF115: 0 | AG115: 0 | AH115: 0 | AI115: 0 | AJ115: 0 | AL115: 0 | AM115: 0 | AN115: 0 | AO115: 0 | AP115: 0 | AQ115: 0 | AR115: 0 | AS115: 0 | AT115: 0 | AU115: 0 | AW115: 0 | AX115: 0 | AY115: 0 | AZ115: 0 | BA115: 0 | BB115: 0 | BC115: 0 | BD115: 0 | BE115: 0 | BF115: 0 | BI115: 0 | BJ115: 0 | BK115: 0 | BL115: 0 | BM115: 0 | BN115: 0 | BO115: 0 | BP115: 0 | BQ115: 0 | BR115: 0 | BU115: 0 | BV115: 0 | BW115: 0 | BX115: 0 | BY115: 0 | BZ115: 0 | CA115: 0 | CB115: 0 | CC115: 0 | CD115: 0
B116: 42W Compact Fluorescent | C116: Offered | D116: 36.18 | E116: 36.556272 | F116: 36.93645723 | G116: 37.32059638 | H116: 37.70873059 | I116: 38.10090138 | J116: 38.49715076 | K116: 38.89752113 | L116: 39.30205535 | M116: 39.71079672 | P116: 42.18942531 | Q116: 44.05549485 | R116: 46.00410202 | S116: 48.03889754 | T116: 50.16369356 | U116: 52.38247089 | V116: 54.69938639 | W116: 57.11878078 | X116: 59.64518677 | Y116: 62.28333757 | AA116: 971.0666667 | AB116: 485.5333333 | AC116: 0 | AD116: 0 | AE116: 0 | AF116: 0 | AG116: 0 | AH116: 0 | AI116: 0 | AJ116: 0 | AL116: 0 | AM116: 0 | AN116: 0 | AO116: 0 | AP116: 0 | AQ116: 0 | AR116: 0 | AS116: 0 | AT116: 0 | AU116: 0 | AW116: 0 | AX116: 0 | AY116: 0 | AZ116: 0 | BA116: 0 | BB116: 0 | BC116: 0 | BD116: 0 | BE116: 0 | BF116: 0 | BI116: 0 | BJ116: 0 | BK116: 0 | BL116: 0 | BM116: 0 | BN116: 0 | BO116: 0 | BP116: 0 | BQ116: 0 | BR116: 0 | BU116: 0 | BV116: 0 | BW116: 0 | BX116: 0 | BY116: 0 | BZ116: 0 | CA116: 0 | CB116: 0 | CC116: 0 | CD116: 0
B117: 0 | C117: NA | AA117: 0 | AB117: 0 | AC117: 0 | AD117: 0 | AE117: 0 | AF117: 0 | AG117: 0 | AH117: 0 | AI117: 0 | AJ117: 0 | BI117: 0 | BJ117: 0 | BK117: 0 | BL117: 0 | BM117: 0 | BN117: 0 | BO117: 0 | BP117: 0 | BQ117: 0 | BR117: 0 | BU117: 0 | BV117: 0 | BW117: 0 | BX117: 0 | BY117: 0 | BZ117: 0 | CA117: 0 | CB117: 0 | CC117: 0 | CD117: 0
B118: 60W Incandescent | C118: Obsolete, no new Connections | D118: 35.175 | E118: 35.54082 | F118: 35.91044453 | G118: 36.28391315 | H118: 36.66126585 | I118: 37.04254301 | J118: 37.42778546 | K118: 37.81703443 | L118: 38.21033159 | M118: 38.60771904 | P118: 41.01749683 | Q118: 42.8317311 | R118: 44.7262103 | S118: 46.70448372 | T118: 48.77025763 | U118: 50.92740226 | V118: 53.17995899 | W118: 55.53214798 | X118: 57.98837602 | Y118: 60.55324486 | AA118: 2.4 | AB118: 1.2 | AC118: 0 | AD118: 0 | AE118: 0 | AF118: 0 | AG118: 0 | AH118: 0 | AI118: 0 | AJ118: 0 | AL118: 0 | AM118: 0 | AN118: 0 | AO118: 0 | AP118: 0 | AQ118: 0 | AR118: 0 | AS118: 0 | AT118: 0 | AU118: 0 | AW118: 0 | AX118: 0 | AY118: 0 | AZ118: 0 | BA118: 0 | BB118: 0 | BC118: 0 | BD118: 0 | BE118: 0 | BF118: 0 | BI118: 0 | BJ118: 0 | BK118: 0 | BL118: 0 | BM118: 0 | BN118: 0 | BO118: 0 | BP118: 0 | BQ118: 0 | BR118: 0 | BU118: 0 | BV118: 0 | BW118: 0 | BX118: 0 | BY118: 0 | BZ118: 0 | CA118: 0 | CB118: 0 | CC118: 0 | CD118: 0
B119: 100W Incandescent | C119: Obsolete, no new Connections | D119: 38.568 | E119: 38.9691072 | F119: 39.37438591 | G119: 39.78387953 | H119: 40.19763188 | I119: 40.61568725 | J119: 41.03809039 | K119: 41.46488653 | L119: 41.89612135 | M119: 42.33184102 | P119: 44.97406731 | Q119: 46.96330363 | R119: 49.04052534 | S119: 51.20962411 | T119: 53.47466372 | U119: 55.83988771 | V119: 58.30972732 | W119: 60.88880976 | X119: 63.58196692 | Y119: 66.39424442 | AA119: 3.6 | AB119: 1.8 | AC119: 0 | AD119: 0 | AE119: 0 | AF119: 0 | AG119: 0 | AH119: 0 | AI119: 0 | AJ119: 0 | AL119: 0 | AM119: 0 | AN119: 0 | AO119: 0 | AP119: 0 | AQ119: 0 | AR119: 0 | AS119: 0 | AT119: 0 | AU119: 0 | AW119: 0 | AX119: 0 | AY119: 0 | AZ119: 0 | BA119: 0 | BB119: 0 | BC119: 0 | BD119: 0 | BE119: 0 | BF119: 0 | BI119: 0 | BJ119: 0 | BK119: 0 | BL119: 0 | BM119: 0 | BN119: 0 | BO119: 0 | BP119: 0 | BQ119: 0 | BR119: 0 | BU119: 0 | BV119: 0 | BW119: 0 | BX119: 0 | BY119: 0 | BZ119: 0 | CA119: 0 | CB119: 0 | CC119: 0 | CD119: 0
B120: 100W Metal Halide | C120: Offered | D120: 38.274 | E120: 38.6720496 | F120: 39.07423892 | G120: 39.480611 | H120: 39.89120935 | I120: 40.30607793 | J120: 40.72526114 | K120: 41.14880386 | L120: 41.57675142 | M120: 42.00914963 | P120: 44.6312345 | Q120: 46.60530707 | R120: 48.66669433 | S120: 50.81925827 | T120: 53.06703172 | U120: 55.41422584 | V120: 57.86523811 | W120: 60.42466046 | X120: 63.09728796 | Y120: 65.88812775 | AA120: 0 | AB120: 0 | AC120: 0 | AD120: 0 | AE120: 0 | AF120: 0 | AG120: 0 | AH120: 0 | AI120: 0 | AJ120: 0 | AL120: 0 | AM120: 0 | AN120: 0 | AO120: 0 | AP120: 0 | AQ120: 0 | AR120: 0 | AS120: 0 | AT120: 0 | AU120: 0 | AW120: 0 | AX120: 0 | AY120: 0 | AZ120: 0 | BA120: 0 | BB120: 0 | BC120: 0 | BD120: 0 | BE120: 0 | BF120: 0 | BI120: 0 | BJ120: 0 | BK120: 0 | BL120: 0 | BM120: 0 | BN120: 0 | BO120: 0 | BP120: 0 | BQ120: 0 | BR120: 0 | BU120: 0 | BV120: 0 | BW120: 0 | BX120: 0 | BY120: 0 | BZ120: 0 | CA120: 0 | CB120: 0 | CC120: 0 | CD120: 0
B121: 150W Metal Halide | C121: Offered | D121: 41.136 | E121: 41.5638144 | F121: 41.99607807 | G121: 42.43283728 | H121: 42.87413879 | I121: 43.32002983 | J121: 43.77055814 | K121: 44.22577195 | L121: 44.68571998 | M121: 45.15045146 | P121: 47.96860695 | Q121: 50.09029397 | R121: 52.30582479 | S121: 54.61935017 | T121: 57.03520449 | U121: 59.55791384 | V121: 62.19220449 | W121: 64.94301177 | X121: 67.8154893 | Y121: 70.81501863 | AA121: 6 | AB121: 3 | AC121: 0 | AD121: 0 | AE121: 0 | AF121: 0 | AG121: 0 | AH121: 0 | AI121: 0 | AJ121: 0 | AL121: 0 | AM121: 0 | AN121: 0 | AO121: 0 | AP121: 0 | AQ121: 0 | AR121: 0 | AS121: 0 | AT121: 0 | AU121: 0 | AW121: 0 | AX121: 0 | AY121: 0 | AZ121: 0 | BA121: 0 | BB121: 0 | BC121: 0 | BD121: 0 | BE121: 0 | BF121: 0 | BI121: 0 | BJ121: 0 | BK121: 0 | BL121: 0 | BM121: 0 | BN121: 0 | BO121: 0 | BP121: 0 | BQ121: 0 | BR121: 0 | BU121: 0 | BV121: 0 | BW121: 0 | BX121: 0 | BY121: 0 | BZ121: 0 | CA121: 0 | CB121: 0 | CC121: 0 | CD121: 0
B122: 250W Metal Halide | C122: Offered | D122: 40.274 | E122: 40.6928496 | F122: 41.11605524 | G122: 41.54366221 | H122: 41.9757163 | I122: 42.41226375 | J122: 42.85335129 | K122: 43.29902614 | L122: 43.74933602 | M122: 44.20432911 | P122: 46.96343048 | Q122: 49.04065781 | R122: 51.20976243 | S122: 53.47480816 | T122: 55.84003855 | U122: 58.30988482 | V122: 60.88897423 | W122: 63.58213867 | X122: 66.39442377 | Y122: 69.33109832 | AA122: 8 | AB122: 4 | AC122: 0 | AD122: 0 | AE122: 0 | AF122: 0 | AG122: 0 | AH122: 0 | AI122: 0 | AJ122: 0 | AL122: 0 | AM122: 0 | AN122: 0 | AO122: 0 | AP122: 0 | AQ122: 0 | AR122: 0 | AS122: 0 | AT122: 0 | AU122: 0 | AW122: 0 | AX122: 0 | AY122: 0 | AZ122: 0 | BA122: 0 | BB122: 0 | BC122: 0 | BD122: 0 | BE122: 0 | BF122: 0 | BI122: 0 | BJ122: 0 | BK122: 0 | BL122: 0 | BM122: 0 | BN122: 0 | BO122: 0 | BP122: 0 | BQ122: 0 | BR122: 0 | BU122: 0 | BV122: 0 | BW122: 0 | BX122: 0 | BY122: 0 | BZ122: 0 | CA122: 0 | CB122: 0 | CC122: 0 | CD122: 0
B123: 400W Metal Halide | C123: Offered | D123: 48.044 | E123: 48.5436576 | F123: 49.04851164 | G123: 49.55861616 | H123: 50.07402577 | I123: 50.59479564 | J123: 51.12098151 | K123: 51.65263972 | L123: 52.18982717 | M123: 52.73260137 | P123: 56.02401187 | Q123: 58.50199542 | R123: 61.08958202 | S123: 63.79161949 | T123: 66.61317008 | U123: 69.55951995 | V123: 72.63618905 | W123: 75.8489415 | X123: 79.20379638 | Y123: 82.70703897 | AA123: 0.4 | AB123: 0.2 | AC123: 0 | AD123: 0 | AE123: 0 | AF123: 0 | AG123: 0 | AH123: 0 | AI123: 0 | AJ123: 0 | AL123: 0 | AM123: 0 | AN123: 0 | AO123: 0 | AP123: 0 | AQ123: 0 | AR123: 0 | AS123: 0 | AT123: 0 | AU123: 0 | AW123: 0 | AX123: 0 | AY123: 0 | AZ123: 0 | BA123: 0 | BB123: 0 | BC123: 0 | BD123: 0 | BE123: 0 | BF123: 0 | BI123: 0 | BJ123: 0 | BK123: 0 | BL123: 0 | BM123: 0 | BN123: 0 | BO123: 0 | BP123: 0 | BQ123: 0 | BR123: 0 | BU123: 0 | BV123: 0 | BW123: 0 | BX123: 0 | BY123: 0 | BZ123: 0 | CA123: 0 | CB123: 0 | CC123: 0 | CD123: 0
B124: 400W Metal Halide - Flood Light | C124: Offered | D124: 40.844 | E124: 41.2687776 | F124: 41.69797289 | G124: 42.13163181 | H124: 42.56980078 | I124: 43.0125267 | J124: 43.45985698 | K124: 43.91183949 | L124: 44.36852262 | M124: 44.82995526 | P124: 47.62810634 | Q124: 49.73473277 | R124: 51.93453684 | S124: 54.23163988 | T124: 56.63034549 | U124: 59.13514763 | V124: 61.75073902 | W124: 64.48201996 | X124: 67.33410747 | Y124: 70.31234493 | AA124: 0 | AB124: 0 | AC124: 0 | AD124: 0 | AE124: 0 | AF124: 0 | AG124: 0 | AH124: 0 | AI124: 0 | AJ124: 0 | AL124: 0 | AM124: 0 | AN124: 0 | AO124: 0 | AP124: 0 | AQ124: 0 | AR124: 0 | AS124: 0 | AT124: 0 | AU124: 0 | AW124: 0 | AX124: 0 | AY124: 0 | AZ124: 0 | BA124: 0 | BB124: 0 | BC124: 0 | BD124: 0 | BE124: 0 | BF124: 0 | BI124: 0 | BJ124: 0 | BK124: 0 | BL124: 0 | BM124: 0 | BN124: 0 | BO124: 0 | BP124: 0 | BQ124: 0 | BR124: 0 | BU124: 0 | BV124: 0 | BW124: 0 | BX124: 0 | BY124: 0 | BZ124: 0 | CA124: 0 | CB124: 0 | CC124: 0 | CD124: 0
B125: LED 18 | C125: Offered | D125: 32.379 | E125: 32.7157416 | F125: 33.05598531 | G125: 33.39976756 | H125: 33.74712514 | I125: 34.09809524 | J125: 34.45271543 | K125: 34.81102368 | L125: 35.17305832 | M125: 35.53885813 | P125: 37.75708684 | Q125: 39.42711077 | R125: 41.17100109 | S125: 42.99202497 | T125: 44.89359408 | U125: 46.87927101 | V125: 48.9527759 | W125: 51.11799344 | X125: 53.37898016 | Y125: 55.739972 | AA125: 7295.483333 | AB125: 9319.783333 | AC125: 11344.08333 | AD125: 11344.08333 | AE125: 11344.08333 | AF125: 11344.08333 | AG125: 11344.08333 | AH125: 11344.08333 | AI125: 11344.08333 | AJ125: 11344.08333 | AL125: 0 | AM125: 0 | AN125: 0 | AO125: 0 | AP125: 0 | AQ125: 0 | AR125: 0 | AS125: 0 | AT125: 0 | AU125: 0 | AW125: 0 | AX125: 0 | AY125: 0 | AZ125: 0 | BA125: 0 | BB125: 0 | BC125: 0 | BD125: 0 | BE125: 0 | BF125: 0 | BI125: 0 | BJ125: 0 | BK125: 0 | BL125: 0 | BM125: 0 | BN125: 0 | BO125: 0 | BP125: 0 | BQ125: 0 | BR125: 0 | BU125: 0 | BV125: 0 | BW125: 0 | BX125: 0 | BY125: 0 | BZ125: 0 | CA125: 0 | CB125: 0 | CC125: 0 | CD125: 0
B126: 0 | C126: NA | AA126: 0 | AB126: 0 | AC126: 0 | AD126: 0 | AE126: 0 | AF126: 0 | AG126: 0 | AH126: 0 | AI126: 0 | AJ126: 0 | BI126: 0 | BJ126: 0 | BK126: 0 | BL126: 0 | BM126: 0 | BN126: 0 | BO126: 0 | BP126: 0 | BQ126: 0 | BR126: 0 | BU126: 0 | BV126: 0 | BW126: 0 | BX126: 0 | BY126: 0 | BZ126: 0 | CA126: 0 | CB126: 0 | CC126: 0 | CD126: 0
B127: 0 | C127: NA | AA127: 0 | AB127: 0 | AC127: 0 | AD127: 0 | AE127: 0 | AF127: 0 | AG127: 0 | AH127: 0 | AI127: 0 | AJ127: 0 | BI127: 0 | BJ127: 0 | BK127: 0 | BL127: 0 | BM127: 0 | BN127: 0 | BO127: 0 | BP127: 0 | BQ127: 0 | BR127: 0 | BU127: 0 | BV127: 0 | BW127: 0 | BX127: 0 | BY127: 0 | BZ127: 0 | CA127: 0 | CB127: 0 | CC127: 0 | CD127: 0
B128: 0 | C128: NA | AA128: 0 | AB128: 0 | AC128: 0 | AD128: 0 | AE128: 0 | AF128: 0 | AG128: 0 | AH128: 0 | AI128: 0 | AJ128: 0 | BI128: 0 | BJ128: 0 | BK128: 0 | BL128: 0 | BM128: 0 | BN128: 0 | BO128: 0 | BP128: 0 | BQ128: 0 | BR128: 0 | BU128: 0 | BV128: 0 | BW128: 0 | BX128: 0 | BY128: 0 | BZ128: 0 | CA128: 0 | CB128: 0 | CC128: 0 | CD128: 0
B129: LED 20 | C129: Offered | D129: 45.998 | E129: 46.4763792 | F129: 46.95973354 | G129: 47.44811477 | H129: 47.94157517 | I129: 48.44016755 | J129: 48.94394529 | K129: 49.45296232 | L129: 49.96727313 | M129: 50.48693277 | P129: 53.63817538 | Q129: 56.01063162 | R129: 58.48802335 | S129: 61.07499195 | T129: 63.7763841 | U129: 66.59726081 | V129: 69.542907 | W129: 72.6188413 | X129: 75.83082645 | Y129: 79.18488008 | AA129: 48.66666667 | AB129: 48.66666667 | AC129: 48.66666667 | AD129: 48.66666667 | AE129: 48.66666667 | AF129: 48.66666667 | AG129: 48.66666667 | AH129: 48.66666667 | AI129: 48.66666667 | AJ129: 48.66666667 | AL129: 0 | AM129: 0 | AN129: 0 | AO129: 0 | AP129: 0 | AQ129: 0 | AR129: 0 | AS129: 0 | AT129: 0 | AU129: 0 | AW129: 0 | AX129: 0 | AY129: 0 | AZ129: 0 | BA129: 0 | BB129: 0 | BC129: 0 | BD129: 0 | BE129: 0 | BF129: 0 | BI129: 0 | BJ129: 0 | BK129: 0 | BL129: 0 | BM129: 0 | BN129: 0 | BO129: 0 | BP129: 0 | BQ129: 0 | BR129: 0 | BU129: 0 | BV129: 0 | BW129: 0 | BX129: 0 | BY129: 0 | BZ129: 0 | CA129: 0 | CB129: 0 | CC129: 0 | CD129: 0
B130: LED 200 | C130: Offered | D130: 45.202 | E130: 45.6721008 | F130: 46.14709065 | G130: 46.62702039 | H130: 47.1119414 | I130: 47.60190559 | J130: 48.09696541 | K130: 48.59717385 | L130: 49.10258446 | M130: 49.61325134 | P130: 52.70996138 | Q130: 55.04136202 | R130: 57.47588224 | S130: 60.0180831 | T130: 62.67272738 | U130: 65.44478854 | V130: 68.33946002 | W130: 71.36216497 | X130: 74.5185664 | Y130: 77.8145778 | AA130: 4 | AB130: 4 | AC130: 4 | AD130: 4 | AE130: 4 | AF130: 4 | AG130: 4 | AH130: 4 | AI130: 4 | AJ130: 4 | AL130: 0 | AM130: 0 | AN130: 0 | AO130: 0 | AP130: 0 | AQ130: 0 | AR130: 0 | AS130: 0 | AT130: 0 | AU130: 0 | AW130: 0 | AX130: 0 | AY130: 0 | AZ130: 0 | BA130: 0 | BB130: 0 | BC130: 0 | BD130: 0 | BE130: 0 | BF130: 0 | BI130: 0 | BJ130: 0 | BK130: 0 | BL130: 0 | BM130: 0 | BN130: 0 | BO130: 0 | BP130: 0 | BQ130: 0 | BR130: 0 | BU130: 0 | BV130: 0 | BW130: 0 | BX130: 0 | BY130: 0 | BZ130: 0 | CA130: 0 | CB130: 0 | CC130: 0 | CD130: 0
B131: LED 240 | C131: Offered | D131: 45.202 | E131: 45.6721008 | F131: 46.14709065 | G131: 46.62702039 | H131: 47.1119414 | I131: 47.60190559 | J131: 48.09696541 | K131: 48.59717385 | L131: 49.10258446 | M131: 49.61325134 | P131: 52.70996138 | Q131: 55.04136202 | R131: 57.47588224 | S131: 60.0180831 | T131: 62.67272738 | U131: 65.44478854 | V131: 68.33946002 | W131: 71.36216497 | X131: 74.5185664 | Y131: 77.8145778 | AA131: 30.83333333 | AB131: 30.83333333 | AC131: 30.83333333 | AD131: 30.83333333 | AE131: 30.83333333 | AF131: 30.83333333 | AG131: 30.83333333 | AH131: 30.83333333 | AI131: 30.83333333 | AJ131: 30.83333333 | AL131: 0 | AM131: 0 | AN131: 0 | AO131: 0 | AP131: 0 | AQ131: 0 | AR131: 0 | AS131: 0 | AT131: 0 | AU131: 0 | AW131: 0 | AX131: 0 | AY131: 0 | AZ131: 0 | BA131: 0 | BB131: 0 | BC131: 0 | BD131: 0 | BE131: 0 | BF131: 0 | BI131: 0 | BJ131: 0 | BK131: 0 | BL131: 0 | BM131: 0 | BN131: 0 | BO131: 0 | BP131: 0 | BQ131: 0 | BR131: 0 | BU131: 0 | BV131: 0 | BW131: 0 | BX131: 0 | BY131: 0 | BZ131: 0 | CA131: 0 | CB131: 0 | CC131: 0 | CD131: 0
B132: LED 25 | C132: Offered | D132: 42.638 | E132: 43.0814352 | F132: 43.52948213 | G132: 43.98218874 | H132: 44.4396035 | I132: 44.90177538 | J132: 45.36875384 | K132: 45.84058888 | L132: 46.31733101 | M132: 46.79903125 | P132: 49.72008613 | Q132: 51.91924238 | R132: 54.21566893 | S132: 56.61366814 | T132: 59.11773262 | U132: 61.73255373 | V132: 64.46303032 | W132: 67.31427791 | X132: 70.29163829 | Y132: 73.40068953 | AA132: 75 | AB132: 75 | AC132: 75 | AD132: 75 | AE132: 75 | AF132: 75 | AG132: 75 | AH132: 75 | AI132: 75 | AJ132: 75 | AL132: 0 | AM132: 0 | AN132: 0 | AO132: 0 | AP132: 0 | AQ132: 0 | AR132: 0 | AS132: 0 | AT132: 0 | AU132: 0 | AW132: 0 | AX132: 0 | AY132: 0 | AZ132: 0 | BA132: 0 | BB132: 0 | BC132: 0 | BD132: 0 | BE132: 0 | BF132: 0 | BI132: 0 | BJ132: 0 | BK132: 0 | BL132: 0 | BM132: 0 | BN132: 0 | BO132: 0 | BP132: 0 | BQ132: 0 | BR132: 0 | BU132: 0 | BV132: 0 | BW132: 0 | BX132: 0 | BY132: 0 | BZ132: 0 | CA132: 0 | CB132: 0 | CC132: 0 | CD132: 0
B133: 0 | C133: NA | AA133: 0 | AB133: 0 | AC133: 0 | AD133: 0 | AE133: 0 | AF133: 0 | AG133: 0 | AH133: 0 | AI133: 0 | AJ133: 0 | BI133: 0 | BJ133: 0 | BK133: 0 | BL133: 0 | BM133: 0 | BN133: 0 | BO133: 0 | BP133: 0 | BQ133: 0 | BR133: 0 | BU133: 0 | BV133: 0 | BW133: 0 | BX133: 0 | BY133: 0 | BZ133: 0 | CA133: 0 | CB133: 0 | CC133: 0 | CD133: 0
B134: 0 | C134: NA | AA134: 0 | AB134: 0 | AC134: 0 | AD134: 0 | AE134: 0 | AF134: 0 | AG134: 0 | AH134: 0 | AI134: 0 | AJ134: 0 | BI134: 0 | BJ134: 0 | BK134: 0 | BL134: 0 | BM134: 0 | BN134: 0 | BO134: 0 | BP134: 0 | BQ134: 0 | BR134: 0 | BU134: 0 | BV134: 0 | BW134: 0 | BX134: 0 | BY134: 0 | BZ134: 0 | CA134: 0 | CB134: 0 | CC134: 0 | CD134: 0
B135: 0 | C135: NA | AA135: 0 | AB135: 0 | AC135: 0 | AD135: 0 | AE135: 0 | AF135: 0 | AG135: 0 | AH135: 0 | AI135: 0 | AJ135: 0 | BI135: 0 | BJ135: 0 | BK135: 0 | BL135: 0 | BM135: 0 | BN135: 0 | BO135: 0 | BP135: 0 | BQ135: 0 | BR135: 0 | BU135: 0 | BV135: 0 | BW135: 0 | BX135: 0 | BY135: 0 | BZ135: 0 | CA135: 0 | CB135: 0 | CC135: 0 | CD135: 0
B136: LED 265 | C136: Offered | D136: 41.729 | E136: 42.1629816 | F136: 42.60147661 | G136: 43.04453197 | H136: 43.4921951 | I136: 43.94451393 | J136: 44.40153687 | K136: 44.86331286 | L136: 45.32989131 | M136: 45.80132218 | P136: 48.66010306 | Q136: 50.81237547 | R136: 53.05984448 | S136: 55.40672071 | T136: 57.85740102 | U136: 60.41647673 | V136: 63.08874225 | W136: 65.87920406 | X136: 68.79309007 | Y136: 71.83585941 | AA136: 44 | AB136: 44 | AC136: 44 | AD136: 44 | AE136: 44 | AF136: 44 | AG136: 44 | AH136: 44 | AI136: 44 | AJ136: 44 | AL136: 0 | AM136: 0 | AN136: 0 | AO136: 0 | AP136: 0 | AQ136: 0 | AR136: 0 | AS136: 0 | AT136: 0 | AU136: 0 | AW136: 0 | AX136: 0 | AY136: 0 | AZ136: 0 | BA136: 0 | BB136: 0 | BC136: 0 | BD136: 0 | BE136: 0 | BF136: 0 | BI136: 0 | BJ136: 0 | BK136: 0 | BL136: 0 | BM136: 0 | BN136: 0 | BO136: 0 | BP136: 0 | BQ136: 0 | BR136: 0 | BU136: 0 | BV136: 0 | BW136: 0 | BX136: 0 | BY136: 0 | BZ136: 0 | CA136: 0 | CB136: 0 | CC136: 0 | CD136: 0
B137: LED 30 | C137: Offered | D137: 32.444 | E137: 32.7814176 | F137: 33.12234434 | G137: 33.46681672 | H137: 33.81487162 | I137: 34.16654628 | J137: 34.52187836 | K137: 34.8809059 | L137: 35.24366732 | M137: 35.61020146 | P137: 37.83288321 | Q137: 39.50625967 | R137: 41.2536508 | S137: 43.07833034 | T137: 44.9837168 | U137: 46.97337993 | V137: 49.05104732 | W137: 51.22061148 | X137: 53.48613708 | Y137: 55.85186855 | AA137: 0 | AB137: 0 | AC137: 0 | AD137: 0 | AE137: 0 | AF137: 0 | AG137: 0 | AH137: 0 | AI137: 0 | AJ137: 0 | AL137: 0 | AM137: 0 | AN137: 0 | AO137: 0 | AP137: 0 | AQ137: 0 | AR137: 0 | AS137: 0 | AT137: 0 | AU137: 0 | AW137: 0 | AX137: 0 | AY137: 0 | AZ137: 0 | BA137: 0 | BB137: 0 | BC137: 0 | BD137: 0 | BE137: 0 | BF137: 0 | BI137: 0 | BJ137: 0 | BK137: 0 | BL137: 0 | BM137: 0 | BN137: 0 | BO137: 0 | BP137: 0 | BQ137: 0 | BR137: 0 | BU137: 0 | BV137: 0 | BW137: 0 | BX137: 0 | BY137: 0 | BZ137: 0 | CA137: 0 | CB137: 0 | CC137: 0 | CD137: 0
B138: LED 75 | C138: Offered | D138: 40.405 | E138: 40.825212 | F138: 41.2497942 | G138: 41.67879206 | H138: 42.1122515 | I138: 42.55021892 | J138: 42.99274119 | K138: 43.4398657 | L138: 43.89164031 | M138: 44.34811337 | P138: 47.11618932 | Q138: 49.20017328 | R138: 51.37633339 | S138: 53.64874668 | T138: 56.02167049 | U138: 58.49955048 | V138: 61.08702894 | W138: 63.78895349 | X138: 66.61038616 | Y138: 69.55661289 | AA138: 386 | AB138: 386 | AC138: 386 | AD138: 386 | AE138: 386 | AF138: 386 | AG138: 386 | AH138: 386 | AI138: 386 | AJ138: 386 | AL138: 0 | AM138: 0 | AN138: 0 | AO138: 0 | AP138: 0 | AQ138: 0 | AR138: 0 | AS138: 0 | AT138: 0 | AU138: 0 | AW138: 0 | AX138: 0 | AY138: 0 | AZ138: 0 | BA138: 0 | BB138: 0 | BC138: 0 | BD138: 0 | BE138: 0 | BF138: 0 | BI138: 0 | BJ138: 0 | BK138: 0 | BL138: 0 | BM138: 0 | BN138: 0 | BO138: 0 | BP138: 0 | BQ138: 0 | BR138: 0 | BU138: 0 | BV138: 0 | BW138: 0 | BX138: 0 | BY138: 0 | BZ138: 0 | CA138: 0 | CB138: 0 | CC138: 0 | CD138: 0
B139: LED 155 | C139: Offered | D139: 30.882 | E139: 31.2031728 | F139: 31.5276858 | G139: 31.85557373 | H139: 32.1868717 | I139: 32.52161516 | J139: 32.85983996 | K139: 33.2015823 | L139: 33.54687875 | M139: 33.89576629 | P139: 36.01143815 | Q139: 37.60425074 | R139: 39.26751461 | S139: 41.00434587 | T139: 42.81799847 | U139: 44.71187026 | V139: 46.68950941 | W139: 48.754621 | X139: 50.91107401 | Y139: 53.16290853 | AA139: 14 | AB139: 14 | AC139: 14 | AD139: 14 | AE139: 14 | AF139: 14 | AG139: 14 | AH139: 14 | AI139: 14 | AJ139: 14 | AL139: 0 | AM139: 0 | AN139: 0 | AO139: 0 | AP139: 0 | AQ139: 0 | AR139: 0 | AS139: 0 | AT139: 0 | AU139: 0 | AW139: 0 | AX139: 0 | AY139: 0 | AZ139: 0 | BA139: 0 | BB139: 0 | BC139: 0 | BD139: 0 | BE139: 0 | BF139: 0 | BI139: 0 | BJ139: 0 | BK139: 0 | BL139: 0 | BM139: 0 | BN139: 0 | BO139: 0 | BP139: 0 | BQ139: 0 | BR139: 0 | BU139: 0 | BV139: 0 | BW139: 0 | BX139: 0 | BY139: 0 | BZ139: 0 | CA139: 0 | CB139: 0 | CC139: 0 | CD139: 0
B140: LED 14 | C140: Offered | D140: 31.342 | E140: 31.6679568 | F140: 31.99730355 | G140: 32.33007551 | H140: 32.66630829 | I140: 33.0060379 | J140: 33.34930069 | K140: 33.69613342 | L140: 34.04657321 | M140: 34.40065757 | P140: 36.54784323 | Q140: 38.16438141 | R140: 39.85242027 | S140: 41.61512235 | T140: 43.45579004 | U140: 45.37787183 | V140: 47.38496872 | W140: 49.48084099 | X140: 51.66941525 | Y140: 53.95479176 | AA140: 15104.13333 | AB140: 16289.15 | AC140: 17474.16667 | AD140: 17474.16667 | AE140: 17474.16667 | AF140: 17474.16667 | AG140: 17474.16667 | AH140: 17474.16667 | AI140: 17474.16667 | AJ140: 17474.16667 | AL140: 0 | AM140: 0 | AN140: 0 | AO140: 0 | AP140: 0 | AQ140: 0 | AR140: 0 | AS140: 0 | AT140: 0 | AU140: 0 | AW140: 0 | AX140: 0 | AY140: 0 | AZ140: 0 | BA140: 0 | BB140: 0 | BC140: 0 | BD140: 0 | BE140: 0 | BF140: 0 | BI140: 0 | BJ140: 0 | BK140: 0 | BL140: 0 | BM140: 0 | BN140: 0 | BO140: 0 | BP140: 0 | BQ140: 0 | BR140: 0 | BU140: 0 | BV140: 0 | BW140: 0 | BX140: 0 | BY140: 0 | BZ140: 0 | CA140: 0 | CB140: 0 | CC140: 0 | CD140: 0
B141: 0 | C141: NA | AA141: 0 | AB141: 0 | AC141: 0 | AD141: 0 | AE141: 0 | AF141: 0 | AG141: 0 | AH141: 0 | AI141: 0 | AJ141: 0 | BI141: 0 | BJ141: 0 | BK141: 0 | BL141: 0 | BM141: 0 | BN141: 0 | BO141: 0 | BP141: 0 | BQ141: 0 | BR141: 0 | BU141: 0 | BV141: 0 | BW141: 0 | BX141: 0 | BY141: 0 | BZ141: 0 | CA141: 0 | CB141: 0 | CC141: 0 | CD141: 0
B142: 0 | C142: NA | AA142: 0 | AB142: 0 | AC142: 0 | AD142: 0 | AE142: 0 | AF142: 0 | AG142: 0 | AH142: 0 | AI142: 0 | AJ142: 0 | BI142: 0 | BJ142: 0 | BK142: 0 | BL142: 0 | BM142: 0 | BN142: 0 | BO142: 0 | BP142: 0 | BQ142: 0 | BR142: 0 | BU142: 0 | BV142: 0 | BW142: 0 | BX142: 0 | BY142: 0 | BZ142: 0 | CA142: 0 | CB142: 0 | CC142: 0 | CD142: 0
B143: 0 | C143: NA | AA143: 0 | AB143: 0 | AC143: 0 | AD143: 0 | AE143: 0 | AF143: 0 | AG143: 0 | AH143: 0 | AI143: 0 | AJ143: 0 | BI143: 0 | BJ143: 0 | BK143: 0 | BL143: 0 | BM143: 0 | BN143: 0 | BO143: 0 | BP143: 0 | BQ143: 0 | BR143: 0 | BU143: 0 | BV143: 0 | BW143: 0 | BX143: 0 | BY143: 0 | BZ143: 0 | CA143: 0 | CB143: 0 | CC143: 0 | CD143: 0
B144: LED 17 | C144: Offered | D144: 37.149 | E144: 37.5353496 | F144: 37.92571724 | G144: 38.3201447 | H144: 38.7186742 | I144: 39.12134841 | J144: 39.52821044 | K144: 39.93930382 | L144: 40.35467258 | M144: 40.77436118 | P144: 43.31937426 | Q144: 45.23542228 | R144: 47.23621852 | S144: 49.32551146 | T144: 51.50721537 | U144: 53.78541767 | V144: 56.16438654 | W144: 58.64857897 | X144: 61.24264907 | Y144: 63.95145681 | AA144: 15.66666667 | AB144: 15.66666667 | AC144: 15.66666667 | AD144: 15.66666667 | AE144: 15.66666667 | AF144: 15.66666667 | AG144: 15.66666667 | AH144: 15.66666667 | AI144: 15.66666667 | AJ144: 15.66666667 | AL144: 0 | AM144: 0 | AN144: 0 | AO144: 0 | AP144: 0 | AQ144: 0 | AR144: 0 | AS144: 0 | AT144: 0 | AU144: 0 | AW144: 0 | AX144: 0 | AY144: 0 | AZ144: 0 | BA144: 0 | BB144: 0 | BC144: 0 | BD144: 0 | BE144: 0 | BF144: 0 | BI144: 0 | BJ144: 0 | BK144: 0 | BL144: 0 | BM144: 0 | BN144: 0 | BO144: 0 | BP144: 0 | BQ144: 0 | BR144: 0 | BU144: 0 | BV144: 0 | BW144: 0 | BX144: 0 | BY144: 0 | BZ144: 0 | CA144: 0 | CB144: 0 | CC144: 0 | CD144: 0
B145: LED 175 | C145: Offered | D145: 40.771 | E145: 41.1950184 | F145: 41.62344659 | G145: 42.05633044 | H145: 42.49371627 | I145: 42.93565092 | J145: 43.38218169 | K145: 43.83335638 | L145: 44.28922329 | M145: 44.74983121 | P145: 47.54298118 | Q145: 49.64584246 | R145: 51.84171486 | S145: 54.13471231 | T145: 56.52913074 | U145: 59.02945608 | V145: 61.64037265 | W145: 64.366772 | X145: 67.21376201 | Y145: 70.1866765 | AA145: 799.5833333 | AB145: 799.5833333 | AC145: 799.5833333 | AD145: 799.5833333 | AE145: 799.5833333 | AF145: 799.5833333 | AG145: 799.5833333 | AH145: 799.5833333 | AI145: 799.5833333 | AJ145: 799.5833333 | AL145: 0 | AM145: 0 | AN145: 0 | AO145: 0 | AP145: 0 | AQ145: 0 | AR145: 0 | AS145: 0 | AT145: 0 | AU145: 0 | AW145: 0 | AX145: 0 | AY145: 0 | AZ145: 0 | BA145: 0 | BB145: 0 | BC145: 0 | BD145: 0 | BE145: 0 | BF145: 0 | BI145: 0 | BJ145: 0 | BK145: 0 | BL145: 0 | BM145: 0 | BN145: 0 | BO145: 0 | BP145: 0 | BQ145: 0 | BR145: 0 | BU145: 0 | BV145: 0 | BW145: 0 | BX145: 0 | BY145: 0 | BZ145: 0 | CA145: 0 | CB145: 0 | CC145: 0 | CD145: 0
B146: LED 14 New Tech | C146: Offered | D146: 31.965 | E146: 32.297436 | F146: 32.63332933 | G146: 32.97271596 | H146: 33.31563221 | I146: 33.66211478 | J146: 34.01220077 | K146: 34.36592766 | L146: 34.72333331 | M146: 35.08445598 | P146: 37.27432228 | Q146: 38.92299317 | R146: 40.64458599 | S146: 42.44232614 | T146: 44.31958167 | U146: 46.2798696 | V146: 48.32686252 | W146: 50.46439545 | X146: 52.69647305 | Y146: 55.02727709 | AA146: 1 | AB146: 1 | AC146: 1 | AD146: 1 | AE146: 1 | AF146: 1 | AG146: 1 | AH146: 1 | AI146: 1 | AJ146: 1 | AL146: 0 | AM146: 0 | AN146: 0 | AO146: 0 | AP146: 0 | AQ146: 0 | AR146: 0 | AS146: 0 | AT146: 0 | AU146: 0 | AW146: 0 | AX146: 0 | AY146: 0 | AZ146: 0 | BA146: 0 | BB146: 0 | BC146: 0 | BD146: 0 | BE146: 0 | BF146: 0 | BI146: 0 | BJ146: 0 | BK146: 0 | BL146: 0 | BM146: 0 | BN146: 0 | BO146: 0 | BP146: 0 | BQ146: 0 | BR146: 0 | BU146: 0 | BV146: 0 | BW146: 0 | BX146: 0 | BY146: 0 | BZ146: 0 | CA146: 0 | CB146: 0 | CC146: 0 | CD146: 0
B147: LED 75 New Tech | C147: Offered | D147: 40.405 | E147: 40.825212 | F147: 41.2497942 | G147: 41.67879206 | H147: 42.1122515 | I147: 42.55021892 | J147: 42.99274119 | K147: 43.4398657 | L147: 43.89164031 | M147: 44.34811337 | P147: 47.11618932 | Q147: 49.20017328 | R147: 51.37633339 | S147: 53.64874668 | T147: 56.02167049 | U147: 58.49955048 | V147: 61.08702894 | W147: 63.78895349 | X147: 66.61038616 | Y147: 69.55661289 | AA147: 1 | AB147: 1 | AC147: 1 | AD147: 1 | AE147: 1 | AF147: 1 | AG147: 1 | AH147: 1 | AI147: 1 | AJ147: 1 | AL147: 0 | AM147: 0 | AN147: 0 | AO147: 0 | AP147: 0 | AQ147: 0 | AR147: 0 | AS147: 0 | AT147: 0 | AU147: 0 | AW147: 0 | AX147: 0 | AY147: 0 | AZ147: 0 | BA147: 0 | BB147: 0 | BC147: 0 | BD147: 0 | BE147: 0 | BF147: 0 | BI147: 0 | BJ147: 0 | BK147: 0 | BL147: 0 | BM147: 0 | BN147: 0 | BO147: 0 | BP147: 0 | BQ147: 0 | BR147: 0 | BU147: 0 | BV147: 0 | BW147: 0 | BX147: 0 | BY147: 0 | BZ147: 0 | CA147: 0 | CB147: 0 | CC147: 0 | CD147: 0
B148: 0 | C148: NA | AA148: 0 | AB148: 0 | AC148: 0 | AD148: 0 | AE148: 0 | AF148: 0 | AG148: 0 | AH148: 0 | AI148: 0 | AJ148: 0 | BI148: 0 | BJ148: 0 | BK148: 0 | BL148: 0 | BM148: 0 | BN148: 0 | BO148: 0 | BP148: 0 | BQ148: 0 | BR148: 0 | BU148: 0 | BV148: 0 | BW148: 0 | BX148: 0 | BY148: 0 | BZ148: 0 | CA148: 0 | CB148: 0 | CC148: 0 | CD148: 0
B149: 0 | C149: NA | AA149: 0 | AB149: 0 | AC149: 0 | AD149: 0 | AE149: 0 | AF149: 0 | AG149: 0 | AH149: 0 | AI149: 0 | AJ149: 0 | BI149: 0 | BJ149: 0 | BK149: 0 | BL149: 0 | BM149: 0 | BN149: 0 | BO149: 0 | BP149: 0 | BQ149: 0 | BR149: 0 | BU149: 0 | BV149: 0 | BW149: 0 | BX149: 0 | BY149: 0 | BZ149: 0 | CA149: 0 | CB149: 0 | CC149: 0 | CD149: 0
B150: 0 | C150: NA | AA150: 0 | AB150: 0 | AC150: 0 | AD150: 0 | AE150: 0 | AF150: 0 | AG150: 0 | AH150: 0 | AI150: 0 | AJ150: 0 | BI150: 0 | BJ150: 0 | BK150: 0 | BL150: 0 | BM150: 0 | BN150: 0 | BO150: 0 | BP150: 0 | BQ150: 0 | BR150: 0 | BU150: 0 | BV150: 0 | BW150: 0 | BX150: 0 | BY150: 0 | BZ150: 0 | CA150: 0 | CB150: 0 | CC150: 0 | CD150: 0
B151: 0 | C151: NA | AA151: 0 | AB151: 0 | AC151: 0 | AD151: 0 | AE151: 0 | AF151: 0 | AG151: 0 | AH151: 0 | AI151: 0 | AJ151: 0 | BI151: 0 | BJ151: 0 | BK151: 0 | BL151: 0 | BM151: 0 | BN151: 0 | BO151: 0 | BP151: 0 | BQ151: 0 | BR151: 0 | BU151: 0 | BV151: 0 | BW151: 0 | BX151: 0 | BY151: 0 | BZ151: 0 | CA151: 0 | CB151: 0 | CC151: 0 | CD151: 0
B152: 0 | C152: NA | AA152: 0 | AB152: 0 | AC152: 0 | AD152: 0 | AE152: 0 | AF152: 0 | AG152: 0 | AH152: 0 | AI152: 0 | AJ152: 0 | BI152: 0 | BJ152: 0 | BK152: 0 | BL152: 0 | BM152: 0 | BN152: 0 | BO152: 0 | BP152: 0 | BQ152: 0 | BR152: 0 | BU152: 0 | BV152: 0 | BW152: 0 | BX152: 0 | BY152: 0 | BZ152: 0 | CA152: 0 | CB152: 0 | CC152: 0 | CD152: 0
B153: 0 | C153: NA | AA153: 0 | AB153: 0 | AC153: 0 | AD153: 0 | AE153: 0 | AF153: 0 | AG153: 0 | AH153: 0 | AI153: 0 | AJ153: 0 | BI153: 0 | BJ153: 0 | BK153: 0 | BL153: 0 | BM153: 0 | BN153: 0 | BO153: 0 | BP153: 0 | BQ153: 0 | BR153: 0 | BU153: 0 | BV153: 0 | BW153: 0 | BX153: 0 | BY153: 0 | BZ153: 0 | CA153: 0 | CB153: 0 | CC153: 0 | CD153: 0
B154: 0 | C154: NA | AA154: 0 | AB154: 0 | AC154: 0 | AD154: 0 | AE154: 0 | AF154: 0 | AG154: 0 | AH154: 0 | AI154: 0 | AJ154: 0 | BI154: 0 | BJ154: 0 | BK154: 0 | BL154: 0 | BM154: 0 | BN154: 0 | BO154: 0 | BP154: 0 | BQ154: 0 | BR154: 0 | BU154: 0 | BV154: 0 | BW154: 0 | BX154: 0 | BY154: 0 | BZ154: 0 | CA154: 0 | CB154: 0 | CC154: 0 | CD154: 0
B155: 0 | C155: NA | AA155: 0 | AB155: 0 | AC155: 0 | AD155: 0 | AE155: 0 | AF155: 0 | AG155: 0 | AH155: 0 | AI155: 0 | AJ155: 0 | BI155: 0 | BJ155: 0 | BK155: 0 | BL155: 0 | BM155: 0 | BN155: 0 | BO155: 0 | BP155: 0 | BQ155: 0 | BR155: 0 | BU155: 0 | BV155: 0 | BW155: 0 | BX155: 0 | BY155: 0 | BZ155: 0 | CA155: 0 | CB155: 0 | CC155: 0 | CD155: 0
B156: 0 | C156: NA | AA156: 0 | AB156: 0 | AC156: 0 | AD156: 0 | AE156: 0 | AF156: 0 | AG156: 0 | AH156: 0 | AI156: 0 | AJ156: 0 | BI156: 0 | BJ156: 0 | BK156: 0 | BL156: 0 | BM156: 0 | BN156: 0 | BO156: 0 | BP156: 0 | BQ156: 0 | BR156: 0 | BU156: 0 | BV156: 0 | BW156: 0 | BX156: 0 | BY156: 0 | BZ156: 0 | CA156: 0 | CB156: 0 | CC156: 0 | CD156: 0
AA157: 30238 | AB157: 30238 | AC157: 30238 | AD157: 30238 | AE157: 30238 | AF157: 30238 | AG157: 30238 | AH157: 30238 | AI157: 30238 | AJ157: 30238 | BI157: 0 | BJ157: 0 | BK157: 0 | BL157: 0 | BM157: 0 | BN157: 0 | BO157: 0 | BP157: 0 | BQ157: 0 | BR157: 0 | BU157: 0 | BV157: 0 | BW157: 0 | BX157: 0 | BY157: 0 | BZ157: 0 | CA157: 0 | CB157: 0 | CC157: 0 | CD157: 0
AA158: TRUE | AB158: TRUE | AC158: TRUE | AD158: TRUE | AE158: TRUE | AF158: TRUE | AG158: TRUE | AH158: TRUE | AI158: TRUE | AJ158: TRUE
B159: Total | O159: Price (cents) per Light per day Nominal Smoothed | P159: 0 | Q159: 0 | R159: 0 | S159: 0 | T159: 0 | U159: 0 | V159: 0 | W159: 0 | X159: 0 | Y159: 0 | AA159: 51858.75 | AB159: 51858.75 | AC159: 51858.75 | AD159: 51858.75 | AE159: 51858.75 | AF159: 51858.75 | AG159: 51858.75 | AH159: 51858.75 | AI159: 51858.75 | AJ159: 51858.75 | BI159: 800485.772 | BJ159: 801284.9949 | BK159: 802014.2611 | BL159: 812575.3607 | BM159: 818782.9036 | BN159: 827298.2458 | BO159: 835902.1476 | BP159: 846909.4903 | BQ159: 853379.3234 | BR159: 862254.4684 | BU159: 933444.8504 | BV159: 965662.1158 | BW159: 998903.2154 | BX159: 1045943.213 | BY159: 1089221.887 | BZ159: 1137398.978 | CA159: 1187706.977 | CB159: 1243638.055 | CC159: 1295096.877 | CD159: 1352379.971
AA160: TRUE | AB160: TRUE | AC160: TRUE | AD160: TRUE | AE160: TRUE | AF160: TRUE | AG160: TRUE | AH160: TRUE | AI160: TRUE | AJ160: TRUE

Sheet Smoothed Prices
P3: THIS TAKES 21/22 SMOOTHED PRICES ADDS CPI | AL3: THIS TAKES 18/19 SMOOTHED PRICES and multiplys by no.days in year/100 to convert $s into cents | AW3: THIS TAKES nominal and multiplys by no days in year/100
B4: Private Contract Lights
D8: X Factor | I8: X Factor | O8: Days | P8: 365 | Q8: 365 | R8: 365 | S8: 366 | T8: 365 | U8: 365 | V8: 365 | W8: 366 | X8: 365 | Y8: 365 | AL8: 365 | AM8: 365 | AN8: 365 | AO8: 366 | AP8: 365 | AQ8: 365 | AR8: 365 | AS8: 366 | AT8: 365 | AU8: 365 | AW8: 365 | AX8: 365 | AY8: 365 | AZ8: 366 | BA8: 365 | BB8: 365 | BC8: 365 | BD8: 366 | BE8: 365 | BF8: 365
D9: 0.0104 | E9: 0.0104 | F9: 0.0104 | G9: 0.0104 | H9: 0.0104 | I9: 0.0104 | J9: 0.0104 | K9: 0.0104 | L9: 0.0104 | M9: 0.0104 | O9: CPI | P9: 1.166097991 | Q9: 1.205141893 | R9: 1.245493084 | S9: 1.287195334 | T9: 1.330293881 | U9: 1.374835476 | V9: 1.420868436 | W9: 1.468442696 | X9: 1.517609861 | Y9: 1.568423268
B10: Private Contract Lights | D10: Price (cents) per Light per day Real 2021/22 Smoothed | I10: Price (cents) per Light per day Real 2021/22 Smoothed | P10: Price (cents) per Light per day Nominal Smoothed | AA10: Volumes | AL10: Smooth Real 2021/22 Cost Dollars Per Year | AW10: Smooth Nominal Cost Dollars Per Year | BI10: Revenue Real Real Dollars Per Year | BU10: Revenue Nominal Dollars Per Year | BZ10: Revenue Nominal Dollars Per Year
C11: Offered / No Longer Offered / NA | D11: 2024-25 | E11: 2025-26 | F11: 2026-27 | G11: 2027-28 | H11: 2028-29 | I11: 2029-30 | J11: 2030-31 | K11: 2031-32 | L11: 2032-33 | M11: 2033-34 | P11: 2024-25 | Q11: 2025-26 | R11: 2026-27 | S11: 2027-28 | T11: 2028-29 | U11: 2029-30 | V11: 2030-31 | W11: 2031-32 | X11: 2032-33 | Y11: 2033-34 | AA11: 2024-25 | AB11: 2025-26 | AC11: 2026-27 | AD11: 2027-28 | AE11: 2028-29 | AF11: 2029-30 | AG11: 2030-31 | AH11: 2031-32 | AI11: 2032-33 | AJ11: 2033-34 | AL11: 2024-25 | AM11: 2025-26 | AN11: 2026-27 | AO11: 2027-28 | AP11: 2028-29 | AQ11: 2029-30 | AR11: 2030-31 | AS11: 2031-32 | AT11: 2032-33 | AU11: 2033-34 | AW11: 2024-25 | AX11: 2025-26 | AY11: 2026-27 | AZ11: 2027-28 | BA11: 2028-29 | BB11: 2029-30 | BC11: 2030-31 | BD11: 2031-32 | BE11: 2032-33 | BF11: 2033-34 | BI11: 2024-25 | BJ11: 2025-26 | BK11: 2026-27 | BL11: 2027-28 | BM11: 2028-29 | BN11: 2029-30 | BO11: 2030-31 | BP11: 2031-32 | BQ11: 2032-33 | BR11: 2033-34 | BU11: 2024-25 | BV11: 2025-26 | BW11: 2026-27 | BX11: 2027-28 | BY11: 2028-29 | BZ11: 2029-30 | CA11: 2030-31 | CB11: 2031-32 | CC11: 2032-33 | CD11: 2033-34
B12: 50W Mercury Vapour | C12: Obsolete, no new Connections | D12: 14.538 | E12: 14.6891952 | F12: 14.84196283 | G12: 14.99631924 | H12: 15.15228096 | I12: 15.15228096 | J12: 15.30986469 | K12: 15.46908728 | L12: 15.62996579 | M12: 15.79251743 | P12: 16.95273259 | Q12: 17.70256451 | R12: 18.48556206 | S12: 19.30319216 | T12: 20.15698665 | U12: 20.83189341 | V12: 21.75330349 | W12: 22.71546822 | X12: 23.72019021 | Y12: 24.7693518 | AA12: 68.4 | AB12: 34.2 | AC12: 0 | AD12: 0 | AE12: 0 | AF12: 0 | AG12: 0 | AH12: 0 | AI12: 0 | AJ12: 0 | AL12: 53.0637 | AM12: 53.61556248 | AN12: 54.17316433 | AO12: 54.88652843 | AP12: 55.30582552 | AQ12: 55.30582552 | AR12: 55.8810061 | AS12: 56.61685944 | AT12: 57.04937512 | AU12: 57.64268862 | AW12: 61.87747395 | AX12: 64.61436047 | AY12: 67.4723015 | AZ12: 70.64968331 | BA12: 73.57300128 | BB12: 76.03641096 | BC12: 79.39955775 | BD12: 83.13861369 | BE12: 86.57869427 | BF12: 90.40813406 | BI12: 3629.55708 | BJ12: 1833.652237 | BK12: 0 | BL12: 0 | BM12: 0 | BN12: 0 | BO12: 0 | BP12: 0 | BQ12: 0 | BR12: 0 | BU12: 4232.419218 | BV12: 2209.811128 | BW12: 0 | BX12: 0 | BY12: 0 | BZ12: 0 | CA12: 0 | CB12: 0 | CC12: 0 | CD12: 0
B13: 80W Mercury Vapour | C13: Obsolete, no new Connections | D13: 14.525 | E13: 14.67606 | F13: 14.82869102 | G13: 14.98290941 | H13: 15.13873167 | I13: 15.13873167 | J13: 15.29617448 | K13: 15.45525469 | L13: 15.61598934 | M13: 15.77839563 | P13: 16.93757332 | Q13: 17.68673473 | R13: 18.46903211 | S13: 19.28593109 | T13: 20.13896211 | U13: 20.81326536 | V13: 21.73385151 | W13: 22.69515586 | X13: 23.69897942 | Y13: 24.74720284 | AA13: 97.9 | AB13: 48.95 | AC13: 0 | AD13: 0 | AE13: 0 | AF13: 0 | AG13: 0 | AH13: 0 | AI13: 0 | AJ13: 0 | AL13: 53.01625 | AM13: 53.567619 | AN13: 54.12472224 | AO13: 54.83744844 | AP13: 55.25637059 | AQ13: 55.25637059 | AR13: 55.83103684 | AS13: 56.56623217 | AT13: 56.9983611 | AU13: 57.59114405 | AW13: 61.8221426 | AX13: 64.55658177 | AY13: 67.41196721 | AZ13: 70.58650778 | BA13: 73.50721169 | BB13: 75.96841857 | BC13: 79.328558 | BD13: 83.06427045 | BE13: 86.50127488 | BF13: 90.32729035 | BI13: 5190.290875 | BJ13: 2622.13495 | BK13: 0 | BL13: 0 | BM13: 0 | BN13: 0 | BO13: 0 | BP13: 0 | BQ13: 0 | BR13: 0 | BU13: 6052.387761 | BV13: 3160.044678 | BW13: 0 | BX13: 0 | BY13: 0 | BZ13: 0 | CA13: 0 | CB13: 0 | CC13: 0 | CD13: 0
B14: 125W Mercury Vapour | C14: Obsolete, no new Connections | D14: 17.008 | E14: 17.1848832 | F14: 17.36360599 | G14: 17.54418749 | H14: 17.72664704 | I14: 17.72664704 | J14: 17.91100417 | K14: 18.09727861 | L14: 18.28549031 | M14: 18.47565941 | P14: 19.83299463 | Q14: 20.71022267 | R14: 21.62625117 | S14: 22.58279628 | T14: 23.58165009 | U14: 24.37122322 | V14: 25.44918048 | W14: 26.57481658 | X14: 27.75024041 | Y14: 28.9776541 | AA14: 138.8 | AB14: 69.4 | AC14: 0 | AD14: 0 | AE14: 0 | AF14: 0 | AG14: 0 | AH14: 0 | AI14: 0 | AJ14: 0 | AL14: 62.0792 | AM14: 62.72482368 | AN14: 63.37716185 | AO14: 64.2117262 | AP14: 64.70226169 | AQ14: 64.70226169 | AR14: 65.37516521 | AS14: 66.23603971 | AT14: 66.74203962 | AU14: 67.43615683 | AW14: 72.39043039 | AX14: 75.59231276 | AY14: 78.93581675 | AZ14: 82.65303437 | BA14: 86.07302282 | BB14: 88.95496475 | BC14: 92.88950875 | BD14: 97.2638287 | BE14: 101.2883775 | BF14: 105.7684375 | BI14: 8616.59296 | BJ14: 4353.102763 | BK14: 0 | BL14: 0 | BM14: 0 | BN14: 0 | BO14: 0 | BP14: 0 | BQ14: 0 | BR14: 0 | BU14: 10047.79174 | BV14: 5246.106505 | BW14: 0 | BX14: 0 | BY14: 0 | BZ14: 0 | CA14: 0 | CB14: 0 | CC14: 0 | CD14: 0
B15: 250W Mercury Vapour | C15: Obsolete, no new Connections | D15: 17.28 | E15: 17.459712 | F15: 17.641293 | G15: 17.82476245 | H15: 18.01013998 | I15: 18.01013998 | J15: 18.19744544 | K15: 18.38669887 | L15: 18.57792054 | M15: 18.77113091 | P15: 20.15017328 | Q15: 21.04143037 | R15: 21.97210843 | S15: 22.94395106 | T15: 23.95877902 | U15: 24.76097938 | V15: 25.85617584 | W15: 26.99981365 | X15: 28.19403541 | Y15: 29.44107849 | AA15: 11.2 | AB15: 5.6 | AC15: 0 | AD15: 0 | AE15: 0 | AF15: 0 | AG15: 0 | AH15: 0 | AI15: 0 | AJ15: 0 | AL15: 63.072 | AM15: 63.7279488 | AN15: 64.39071947 | AO15: 65.23863057 | AP15: 65.73701093 | AQ15: 65.73701093 | AR15: 66.42067585 | AS15: 67.29531786 | AT15: 67.80940996 | AU15: 68.51462783 | AW15: 73.54813248 | AX15: 76.80122086 | AY15: 80.19819576 | AZ15: 83.97486089 | BA15: 87.44954341 | BB15: 90.37757472 | BC15: 94.37504181 | BD15: 98.81931797 | BE15: 102.9082293 | BF15: 107.4599365 | BI15: 706.4064 | BJ15: 356.8765133 | BK15: 0 | BL15: 0 | BM15: 0 | BN15: 0 | BO15: 0 | BP15: 0 | BQ15: 0 | BR15: 0 | BU15: 823.7390837 | BV15: 430.0868368 | BW15: 0 | BX15: 0 | BY15: 0 | BZ15: 0 | CA15: 0 | CB15: 0 | CC15: 0 | CD15: 0
B16: 0 | C16: NA | AA16: 0 | AB16: 0 | AC16: 0 | AD16: 0 | AE16: 0 | AF16: 0 | AG16: 0 | AH16: 0 | AI16: 0 | AJ16: 0 | BI16: 0 | BJ16: 0 | BK16: 0 | BL16: 0 | BM16: 0 | BN16: 0 | BO16: 0 | BP16: 0 | BQ16: 0 | BR16: 0 | BU16: 0 | BV16: 0 | BW16: 0 | BX16: 0 | BY16: 0 | BZ16: 0 | CA16: 0 | CB16: 0 | CC16: 0 | CD16: 0
B17: 400W Mercury Vapour | C17: Obsolete, no new Connections | D17: 18.124 | E17: 18.3124896 | F17: 18.50293949 | G17: 18.69537006 | H17: 18.88980191 | I17: 18.88980191 | J17: 19.08625585 | K17: 19.28475291 | L17: 19.48531434 | M17: 19.68796161 | P17: 21.13435999 | Q17: 22.06914839 | R17: 23.04528317 | S17: 24.06459312 | T17: 25.1289879 | U17: 25.9703698 | V17: 27.1190585 | W17: 28.31855455 | X17: 29.5711052 | Y17: 30.87905709 | AA17: 10.4 | AB17: 5.2 | AC17: 0 | AD17: 0 | AE17: 0 | AF17: 0 | AG17: 0 | AH17: 0 | AI17: 0 | AJ17: 0 | AL17: 66.1526 | AM17: 66.84058704 | AN17: 67.53572915 | AO17: 68.42505443 | AP17: 68.94777698 | AQ17: 68.94777698 | AR17: 69.66483386 | AS17: 70.58219566 | AT17: 71.12139735 | AU17: 71.86105988 | AW17: 77.14041395 | AX17: 80.55239161 | AY17: 84.11528356 | AZ17: 88.07641081 | BA17: 91.72080583 | BB17: 94.79184979 | BC17: 98.98456353 | BD17: 103.6459097 | BE17: 107.934534 | BF17: 112.7085584 | BI17: 687.98704 | BJ17: 347.5710526 | BK17: 0 | BL17: 0 | BM17: 0 | BN17: 0 | BO17: 0 | BP17: 0 | BQ17: 0 | BR17: 0 | BU17: 802.260305 | BV17: 418.8724363 | BW17: 0 | BX17: 0 | BY17: 0 | BZ17: 0 | CA17: 0 | CB17: 0 | CC17: 0 | CD17: 0
B18: 70W Sodium Vapour | C18: Offered | D18: 15.455 | E18: 15.615732 | F18: 15.77813561 | G18: 15.94222822 | H18: 16.1080274 | I18: 16.1080274 | J18: 16.27555088 | K18: 16.44481661 | L18: 16.6158427 | M18: 16.78864747 | P18: 18.02204445 | Q18: 18.81917283 | R18: 19.65155878 | S18: 20.52076179 | T18: 21.42841028 | U18: 22.14588752 | V18: 23.12541653 | W18: 24.14827083 | X18: 25.21636674 | Y18: 26.33170532 | AA18: 32.66666667 | AB18: 16.33333333 | AC18: 0 | AD18: 0 | AE18: 0 | AF18: 0 | AG18: 0 | AH18: 0 | AI18: 0 | AJ18: 0 | AL18: 56.41075 | AM18: 56.9974218 | AN18: 57.59019499 | AO18: 58.3485553 | AP18: 58.7943 | AQ18: 58.7943 | AR18: 59.40576072 | AS18: 60.1880288 | AT18: 60.64782587 | AU18: 61.27856326 | AW18: 65.78046223 | AX18: 68.68998081 | AY18: 71.72818955 | AZ18: 75.10598814 | BA18: 78.21369753 | BB18: 80.83248943 | BC18: 84.40777032 | BD18: 88.38267125 | BE18: 92.03973861 | BF18: 96.11072444 | BI18: 1842.751167 | BJ18: 930.9578894 | BK18: 0 | BL18: 0 | BM18: 0 | BN18: 0 | BO18: 0 | BP18: 0 | BQ18: 0 | BR18: 0 | BU18: 2148.828433 | BV18: 1121.936353 | BW18: 0 | BX18: 0 | BY18: 0 | BZ18: 0 | CA18: 0 | CB18: 0 | CC18: 0 | CD18: 0
B19: 0 | C19: NA | AA19: 0 | AB19: 0 | AC19: 0 | AD19: 0 | AE19: 0 | AF19: 0 | AG19: 0 | AH19: 0 | AI19: 0 | AJ19: 0 | BI19: 0 | BJ19: 0 | BK19: 0 | BL19: 0 | BM19: 0 | BN19: 0 | BO19: 0 | BP19: 0 | BQ19: 0 | BR19: 0 | BU19: 0 | BV19: 0 | BW19: 0 | BX19: 0 | BY19: 0 | BZ19: 0 | CA19: 0 | CB19: 0 | CC19: 0 | CD19: 0
B20: 100W Sodium Vapour | C20: Offered | D20: 18.489 | E20: 18.6812856 | F20: 18.87557097 | G20: 19.07187691 | H20: 19.27022443 | I20: 19.27022443 | J20: 19.47063476 | K20: 19.67312936 | L20: 19.87772991 | M20: 20.0844583 | AA20: 0.8 | AB20: 0.4 | AC20: 0 | AD20: 0 | AE20: 0 | AF20: 0 | AG20: 0 | AH20: 0 | AI20: 0 | AJ20: 0 | AL20: 67.48485 | AM20: 68.18669244 | AN20: 68.89583404 | AO20: 69.80306948 | AP20: 70.33631916 | AQ20: 70.33631916 | AR20: 71.06781688 | AS20: 72.00365347 | AT20: 72.55371417 | AU20: 73.3082728 | AW20: 0 | AX20: 0 | AY20: 0 | AZ20: 0 | BA20: 0 | BB20: 0 | BC20: 0 | BD20: 0 | BE20: 0 | BF20: 0 | BI20: 53.98788 | BJ20: 27.27467698 | BK20: 0 | BL20: 0 | BM20: 0 | BN20: 0 | BO20: 0 | BP20: 0 | BQ20: 0 | BR20: 0 | BU20: 0 | BV20: 0 | BW20: 0 | BX20: 0 | BY20: 0 | BZ20: 0 | CA20: 0 | CB20: 0 | CC20: 0 | CD20: 0
B21: 0 | C21: NA | AA21: 0 | AB21: 0 | AC21: 0 | AD21: 0 | AE21: 0 | AF21: 0 | AG21: 0 | AH21: 0 | AI21: 0 | AJ21: 0 | BI21: 0 | BJ21: 0 | BK21: 0 | BL21: 0 | BM21: 0 | BN21: 0 | BO21: 0 | BP21: 0 | BQ21: 0 | BR21: 0 | BU21: 0 | BV21: 0 | BW21: 0 | BX21: 0 | BY21: 0 | BZ21: 0 | CA21: 0 | CB21: 0 | CC21: 0 | CD21: 0
B22: 150W Sodium Vapour | C22: Offered | D22: 17.797 | E22: 17.9820888 | F22: 18.16910252 | G22: 18.35806119 | H22: 18.54898503 | I22: 18.54898503 | J22: 18.74189447 | K22: 18.93681017 | L22: 19.133753 | M22: 19.33274403 | AA22: 66.4 | AB22: 33.2 | AC22: 0 | AD22: 0 | AE22: 0 | AF22: 0 | AG22: 0 | AH22: 0 | AI22: 0 | AJ22: 0 | AL22: 64.95905 | AM22: 65.63462412 | AN22: 66.31722421 | AO22: 67.19050395 | AP22: 67.70379535 | AQ22: 67.70379535 | AR22: 68.40791482 | AS22: 69.30872523 | AT22: 69.83819845 | AU22: 70.56451571 | AW22: 0 | AX22: 0 | AY22: 0 | AZ22: 0 | BA22: 0 | BB22: 0 | BC22: 0 | BD22: 0 | BE22: 0 | BF22: 0 | BI22: 4313.28092 | BJ22: 2179.069521 | BK22: 0 | BL22: 0 | BM22: 0 | BN22: 0 | BO22: 0 | BP22: 0 | BQ22: 0 | BR22: 0 | BU22: 0 | BV22: 0 | BW22: 0 | BX22: 0 | BY22: 0 | BZ22: 0 | CA22: 0 | CB22: 0 | CC22: 0 | CD22: 0
B23: 0 | C23: NA | AA23: 0 | AB23: 0 | AC23: 0 | AD23: 0 | AE23: 0 | AF23: 0 | AG23: 0 | AH23: 0 | AI23: 0 | AJ23: 0 | BI23: 0 | BJ23: 0 | BK23: 0 | BL23: 0 | BM23: 0 | BN23: 0 | BO23: 0 | BP23: 0 | BQ23: 0 | BR23: 0 | BU23: 0 | BV23: 0 | BW23: 0 | BX23: 0 | BY23: 0 | BZ23: 0 | CA23: 0 | CB23: 0 | CC23: 0 | CD23: 0
B24: 0 | C24: NA | AA24: 0 | AB24: 0 | AC24: 0 | AD24: 0 | AE24: 0 | AF24: 0 | AG24: 0 | AH24: 0 | AI24: 0 | AJ24: 0 | BI24: 0 | BJ24: 0 | BK24: 0 | BL24: 0 | BM24: 0 | BN24: 0 | BO24: 0 | BP24: 0 | BQ24: 0 | BR24: 0 | BU24: 0 | BV24: 0 | BW24: 0 | BX24: 0 | BY24: 0 | BZ24: 0 | CA24: 0 | CB24: 0 | CC24: 0 | CD24: 0
B25: 0 | C25: NA | AA25: 0 | AB25: 0 | AC25: 0 | AD25: 0 | AE25: 0 | AF25: 0 | AG25: 0 | AH25: 0 | AI25: 0 | AJ25: 0 | BI25: 0 | BJ25: 0 | BK25: 0 | BL25: 0 | BM25: 0 | BN25: 0 | BO25: 0 | BP25: 0 | BQ25: 0 | BR25: 0 | BU25: 0 | BV25: 0 | BW25: 0 | BX25: 0 | BY25: 0 | BZ25: 0 | CA25: 0 | CB25: 0 | CC25: 0 | CD25: 0
B26: 250W Sodium Vapour | C26: Offered | D26: 18.48 | E26: 18.672192 | F26: 18.8663828 | G26: 19.06259318 | H26: 19.26084415 | I26: 19.26084415 | J26: 19.46115693 | K26: 19.66355296 | L26: 19.86805391 | M26: 20.07468167 | AA26: 69.7 | AB26: 34.85 | AC26: 0 | AD26: 0 | AE26: 0 | AF26: 0 | AG26: 0 | AH26: 0 | AI26: 0 | AJ26: 0 | AL26: 67.452 | AM26: 68.1535008 | AN26: 68.86229721 | AO26: 69.76909103 | AP26: 70.30208114 | AQ26: 70.30208114 | AR26: 71.03322278 | AS26: 71.96860383 | AT26: 72.51839677 | AU26: 73.27258809 | AW26: 0 | AX26: 0 | AY26: 0 | AZ26: 0 | BA26: 0 | BB26: 0 | BC26: 0 | BD26: 0 | BE26: 0 | BF26: 0 | BI26: 4701.4044 | BJ26: 2375.149503 | BK26: 0 | BL26: 0 | BM26: 0 | BN26: 0 | BO26: 0 | BP26: 0 | BQ26: 0 | BR26: 0 | BU26: 0 | BV26: 0 | BW26: 0 | BX26: 0 | BY26: 0 | BZ26: 0 | CA26: 0 | CB26: 0 | CC26: 0 | CD26: 0
B27: 0 | C27: NA | AA27: 0 | AB27: 0 | AC27: 0 | AD27: 0 | AE27: 0 | AF27: 0 | AG27: 0 | AH27: 0 | AI27: 0 | AJ27: 0 | BI27: 0 | BJ27: 0 | BK27: 0 | BL27: 0 | BM27: 0 | BN27: 0 | BO27: 0 | BP27: 0 | BQ27: 0 | BR27: 0 | BU27: 0 | BV27: 0 | BW27: 0 | BX27: 0 | BY27: 0 | BZ27: 0 | CA27: 0 | CB27: 0 | CC27: 0 | CD27: 0
B28: 0 | C28: NA | AA28: 0 | AB28: 0 | AC28: 0 | AD28: 0 | AE28: 0 | AF28: 0 | AG28: 0 | AH28: 0 | AI28: 0 | AJ28: 0 | BI28: 0 | BJ28: 0 | BK28: 0 | BL28: 0 | BM28: 0 | BN28: 0 | BO28: 0 | BP28: 0 | BQ28: 0 | BR28: 0 | BU28: 0 | BV28: 0 | BW28: 0 | BX28: 0 | BY28: 0 | BZ28: 0 | CA28: 0 | CB28: 0 | CC28: 0 | CD28: 0
B29: 0 | C29: NA | AA29: 0 | AB29: 0 | AC29: 0 | AD29: 0 | AE29: 0 | AF29: 0 | AG29: 0 | AH29: 0 | AI29: 0 | AJ29: 0 | BI29: 0 | BJ29: 0 | BK29: 0 | BL29: 0 | BM29: 0 | BN29: 0 | BO29: 0 | BP29: 0 | BQ29: 0 | BR29: 0 | BU29: 0 | BV29: 0 | BW29: 0 | BX29: 0 | BY29: 0 | BZ29: 0 | CA29: 0 | CB29: 0 | CC29: 0 | CD29: 0
B30: 400W Sodium Vapour | C30: Offered | D30: 18.74 | E30: 18.934896 | F30: 19.13181892 | G30: 19.33078984 | H30: 19.53183005 | I30: 19.53183005 | J30: 19.73496108 | K30: 19.94020468 | L30: 20.14758281 | M30: 20.35711767 | P30: 21.85267635 | Q30: 22.81923641 | R30: 23.82854814 | S30: 24.88250248 | T30: 25.983074 | U30: 26.85305287 | V30: 28.04078329 | W30: 29.28104791 | X30: 30.57617035 | Y30: 31.92857702 | AA30: 38 | AB30: 19 | AC30: 0 | AD30: 0 | AE30: 0 | AF30: 0 | AG30: 0 | AH30: 0 | AI30: 0 | AJ30: 0 | AL30: 68.401 | AM30: 69.1123704 | AN30: 69.83113905 | AO30: 70.7506908 | AP30: 71.29117968 | AQ30: 71.29117968 | AR30: 72.03260795 | AS30: 72.98114912 | AT30: 73.53867724 | AU30: 74.30347948 | AW30: 79.76226867 | AX30: 83.2902129 | AY30: 86.97420073 | AZ30: 91.06995909 | BA30: 94.83822011 | BB30: 98.01364296 | BC30: 102.348859 | BD30: 107.1686353 | BE30: 111.6030218 | BF30: 116.5393061 | BI30: 2599.238 | BJ30: 1313.135038 | BK30: 0 | BL30: 0 | BM30: 0 | BN30: 0 | BO30: 0 | BP30: 0 | BQ30: 0 | BR30: 0 | BU30: 3030.966209 | BV30: 1582.514045 | BW30: 0 | BX30: 0 | BY30: 0 | BZ30: 0 | CA30: 0 | CB30: 0 | CC30: 0 | CD30: 0
B31: 0 | C31: NA | AA31: 0 | AB31: 0 | AC31: 0 | AD31: 0 | AE31: 0 | AF31: 0 | AG31: 0 | AH31: 0 | AI31: 0 | AJ31: 0 | BI31: 0 | BJ31: 0 | BK31: 0 | BL31: 0 | BM31: 0 | BN31: 0 | BO31: 0 | BP31: 0 | BQ31: 0 | BR31: 0 | BU31: 0 | BV31: 0 | BW31: 0 | BX31: 0 | BY31: 0 | BZ31: 0 | CA31: 0 | CB31: 0 | CC31: 0 | CD31: 0
B32: 250W Sodium Vapour - Flood Light | C32: Offered | D32: 18.962 | E32: 19.1592048 | F32: 19.35846053 | G32: 19.55978852 | H32: 19.76321032 | I32: 19.76321032 | J32: 19.96874771 | K32: 20.17642268 | L32: 20.38625748 | M32: 20.59827456 | P32: 22.1115501 | Q32: 23.08956034 | R32: 24.1108287 | S32: 25.17726852 | T32: 26.29087776 | U32: 27.17116267 | V32: 28.37296332 | W32: 29.62792051 | X32: 30.93838539 | Y32: 32.30681309 | AA32: 0 | AB32: 0 | AC32: 0 | AD32: 0 | AE32: 0 | AF32: 0 | AG32: 0 | AH32: 0 | AI32: 0 | AJ32: 0 | AL32: 69.2113 | AM32: 69.93109752 | AN32: 70.65838093 | AO32: 71.58882598 | AP32: 72.13571767 | AQ32: 72.13571767 | AR32: 72.88592913 | AS32: 73.84570702 | AT32: 74.4098398 | AU32: 75.18370213 | AW32: 80.70715787 | AX32: 84.27689526 | AY32: 88.00452477 | AZ32: 92.14880279 | BA32: 95.96170382 | BB32: 99.17474374 | BC32: 103.5613161 | BD32: 108.4381891 | BE32: 112.9251067 | BF32: 117.9198678 | BI32: 0 | BJ32: 0 | BK32: 0 | BL32: 0 | BM32: 0 | BN32: 0 | BO32: 0 | BP32: 0 | BQ32: 0 | BR32: 0 | BU32: 0 | BV32: 0 | BW32: 0 | BX32: 0 | BY32: 0 | BZ32: 0 | CA32: 0 | CB32: 0 | CC32: 0 | CD32: 0
B33: 400W Sodium Vapour - Flood Light | C33: Offered | D33: 18.74 | E33: 18.934896 | F33: 19.13181892 | G33: 19.33078984 | H33: 19.53183005 | I33: 19.53183005 | J33: 19.73496108 | K33: 19.94020468 | L33: 20.14758281 | M33: 20.35711767 | P33: 21.85267635 | Q33: 22.81923641 | R33: 23.82854814 | S33: 24.88250248 | T33: 25.983074 | U33: 26.85305287 | V33: 28.04078329 | W33: 29.28104791 | X33: 30.57617035 | Y33: 31.92857702 | AA33: 0 | AB33: 0 | AC33: 0 | AD33: 0 | AE33: 0 | AF33: 0 | AG33: 0 | AH33: 0 | AI33: 0 | AJ33: 0 | AL33: 68.401 | AM33: 69.1123704 | AN33: 69.83113905 | AO33: 70.7506908 | AP33: 71.29117968 | AQ33: 71.29117968 | AR33: 72.03260795 | AS33: 72.98114912 | AT33: 73.53867724 | AU33: 74.30347948 | AW33: 79.76226867 | AX33: 83.2902129 | AY33: 86.97420073 | AZ33: 91.06995909 | BA33: 94.83822011 | BB33: 98.01364296 | BC33: 102.348859 | BD33: 107.1686353 | BE33: 111.6030218 | BF33: 116.5393061 | BI33: 0 | BJ33: 0 | BK33: 0 | BL33: 0 | BM33: 0 | BN33: 0 | BO33: 0 | BP33: 0 | BQ33: 0 | BR33: 0 | BU33: 0 | BV33: 0 | BW33: 0 | BX33: 0 | BY33: 0 | BZ33: 0 | CA33: 0 | CB33: 0 | CC33: 0 | CD33: 0
B34: 1x20W Fluorescent | C34: Obsolete, no new Connections | D34: 14.813 | E34: 14.9670552 | F34: 15.12271257 | G34: 15.27998878 | H34: 15.43890067 | I34: 15.43890067 | J34: 15.59946524 | K34: 15.76169967 | L34: 15.92562135 | M34: 16.09124781 | P34: 17.27340954 | Q34: 18.03742524 | R34: 18.83523392 | S34: 19.66833027 | T34: 20.53827509 | U34: 21.22594835 | V34: 22.16478777 | W34: 23.14515276 | X34: 24.16888001 | Y34: 25.23788748 | AA34: 10.8 | AB34: 5.4 | AC34: 0 | AD34: 0 | AE34: 0 | AF34: 0 | AG34: 0 | AH34: 0 | AI34: 0 | AJ34: 0 | AL34: 54.06745 | AM34: 54.62975148 | AN34: 55.1979009 | AO34: 55.92475895 | AP34: 56.35198744 | AQ34: 56.35198744 | AR34: 56.93804811 | AS34: 57.68782081 | AT34: 58.12851793 | AU34: 58.73305451 | AW34: 63.04794481 | AX34: 65.83660212 | AY34: 68.74860381 | AZ34: 71.98608879 | BA34: 74.96470408 | BB34: 77.47471148 | BC34: 80.90147537 | BD34: 84.71125909 | BE34: 88.21641204 | BF34: 92.1182893 | BI34: 583.92846 | BJ34: 295.000658 | BK34: 0 | BL34: 0 | BM34: 0 | BN34: 0 | BO34: 0 | BP34: 0 | BQ34: 0 | BR34: 0 | BU34: 680.917804 | BV34: 355.5176515 | BW34: 0 | BX34: 0 | BY34: 0 | BZ34: 0 | CA34: 0 | CB34: 0 | CC34: 0 | CD34: 0
B35: 1x40W Fluorescent | C35: Obsolete, no new Connections | D35: 14.813 | E35: 14.9670552 | F35: 15.12271257 | G35: 15.27998878 | H35: 15.43890067 | I35: 15.43890067 | J35: 15.59946524 | K35: 15.76169967 | L35: 15.92562135 | M35: 16.09124781 | P35: 17.27340954 | Q35: 18.03742524 | R35: 18.83523392 | S35: 19.66833027 | T35: 20.53827509 | U35: 21.22594835 | V35: 22.16478777 | W35: 23.14515276 | X35: 24.16888001 | Y35: 25.23788748 | AA35: 4 | AB35: 2 | AC35: 0 | AD35: 0 | AE35: 0 | AF35: 0 | AG35: 0 | AH35: 0 | AI35: 0 | AJ35: 0 | AL35: 54.06745 | AM35: 54.62975148 | AN35: 55.1979009 | AO35: 55.92475895 | AP35: 56.35198744 | AQ35: 56.35198744 | AR35: 56.93804811 | AS35: 57.68782081 | AT35: 58.12851793 | AU35: 58.73305451 | AW35: 63.04794481 | AX35: 65.83660212 | AY35: 68.74860381 | AZ35: 71.98608879 | BA35: 74.96470408 | BB35: 77.47471148 | BC35: 80.90147537 | BD35: 84.71125909 | BE35: 88.21641204 | BF35: 92.1182893 | BI35: 216.2698 | BJ35: 109.259503 | BK35: 0 | BL35: 0 | BM35: 0 | BN35: 0 | BO35: 0 | BP35: 0 | BQ35: 0 | BR35: 0 | BU35: 252.1917793 | BV35: 131.6732042 | BW35: 0 | BX35: 0 | BY35: 0 | BZ35: 0 | CA35: 0 | CB35: 0 | CC35: 0 | CD35: 0
B36: 2x20W Fluorescent | C36: Obsolete, no new Connections | D36: 14.813 | E36: 14.9670552 | F36: 15.12271257 | G36: 15.27998878 | H36: 15.43890067 | I36: 15.43890067 | J36: 15.59946524 | K36: 15.76169967 | L36: 15.92562135 | M36: 16.09124781 | P36: 17.27340954 | Q36: 18.03742524 | R36: 18.83523392 | S36: 19.66833027 | T36: 20.53827509 | U36: 21.22594835 | V36: 22.16478777 | W36: 23.14515276 | X36: 24.16888001 | Y36: 25.23788748 | AA36: 18.4 | AB36: 9.2 | AC36: 0 | AD36: 0 | AE36: 0 | AF36: 0 | AG36: 0 | AH36: 0 | AI36: 0 | AJ36: 0 | AL36: 54.06745 | AM36: 54.62975148 | AN36: 55.1979009 | AO36: 55.92475895 | AP36: 56.35198744 | AQ36: 56.35198744 | AR36: 56.93804811 | AS36: 57.68782081 | AT36: 58.12851793 | AU36: 58.73305451 | AW36: 63.04794481 | AX36: 65.83660212 | AY36: 68.74860381 | AZ36: 71.98608879 | BA36: 74.96470408 | BB36: 77.47471148 | BC36: 80.90147537 | BD36: 84.71125909 | BE36: 88.21641204 | BF36: 92.1182893 | BI36: 994.84108 | BJ36: 502.5937136 | BK36: 0 | BL36: 0 | BM36: 0 | BN36: 0 | BO36: 0 | BP36: 0 | BQ36: 0 | BR36: 0 | BU36: 1160.082185 | BV36: 605.6967395 | BW36: 0 | BX36: 0 | BY36: 0 | BZ36: 0 | CA36: 0 | CB36: 0 | CC36: 0 | CD36: 0
B37: 2x24W Fluorescent | C37: Obsolete, no new Connections | D37: 14.813 | E37: 14.9670552 | F37: 15.12271257 | G37: 15.27998878 | H37: 15.43890067 | I37: 15.43890067 | J37: 15.59946524 | K37: 15.76169967 | L37: 15.92562135 | M37: 16.09124781 | P37: 17.27340954 | Q37: 18.03742524 | R37: 18.83523392 | S37: 19.66833027 | T37: 20.53827509 | U37: 21.22594835 | V37: 22.16478777 | W37: 23.14515276 | X37: 24.16888001 | Y37: 25.23788748 | AA37: 0 | AB37: 0 | AC37: 0 | AD37: 0 | AE37: 0 | AF37: 0 | AG37: 0 | AH37: 0 | AI37: 0 | AJ37: 0 | AL37: 54.06745 | AM37: 54.62975148 | AN37: 55.1979009 | AO37: 55.92475895 | AP37: 56.35198744 | AQ37: 56.35198744 | AR37: 56.93804811 | AS37: 57.68782081 | AT37: 58.12851793 | AU37: 58.73305451 | AW37: 63.04794481 | AX37: 65.83660212 | AY37: 68.74860381 | AZ37: 71.98608879 | BA37: 74.96470408 | BB37: 77.47471148 | BC37: 80.90147537 | BD37: 84.71125909 | BE37: 88.21641204 | BF37: 92.1182893 | BI37: 0 | BJ37: 0 | BK37: 0 | BL37: 0 | BM37: 0 | BN37: 0 | BO37: 0 | BP37: 0 | BQ37: 0 | BR37: 0 | BU37: 0 | BV37: 0 | BW37: 0 | BX37: 0 | BY37: 0 | BZ37: 0 | CA37: 0 | CB37: 0 | CC37: 0 | CD37: 0
B38: 2x40W Fluorescent | C38: Obsolete, no new Connections | D38: 14.813 | E38: 14.9670552 | F38: 15.12271257 | G38: 15.27998878 | H38: 15.43890067 | I38: 15.43890067 | J38: 15.59946524 | K38: 15.76169967 | L38: 15.92562135 | M38: 16.09124781 | P38: 17.27340954 | Q38: 18.03742524 | R38: 18.83523392 | S38: 19.66833027 | T38: 20.53827509 | U38: 21.22594835 | V38: 22.16478777 | W38: 23.14515276 | X38: 24.16888001 | Y38: 25.23788748 | AA38: 1.2 | AB38: 0.6 | AC38: 0 | AD38: 0 | AE38: 0 | AF38: 0 | AG38: 0 | AH38: 0 | AI38: 0 | AJ38: 0 | AL38: 54.06745 | AM38: 54.62975148 | AN38: 55.1979009 | AO38: 55.92475895 | AP38: 56.35198744 | AQ38: 56.35198744 | AR38: 56.93804811 | AS38: 57.68782081 | AT38: 58.12851793 | AU38: 58.73305451 | AW38: 63.04794481 | AX38: 65.83660212 | AY38: 68.74860381 | AZ38: 71.98608879 | BA38: 74.96470408 | BB38: 77.47471148 | BC38: 80.90147537 | BD38: 84.71125909 | BE38: 88.21641204 | BF38: 92.1182893 | BI38: 64.88094 | BJ38: 32.77785089 | BK38: 0 | BL38: 0 | BM38: 0 | BN38: 0 | BO38: 0 | BP38: 0 | BQ38: 0 | BR38: 0 | BU38: 75.65753378 | BV38: 39.50196127 | BW38: 0 | BX38: 0 | BY38: 0 | BZ38: 0 | CA38: 0 | CB38: 0 | CC38: 0 | CD38: 0
B39: 4x40W Fluorescent | C39: Obsolete, no new Connections | D39: 14.813 | E39: 14.9670552 | F39: 15.12271257 | G39: 15.27998878 | H39: 15.43890067 | I39: 15.43890067 | J39: 15.59946524 | K39: 15.76169967 | L39: 15.92562135 | M39: 16.09124781 | P39: 17.27340954 | Q39: 18.03742524 | R39: 18.83523392 | S39: 19.66833027 | T39: 20.53827509 | U39: 21.22594835 | V39: 22.16478777 | W39: 23.14515276 | X39: 24.16888001 | Y39: 25.23788748 | AA39: 0.4 | AB39: 0.2 | AC39: 0 | AD39: 0 | AE39: 0 | AF39: 0 | AG39: 0 | AH39: 0 | AI39: 0 | AJ39: 0 | AL39: 54.06745 | AM39: 54.62975148 | AN39: 55.1979009 | AO39: 55.92475895 | AP39: 56.35198744 | AQ39: 56.35198744 | AR39: 56.93804811 | AS39: 57.68782081 | AT39: 58.12851793 | AU39: 58.73305451 | AW39: 63.04794481 | AX39: 65.83660212 | AY39: 68.74860381 | AZ39: 71.98608879 | BA39: 74.96470408 | BB39: 77.47471148 | BC39: 80.90147537 | BD39: 84.71125909 | BE39: 88.21641204 | BF39: 92.1182893 | BI39: 21.62698 | BJ39: 10.9259503 | BK39: 0 | BL39: 0 | BM39: 0 | BN39: 0 | BO39: 0 | BP39: 0 | BQ39: 0 | BR39: 0 | BU39: 25.21917793 | BV39: 13.16732042 | BW39: 0 | BX39: 0 | BY39: 0 | BZ39: 0 | CA39: 0 | CB39: 0 | CC39: 0 | CD39: 0
B40: 32W Compact Fluorescent | C40: Not Offered | D40: 14.813 | E40: 14.9670552 | F40: 15.12271257 | G40: 15.27998878 | H40: 15.43890067 | I40: 15.43890067 | J40: 15.59946524 | K40: 15.76169967 | L40: 15.92562135 | M40: 16.09124781 | P40: 17.27340954 | Q40: 18.03742524 | R40: 18.83523392 | S40: 19.66833027 | T40: 20.53827509 | U40: 21.22594835 | V40: 22.16478777 | W40: 23.14515276 | X40: 24.16888001 | Y40: 25.23788748 | AA40: 0 | AB40: 0 | AC40: 0 | AD40: 0 | AE40: 0 | AF40: 0 | AG40: 0 | AH40: 0 | AI40: 0 | AJ40: 0 | AL40: 54.06745 | AM40: 54.62975148 | AN40: 55.1979009 | AO40: 55.92475895 | AP40: 56.35198744 | AQ40: 56.35198744 | AR40: 56.93804811 | AS40: 57.68782081 | AT40: 58.12851793 | AU40: 58.73305451 | AW40: 63.04794481 | AX40: 65.83660212 | AY40: 68.74860381 | AZ40: 71.98608879 | BA40: 74.96470408 | BB40: 77.47471148 | BC40: 80.90147537 | BD40: 84.71125909 | BE40: 88.21641204 | BF40: 92.1182893 | BI40: 0 | BJ40: 0 | BK40: 0 | BL40: 0 | BM40: 0 | BN40: 0 | BO40: 0 | BP40: 0 | BQ40: 0 | BR40: 0 | BU40: 0 | BV40: 0 | BW40: 0 | BX40: 0 | BY40: 0 | BZ40: 0 | CA40: 0 | CB40: 0 | CC40: 0 | CD40: 0
B41: 42W Compact Fluorescent | C41: Offered | D41: 14.813 | E41: 14.9670552 | F41: 15.12271257 | G41: 15.27998878 | H41: 15.43890067 | I41: 15.43890067 | J41: 15.59946524 | K41: 15.76169967 | L41: 15.92562135 | M41: 16.09124781 | P41: 17.27340954 | Q41: 18.03742524 | R41: 18.83523392 | S41: 19.66833027 | T41: 20.53827509 | U41: 21.22594835 | V41: 22.16478777 | W41: 23.14515276 | X41: 24.16888001 | Y41: 25.23788748 | AA41: 8.333333333 | AB41: 4.166666667 | AC41: 0 | AD41: 0 | AE41: 0 | AF41: 0 | AG41: 0 | AH41: 0 | AI41: 0 | AJ41: 0 | AL41: 54.06745 | AM41: 54.62975148 | AN41: 55.1979009 | AO41: 55.92475895 | AP41: 56.35198744 | AQ41: 56.35198744 | AR41: 56.93804811 | AS41: 57.68782081 | AT41: 58.12851793 | AU41: 58.73305451 | AW41: 63.04794481 | AX41: 65.83660212 | AY41: 68.74860381 | AZ41: 71.98608879 | BA41: 74.96470408 | BB41: 77.47471148 | BC41: 80.90147537 | BD41: 84.71125909 | BE41: 88.21641204 | BF41: 92.1182893 | BI41: 450.5620833 | BJ41: 227.6239645 | BK41: 0 | BL41: 0 | BM41: 0 | BN41: 0 | BO41: 0 | BP41: 0 | BQ41: 0 | BR41: 0 | BU41: 525.3995401 | BV41: 274.3191755 | BW41: 0 | BX41: 0 | BY41: 0 | BZ41: 0 | CA41: 0 | CB41: 0 | CC41: 0 | CD41: 0
B42: 0 | C42: NA | AA42: 0 | AB42: 0 | AC42: 0 | AD42: 0 | AE42: 0 | AF42: 0 | AG42: 0 | AH42: 0 | AI42: 0 | AJ42: 0 | BI42: 0 | BJ42: 0 | BK42: 0 | BL42: 0 | BM42: 0 | BN42: 0 | BO42: 0 | BP42: 0 | BQ42: 0 | BR42: 0 | BU42: 0 | BV42: 0 | BW42: 0 | BX42: 0 | BY42: 0 | BZ42: 0 | CA42: 0 | CB42: 0 | CC42: 0 | CD42: 0
B43: 60W Incandescent | C43: Obsolete, no new Connections | D43: 15.455 | E43: 15.615732 | F43: 15.77813561 | G43: 15.94222822 | H43: 16.1080274 | I43: 16.1080274 | J43: 16.27555088 | K43: 16.44481661 | L43: 16.6158427 | M43: 16.78864747 | P43: 18.02204445 | Q43: 18.81917283 | R43: 19.65155878 | S43: 20.52076179 | T43: 21.42841028 | U43: 22.14588752 | V43: 23.12541653 | W43: 24.14827083 | X43: 25.21636674 | Y43: 26.33170532 | AA43: 4 | AB43: 2 | AC43: 0 | AD43: 0 | AE43: 0 | AF43: 0 | AG43: 0 | AH43: 0 | AI43: 0 | AJ43: 0 | AL43: 56.41075 | AM43: 56.9974218 | AN43: 57.59019499 | AO43: 58.3485553 | AP43: 58.7943 | AQ43: 58.7943 | AR43: 59.40576072 | AS43: 60.1880288 | AT43: 60.64782587 | AU43: 61.27856326 | AW43: 65.78046223 | AX43: 68.68998081 | AY43: 71.72818955 | AZ43: 75.10598814 | BA43: 78.21369753 | BB43: 80.83248943 | BC43: 84.40777032 | BD43: 88.38267125 | BE43: 92.03973861 | BF43: 96.11072444 | BI43: 225.643 | BJ43: 113.9948436 | BK43: 0 | BL43: 0 | BM43: 0 | BN43: 0 | BO43: 0 | BP43: 0 | BQ43: 0 | BR43: 0 | BU43: 263.1218489 | BV43: 137.3799616 | BW43: 0 | BX43: 0 | BY43: 0 | BZ43: 0 | CA43: 0 | CB43: 0 | CC43: 0 | CD43: 0
B44: 100W Incandescent | C44: Obsolete, no new Connections | D44: 18.501 | E44: 18.6934104 | F44: 18.88782187 | G44: 19.08425522 | H44: 19.28273147 | I44: 19.28273147 | J44: 19.48327188 | K44: 19.6858979 | L44: 19.89063124 | M44: 20.09749381 | P44: 21.57397893 | Q44: 22.528212 | R44: 23.52465151 | S44: 24.56516427 | T44: 25.65169969 | U44: 26.5105833 | V44: 27.68316604 | W44: 28.90761298 | X44: 30.18621812 | Y44: 31.52137691 | AA44: 2 | AB44: 1 | AC44: 0 | AD44: 0 | AE44: 0 | AF44: 0 | AG44: 0 | AH44: 0 | AI44: 0 | AJ44: 0 | AL44: 67.52865 | AM44: 68.23094796 | AN44: 68.94054982 | AO44: 69.84837409 | AP44: 70.38196986 | AQ44: 70.38196986 | AR44: 71.11394235 | AS44: 72.05038633 | AT44: 72.60080404 | AU44: 73.3558524 | AW44: 78.74502309 | AX44: 82.2279738 | AY44: 85.864978 | AZ44: 89.90850123 | BA44: 93.62870385 | BB44: 96.76362905 | BC44: 101.043556 | BD44: 105.8018635 | BE44: 110.1796961 | BF44: 115.0530257 | BI44: 135.0573 | BJ44: 68.23094796 | BK44: 0 | BL44: 0 | BM44: 0 | BN44: 0 | BO44: 0 | BP44: 0 | BQ44: 0 | BR44: 0 | BU44: 157.4900462 | BV44: 82.2279738 | BW44: 0 | BX44: 0 | BY44: 0 | BZ44: 0 | CA44: 0 | CB44: 0 | CC44: 0 | CD44: 0
B45: 100W Metal Halide | C45: Offered | D45: 18.143 | E45: 18.3316872 | F45: 18.52233675 | G45: 18.71496905 | H45: 18.90960473 | I45: 18.90960473 | J45: 19.10626462 | K45: 19.30496977 | L45: 19.50574145 | M45: 19.70860117 | P45: 21.15651585 | Q45: 22.09228422 | R45: 23.06944232 | S45: 24.08982084 | T45: 25.15533146 | U45: 25.99759542 | V45: 27.14748832 | W45: 28.34824185 | X45: 29.60210558 | Y45: 30.91142864 | AA45: 0 | AB45: 0 | AC45: 0 | AD45: 0 | AE45: 0 | AF45: 0 | AG45: 0 | AH45: 0 | AI45: 0 | AJ45: 0 | AL45: 66.22195 | AM45: 66.91065828 | AN45: 67.60652913 | AO45: 68.49678672 | AP45: 69.02005725 | AQ45: 69.02005725 | AR45: 69.73786585 | AS45: 70.65618935 | AT45: 71.19595631 | AU45: 71.93639425 | AW45: 77.22128284 | AX45: 80.63683739 | AY45: 84.20346445 | AZ45: 88.16874428 | BA45: 91.81695984 | BB45: 94.89122328 | BC45: 99.08833238 | BD45: 103.7545652 | BE45: 108.0476854 | BF45: 112.8267146 | BI45: 0 | BJ45: 0 | BK45: 0 | BL45: 0 | BM45: 0 | BN45: 0 | BO45: 0 | BP45: 0 | BQ45: 0 | BR45: 0 | BU45: 0 | BV45: 0 | BW45: 0 | BX45: 0 | BY45: 0 | BZ45: 0 | CA45: 0 | CB45: 0 | CC45: 0 | CD45: 0
B46: 150W Metal Halide | C46: Offered | D46: 19.844 | E46: 20.0503776 | F46: 20.25890153 | G46: 20.4695941 | H46: 20.68247788 | I46: 20.68247788 | J46: 20.89757565 | K46: 21.11491044 | L46: 21.33450551 | M46: 21.55638436 | P46: 23.14004853 | Q46: 24.16355002 | R46: 25.23232174 | S46: 26.34836602 | T46: 27.51377377 | U46: 28.43500433 | V46: 29.69270563 | W46: 31.006036 | X46: 32.37745594 | Y46: 33.80953481 | AA46: 10.8 | AB46: 5.4 | AC46: 0 | AD46: 0 | AE46: 0 | AF46: 0 | AG46: 0 | AH46: 0 | AI46: 0 | AJ46: 0 | AL46: 72.4306 | AM46: 73.18387824 | AN46: 73.94499057 | AO46: 74.91871442 | AP46: 75.49104427 | AQ46: 75.49104427 | AR46: 76.27615113 | AS46: 77.2805722 | AT46: 77.8709451 | AU46: 78.68080293 | AW46: 84.46117713 | AX46: 88.19695757 | AY46: 92.09797435 | AZ46: 96.43501964 | BA46: 100.4252743 | BB46: 103.7877658 | BC46: 108.3783756 | BD46: 113.4820918 | BE46: 118.1777142 | BF46: 123.4048021 | BI46: 782.25048 | BJ46: 395.1929425 | BK46: 0 | BL46: 0 | BM46: 0 | BN46: 0 | BO46: 0 | BP46: 0 | BQ46: 0 | BR46: 0 | BU46: 912.180713 | BV46: 476.2635709 | BW46: 0 | BX46: 0 | BY46: 0 | BZ46: 0 | CA46: 0 | CB46: 0 | CC46: 0 | CD46: 0
B47: 250W Metal Halide | C47: Offered | D47: 19.034 | E47: 19.2319536 | F47: 19.43196592 | G47: 19.63405836 | H47: 19.83825257 | I47: 19.83825257 | J47: 20.0445704 | K47: 20.25303393 | L47: 20.46366548 | M47: 20.6764876 | P47: 22.19550916 | Q47: 23.17723297 | R47: 24.20237916 | S47: 25.27286832 | T47: 26.39070601 | U47: 27.27433342 | V47: 28.48069739 | W47: 29.74041974 | X47: 31.05586053 | Y47: 32.42948425 | AA47: 16 | AB47: 8 | AC47: 0 | AD47: 0 | AE47: 0 | AF47: 0 | AG47: 0 | AH47: 0 | AI47: 0 | AJ47: 0 | AL47: 69.4741 | AM47: 70.19663064 | AN47: 70.9266756 | AO47: 71.86065361 | AP47: 72.40962188 | AQ47: 72.40962188 | AR47: 73.16268195 | AS47: 74.12610418 | AT47: 74.69237901 | AU47: 75.46917975 | AW47: 81.01360842 | AX47: 84.59690034 | AY47: 88.33868392 | AZ47: 92.49869804 | BA47: 96.32607692 | BB47: 99.55131697 | BC47: 103.9545455 | BD47: 108.8499362 | BE47: 113.353891 | BF47: 118.3676175 | BI47: 1111.5856 | BJ47: 561.5730451 | BK47: 0 | BL47: 0 | BM47: 0 | BN47: 0 | BO47: 0 | BP47: 0 | BQ47: 0 | BR47: 0 | BU47: 1296.217735 | BV47: 676.7752027 | BW47: 0 | BX47: 0 | BY47: 0 | BZ47: 0 | CA47: 0 | CB47: 0 | CC47: 0 | CD47: 0
B48: 400W Metal Halide | C48: Offered | D48: 18.574 | E48: 18.7671696 | F48: 18.96234816 | G48: 19.15955658 | H48: 19.35881597 | I48: 19.35881597 | J48: 19.56014766 | K48: 19.7635732 | L48: 19.96911436 | M48: 20.17679315 | P48: 21.65910408 | Q48: 22.6171023 | R48: 23.61747349 | S48: 24.66209184 | T48: 25.75291444 | U48: 26.61518698 | V48: 27.79239641 | W48: 29.0216747 | X48: 30.30532487 | Y48: 31.64575184 | AA48: 3.6 | AB48: 1.8 | AC48: 0 | AD48: 0 | AE48: 0 | AF48: 0 | AG48: 0 | AH48: 0 | AI48: 0 | AJ48: 0 | AL48: 67.7951 | AM48: 68.50016904 | AN48: 69.2125708 | AO48: 70.1239771 | AP48: 70.6596783 | AQ48: 70.6596783 | AR48: 71.39453896 | AS48: 72.33467789 | AT48: 72.8872674 | AU48: 73.64529498 | AW48: 79.0557299 | AX48: 82.5524234 | AY48: 86.20377825 | AZ48: 90.26325614 | BA48: 93.99813769 | BB48: 97.14543246 | BC48: 101.4422469 | BD48: 106.2193294 | BE48: 110.6144358 | BF48: 115.5069942 | BI48: 244.06236 | BJ48: 123.3003043 | BK48: 0 | BL48: 0 | BM48: 0 | BN48: 0 | BO48: 0 | BP48: 0 | BQ48: 0 | BR48: 0 | BU48: 284.6006276 | BV48: 148.5943621 | BW48: 0 | BX48: 0 | BY48: 0 | BZ48: 0 | CA48: 0 | CB48: 0 | CC48: 0 | CD48: 0
B49: 400W Metal Halide - Flood Light | C49: Offered | D49: 18.574 | E49: 18.7671696 | F49: 18.96234816 | G49: 19.15955658 | H49: 19.35881597 | I49: 19.35881597 | J49: 19.56014766 | K49: 19.7635732 | L49: 19.96911436 | M49: 20.17679315 | P49: 21.65910408 | Q49: 22.6171023 | R49: 23.61747349 | S49: 24.66209184 | T49: 25.75291444 | U49: 26.61518698 | V49: 27.79239641 | W49: 29.0216747 | X49: 30.30532487 | Y49: 31.64575184 | AA49: 0.8 | AB49: 0.4 | AC49: 0 | AD49: 0 | AE49: 0 | AF49: 0 | AG49: 0 | AH49: 0 | AI49: 0 | AJ49: 0 | AL49: 67.7951 | AM49: 68.50016904 | AN49: 69.2125708 | AO49: 70.1239771 | AP49: 70.6596783 | AQ49: 70.6596783 | AR49: 71.39453896 | AS49: 72.33467789 | AT49: 72.8872674 | AU49: 73.64529498 | AW49: 79.0557299 | AX49: 82.5524234 | AY49: 86.20377825 | AZ49: 90.26325614 | BA49: 93.99813769 | BB49: 97.14543246 | BC49: 101.4422469 | BD49: 106.2193294 | BE49: 110.6144358 | BF49: 115.5069942 | BI49: 54.23608 | BJ49: 27.40006762 | BK49: 0 | BL49: 0 | BM49: 0 | BN49: 0 | BO49: 0 | BP49: 0 | BQ49: 0 | BR49: 0 | BU49: 63.24458392 | BV49: 33.02096936 | BW49: 0 | BX49: 0 | BY49: 0 | BZ49: 0 | CA49: 0 | CB49: 0 | CC49: 0 | CD49: 0
B50: LED 18 | C50: Offered | D50: 9.954 | E50: 10.0575216 | F50: 10.16211982 | G50: 10.26780587 | H50: 10.37459105 | I50: 10.37459105 | J50: 10.4824868 | K50: 10.59150466 | L50: 10.70165631 | M50: 10.81295354 | P50: 11.6073394 | Q50: 12.12074062 | R50: 12.65684996 | S50: 13.21667181 | T50: 13.801255 | U50: 14.26335583 | V50: 14.89423462 | W50: 15.55301766 | X50: 16.24093915 | Y50: 16.95928792 | AA50: 5429.483333 | AB50: 5607.133333 | AC50: 5784.783333 | AD50: 5784.783333 | AE50: 5784.783333 | AF50: 5784.783333 | AG50: 5784.783333 | AH50: 5784.783333 | AI50: 5784.783333 | AJ50: 5784.783333 | AL50: 36.3321 | AM50: 36.70995384 | AN50: 37.09173736 | AO50: 37.58016949 | AP50: 37.86725734 | AQ50: 37.86725734 | AR50: 38.26107682 | AS50: 38.76490706 | AT50: 39.06104553 | AU50: 39.46728041 | AW50: 42.36678881 | AX50: 44.24070327 | AY50: 46.19750235 | AZ50: 48.37301882 | BA50: 50.37458073 | BB50: 52.06124877 | BC50: 54.36395638 | BD50: 56.92404462 | BE50: 59.27942789 | BF50: 61.90140091 | BI50: 197264.5314 | BJ50: 205837.6058 | BK50: 214567.6641 | BL50: 217393.1381 | BM50: 219053.8791 | BN50: 219053.8791 | BO50: 221332.0395 | BP50: 224246.5883 | BQ50: 225959.6852 | BR50: 228309.6659 | BU50: 230029.7737 | BV50: 248063.522 | BW50: 267242.5416 | BX50: 279827.4331 | BY50: 291406.0351 | BZ50: 301163.0442 | CA50: 314483.7088 | CB50: 329293.2646 | CC50: 342918.6465 | CD50: 358086.1923
B51: 0 | C51: NA | AA51: 0 | AB51: 0 | AC51: 0 | AD51: 0 | AE51: 0 | AF51: 0 | AG51: 0 | AH51: 0 | AI51: 0 | AJ51: 0 | BI51: 0 | BJ51: 0 | BK51: 0 | BL51: 0 | BM51: 0 | BN51: 0 | BO51: 0 | BP51: 0 | BQ51: 0 | BR51: 0 | BU51: 0 | BV51: 0 | BW51: 0 | BX51: 0 | BY51: 0 | BZ51: 0 | CA51: 0 | CB51: 0 | CC51: 0 | CD51: 0
B52: 0 | C52: NA | AA52: 0 | AB52: 0 | AC52: 0 | AD52: 0 | AE52: 0 | AF52: 0 | AG52: 0 | AH52: 0 | AI52: 0 | AJ52: 0 | BI52: 0 | BJ52: 0 | BK52: 0 | BL52: 0 | BM52: 0 | BN52: 0 | BO52: 0 | BP52: 0 | BQ52: 0 | BR52: 0 | BU52: 0 | BV52: 0 | BW52: 0 | BX52: 0 | BY52: 0 | BZ52: 0 | CA52: 0 | CB52: 0 | CC52: 0 | CD52: 0
B53: 0 | C53: NA | AA53: 0 | AB53: 0 | AC53: 0 | AD53: 0 | AE53: 0 | AF53: 0 | AG53: 0 | AH53: 0 | AI53: 0 | AJ53: 0 | BI53: 0 | BJ53: 0 | BK53: 0 | BL53: 0 | BM53: 0 | BN53: 0 | BO53: 0 | BP53: 0 | BQ53: 0 | BR53: 0 | BU53: 0 | BV53: 0 | BW53: 0 | BX53: 0 | BY53: 0 | BZ53: 0 | CA53: 0 | CB53: 0 | CC53: 0 | CD53: 0
B54: LED 20 | C54: Offered | D54: 9.954 | E54: 10.0575216 | F54: 10.16211982 | G54: 10.26780587 | H54: 10.37459105 | I54: 10.37459105 | J54: 10.4824868 | K54: 10.59150466 | L54: 10.70165631 | M54: 10.81295354 | P54: 11.6073394 | Q54: 12.12074062 | R54: 12.65684996 | S54: 13.21667181 | T54: 13.801255 | U54: 14.26335583 | V54: 14.89423462 | W54: 15.55301766 | X54: 16.24093915 | Y54: 16.95928792 | AA54: 2 | AB54: 2 | AC54: 2 | AD54: 2 | AE54: 2 | AF54: 2 | AG54: 2 | AH54: 2 | AI54: 2 | AJ54: 2 | AL54: 36.3321 | AM54: 36.70995384 | AN54: 37.09173736 | AO54: 37.58016949 | AP54: 37.86725734 | AQ54: 37.86725734 | AR54: 38.26107682 | AS54: 38.76490706 | AT54: 39.06104553 | AU54: 39.46728041 | AW54: 42.36678881 | AX54: 44.24070327 | AY54: 46.19750235 | AZ54: 48.37301882 | BA54: 50.37458073 | BB54: 52.06124877 | BC54: 54.36395638 | BD54: 56.92404462 | BE54: 59.27942789 | BF54: 61.90140091 | BI54: 72.6642 | BJ54: 73.41990768 | BK54: 74.18347472 | BL54: 75.16033897 | BM54: 75.73451468 | BN54: 75.73451468 | BO54: 76.52215363 | BP54: 77.52981412 | BQ54: 78.12209106 | BR54: 78.93456081 | BU54: 84.73357762 | BV54: 88.48140654 | BW54: 92.3950047 | BX54: 96.74603765 | BY54: 100.7491615 | BZ54: 104.1224975 | CA54: 108.7279128 | CB54: 113.8480892 | CC54: 118.5588558 | CD54: 123.8028018
B55: LED 200 | C55: Offered | D55: 10.787 | E55: 10.8991848 | F55: 11.01253632 | G55: 11.1270667 | H55: 11.24278819 | I55: 11.24278819 | J55: 11.35971319 | K55: 11.47785421 | L55: 11.59722389 | M55: 11.71783502 | P55: 12.57869903 | Q55: 13.1350642 | R55: 13.71603782 | S55: 14.32270834 | T55: 14.95621234 | U55: 15.45698406 | V55: 16.14065791 | W55: 16.85457117 | X55: 17.60006134 | Y55: 18.37852509 | AA55: 1 | AB55: 1 | AC55: 1 | AD55: 1 | AE55: 1 | AF55: 1 | AG55: 1 | AH55: 1 | AI55: 1 | AJ55: 1 | AL55: 39.37255 | AM55: 39.78202452 | AN55: 40.19575758 | AO55: 40.72506412 | AP55: 41.03617691 | AQ55: 41.03617691 | AR55: 41.46295315 | AS55: 42.0089464 | AT55: 42.3298672 | AU55: 42.77009782 | AW55: 45.91225145 | AX55: 47.94298434 | AY55: 50.06353806 | AZ55: 52.42111252 | BA55: 54.59017504 | BB55: 56.41799181 | BC55: 58.91340139 | BD55: 61.68773049 | BE55: 64.2402239 | BF55: 67.0816166 | BI55: 39.37255 | BJ55: 39.78202452 | BK55: 40.19575758 | BL55: 40.72506412 | BM55: 41.03617691 | BN55: 41.03617691 | BO55: 41.46295315 | BP55: 42.0089464 | BQ55: 42.3298672 | BR55: 42.77009782 | BU55: 45.91225145 | BV55: 47.94298434 | BW55: 50.06353806 | BX55: 52.42111252 | BY55: 54.59017504 | BZ55: 56.41799181 | CA55: 58.91340139 | CB55: 61.68773049 | CC55: 64.2402239 | CD55: 67.0816166
B56: LED 240 | C56: Offered | D56: 10.787 | E56: 10.8991848 | F56: 11.01253632 | G56: 11.1270667 | H56: 11.24278819 | I56: 11.24278819 | J56: 11.35971319 | K56: 11.47785421 | L56: 11.59722389 | M56: 11.71783502 | P56: 12.57869903 | Q56: 13.1350642 | R56: 13.71603782 | S56: 14.32270834 | T56: 14.95621234 | U56: 15.45698406 | V56: 16.14065791 | W56: 16.85457117 | X56: 17.60006134 | Y56: 18.37852509 | AA56: 6 | AB56: 6 | AC56: 6 | AD56: 6 | AE56: 6 | AF56: 6 | AG56: 6 | AH56: 6 | AI56: 6 | AJ56: 6 | AL56: 39.37255 | AM56: 39.78202452 | AN56: 40.19575758 | AO56: 40.72506412 | AP56: 41.03617691 | AQ56: 41.03617691 | AR56: 41.46295315 | AS56: 42.0089464 | AT56: 42.3298672 | AU56: 42.77009782 | AW56: 45.91225145 | AX56: 47.94298434 | AY56: 50.06353806 | AZ56: 52.42111252 | BA56: 54.59017504 | BB56: 56.41799181 | BC56: 58.91340139 | BD56: 61.68773049 | BE56: 64.2402239 | BF56: 67.0816166 | BI56: 236.2353 | BJ56: 238.6921471 | BK56: 241.1745455 | BL56: 244.3503847 | BM56: 246.2170614 | BN56: 246.2170614 | BO56: 248.7777189 | BP56: 252.0536784 | BQ56: 253.9792032 | BR56: 256.6205869 | BU56: 275.4735087 | BV56: 287.6579061 | BW56: 300.3812284 | BX56: 314.5266751 | BY56: 327.5410503 | BZ56: 338.5079509 | CA56: 353.4804083 | CB56: 370.1263829 | CC56: 385.4413434 | CD56: 402.4896996
B57: LED 25 | C57: Offered | D57: 9.954 | E57: 10.0575216 | F57: 10.16211982 | G57: 10.26780587 | H57: 10.37459105 | I57: 10.37459105 | J57: 10.4824868 | K57: 10.59150466 | L57: 10.70165631 | M57: 10.81295354 | P57: 11.6073394 | Q57: 12.12074062 | R57: 12.65684996 | S57: 13.21667181 | T57: 13.801255 | U57: 14.26335583 | V57: 14.89423462 | W57: 15.55301766 | X57: 16.24093915 | Y57: 16.95928792 | AA57: 51 | AB57: 51 | AC57: 51 | AD57: 51 | AE57: 51 | AF57: 51 | AG57: 51 | AH57: 51 | AI57: 51 | AJ57: 51 | AL57: 36.3321 | AM57: 36.70995384 | AN57: 37.09173736 | AO57: 37.58016949 | AP57: 37.86725734 | AQ57: 37.86725734 | AR57: 38.26107682 | AS57: 38.76490706 | AT57: 39.06104553 | AU57: 39.46728041 | AW57: 42.36678881 | AX57: 44.24070327 | AY57: 46.19750235 | AZ57: 48.37301882 | BA57: 50.37458073 | BB57: 52.06124877 | BC57: 54.36395638 | BD57: 56.92404462 | BE57: 59.27942789 | BF57: 61.90140091 | BI57: 1852.9371 | BJ57: 1872.207646 | BK57: 1891.678605 | BL57: 1916.588644 | BM57: 1931.230124 | BN57: 1931.230124 | BO57: 1951.314918 | BP57: 1977.01026 | BQ57: 1992.113322 | BR57: 2012.831301 | BU57: 2160.706229 | BV57: 2256.275867 | BW57: 2356.07262 | BX57: 2467.02396 | BY57: 2569.103617 | BZ57: 2655.123687 | CA57: 2772.561775 | CB57: 2903.126276 | CC57: 3023.250823 | CD57: 3156.971446
B58: 0 | C58: NA | AA58: 0 | AB58: 0 | AC58: 0 | AD58: 0 | AE58: 0 | AF58: 0 | AG58: 0 | AH58: 0 | AI58: 0 | AJ58: 0 | BI58: 0 | BJ58: 0 | BK58: 0 | BL58: 0 | BM58: 0 | BN58: 0 | BO58: 0 | BP58: 0 | BQ58: 0 | BR58: 0 | BU58: 0 | BV58: 0 | BW58: 0 | BX58: 0 | BY58: 0 | BZ58: 0 | CA58: 0 | CB58: 0 | CC58: 0 | CD58: 0
B59: 0 | C59: NA | AA59: 0 | AB59: 0 | AC59: 0 | AD59: 0 | AE59: 0 | AF59: 0 | AG59: 0 | AH59: 0 | AI59: 0 | AJ59: 0 | BI59: 0 | BJ59: 0 | BK59: 0 | BL59: 0 | BM59: 0 | BN59: 0 | BO59: 0 | BP59: 0 | BQ59: 0 | BR59: 0 | BU59: 0 | BV59: 0 | BW59: 0 | BX59: 0 | BY59: 0 | BZ59: 0 | CA59: 0 | CB59: 0 | CC59: 0 | CD59: 0
B60: 0 | C60: NA | AA60: 0 | AB60: 0 | AC60: 0 | AD60: 0 | AE60: 0 | AF60: 0 | AG60: 0 | AH60: 0 | AI60: 0 | AJ60: 0 | BI60: 0 | BJ60: 0 | BK60: 0 | BL60: 0 | BM60: 0 | BN60: 0 | BO60: 0 | BP60: 0 | BQ60: 0 | BR60: 0 | BU60: 0 | BV60: 0 | BW60: 0 | BX60: 0 | BY60: 0 | BZ60: 0 | CA60: 0 | CB60: 0 | CC60: 0 | CD60: 0
B61: LED 265 | C61: Offered | D61: 10.787 | E61: 10.8991848 | F61: 11.01253632 | G61: 11.1270667 | H61: 11.24278819 | I61: 11.24278819 | J61: 11.35971319 | K61: 11.47785421 | L61: 11.59722389 | M61: 11.71783502 | P61: 12.57869903 | Q61: 13.1350642 | R61: 13.71603782 | S61: 14.32270834 | T61: 14.95621234 | U61: 15.45698406 | V61: 16.14065791 | W61: 16.85457117 | X61: 17.60006134 | Y61: 18.37852509 | AA61: 0.9166666667 | AB61: 0.9166666667 | AC61: 0.9166666667 | AD61: 0.9166666667 | AE61: 0.9166666667 | AF61: 0.9166666667 | AG61: 0.9166666667 | AH61: 0.9166666667 | AI61: 0.9166666667 | AJ61: 0.9166666667 | AL61: 39.37255 | AM61: 39.78202452 | AN61: 40.19575758 | AO61: 40.72506412 | AP61: 41.03617691 | AQ61: 41.03617691 | AR61: 41.46295315 | AS61: 42.0089464 | AT61: 42.3298672 | AU61: 42.77009782 | AW61: 45.91225145 | AX61: 47.94298434 | AY61: 50.06353806 | AZ61: 52.42111252 | BA61: 54.59017504 | BB61: 56.41799181 | BC61: 58.91340139 | BD61: 61.68773049 | BE61: 64.2402239 | BF61: 67.0816166 | BI61: 36.09150417 | BJ61: 36.46685581 | BK61: 36.84611111 | BL61: 37.33130878 | BM61: 37.6164955 | BN61: 37.6164955 | BO61: 38.00770705 | BP61: 38.50820087 | BQ61: 38.80237827 | BR61: 39.205923 | BU61: 42.08623049 | BV61: 43.94773565 | BW61: 45.89157656 | BX61: 48.05268648 | BY61: 50.04099379 | BZ61: 51.7164925 | CA61: 54.00395127 | CB61: 56.54708628 | CC61: 58.88687191 | CD61: 61.49148188
B62: LED 30 | C62: Offered | D62: 9.954 | E62: 10.0575216 | F62: 10.16211982 | G62: 10.26780587 | H62: 10.37459105 | I62: 10.37459105 | J62: 10.4824868 | K62: 10.59150466 | L62: 10.70165631 | M62: 10.81295354 | P62: 11.6073394 | Q62: 12.12074062 | R62: 12.65684996 | S62: 13.21667181 | T62: 13.801255 | U62: 14.26335583 | V62: 14.89423462 | W62: 15.55301766 | X62: 16.24093915 | Y62: 16.95928792 | AA62: 30 | AB62: 30 | AC62: 30 | AD62: 30 | AE62: 30 | AF62: 30 | AG62: 30 | AH62: 30 | AI62: 30 | AJ62: 30 | AL62: 36.3321 | AM62: 36.70995384 | AN62: 37.09173736 | AO62: 37.58016949 | AP62: 37.86725734 | AQ62: 37.86725734 | AR62: 38.26107682 | AS62: 38.76490706 | AT62: 39.06104553 | AU62: 39.46728041 | AW62: 42.36678881 | AX62: 44.24070327 | AY62: 46.19750235 | AZ62: 48.37301882 | BA62: 50.37458073 | BB62: 52.06124877 | BC62: 54.36395638 | BD62: 56.92404462 | BE62: 59.27942789 | BF62: 61.90140091 | BI62: 1089.963 | BJ62: 1101.298615 | BK62: 1112.752121 | BL62: 1127.405085 | BM62: 1136.01772 | BN62: 1136.01772 | BO62: 1147.832304 | BP62: 1162.947212 | BQ62: 1171.831366 | BR62: 1184.018412 | BU62: 1271.003664 | BV62: 1327.221098 | BW62: 1385.925071 | BX62: 1451.190565 | BY62: 1511.237422 | BZ62: 1561.837463 | CA62: 1630.918691 | CB62: 1707.721339 | CC62: 1778.382837 | CD62: 1857.042027
B63: LED 75 | C63: Offered | D63: 10.38 | E63: 10.487952 | F63: 10.5970267 | G63: 10.70723578 | H63: 10.81859103 | I63: 10.81859103 | J63: 10.93110438 | K63: 11.04478786 | L63: 11.15965366 | M63: 11.27571405 | P63: 12.10409714 | Q63: 12.63947033 | R63: 13.19852347 | S63: 13.78230394 | T63: 14.39190545 | U63: 14.87378275 | V63: 15.53166118 | W63: 16.21863806 | X63: 16.93600044 | Y63: 17.68509229 | AA63: 6.333333333 | AB63: 6.333333333 | AC63: 6.333333333 | AD63: 6.333333333 | AE63: 6.333333333 | AF63: 6.333333333 | AG63: 6.333333333 | AH63: 6.333333333 | AI63: 6.333333333 | AJ63: 6.333333333 | AL63: 37.887 | AM63: 38.2810248 | AN63: 38.67914746 | AO63: 39.18848295 | AP63: 39.48785726 | AQ63: 39.48785726 | AR63: 39.89853098 | AS63: 40.42392358 | AT63: 40.73273585 | AU63: 41.1563563 | AW63: 44.17995458 | AX63: 46.1340667 | AY63: 48.17461065 | AZ63: 50.44323241 | BA63: 52.53045489 | BB63: 54.28930704 | BC63: 56.69056331 | BD63: 59.36021531 | BE63: 61.8164016 | BF63: 64.55058684 | BI63: 239.951 | BJ63: 242.4464904 | BK63: 244.9679339 | BL63: 248.1937253 | BM63: 250.0897627 | BN63: 250.0897627 | BO63: 252.6906962 | BP63: 256.0181827 | BQ63: 257.9739937 | BR63: 260.6569232 | BU63: 279.806379 | BV63: 292.1824224 | BW63: 305.1058674 | BX63: 319.4738052 | BY63: 332.692881 | BZ63: 343.8322779 | CA63: 359.0402343 | CB63: 375.9480303 | CC63: 391.5038768 | CD63: 408.8203833
B64: LED 155 | C64: Offered | D64: 10.787 | E64: 10.8991848 | F64: 11.01253632 | G64: 11.1270667 | H64: 11.24278819 | I64: 11.24278819 | J64: 11.35971319 | K64: 11.47785421 | L64: 11.59722389 | M64: 11.71783502 | P64: 12.57869903 | Q64: 13.1350642 | R64: 13.71603782 | S64: 14.32270834 | T64: 14.95621234 | U64: 15.45698406 | V64: 16.14065791 | W64: 16.85457117 | X64: 17.60006134 | Y64: 18.37852509 | AA64: 0 | AB64: 0 | AC64: 0 | AD64: 0 | AE64: 0 | AF64: 0 | AG64: 0 | AH64: 0 | AI64: 0 | AJ64: 0 | AL64: 39.37255 | AM64: 39.78202452 | AN64: 40.19575758 | AO64: 40.72506412 | AP64: 41.03617691 | AQ64: 41.03617691 | AR64: 41.46295315 | AS64: 42.0089464 | AT64: 42.3298672 | AU64: 42.77009782 | AW64: 45.91225145 | AX64: 47.94298434 | AY64: 50.06353806 | AZ64: 52.42111252 | BA64: 54.59017504 | BB64: 56.41799181 | BC64: 58.91340139 | BD64: 61.68773049 | BE64: 64.2402239 | BF64: 67.0816166 | BI64: 0 | BJ64: 0 | BK64: 0 | BL64: 0 | BM64: 0 | BN64: 0 | BO64: 0 | BP64: 0 | BQ64: 0 | BR64: 0 | BU64: 0 | BV64: 0 | BW64: 0 | BX64: 0 | BY64: 0 | BZ64: 0 | CA64: 0 | CB64: 0 | CC64: 0 | CD64: 0
B65: LED 14 | C65: Offered | D65: 9.954 | E65: 10.0575216 | F65: 10.16211982 | G65: 10.26780587 | H65: 10.37459105 | I65: 10.37459105 | J65: 10.4824868 | K65: 10.59150466 | L65: 10.70165631 | M65: 10.81295354 | P65: 11.6073394 | Q65: 12.12074062 | R65: 12.65684996 | S65: 13.21667181 | T65: 13.801255 | U65: 14.26335583 | V65: 14.89423462 | W65: 15.55301766 | X65: 16.24093915 | Y65: 16.95928792 | AA65: 15464.25 | AB65: 15593.9 | AC65: 15723.55 | AD65: 15723.55 | AE65: 15723.55 | AF65: 15723.55 | AG65: 15723.55 | AH65: 15723.55 | AI65: 15723.55 | AJ65: 15723.55 | AL65: 36.3321 | AM65: 36.70995384 | AN65: 37.09173736 | AO65: 37.58016949 | AP65: 37.86725734 | AQ65: 37.86725734 | AR65: 38.26107682 | AS65: 38.76490706 | AT65: 39.06104553 | AU65: 39.46728041 | AW65: 42.36678881 | AX65: 44.24070327 | AY65: 46.19750235 | AZ65: 48.37301882 | BA65: 50.37458073 | BB65: 52.06124877 | BC65: 54.36395638 | BD65: 56.92404462 | BE65: 59.27942789 | BF65: 61.90140091 | BI65: 561848.6774 | BJ65: 572451.3492 | BK65: 583213.787 | BL65: 590893.6739 | BM65: 595407.7141 | BN65: 595407.7141 | BO65: 601599.9544 | BP65: 609521.9544 | BQ65: 614178.3025 | BR65: 620565.7568 | BU65: 655170.6139 | BV65: 689885.1027 | BW65: 726388.7381 | BX65: 760595.5801 | BY65: 792067.2389 | BZ65: 818587.6481 | CA65: 854794.3863 | CB65: 895048.0618 | CC65: 932083.0485 | CD65: 973309.7722
B66: 0 | C66: NA | AA66: 0 | AB66: 0 | AC66: 0 | AD66: 0 | AE66: 0 | AF66: 0 | AG66: 0 | AH66: 0 | AI66: 0 | AJ66: 0 | BI66: 0 | BJ66: 0 | BK66: 0 | BL66: 0 | BM66: 0 | BN66: 0 | BO66: 0 | BP66: 0 | BQ66: 0 | BR66: 0 | BU66: 0 | BV66: 0 | BW66: 0 | BX66: 0 | BY66: 0 | BZ66: 0 | CA66: 0 | CB66: 0 | CC66: 0 | CD66: 0
B67: 0 | C67: NA | AA67: 0 | AB67: 0 | AC67: 0 | AD67: 0 | AE67: 0 | AF67: 0 | AG67: 0 | AH67: 0 | AI67: 0 | AJ67: 0 | BI67: 0 | BJ67: 0 | BK67: 0 | BL67: 0 | BM67: 0 | BN67: 0 | BO67: 0 | BP67: 0 | BQ67: 0 | BR67: 0 | BU67: 0 | BV67: 0 | BW67: 0 | BX67: 0 | BY67: 0 | BZ67: 0 | CA67: 0 | CB67: 0 | CC67: 0 | CD67: 0
B68: 0 | C68: NA | AA68: 0 | AB68: 0 | AC68: 0 | AD68: 0 | AE68: 0 | AF68: 0 | AG68: 0 | AH68: 0 | AI68: 0 | AJ68: 0 | BI68: 0 | BJ68: 0 | BK68: 0 | BL68: 0 | BM68: 0 | BN68: 0 | BO68: 0 | BP68: 0 | BQ68: 0 | BR68: 0 | BU68: 0 | BV68: 0 | BW68: 0 | BX68: 0 | BY68: 0 | BZ68: 0 | CA68: 0 | CB68: 0 | CC68: 0 | CD68: 0
B69: LED 17 | C69: Offered | D69: 9.954 | E69: 10.0575216 | F69: 10.16211982 | G69: 10.26780587 | H69: 10.37459105 | I69: 10.37459105 | J69: 10.4824868 | K69: 10.59150466 | L69: 10.70165631 | M69: 10.81295354 | P69: 11.6073394 | Q69: 12.12074062 | R69: 12.65684996 | S69: 13.21667181 | T69: 13.801255 | U69: 14.26335583 | V69: 14.89423462 | W69: 15.55301766 | X69: 16.24093915 | Y69: 16.95928792 | AA69: 6 | AB69: 6 | AC69: 6 | AD69: 6 | AE69: 6 | AF69: 6 | AG69: 6 | AH69: 6 | AI69: 6 | AJ69: 6 | AL69: 36.3321 | AM69: 36.70995384 | AN69: 37.09173736 | AO69: 37.58016949 | AP69: 37.86725734 | AQ69: 37.86725734 | AR69: 38.26107682 | AS69: 38.76490706 | AT69: 39.06104553 | AU69: 39.46728041 | AW69: 42.36678881 | AX69: 44.24070327 | AY69: 46.19750235 | AZ69: 48.37301882 | BA69: 50.37458073 | BB69: 52.06124877 | BC69: 54.36395638 | BD69: 56.92404462 | BE69: 59.27942789 | BF69: 61.90140091 | BI69: 217.9926 | BJ69: 220.259723 | BK69: 222.5504242 | BL69: 225.4810169 | BM69: 227.203544 | BN69: 227.203544 | BO69: 229.5664609 | BP69: 232.5894424 | BQ69: 234.3662732 | BR69: 236.8036824 | BU69: 254.2007329 | BV69: 265.4442196 | BW69: 277.1850141 | BX69: 290.2381129 | BY69: 302.2474844 | BZ69: 312.3674926 | CA69: 326.1837383 | CB69: 341.5442677 | CC69: 355.6765674 | CD69: 371.4084054
B70: LED 175 | C70: Offered | D70: 10.787 | E70: 10.8991848 | F70: 11.01253632 | G70: 11.1270667 | H70: 11.24278819 | I70: 11.24278819 | J70: 11.35971319 | K70: 11.47785421 | L70: 11.59722389 | M70: 11.71783502 | P70: 12.57869903 | Q70: 13.1350642 | R70: 13.71603782 | S70: 14.32270834 | T70: 14.95621234 | U70: 15.45698406 | V70: 16.14065791 | W70: 16.85457117 | X70: 17.60006134 | Y70: 18.37852509 | AA70: 9.166666667 | AB70: 9.166666667 | AC70: 9.166666667 | AD70: 9.166666667 | AE70: 9.166666667 | AF70: 9.166666667 | AG70: 9.166666667 | AH70: 9.166666667 | AI70: 9.166666667 | AJ70: 9.166666667 | AL70: 39.37255 | AM70: 39.78202452 | AN70: 40.19575758 | AO70: 40.72506412 | AP70: 41.03617691 | AQ70: 41.03617691 | AR70: 41.46295315 | AS70: 42.0089464 | AT70: 42.3298672 | AU70: 42.77009782 | AW70: 45.91225145 | AX70: 47.94298434 | AY70: 50.06353806 | AZ70: 52.42111252 | BA70: 54.59017504 | BB70: 56.41799181 | BC70: 58.91340139 | BD70: 61.68773049 | BE70: 64.2402239 | BF70: 67.0816166 | BI70: 360.9150417 | BJ70: 364.6685581 | BK70: 368.4611111 | BL70: 373.3130878 | BM70: 376.164955 | BN70: 376.164955 | BO70: 380.0770705 | BP70: 385.0820087 | BQ70: 388.0237827 | BR70: 392.05923 | BU70: 420.8623049 | BV70: 439.4773565 | BW70: 458.9157656 | BX70: 480.5268648 | BY70: 500.4099379 | BZ70: 517.164925 | CA70: 540.0395127 | CB70: 565.4708628 | CC70: 588.8687191 | CD70: 614.9148188
B71: LED 14 New Tech | C71: Offered | D71: 9.954 | E71: 10.0575216 | F71: 10.16211982 | G71: 10.26780587 | H71: 10.37459105 | I71: 10.37459105 | J71: 10.4824868 | K71: 10.59150466 | L71: 10.70165631 | M71: 10.81295354 | P71: 11.6073394 | Q71: 12.12074062 | R71: 12.65684996 | S71: 13.21667181 | T71: 13.801255 | U71: 14.26335583 | V71: 14.89423462 | W71: 15.55301766 | X71: 16.24093915 | Y71: 16.95928792 | AA71: 0 | AB71: 0 | AC71: 0 | AD71: 0 | AE71: 0 | AF71: 0 | AG71: 0 | AH71: 0 | AI71: 0 | AJ71: 0 | AL71: 36.3321 | AM71: 36.70995384 | AN71: 37.09173736 | AO71: 37.58016949 | AP71: 37.86725734 | AQ71: 37.86725734 | AR71: 38.26107682 | AS71: 38.76490706 | AT71: 39.06104553 | AU71: 39.46728041 | AW71: 42.36678881 | AX71: 44.24070327 | AY71: 46.19750235 | AZ71: 48.37301882 | BA71: 50.37458073 | BB71: 52.06124877 | BC71: 54.36395638 | BD71: 56.92404462 | BE71: 59.27942789 | BF71: 61.90140091 | BI71: 0 | BJ71: 0 | BK71: 0 | BL71: 0 | BM71: 0 | BN71: 0 | BO71: 0 | BP71: 0 | BQ71: 0 | BR71: 0 | BU71: 0 | BV71: 0 | BW71: 0 | BX71: 0 | BY71: 0 | BZ71: 0 | CA71: 0 | CB71: 0 | CC71: 0 | CD71: 0
B72: LED 75 New Tech | C72: Offered | D72: 10.38 | E72: 10.487952 | F72: 10.5970267 | G72: 10.70723578 | H72: 10.81859103 | I72: 10.81859103 | J72: 10.93110438 | K72: 11.04478786 | L72: 11.15965366 | M72: 11.27571405 | P72: 12.10409714 | Q72: 12.63947033 | R72: 13.19852347 | S72: 13.78230394 | T72: 14.39190545 | U72: 14.87378275 | V72: 15.53166118 | W72: 16.21863806 | X72: 16.93600044 | Y72: 17.68509229 | AA72: 0 | AB72: 0 | AC72: 0 | AD72: 0 | AE72: 0 | AF72: 0 | AG72: 0 | AH72: 0 | AI72: 0 | AJ72: 0 | AL72: 37.887 | AM72: 38.2810248 | AN72: 38.67914746 | AO72: 39.18848295 | AP72: 39.48785726 | AQ72: 39.48785726 | AR72: 39.89853098 | AS72: 40.42392358 | AT72: 40.73273585 | AU72: 41.1563563 | AW72: 44.17995458 | AX72: 46.1340667 | AY72: 48.17461065 | AZ72: 50.44323241 | BA72: 52.53045489 | BB72: 54.28930704 | BC72: 56.69056331 | BD72: 59.36021531 | BE72: 61.8164016 | BF72: 64.55058684 | BI72: 0 | BJ72: 0 | BK72: 0 | BL72: 0 | BM72: 0 | BN72: 0 | BO72: 0 | BP72: 0 | BQ72: 0 | BR72: 0 | BU72: 0 | BV72: 0 | BW72: 0 | BX72: 0 | BY72: 0 | BZ72: 0 | CA72: 0 | CB72: 0 | CC72: 0 | CD72: 0
B73: 0 | C73: NA | AA73: 0 | AB73: 0 | AC73: 0 | AD73: 0 | AE73: 0 | AF73: 0 | AG73: 0 | AH73: 0 | AI73: 0 | AJ73: 0 | BI73: 0 | BJ73: 0 | BK73: 0 | BL73: 0 | BM73: 0 | BN73: 0 | BO73: 0 | BP73: 0 | BQ73: 0 | BR73: 0 | BU73: 0 | BV73: 0 | BW73: 0 | BX73: 0 | BY73: 0 | BZ73: 0 | CA73: 0 | CB73: 0 | CC73: 0 | CD73: 0
B74: 0 | C74: NA | AA74: 0 | AB74: 0 | AC74: 0 | AD74: 0 | AE74: 0 | AF74: 0 | AG74: 0 | AH74: 0 | AI74: 0 | AJ74: 0 | BI74: 0 | BJ74: 0 | BK74: 0 | BL74: 0 | BM74: 0 | BN74: 0 | BO74: 0 | BP74: 0 | BQ74: 0 | BR74: 0 | BU74: 0 | BV74: 0 | BW74: 0 | BX74: 0 | BY74: 0 | BZ74: 0 | CA74: 0 | CB74: 0 | CC74: 0 | CD74: 0
B75: 0 | C75: NA | AA75: 0 | AB75: 0 | AC75: 0 | AD75: 0 | AE75: 0 | AF75: 0 | AG75: 0 | AH75: 0 | AI75: 0 | AJ75: 0 | BI75: 0 | BJ75: 0 | BK75: 0 | BL75: 0 | BM75: 0 | BN75: 0 | BO75: 0 | BP75: 0 | BQ75: 0 | BR75: 0 | BU75: 0 | BV75: 0 | BW75: 0 | BX75: 0 | BY75: 0 | BZ75: 0 | CA75: 0 | CB75: 0 | CC75: 0 | CD75: 0
B76: 0 | C76: NA | AA76: 0 | AB76: 0 | AC76: 0 | AD76: 0 | AE76: 0 | AF76: 0 | AG76: 0 | AH76: 0 | AI76: 0 | AJ76: 0 | BI76: 0 | BJ76: 0 | BK76: 0 | BL76: 0 | BM76: 0 | BN76: 0 | BO76: 0 | BP76: 0 | BQ76: 0 | BR76: 0 | BU76: 0 | BV76: 0 | BW76: 0 | BX76: 0 | BY76: 0 | BZ76: 0 | CA76: 0 | CB76: 0 | CC76: 0 | CD76: 0
B77: 0 | C77: NA | AA77: 0 | AB77: 0 | AC77: 0 | AD77: 0 | AE77: 0 | AF77: 0 | AG77: 0 | AH77: 0 | AI77: 0 | AJ77: 0 | BI77: 0 | BJ77: 0 | BK77: 0 | BL77: 0 | BM77: 0 | BN77: 0 | BO77: 0 | BP77: 0 | BQ77: 0 | BR77: 0 | BU77: 0 | BV77: 0 | BW77: 0 | BX77: 0 | BY77: 0 | BZ77: 0 | CA77: 0 | CB77: 0 | CC77: 0 | CD77: 0
B78: 0 | C78: NA | AA78: 0 | AB78: 0 | AC78: 0 | AD78: 0 | AE78: 0 | AF78: 0 | AG78: 0 | AH78: 0 | AI78: 0 | AJ78: 0 | BI78: 0 | BJ78: 0 | BK78: 0 | BL78: 0 | BM78: 0 | BN78: 0 | BO78: 0 | BP78: 0 | BQ78: 0 | BR78: 0 | BU78: 0 | BV78: 0 | BW78: 0 | BX78: 0 | BY78: 0 | BZ78: 0 | CA78: 0 | CB78: 0 | CC78: 0 | CD78: 0
B79: 0 | C79: NA | AA79: 0 | AB79: 0 | AC79: 0 | AD79: 0 | AE79: 0 | AF79: 0 | AG79: 0 | AH79: 0 | AI79: 0 | AJ79: 0 | BI79: 0 | BJ79: 0 | BK79: 0 | BL79: 0 | BM79: 0 | BN79: 0 | BO79: 0 | BP79: 0 | BQ79: 0 | BR79: 0 | BU79: 0 | BV79: 0 | BW79: 0 | BX79: 0 | BY79: 0 | BZ79: 0 | CA79: 0 | CB79: 0 | CC79: 0 | CD79: 0
B80: 0 | C80: NA | AA80: 0 | AB80: 0 | AC80: 0 | AD80: 0 | AE80: 0 | AF80: 0 | AG80: 0 | AH80: 0 | AI80: 0 | AJ80: 0 | BI80: 0 | BJ80: 0 | BK80: 0 | BL80: 0 | BM80: 0 | BN80: 0 | BO80: 0 | BP80: 0 | BQ80: 0 | BR80: 0 | BU80: 0 | BV80: 0 | BW80: 0 | BX80: 0 | BY80: 0 | BZ80: 0 | CA80: 0 | CB80: 0 | CC80: 0 | CD80: 0
AA81: 21620.75 | AB81: 21620.75 | AC81: 21620.75 | AD81: 21620.75 | AE81: 21620.75 | AF81: 21620.75 | AG81: 21620.75 | AH81: 21620.75 | AI81: 21620.75 | AJ81: 21620.75 | BI81: 800485.772 | BJ81: 801284.9949 | BK81: 802014.2611 | BL81: 812575.3607 | BM81: 818782.9036 | BN81: 818782.9036 | BO81: 827298.2458 | BP81: 838192.2905 | BQ81: 844595.5299 | BR81: 853379.3234 | BU81: 922869.8888 | BV81: 960140.7658 | BW81: 998903.2154 | BX81: 1045943.213 | BY81: 1089221.887 | BZ81: 1125691.783 | CA81: 1175481.965 | CB81: 1230837.346 | CC81: 1281766.505 | CD81: 1338459.987
AA82: TRUE | AB82: TRUE | AC82: TRUE | AD82: TRUE | AE82: TRUE | AF82: TRUE | AG82: TRUE | AH82: TRUE | AI82: TRUE | AJ82: TRUE
B83: Public Road Lights
C84: Offered / No Longer Offered / NA | D84: 2024-25 | E84: 2025-26 | F84: 2026-27 | G84: 2027-28 | H84: 2028-29 | I84: 2029-30 | J84: 2030-31 | K84: 2031-32 | L84: 2032-33 | M84: 2033-34 | P84: 2024-25 | Q84: 2025-26 | R84: 2026-27 | S84: 2027-28 | T84: 2028-29 | U84: 2029-30 | V84: 2030-31 | W84: 2031-32 | X84: 2032-33 | Y84: 2033-34 | AA84: 2024-25 | AB84: 2025-26 | AC84: 2026-27 | AD84: 2027-28 | AE84: 2028-29 | AF84: 2029-30 | AG84: 2030-31 | AH84: 2031-32 | AI84: 2032-33 | AJ84: 2033-34 | AL84: 2024-25 | AM84: 2025-26 | AN84: 2026-27 | AO84: 2027-28 | AP84: 2028-29 | AQ84: 2029-30 | AR84: 2030-31 | AS84: 2031-32 | AT84: 2032-33 | AU84: 2033-34 | AW84: 2024-25 | AX84: 2025-26 | AY84: 2026-27 | AZ84: 2027-28 | BA84: 2028-29 | BB84: 2029-30 | BC84: 2030-31 | BD84: 2031-32 | BE84: 2032-33 | BF84: 2033-34 | BI84: 2024-25 | BJ84: 2025-26 | BK84: 2026-27 | BL84: 2027-28 | BM84: 2028-29 | BN84: 2029-30 | BO84: 2030-31 | BP84: 2031-32 | BQ84: 2032-33 | BR84: 2033-34 | BU84: 2024-25 | BV84: 2025-26 | BW84: 2026-27 | BX84: 2027-28 | BY84: 2028-29 | BZ84: 2029-30 | CA84: 2030-31 | CB84: 2031-32 | CC84: 2032-33 | CD84: 2033-34
B85: 50W Mercury Vapour | C85: Obsolete, no new Connections | D85: 34.284 | E85: 34.6405536 | F85: 35.00081536 | G85: 35.36482384 | H85: 35.73261801 | I85: 36.10423723 | J85: 36.4797213 | K85: 36.8591104 | L85: 37.24244515 | M85: 37.62976658 | P85: 39.97850352 | Q85: 41.74678235 | R85: 43.59327346 | S85: 45.52143624 | T85: 47.53488309 | U85: 49.63738618 | V85: 51.83288455 | W85: 54.12549143 | X85: 56.51950202 | Y85: 59.01940147 | AA85: 53.6 | AB85: 26.8 | AC85: 0 | AD85: 0 | AE85: 0 | AF85: 0 | AG85: 0 | AH85: 0 | AI85: 0 | AJ85: 0 | AL85: 125.1366 | AM85: 126.4380206 | AN85: 127.7529761 | AO85: 129.4352552 | AP85: 130.4240557 | AQ85: 131.7804659 | AR85: 133.1509827 | AS85: 134.9043441 | AT85: 135.9349248 | AU85: 137.348648 | AW85: 145.9215378 | AX85: 152.3757556 | AY85: 159.1154481 | AZ85: 166.6084566 | BA85: 173.5023233 | BB85: 181.1764596 | BC85: 189.1900286 | BD85: 198.0992987 | BE85: 206.2961824 | BF85: 215.4208154 | BI85: 6707.32176 | BJ85: 3388.538953 | BK85: 0 | BL85: 0 | BM85: 0 | BN85: 0 | BO85: 0 | BP85: 0 | BQ85: 0 | BR85: 0 | BU85: 7821.394428 | BV85: 4083.670249 | BW85: 0 | BX85: 0 | BY85: 0 | BZ85: 0 | CA85: 0 | CB85: 0 | CC85: 0 | CD85: 0
B86: 80W Mercury Vapour | C86: Obsolete, no new Connections | D86: 34.271 | E86: 34.6274184 | F86: 34.98754355 | G86: 35.351414 | H86: 35.71906871 | I86: 36.09054702 | J86: 36.46588871 | K86: 36.84513396 | L86: 37.22832335 | M86: 37.61549791 | P86: 39.96334424 | Q86: 41.73095257 | R86: 43.57674351 | S86: 45.50417516 | T86: 47.51685854 | U86: 49.6185644 | V86: 51.81323027 | W86: 54.10496783 | X86: 56.49807064 | Y86: 58.99702216 | AA86: 1165.566667 | AB86: 582.7833333 | AC86: 0 | AD86: 0 | AE86: 0 | AF86: 0 | AG86: 0 | AH86: 0 | AI86: 0 | AJ86: 0 | AL86: 125.08915 | AM86: 126.3900772 | AN86: 127.704534 | AO86: 129.3861753 | AP86: 130.3746008 | AQ86: 131.7304966 | AR86: 133.1004938 | AS86: 134.8531903 | AT86: 135.8833802 | AU86: 137.2965674 | AW86: 145.8662065 | AX86: 152.3179769 | AY86: 159.0551138 | AZ86: 166.5452811 | BA86: 173.4365337 | BB86: 181.1077601 | BC86: 189.1182905 | BD86: 198.0241822 | BE86: 206.2179578 | BF86: 215.3391309 | BI86: 145799.7436 | BJ86: 73658.03047 | BK86: 0 | BL86: 0 | BM86: 0 | BN86: 0 | BO86: 0 | BP86: 0 | BQ86: 0 | BR86: 0 | BU86: 170016.7881 | BV86: 88768.37828 | BW86: 0 | BX86: 0 | BY86: 0 | BZ86: 0 | CA86: 0 | CB86: 0 | CC86: 0 | CD86: 0
B87: 125W Mercury Vapour | C87: Obsolete, no new Connections | D87: 37.102 | E87: 37.4878608 | F87: 37.87773455 | G87: 38.27166299 | H87: 38.66968829 | I87: 39.07185304 | J87: 39.47820032 | K87: 39.8887736 | L87: 40.30361685 | M87: 40.72277446 | P87: 43.26456765 | Q87: 45.17819154 | R87: 47.17645642 | S87: 49.26310604 | T87: 51.44204971 | U87: 53.71736968 | V87: 56.09332874 | W87: 58.57437823 | X87: 61.16516637 | Y87: 63.870547 | AA87: 37.6 | AB87: 18.8 | AC87: 0 | AD87: 0 | AE87: 0 | AF87: 0 | AG87: 0 | AH87: 0 | AI87: 0 | AJ87: 0 | AL87: 135.4223 | AM87: 136.8306919 | AN87: 138.2537311 | AO87: 140.0742865 | AP87: 141.1443622 | AQ87: 142.6122636 | AR87: 144.0954312 | AS87: 145.9929114 | AT87: 147.1082015 | AU87: 148.6381268 | AW87: 157.9156719 | AX87: 164.9003991 | AY87: 172.1940659 | AZ87: 180.3029681 | BA87: 187.7634815 | BB87: 196.0683993 | BC87: 204.7406499 | BD87: 214.3822243 | BE87: 223.2528573 | BF87: 233.1274965 | BI87: 5091.87848 | BJ87: 2572.417008 | BK87: 0 | BL87: 0 | BM87: 0 | BN87: 0 | BO87: 0 | BP87: 0 | BQ87: 0 | BR87: 0 | BU87: 5937.629265 | BV87: 3100.127503 | BW87: 0 | BX87: 0 | BY87: 0 | BZ87: 0 | CA87: 0 | CB87: 0 | CC87: 0 | CD87: 0
B88: 250W Mercury Vapour | C88: Obsolete, no new Connections | D88: 37.374 | E88: 37.7626896 | F88: 38.15542157 | G88: 38.55223796 | H88: 38.95318123 | I88: 39.35829432 | J88: 39.76762058 | K88: 40.18120383 | L88: 40.59908835 | M88: 41.02131887 | P88: 43.58174631 | Q88: 45.50939924 | R88: 47.52231368 | S88: 49.62426082 | T88: 51.81917864 | U88: 54.1111793 | V88: 56.50455685 | W88: 59.00379527 | X88: 61.61357684 | Y88: 64.33879099 | AA88: 130.8 | AB88: 65.4 | AC88: 0 | AD88: 0 | AE88: 0 | AF88: 0 | AG88: 0 | AH88: 0 | AI88: 0 | AJ88: 0 | AL88: 136.4151 | AM88: 137.833817 | AN88: 139.2672887 | AO88: 141.1011909 | AP88: 142.1791115 | AQ88: 143.6577743 | AR88: 145.1518151 | AS88: 147.063206 | AT88: 148.1866725 | AU88: 149.7278139 | AW88: 159.073374 | AX88: 166.1093072 | AY88: 173.4564449 | AZ88: 181.6247946 | BA88: 189.140002 | BB88: 197.5058045 | BC88: 206.2416325 | BD88: 215.9538907 | BE88: 224.8895555 | BF88: 234.8365871 | BI88: 17843.09508 | BJ88: 9014.331634 | BK88: 0 | BL88: 0 | BM88: 0 | BN88: 0 | BO88: 0 | BP88: 0 | BQ88: 0 | BR88: 0 | BU88: 20806.79732 | BV88: 10863.54869 | BW88: 0 | BX88: 0 | BY88: 0 | BZ88: 0 | CA88: 0 | CB88: 0 | CC88: 0 | CD88: 0
B89: 0 | C89: NA | AA89: 0 | AB89: 0 | AC89: 0 | AD89: 0 | AE89: 0 | AF89: 0 | AG89: 0 | AH89: 0 | AI89: 0 | AJ89: 0 | BI89: 0 | BJ89: 0 | BK89: 0 | BL89: 0 | BM89: 0 | BN89: 0 | BO89: 0 | BP89: 0 | BQ89: 0 | BR89: 0 | BU89: 0 | BV89: 0 | BW89: 0 | BX89: 0 | BY89: 0 | BZ89: 0 | CA89: 0 | CB89: 0 | CC89: 0 | CD89: 0
B90: 400W Mercury Vapour | C90: Obsolete, no new Connections | D90: 40.704 | E90: 41.1273216 | F90: 41.55504574 | G90: 41.98721822 | H90: 42.42388529 | I90: 42.8650937 | J90: 43.31089067 | K90: 43.76132393 | L90: 44.2164417 | M90: 44.6762927 | P90: 47.46485262 | Q90: 49.56425821 | R90: 51.75652207 | S90: 54.04575139 | T90: 56.43623501 | U90: 58.9324515 | V90: 61.53907749 | W90: 64.26099648 | X90: 67.10330796 | Y90: 70.07133699 | AA90: 78.4 | AB90: 39.2 | AC90: 0 | AD90: 0 | AE90: 0 | AF90: 0 | AG90: 0 | AH90: 0 | AI90: 0 | AJ90: 0 | AL90: 148.5696 | AM90: 150.1147238 | AN90: 151.675917 | AO90: 153.6732187 | AP90: 154.8471813 | AQ90: 156.457592 | AR90: 158.084751 | AS90: 160.1664456 | AT90: 161.3900122 | AU90: 163.0684683 | AW90: 173.2467121 | AX90: 180.9095425 | AY90: 188.9113056 | AZ90: 197.8074501 | BA90: 205.9922578 | BB90: 215.103448 | BC90: 224.6176328 | BD90: 235.1952471 | BE90: 244.9270741 | BF90: 255.76038 | BI90: 11647.85664 | BJ90: 5884.497175 | BK90: 0 | BL90: 0 | BM90: 0 | BN90: 0 | BO90: 0 | BP90: 0 | BQ90: 0 | BR90: 0 | BU90: 13582.54223 | BV90: 7091.654065 | BW90: 0 | BX90: 0 | BY90: 0 | BZ90: 0 | CA90: 0 | CB90: 0 | CC90: 0 | CD90: 0
B91: 70W Sodium Vapour | C91: Offered | D91: 35.175 | E91: 35.54082 | F91: 35.91044453 | G91: 36.28391315 | H91: 36.66126585 | I91: 37.04254301 | J91: 37.42778546 | K91: 37.81703443 | L91: 38.21033159 | M91: 38.60771904 | P91: 41.01749683 | Q91: 42.8317311 | R91: 44.7262103 | S91: 46.70448372 | T91: 48.77025763 | U91: 50.92740226 | V91: 53.17995899 | W91: 55.53214798 | X91: 57.98837602 | Y91: 60.55324486 | AA91: 54.6 | AB91: 27.3 | AC91: 0 | AD91: 0 | AE91: 0 | AF91: 0 | AG91: 0 | AH91: 0 | AI91: 0 | AJ91: 0 | AL91: 128.38875 | AM91: 129.723993 | AN91: 131.0731225 | AO91: 132.7991221 | AP91: 133.8136203 | AQ91: 135.205282 | AR91: 136.6114169 | AS91: 138.410346 | AT91: 139.4677103 | AU91: 140.9181745 | AW91: 149.7138634 | AX91: 156.3358185 | AY91: 163.2506676 | AZ91: 170.9384104 | BA91: 178.0114404 | BB91: 185.8850182 | BC91: 194.1068503 | BD91: 203.2476616 | BE91: 211.6575725 | BF91: 221.0193437 | BI91: 7010.02575 | BJ91: 3541.465009 | BK91: 0 | BL91: 0 | BM91: 0 | BN91: 0 | BO91: 0 | BP91: 0 | BQ91: 0 | BR91: 0 | BU91: 8174.376943 | BV91: 4267.967845 | BW91: 0 | BX91: 0 | BY91: 0 | BZ91: 0 | CA91: 0 | CB91: 0 | CC91: 0 | CD91: 0
B92: 0 | C92: NA | AA92: 0 | AB92: 0 | AC92: 0 | AD92: 0 | AE92: 0 | AF92: 0 | AG92: 0 | AH92: 0 | AI92: 0 | AJ92: 0 | BI92: 0 | BJ92: 0 | BK92: 0 | BL92: 0 | BM92: 0 | BN92: 0 | BO92: 0 | BP92: 0 | BQ92: 0 | BR92: 0 | BU92: 0 | BV92: 0 | BW92: 0 | BX92: 0 | BY92: 0 | BZ92: 0 | CA92: 0 | CB92: 0 | CC92: 0 | CD92: 0
B93: 100W Sodium Vapour | C93: Offered | D93: 38.994 | E93: 39.3995376 | F93: 39.80929279 | G93: 40.22330944 | H93: 40.64163185 | I93: 41.06430483 | J93: 41.4913736 | K93: 41.92288388 | L93: 42.35888187 | M93: 42.79941424 | P93: 45.47082505 | Q93: 47.48203333 | R93: 49.58219884 | S93: 51.77525623 | T93: 54.06531417 | U93: 56.45666308 | V93: 58.95378311 | W93: 61.56135261 | X93: 64.28425685 | Y93: 67.12759715 | AA93: 97.2 | AB93: 48.6 | AC93: 0 | AD93: 0 | AE93: 0 | AF93: 0 | AG93: 0 | AH93: 0 | AI93: 0 | AJ93: 0 | AL93: 142.3281 | AM93: 143.8083122 | AN93: 145.3039187 | AO93: 147.2173125 | AP93: 148.3419563 | AQ93: 149.8847126 | AR93: 151.4435136 | AS93: 153.437755 | AT93: 154.6099188 | AU93: 156.217862 | AW93: 165.9685114 | AX93: 173.3094217 | AY93: 180.9750258 | AZ93: 189.4974378 | BA93: 197.3383967 | BB93: 206.0668202 | BC93: 215.1813084 | BD93: 225.3145506 | BE93: 234.6375375 | BF93: 245.0157296 | BI93: 13834.29132 | BJ93: 6989.083975 | BK93: 0 | BL93: 0 | BM93: 0 | BN93: 0 | BO93: 0 | BP93: 0 | BQ93: 0 | BR93: 0 | BU93: 16132.13931 | BV93: 8422.837893 | BW93: 0 | BX93: 0 | BY93: 0 | BZ93: 0 | CA93: 0 | CB93: 0 | CC93: 0 | CD93: 0
B94: 0 | C94: NA | AA94: 0 | AB94: 0 | AC94: 0 | AD94: 0 | AE94: 0 | AF94: 0 | AG94: 0 | AH94: 0 | AI94: 0 | AJ94: 0 | BI94: 0 | BJ94: 0 | BK94: 0 | BL94: 0 | BM94: 0 | BN94: 0 | BO94: 0 | BP94: 0 | BQ94: 0 | BR94: 0 | BU94: 0 | BV94: 0 | BW94: 0 | BX94: 0 | BY94: 0 | BZ94: 0 | CA94: 0 | CB94: 0 | CC94: 0 | CD94: 0
B95: 150W Sodium Vapour | C95: Offered | D95: 39.175 | E95: 39.58242 | F95: 39.99407717 | G95: 40.41001557 | H95: 40.83027973 | I95: 41.25491464 | J95: 41.68396575 | K95: 42.117479 | L95: 42.55550078 | M95: 42.99807799 | P95: 45.68188879 | Q95: 47.70243257 | R95: 49.81234651 | S95: 52.0155835 | T95: 54.31627129 | U95: 56.71872021 | V95: 59.22743123 | W95: 61.84710439 | X95: 64.58264764 | Y95: 67.43918599 | AA95: 1605.6 | AB95: 802.8 | AC95: 0 | AD95: 0 | AE95: 0 | AF95: 0 | AG95: 0 | AH95: 0 | AI95: 0 | AJ95: 0 | AL95: 142.98875 | AM95: 144.475833 | AN95: 145.9783817 | AO95: 147.900657 | AP95: 149.030521 | AQ95: 150.5804384 | AR95: 152.146475 | AS95: 154.1499731 | AT95: 155.3275778 | AU95: 156.9429847 | AW95: 166.7388941 | AX95: 174.1138789 | AY95: 181.8150648 | AZ95: 190.3770356 | BA95: 198.2543902 | BB95: 207.0233288 | BC95: 216.180124 | BD95: 226.3604021 | BE95: 235.7266639 | BF95: 246.1530289 | BI95: 229582.737 | BJ95: 115985.1987 | BK95: 0 | BL95: 0 | BM95: 0 | BN95: 0 | BO95: 0 | BP95: 0 | BQ95: 0 | BR95: 0 | BU95: 267715.9683 | BV95: 139778.622 | BW95: 0 | BX95: 0 | BY95: 0 | BZ95: 0 | CA95: 0 | CB95: 0 | CC95: 0 | CD95: 0
B96: 0 | C96: NA | AA96: 0 | AB96: 0 | AC96: 0 | AD96: 0 | AE96: 0 | AF96: 0 | AG96: 0 | AH96: 0 | AI96: 0 | AJ96: 0 | BI96: 0 | BJ96: 0 | BK96: 0 | BL96: 0 | BM96: 0 | BN96: 0 | BO96: 0 | BP96: 0 | BQ96: 0 | BR96: 0 | BU96: 0 | BV96: 0 | BW96: 0 | BX96: 0 | BY96: 0 | BZ96: 0 | CA96: 0 | CB96: 0 | CC96: 0 | CD96: 0
B97: 0 | C97: NA | AA97: 0 | AB97: 0 | AC97: 0 | AD97: 0 | AE97: 0 | AF97: 0 | AG97: 0 | AH97: 0 | AI97: 0 | AJ97: 0 | BI97: 0 | BJ97: 0 | BK97: 0 | BL97: 0 | BM97: 0 | BN97: 0 | BO97: 0 | BP97: 0 | BQ97: 0 | BR97: 0 | BU97: 0 | BV97: 0 | BW97: 0 | BX97: 0 | BY97: 0 | BZ97: 0 | CA97: 0 | CB97: 0 | CC97: 0 | CD97: 0
B98: 0 | C98: NA | AA98: 0 | AB98: 0 | AC98: 0 | AD98: 0 | AE98: 0 | AF98: 0 | AG98: 0 | AH98: 0 | AI98: 0 | AJ98: 0 | BI98: 0 | BJ98: 0 | BK98: 0 | BL98: 0 | BM98: 0 | BN98: 0 | BO98: 0 | BP98: 0 | BQ98: 0 | BR98: 0 | BU98: 0 | BV98: 0 | BW98: 0 | BX98: 0 | BY98: 0 | BZ98: 0 | CA98: 0 | CB98: 0 | CC98: 0 | CD98: 0
B99: 250W Sodium Vapour | C99: Offered | D99: 40.456 | E99: 40.8767424 | F99: 41.30186052 | G99: 41.73139987 | H99: 42.16540643 | I99: 42.60392666 | J99: 43.04700749 | K99: 43.49469637 | L99: 43.94704121 | M99: 44.40409044 | P99: 47.17566032 | Q99: 49.26227472 | R99: 51.44118163 | S99: 53.7164632 | T99: 56.09238217 | U99: 58.57338979 | V99: 61.16413421 | W99: 63.86946918 | X99: 66.69446312 | Y99: 69.64440864 | AA99: 1994.233333 | AB99: 997.1166667 | AC99: 0 | AD99: 0 | AE99: 0 | AF99: 0 | AG99: 0 | AH99: 0 | AI99: 0 | AJ99: 0 | AL99: 147.6644 | AM99: 149.2001098 | AN99: 150.7517909 | AO99: 152.7369235 | AP99: 153.9037335 | AQ99: 155.5043323 | AR99: 157.1215773 | AS99: 159.1905887 | AT99: 160.4067004 | AU99: 162.0749301 | AW99: 172.1911602 | AX99: 179.8073027 | AY99: 187.7603129 | AZ99: 196.6022553 | BA99: 204.7371949 | BB99: 213.7928727 | BC99: 223.2490899 | BD99: 233.7622572 | BE99: 243.4347904 | BF99: 254.2020915 | BI99: 294477.2686 | BJ99: 148769.9161 | BK99: 0 | BL99: 0 | BM99: 0 | BN99: 0 | BO99: 0 | BP99: 0 | BQ99: 0 | BR99: 0 | BU99: 343389.3513 | BV99: 179288.8583 | BW99: 0 | BX99: 0 | BY99: 0 | BZ99: 0 | CA99: 0 | CB99: 0 | CC99: 0 | CD99: 0
B100: 0 | C100: NA | AA100: 0 | AB100: 0 | AC100: 0 | AD100: 0 | AE100: 0 | AF100: 0 | AG100: 0 | AH100: 0 | AI100: 0 | AJ100: 0 | BI100: 0 | BJ100: 0 | BK100: 0 | BL100: 0 | BM100: 0 | BN100: 0 | BO100: 0 | BP100: 0 | BQ100: 0 | BR100: 0 | BU100: 0 | BV100: 0 | BW100: 0 | BX100: 0 | BY100: 0 | BZ100: 0 | CA100: 0 | CB100: 0 | CC100: 0 | CD100: 0
B101: 0 | C101: NA | AA101: 0 | AB101: 0 | AC101: 0 | AD101: 0 | AE101: 0 | AF101: 0 | AG101: 0 | AH101: 0 | AI101: 0 | AJ101: 0 | BI101: 0 | BJ101: 0 | BK101: 0 | BL101: 0 | BM101: 0 | BN101: 0 | BO101: 0 | BP101: 0 | BQ101: 0 | BR101: 0 | BU101: 0 | BV101: 0 | BW101: 0 | BX101: 0 | BY101: 0 | BZ101: 0 | CA101: 0 | CB101: 0 | CC101: 0 | CD101: 0
B102: 0 | C102: NA | AA102: 0 | AB102: 0 | AC102: 0 | AD102: 0 | AE102: 0 | AF102: 0 | AG102: 0 | AH102: 0 | AI102: 0 | AJ102: 0 | BI102: 0 | BJ102: 0 | BK102: 0 | BL102: 0 | BM102: 0 | BN102: 0 | BO102: 0 | BP102: 0 | BQ102: 0 | BR102: 0 | BU102: 0 | BV102: 0 | BW102: 0 | BX102: 0 | BY102: 0 | BZ102: 0 | CA102: 0 | CB102: 0 | CC102: 0 | CD102: 0
B103: 400W Sodium Vapour | C103: Offered | D103: 41.164 | E103: 41.5921056 | F103: 42.0246635 | G103: 42.46172 | H103: 42.90332189 | I103: 43.34951643 | J103: 43.80035141 | K103: 44.25587506 | L103: 44.71613616 | M103: 45.18118398 | P103: 48.00125769 | Q103: 50.12438888 | R103: 52.34142774 | S103: 54.65652787 | T103: 57.07402659 | U103: 59.59845307 | V103: 62.2345368 | W103: 64.98721647 | X103: 67.8616492 | Y103: 70.86322022 | AA103: 174.7 | AB103: 87.35 | AC103: 0 | AD103: 0 | AE103: 0 | AF103: 0 | AG103: 0 | AH103: 0 | AI103: 0 | AJ103: 0 | AL103: 150.2486 | AM103: 151.8111854 | AN103: 153.3900218 | AO103: 155.4098952 | AP103: 156.5971249 | AQ103: 158.225735 | AR103: 159.8712826 | AS103: 161.9765027 | AT103: 163.213897 | AU103: 164.9113215 | AW103: 175.2045906 | AX103: 182.9540194 | AY103: 191.0462112 | AZ103: 200.042892 | BA103: 208.320197 | BB103: 217.5343537 | BC103: 227.1560593 | BD103: 237.8532123 | BE103: 247.6950196 | BF103: 258.6507538 | BI103: 26248.43042 | BJ103: 13260.70705 | BK103: 0 | BL103: 0 | BM103: 0 | BN103: 0 | BO103: 0 | BP103: 0 | BQ103: 0 | BR103: 0 | BU103: 30608.24197 | BV103: 15981.0336 | BW103: 0 | BX103: 0 | BY103: 0 | BZ103: 0 | CA103: 0 | CB103: 0 | CC103: 0 | CD103: 0
B104: 0 | C104: NA | AA104: 0 | AB104: 0 | AC104: 0 | AD104: 0 | AE104: 0 | AF104: 0 | AG104: 0 | AH104: 0 | AI104: 0 | AJ104: 0 | BI104: 0 | BJ104: 0 | BK104: 0 | BL104: 0 | BM104: 0 | BN104: 0 | BO104: 0 | BP104: 0 | BQ104: 0 | BR104: 0 | BU104: 0 | BV104: 0 | BW104: 0 | BX104: 0 | BY104: 0 | BZ104: 0 | CA104: 0 | CB104: 0 | CC104: 0 | CD104: 0
B105: 250W Sodium Vapour - Flood Light | C105: Offered | D105: 41.969 | E105: 42.4054776 | F105: 42.84649457 | G105: 43.29209811 | H105: 43.74233593 | I105: 44.19725622 | J105: 44.65690769 | K105: 45.12133953 | L105: 45.59060146 | M105: 46.06474372 | P105: 48.93996658 | Q105: 51.10461756 | R105: 53.36501265 | S105: 55.7253867 | T105: 58.19016184 | U105: 60.7639558 | V105: 63.45159059 | W105: 66.25810145 | X105: 69.18874636 | Y105: 72.24901587 | AA105: 9.133333333 | AB105: 4.566666667 | AC105: 0 | AD105: 0 | AE105: 0 | AF105: 0 | AG105: 0 | AH105: 0 | AI105: 0 | AJ105: 0 | AL105: 153.18685 | AM105: 154.7799932 | AN105: 156.3897052 | AO105: 158.4490791 | AP105: 159.6595261 | AQ105: 161.3199852 | AR105: 162.9977131 | AS105: 165.1441027 | AT105: 166.4056953 | AU105: 168.1363146 | AW105: 178.630878 | AX105: 186.5318541 | AY105: 194.7822962 | AZ105: 203.9549153 | BA105: 212.3940907 | BB105: 221.7884387 | BC105: 231.5983056 | BD105: 242.5046513 | BE105: 252.5389242 | BF105: 263.7089079 | BI105: 1399.106563 | BJ105: 706.8286358 | BK105: 0 | BL105: 0 | BM105: 0 | BN105: 0 | BO105: 0 | BP105: 0 | BQ105: 0 | BR105: 0 | BU105: 1631.495352 | BV105: 851.8288003 | BW105: 0 | BX105: 0 | BY105: 0 | BZ105: 0 | CA105: 0 | CB105: 0 | CC105: 0 | CD105: 0
B106: 400W Sodium Vapour - Flood Light | C106: Offered | D106: 41.164 | E106: 41.5921056 | F106: 42.0246635 | G106: 42.46172 | H106: 42.90332189 | I106: 43.34951643 | J106: 43.80035141 | K106: 44.25587506 | L106: 44.71613616 | M106: 45.18118398 | P106: 48.00125769 | Q106: 50.12438888 | R106: 52.34142774 | S106: 54.65652787 | T106: 57.07402659 | U106: 59.59845307 | V106: 62.2345368 | W106: 64.98721647 | X106: 67.8616492 | Y106: 70.86322022 | AA106: 3.733333333 | AB106: 1.866666667 | AC106: 0 | AD106: 0 | AE106: 0 | AF106: 0 | AG106: 0 | AH106: 0 | AI106: 0 | AJ106: 0 | AL106: 150.2486 | AM106: 151.8111854 | AN106: 153.3900218 | AO106: 155.4098952 | AP106: 156.5971249 | AQ106: 158.225735 | AR106: 159.8712826 | AS106: 161.9765027 | AT106: 163.213897 | AU106: 164.9113215 | AW106: 175.2045906 | AX106: 182.9540194 | AY106: 191.0462112 | AZ106: 200.042892 | BA106: 208.320197 | BB106: 217.5343537 | BC106: 227.1560593 | BD106: 237.8532123 | BE106: 247.6950196 | BF106: 258.6507538 | BI106: 560.9281067 | BJ106: 283.3808795 | BK106: 0 | BL106: 0 | BM106: 0 | BN106: 0 | BO106: 0 | BP106: 0 | BQ106: 0 | BR106: 0 | BU106: 654.0971382 | BV106: 341.5141696 | BW106: 0 | BX106: 0 | BY106: 0 | BZ106: 0 | CA106: 0 | CB106: 0 | CC106: 0 | CD106: 0
B107: 1x20W Fluorescent | C107: Obsolete, no new Connections | D107: 36.18 | E107: 36.556272 | F107: 36.93645723 | G107: 37.32059638 | H107: 37.70873059 | I107: 38.10090138 | J107: 38.49715076 | K107: 38.89752113 | L107: 39.30205535 | M107: 39.71079672 | P107: 42.18942531 | Q107: 44.05549485 | R107: 46.00410202 | S107: 48.03889754 | T107: 50.16369356 | U107: 52.38247089 | V107: 54.69938639 | W107: 57.11878078 | X107: 59.64518677 | Y107: 62.28333757 | AA107: 2.4 | AB107: 1.2 | AC107: 0 | AD107: 0 | AE107: 0 | AF107: 0 | AG107: 0 | AH107: 0 | AI107: 0 | AJ107: 0 | AL107: 132.057 | AM107: 133.4303928 | AN107: 134.8180689 | AO107: 136.5933828 | AP107: 137.6368666 | AQ107: 139.0682901 | AR107: 140.5146003 | AS107: 142.3649273 | AT107: 143.452502 | AU107: 144.944408 | AW107: 153.9914024 | AX107: 160.8025562 | AY107: 167.9149724 | AZ107: 175.822365 | BA107: 183.0974815 | BB107: 191.1960188 | BC107: 199.6527603 | BD107: 209.0547376 | BE107: 217.7049317 | BF107: 227.3341821 | BI107: 316.9368 | BJ107: 160.1164714 | BK107: 0 | BL107: 0 | BM107: 0 | BN107: 0 | BO107: 0 | BP107: 0 | BQ107: 0 | BR107: 0 | BU107: 369.5793657 | BV107: 192.9630674 | BW107: 0 | BX107: 0 | BY107: 0 | BZ107: 0 | CA107: 0 | CB107: 0 | CC107: 0 | CD107: 0
B108: 1x40W Fluorescent | C108: Obsolete, no new Connections | D108: 36.18 | E108: 36.556272 | F108: 36.93645723 | G108: 37.32059638 | H108: 37.70873059 | I108: 38.10090138 | J108: 38.49715076 | K108: 38.89752113 | L108: 39.30205535 | M108: 39.71079672 | P108: 42.18942531 | Q108: 44.05549485 | R108: 46.00410202 | S108: 48.03889754 | T108: 50.16369356 | U108: 52.38247089 | V108: 54.69938639 | W108: 57.11878078 | X108: 59.64518677 | Y108: 62.28333757 | AA108: 16 | AB108: 8 | AC108: 0 | AD108: 0 | AE108: 0 | AF108: 0 | AG108: 0 | AH108: 0 | AI108: 0 | AJ108: 0 | AL108: 132.057 | AM108: 133.4303928 | AN108: 134.8180689 | AO108: 136.5933828 | AP108: 137.6368666 | AQ108: 139.0682901 | AR108: 140.5146003 | AS108: 142.3649273 | AT108: 143.452502 | AU108: 144.944408 | AW108: 153.9914024 | AX108: 160.8025562 | AY108: 167.9149724 | AZ108: 175.822365 | BA108: 183.0974815 | BB108: 191.1960188 | BC108: 199.6527603 | BD108: 209.0547376 | BE108: 217.7049317 | BF108: 227.3341821 | BI108: 2112.912 | BJ108: 1067.443142 | BK108: 0 | BL108: 0 | BM108: 0 | BN108: 0 | BO108: 0 | BP108: 0 | BQ108: 0 | BR108: 0 | BU108: 2463.862438 | BV108: 1286.420449 | BW108: 0 | BX108: 0 | BY108: 0 | BZ108: 0 | CA108: 0 | CB108: 0 | CC108: 0 | CD108: 0
B109: 2x20W Fluorescent | C109: Obsolete, no new Connections | D109: 36.18 | E109: 36.556272 | F109: 36.93645723 | G109: 37.32059638 | H109: 37.70873059 | I109: 38.10090138 | J109: 38.49715076 | K109: 38.89752113 | L109: 39.30205535 | M109: 39.71079672 | P109: 42.18942531 | Q109: 44.05549485 | R109: 46.00410202 | S109: 48.03889754 | T109: 50.16369356 | U109: 52.38247089 | V109: 54.69938639 | W109: 57.11878078 | X109: 59.64518677 | Y109: 62.28333757 | AA109: 2 | AB109: 1 | AC109: 0 | AD109: 0 | AE109: 0 | AF109: 0 | AG109: 0 | AH109: 0 | AI109: 0 | AJ109: 0 | AL109: 132.057 | AM109: 133.4303928 | AN109: 134.8180689 | AO109: 136.5933828 | AP109: 137.6368666 | AQ109: 139.0682901 | AR109: 140.5146003 | AS109: 142.3649273 | AT109: 143.452502 | AU109: 144.944408 | AW109: 153.9914024 | AX109: 160.8025562 | AY109: 167.9149724 | AZ109: 175.822365 | BA109: 183.0974815 | BB109: 191.1960188 | BC109: 199.6527603 | BD109: 209.0547376 | BE109: 217.7049317 | BF109: 227.3341821 | BI109: 264.114 | BJ109: 133.4303928 | BK109: 0 | BL109: 0 | BM109: 0 | BN109: 0 | BO109: 0 | BP109: 0 | BQ109: 0 | BR109: 0 | BU109: 307.9828047 | BV109: 160.8025562 | BW109: 0 | BX109: 0 | BY109: 0 | BZ109: 0 | CA109: 0 | CB109: 0 | CC109: 0 | CD109: 0
B110: 2x24W Fluorescent | C110: Obsolete, no new Connections | D110: 36.18 | E110: 36.556272 | F110: 36.93645723 | G110: 37.32059638 | H110: 37.70873059 | I110: 38.10090138 | J110: 38.49715076 | K110: 38.89752113 | L110: 39.30205535 | M110: 39.71079672 | P110: 42.18942531 | Q110: 44.05549485 | R110: 46.00410202 | S110: 48.03889754 | T110: 50.16369356 | U110: 52.38247089 | V110: 54.69938639 | W110: 57.11878078 | X110: 59.64518677 | Y110: 62.28333757 | AA110: 0.4 | AB110: 0.2 | AC110: 0 | AD110: 0 | AE110: 0 | AF110: 0 | AG110: 0 | AH110: 0 | AI110: 0 | AJ110: 0 | AL110: 132.057 | AM110: 133.4303928 | AN110: 134.8180689 | AO110: 136.5933828 | AP110: 137.6368666 | AQ110: 139.0682901 | AR110: 140.5146003 | AS110: 142.3649273 | AT110: 143.452502 | AU110: 144.944408 | AW110: 153.9914024 | AX110: 160.8025562 | AY110: 167.9149724 | AZ110: 175.822365 | BA110: 183.0974815 | BB110: 191.1960188 | BC110: 199.6527603 | BD110: 209.0547376 | BE110: 217.7049317 | BF110: 227.3341821 | BI110: 52.8228 | BJ110: 26.68607856 | BK110: 0 | BL110: 0 | BM110: 0 | BN110: 0 | BO110: 0 | BP110: 0 | BQ110: 0 | BR110: 0 | BU110: 61.59656095 | BV110: 32.16051124 | BW110: 0 | BX110: 0 | BY110: 0 | BZ110: 0 | CA110: 0 | CB110: 0 | CC110: 0 | CD110: 0
B111: 2x40W Fluorescent | C111: Obsolete, no new Connections | D111: 36.18 | E111: 36.556272 | F111: 36.93645723 | G111: 37.32059638 | H111: 37.70873059 | I111: 38.10090138 | J111: 38.49715076 | K111: 38.89752113 | L111: 39.30205535 | M111: 39.71079672 | P111: 42.18942531 | Q111: 44.05549485 | R111: 46.00410202 | S111: 48.03889754 | T111: 50.16369356 | U111: 52.38247089 | V111: 54.69938639 | W111: 57.11878078 | X111: 59.64518677 | Y111: 62.28333757 | AA111: 0.8 | AB111: 0.4 | AC111: 0 | AD111: 0 | AE111: 0 | AF111: 0 | AG111: 0 | AH111: 0 | AI111: 0 | AJ111: 0 | AL111: 132.057 | AM111: 133.4303928 | AN111: 134.8180689 | AO111: 136.5933828 | AP111: 137.6368666 | AQ111: 139.0682901 | AR111: 140.5146003 | AS111: 142.3649273 | AT111: 143.452502 | AU111: 144.944408 | AW111: 153.9914024 | AX111: 160.8025562 | AY111: 167.9149724 | AZ111: 175.822365 | BA111: 183.0974815 | BB111: 191.1960188 | BC111: 199.6527603 | BD111: 209.0547376 | BE111: 217.7049317 | BF111: 227.3341821 | BI111: 105.6456 | BJ111: 53.37215712 | BK111: 0 | BL111: 0 | BM111: 0 | BN111: 0 | BO111: 0 | BP111: 0 | BQ111: 0 | BR111: 0 | BU111: 123.1931219 | BV111: 64.32102247 | BW111: 0 | BX111: 0 | BY111: 0 | BZ111: 0 | CA111: 0 | CB111: 0 | CC111: 0 | CD111: 0
B112: 4x40W Fluorescent | C112: Obsolete, no new Connections | D112: 36.18 | E112: 36.556272 | F112: 36.93645723 | G112: 37.32059638 | H112: 37.70873059 | I112: 38.10090138 | J112: 38.49715076 | K112: 38.89752113 | L112: 39.30205535 | M112: 39.71079672 | P112: 42.18942531 | Q112: 44.05549485 | R112: 46.00410202 | S112: 48.03889754 | T112: 50.16369356 | U112: 52.38247089 | V112: 54.69938639 | W112: 57.11878078 | X112: 59.64518677 | Y112: 62.28333757 | AA112: 0.4 | AB112: 0.2 | AC112: 0 | AD112: 0 | AE112: 0 | AF112: 0 | AG112: 0 | AH112: 0 | AI112: 0 | AJ112: 0 | AL112: 132.057 | AM112: 133.4303928 | AN112: 134.8180689 | AO112: 136.5933828 | AP112: 137.6368666 | AQ112: 139.0682901 | AR112: 140.5146003 | AS112: 142.3649273 | AT112: 143.452502 | AU112: 144.944408 | AW112: 153.9914024 | AX112: 160.8025562 | AY112: 167.9149724 | AZ112: 175.822365 | BA112: 183.0974815 | BB112: 191.1960188 | BC112: 199.6527603 | BD112: 209.0547376 | BE112: 217.7049317 | BF112: 227.3341821 | BI112: 52.8228 | BJ112: 26.68607856 | BK112: 0 | BL112: 0 | BM112: 0 | BN112: 0 | BO112: 0 | BP112: 0 | BQ112: 0 | BR112: 0 | BU112: 61.59656095 | BV112: 32.16051124 | BW112: 0 | BX112: 0 | BY112: 0 | BZ112: 0 | CA112: 0 | CB112: 0 | CC112: 0 | CD112: 0
B113: 32W Compact Fluorescent | C113: Not Offered | D113: 36.18 | E113: 36.556272 | F113: 36.93645723 | G113: 37.32059638 | H113: 37.70873059 | I113: 38.10090138 | J113: 38.49715076 | K113: 38.89752113 | L113: 39.30205535 | M113: 39.71079672 | P113: 42.18942531 | Q113: 44.05549485 | R113: 46.00410202 | S113: 48.03889754 | T113: 50.16369356 | U113: 52.38247089 | V113: 54.69938639 | W113: 57.11878078 | X113: 59.64518677 | Y113: 62.28333757 | AA113: 0 | AB113: 0 | AC113: 0 | AD113: 0 | AE113: 0 | AF113: 0 | AG113: 0 | AH113: 0 | AI113: 0 | AJ113: 0 | AL113: 132.057 | AM113: 133.4303928 | AN113: 134.8180689 | AO113: 136.5933828 | AP113: 137.6368666 | AQ113: 139.0682901 | AR113: 140.5146003 | AS113: 142.3649273 | AT113: 143.452502 | AU113: 144.944408 | AW113: 153.9914024 | AX113: 160.8025562 | AY113: 167.9149724 | AZ113: 175.822365 | BA113: 183.0974815 | BB113: 191.1960188 | BC113: 199.6527603 | BD113: 209.0547376 | BE113: 217.7049317 | BF113: 227.3341821 | BI113: 0 | BJ113: 0 | BK113: 0 | BL113: 0 | BM113: 0 | BN113: 0 | BO113: 0 | BP113: 0 | BQ113: 0 | BR113: 0 | BU113: 0 | BV113: 0 | BW113: 0 | BX113: 0 | BY113: 0 | BZ113: 0 | CA113: 0 | CB113: 0 | CC113: 0 | CD113: 0
B114: 42W Compact Fluorescent | C114: Offered | D114: 36.18 | E114: 36.556272 | F114: 36.93645723 | G114: 37.32059638 | H114: 37.70873059 | I114: 38.10090138 | J114: 38.49715076 | K114: 38.89752113 | L114: 39.30205535 | M114: 39.71079672 | P114: 42.18942531 | Q114: 44.05549485 | R114: 46.00410202 | S114: 48.03889754 | T114: 50.16369356 | U114: 52.38247089 | V114: 54.69938639 | W114: 57.11878078 | X114: 59.64518677 | Y114: 62.28333757 | AA114: 971.0666667 | AB114: 485.5333333 | AC114: 0 | AD114: 0 | AE114: 0 | AF114: 0 | AG114: 0 | AH114: 0 | AI114: 0 | AJ114: 0 | AL114: 132.057 | AM114: 133.4303928 | AN114: 134.8180689 | AO114: 136.5933828 | AP114: 137.6368666 | AQ114: 139.0682901 | AR114: 140.5146003 | AS114: 142.3649273 | AT114: 143.452502 | AU114: 144.944408 | AW114: 153.9914024 | AX114: 160.8025562 | AY114: 167.9149724 | AZ114: 175.822365 | BA114: 183.0974815 | BB114: 191.1960188 | BC114: 199.6527603 | BD114: 209.0547376 | BE114: 217.7049317 | BF114: 227.3341821 | BI114: 128236.1508 | BJ114: 64784.90338 | BK114: 0 | BL114: 0 | BM114: 0 | BN114: 0 | BO114: 0 | BP114: 0 | BQ114: 0 | BR114: 0 | BU114: 149535.9178 | BV114: 78075.00111 | BW114: 0 | BX114: 0 | BY114: 0 | BZ114: 0 | CA114: 0 | CB114: 0 | CC114: 0 | CD114: 0
B115: 0 | C115: NA | AA115: 0 | AB115: 0 | AC115: 0 | AD115: 0 | AE115: 0 | AF115: 0 | AG115: 0 | AH115: 0 | AI115: 0 | AJ115: 0 | BI115: 0 | BJ115: 0 | BK115: 0 | BL115: 0 | BM115: 0 | BN115: 0 | BO115: 0 | BP115: 0 | BQ115: 0 | BR115: 0 | BU115: 0 | BV115: 0 | BW115: 0 | BX115: 0 | BY115: 0 | BZ115: 0 | CA115: 0 | CB115: 0 | CC115: 0 | CD115: 0
B116: 60W Incandescent | C116: Obsolete, no new Connections | D116: 35.175 | E116: 35.54082 | F116: 35.91044453 | G116: 36.28391315 | H116: 36.66126585 | I116: 37.04254301 | J116: 37.42778546 | K116: 37.81703443 | L116: 38.21033159 | M116: 38.60771904 | P116: 41.01749683 | Q116: 42.8317311 | R116: 44.7262103 | S116: 46.70448372 | T116: 48.77025763 | U116: 50.92740226 | V116: 53.17995899 | W116: 55.53214798 | X116: 57.98837602 | Y116: 60.55324486 | AA116: 2.4 | AB116: 1.2 | AC116: 0 | AD116: 0 | AE116: 0 | AF116: 0 | AG116: 0 | AH116: 0 | AI116: 0 | AJ116: 0 | AL116: 128.38875 | AM116: 129.723993 | AN116: 131.0731225 | AO116: 132.7991221 | AP116: 133.8136203 | AQ116: 135.205282 | AR116: 136.6114169 | AS116: 138.410346 | AT116: 139.4677103 | AU116: 140.9181745 | AW116: 149.7138634 | AX116: 156.3358185 | AY116: 163.2506676 | AZ116: 170.9384104 | BA116: 178.0114404 | BB116: 185.8850182 | BC116: 194.1068503 | BD116: 203.2476616 | BE116: 211.6575725 | BF116: 221.0193437 | BI116: 308.133 | BJ116: 155.6687916 | BK116: 0 | BL116: 0 | BM116: 0 | BN116: 0 | BO116: 0 | BP116: 0 | BQ116: 0 | BR116: 0 | BU116: 359.3132722 | BV116: 187.6029822 | BW116: 0 | BX116: 0 | BY116: 0 | BZ116: 0 | CA116: 0 | CB116: 0 | CC116: 0 | CD116: 0
B117: 100W Incandescent | C117: Obsolete, no new Connections | D117: 38.568 | E117: 38.9691072 | F117: 39.37438591 | G117: 39.78387953 | H117: 40.19763188 | I117: 40.61568725 | J117: 41.03809039 | K117: 41.46488653 | L117: 41.89612135 | M117: 42.33184102 | P117: 44.97406731 | Q117: 46.96330363 | R117: 49.04052534 | S117: 51.20962411 | T117: 53.47466372 | U117: 55.83988771 | V117: 58.30972732 | W117: 60.88880976 | X117: 63.58196692 | Y117: 66.39424442 | AA117: 3.6 | AB117: 1.8 | AC117: 0 | AD117: 0 | AE117: 0 | AF117: 0 | AG117: 0 | AH117: 0 | AI117: 0 | AJ117: 0 | AL117: 140.7732 | AM117: 142.2372413 | AN117: 143.7165086 | AO117: 145.6089991 | AP117: 146.7213563 | AQ117: 148.2472585 | AR117: 149.7890299 | AS117: 151.7614847 | AT117: 152.9208429 | AU117: 154.5112197 | AW117: 164.1553457 | AX117: 171.4160582 | AY117: 178.9979175 | AZ117: 187.4272242 | BA117: 195.1825226 | BB117: 203.8155902 | BC117: 212.8305047 | BD117: 222.8530437 | BE117: 232.0741793 | BF117: 242.3389921 | BI117: 506.78352 | BJ117: 256.0270343 | BK117: 0 | BL117: 0 | BM117: 0 | BN117: 0 | BO117: 0 | BP117: 0 | BQ117: 0 | BR117: 0 | BU117: 590.9592444 | BV117: 308.5489048 | BW117: 0 | BX117: 0 | BY117: 0 | BZ117: 0 | CA117: 0 | CB117: 0 | CC117: 0 | CD117: 0
B118: 100W Metal Halide | C118: Offered | D118: 38.274 | E118: 38.6720496 | F118: 39.07423892 | G118: 39.480611 | H118: 39.89120935 | I118: 40.30607793 | J118: 40.72526114 | K118: 41.14880386 | L118: 41.57675142 | M118: 42.00914963 | P118: 44.6312345 | Q118: 46.60530707 | R118: 48.66669433 | S118: 50.81925827 | T118: 53.06703172 | U118: 55.41422584 | V118: 57.86523811 | W118: 60.42466046 | X118: 63.09728796 | Y118: 65.88812775 | AA118: 0 | AB118: 0 | AC118: 0 | AD118: 0 | AE118: 0 | AF118: 0 | AG118: 0 | AH118: 0 | AI118: 0 | AJ118: 0 | AL118: 139.7001 | AM118: 141.152981 | AN118: 142.620972 | AO118: 144.4990363 | AP118: 145.6029141 | AQ118: 147.1171845 | AR118: 148.6472032 | AS118: 150.6046221 | AT118: 151.7551427 | AU118: 153.3333962 | AW118: 162.9040059 | AX118: 170.1093708 | AY118: 177.6334343 | AZ118: 185.9984853 | BA118: 193.6946658 | BB118: 202.2619243 | BC118: 211.2081191 | BD118: 221.1542573 | BE118: 230.305101 | BF118: 240.4916663 | BI118: 0 | BJ118: 0 | BK118: 0 | BL118: 0 | BM118: 0 | BN118: 0 | BO118: 0 | BP118: 0 | BQ118: 0 | BR118: 0 | BU118: 0 | BV118: 0 | BW118: 0 | BX118: 0 | BY118: 0 | BZ118: 0 | CA118: 0 | CB118: 0 | CC118: 0 | CD118: 0
B119: 150W Metal Halide | C119: Offered | D119: 41.136 | E119: 41.5638144 | F119: 41.99607807 | G119: 42.43283728 | H119: 42.87413879 | I119: 43.32002983 | J119: 43.77055814 | K119: 44.22577195 | L119: 44.68571998 | M119: 45.15045146 | P119: 47.96860695 | Q119: 50.09029397 | R119: 52.30582479 | S119: 54.61935017 | T119: 57.03520449 | U119: 59.55791384 | V119: 62.19220449 | W119: 64.94301177 | X119: 67.8154893 | Y119: 70.81501863 | AA119: 6 | AB119: 3 | AC119: 0 | AD119: 0 | AE119: 0 | AF119: 0 | AG119: 0 | AH119: 0 | AI119: 0 | AJ119: 0 | AL119: 150.1464 | AM119: 151.7079226 | AN119: 153.285685 | AO119: 155.3041845 | AP119: 156.4906066 | AQ119: 158.1181089 | AR119: 159.7625372 | AS119: 161.8663253 | AT119: 163.1028779 | AU119: 164.7991478 | AW119: 175.0854154 | AX119: 182.829573 | AY119: 190.9162605 | AZ119: 199.9068216 | BA119: 208.1784964 | BB119: 217.3863855 | BC119: 227.0015464 | BD119: 237.6914231 | BE119: 247.5265359 | BF119: 258.474818 | BI119: 900.8784 | BJ119: 455.1237677 | BK119: 0 | BL119: 0 | BM119: 0 | BN119: 0 | BO119: 0 | BP119: 0 | BQ119: 0 | BR119: 0 | BU119: 1050.512492 | BV119: 548.488719 | BW119: 0 | BX119: 0 | BY119: 0 | BZ119: 0 | CA119: 0 | CB119: 0 | CC119: 0 | CD119: 0
B120: 250W Metal Halide | C120: Offered | D120: 40.274 | E120: 40.6928496 | F120: 41.11605524 | G120: 41.54366221 | H120: 41.9757163 | I120: 42.41226375 | J120: 42.85335129 | K120: 43.29902614 | L120: 43.74933602 | M120: 44.20432911 | P120: 46.96343048 | Q120: 49.04065781 | R120: 51.20976243 | S120: 53.47480816 | T120: 55.84003855 | U120: 58.30988482 | V120: 60.88897423 | W120: 63.58213867 | X120: 66.39442377 | Y120: 69.33109832 | AA120: 8 | AB120: 4 | AC120: 0 | AD120: 0 | AE120: 0 | AF120: 0 | AG120: 0 | AH120: 0 | AI120: 0 | AJ120: 0 | AL120: 147.0001 | AM120: 148.528901 | AN120: 150.0736016 | AO120: 152.0498037 | AP120: 153.2113645 | AQ120: 154.8047627 | AR120: 156.4147322 | AS120: 158.4744357 | AT120: 159.6850765 | AU120: 161.3458013 | AW120: 171.4165213 | AX120: 178.998401 | AY120: 186.9156329 | AZ120: 195.7177979 | BA120: 203.8161407 | BB120: 212.8310796 | BC120: 222.2447559 | BD120: 232.7106275 | BE120: 242.3396467 | BF120: 253.0585089 | BI120: 1176.0008 | BJ120: 594.1156042 | BK120: 0 | BL120: 0 | BM120: 0 | BN120: 0 | BO120: 0 | BP120: 0 | BQ120: 0 | BR120: 0 | BU120: 1371.33217 | BV120: 715.993604 | BW120: 0 | BX120: 0 | BY120: 0 | BZ120: 0 | CA120: 0 | CB120: 0 | CC120: 0 | CD120: 0
B121: 400W Metal Halide | C121: Offered | D121: 48.044 | E121: 48.5436576 | F121: 49.04851164 | G121: 49.55861616 | H121: 50.07402577 | I121: 50.59479564 | J121: 51.12098151 | K121: 51.65263972 | L121: 52.18982717 | M121: 52.73260137 | P121: 56.02401187 | Q121: 58.50199542 | R121: 61.08958202 | S121: 63.79161949 | T121: 66.61317008 | U121: 69.55951995 | V121: 72.63618905 | W121: 75.8489415 | X121: 79.20379638 | Y121: 82.70703897 | AA121: 0.4 | AB121: 0.2 | AC121: 0 | AD121: 0 | AE121: 0 | AF121: 0 | AG121: 0 | AH121: 0 | AI121: 0 | AJ121: 0 | AL121: 175.3606 | AM121: 177.1843502 | AN121: 179.0270675 | AO121: 181.3845351 | AP121: 182.7701941 | AQ121: 184.6710041 | AR121: 186.5915825 | AS121: 189.0486614 | AT121: 190.4928692 | AU121: 192.473995 | AW121: 204.4876433 | AX121: 213.5322833 | AY121: 222.9769744 | AZ121: 233.4773273 | BA121: 243.1380708 | BB121: 253.8922478 | BC121: 265.12209 | BD121: 277.6071259 | BE121: 289.0938568 | BF121: 301.8806922 | BI121: 70.14424 | BJ121: 35.43687005 | BK121: 0 | BL121: 0 | BM121: 0 | BN121: 0 | BO121: 0 | BP121: 0 | BQ121: 0 | BR121: 0 | BU121: 81.79505733 | BV121: 42.70645666 | BW121: 0 | BX121: 0 | BY121: 0 | BZ121: 0 | CA121: 0 | CB121: 0 | CC121: 0 | CD121: 0
B122: 400W Metal Halide - Flood Light | C122: Offered | D122: 40.844 | E122: 41.2687776 | F122: 41.69797289 | G122: 42.13163181 | H122: 42.56980078 | I122: 43.0125267 | J122: 43.45985698 | K122: 43.91183949 | L122: 44.36852262 | M122: 44.82995526 | P122: 47.62810634 | Q122: 49.73473277 | R122: 51.93453684 | S122: 54.23163988 | T122: 56.63034549 | U122: 59.13514763 | V122: 61.75073902 | W122: 64.48201996 | X122: 67.33410747 | Y122: 70.31234493 | AA122: 0 | AB122: 0 | AC122: 0 | AD122: 0 | AE122: 0 | AF122: 0 | AG122: 0 | AH122: 0 | AI122: 0 | AJ122: 0 | AL122: 149.0806 | AM122: 150.6310382 | AN122: 152.197601 | AO122: 154.2017724 | AP122: 155.3797728 | AQ122: 156.9957225 | AR122: 158.628478 | AS122: 160.7173325 | AT122: 161.9451076 | AU122: 163.6293367 | AW122: 173.8425881 | AX122: 181.5317746 | AY122: 189.5610595 | AZ122: 198.487802 | BA122: 206.700761 | BB122: 215.8432888 | BC122: 225.3901974 | BD122: 236.004193 | BE122: 245.7694923 | BF122: 256.640059 | BI122: 0 | BJ122: 0 | BK122: 0 | BL122: 0 | BM122: 0 | BN122: 0 | BO122: 0 | BP122: 0 | BQ122: 0 | BR122: 0 | BU122: 0 | BV122: 0 | BW122: 0 | BX122: 0 | BY122: 0 | BZ122: 0 | CA122: 0 | CB122: 0 | CC122: 0 | CD122: 0
B123: LED 18 | C123: Offered | D123: 32.379 | E123: 32.7157416 | F123: 33.05598531 | G123: 33.39976756 | H123: 33.74712514 | I123: 34.09809524 | J123: 34.45271543 | K123: 34.81102368 | L123: 35.17305832 | M123: 35.53885813 | P123: 37.75708684 | Q123: 39.42711077 | R123: 41.17100109 | S123: 42.99202497 | T123: 44.89359408 | U123: 46.87927101 | V123: 48.9527759 | W123: 51.11799344 | X123: 53.37898016 | Y123: 55.739972 | AA123: 7295.483333 | AB123: 9319.783333 | AC123: 11344.08333 | AD123: 11344.08333 | AE123: 11344.08333 | AF123: 11344.08333 | AG123: 11344.08333 | AH123: 11344.08333 | AI123: 11344.08333 | AJ123: 11344.08333 | AL123: 118.18335 | AM123: 119.4124568 | AN123: 120.6543464 | AO123: 122.2431493 | AP123: 123.1770068 | AQ123: 124.4580476 | AR123: 125.7524113 | AS123: 127.4083467 | AT123: 128.3816629 | AU123: 129.7168322 | AW123: 137.813367 | AX123: 143.9089543 | AY123: 150.274154 | AZ123: 157.3508114 | BA123: 163.8616184 | BB123: 171.1093392 | BC123: 178.677632 | BD123: 187.091856 | BE123: 194.8332776 | BF123: 203.4508978 | BI123: 862204.6602 | BJ123: 1112898.225 | BK123: 1368712.96 | BL123: 1386736.472 | BM123: 1397330.23 | BN123: 1411862.464 | BO123: 1426545.834 | BP123: 1445330.902 | BQ123: 1456372.282 | BR123: 1471518.554 | BU123: 1005415.122 | BV123: 1341200.274 | BW123: 1704722.525 | BX123: 1785000.717 | BY123: 1858859.854 | BZ123: 1941078.603 | CA123: 2026933.947 | CB123: 2122385.605 | CC123: 2210204.937 | CD123: 2307963.939
B124: 0 | C124: NA | AA124: 0 | AB124: 0 | AC124: 0 | AD124: 0 | AE124: 0 | AF124: 0 | AG124: 0 | AH124: 0 | AI124: 0 | AJ124: 0 | BI124: 0 | BJ124: 0 | BK124: 0 | BL124: 0 | BM124: 0 | BN124: 0 | BO124: 0 | BP124: 0 | BQ124: 0 | BR124: 0 | BU124: 0 | BV124: 0 | BW124: 0 | BX124: 0 | BY124: 0 | BZ124: 0 | CA124: 0 | CB124: 0 | CC124: 0 | CD124: 0
B125: 0 | C125: NA | AA125: 0 | AB125: 0 | AC125: 0 | AD125: 0 | AE125: 0 | AF125: 0 | AG125: 0 | AH125: 0 | AI125: 0 | AJ125: 0 | BI125: 0 | BJ125: 0 | BK125: 0 | BL125: 0 | BM125: 0 | BN125: 0 | BO125: 0 | BP125: 0 | BQ125: 0 | BR125: 0 | BU125: 0 | BV125: 0 | BW125: 0 | BX125: 0 | BY125: 0 | BZ125: 0 | CA125: 0 | CB125: 0 | CC125: 0 | CD125: 0
B126: 0 | C126: NA | AA126: 0 | AB126: 0 | AC126: 0 | AD126: 0 | AE126: 0 | AF126: 0 | AG126: 0 | AH126: 0 | AI126: 0 | AJ126: 0 | BI126: 0 | BJ126: 0 | BK126: 0 | BL126: 0 | BM126: 0 | BN126: 0 | BO126: 0 | BP126: 0 | BQ126: 0 | BR126: 0 | BU126: 0 | BV126: 0 | BW126: 0 | BX126: 0 | BY126: 0 | BZ126: 0 | CA126: 0 | CB126: 0 | CC126: 0 | CD126: 0
B127: LED 20 | C127: Offered | D127: 45.998 | E127: 46.4763792 | F127: 46.95973354 | G127: 47.44811477 | H127: 47.94157517 | I127: 48.44016755 | J127: 48.94394529 | K127: 49.45296232 | L127: 49.96727313 | M127: 50.48693277 | P127: 53.63817538 | Q127: 56.01063162 | R127: 58.48802335 | S127: 61.07499195 | T127: 63.7763841 | U127: 66.59726081 | V127: 69.542907 | W127: 72.6188413 | X127: 75.83082645 | Y127: 79.18488008 | AA127: 48.66666667 | AB127: 48.66666667 | AC127: 48.66666667 | AD127: 48.66666667 | AE127: 48.66666667 | AF127: 48.66666667 | AG127: 48.66666667 | AH127: 48.66666667 | AI127: 48.66666667 | AJ127: 48.66666667 | AL127: 167.8927 | AM127: 169.6387841 | AN127: 171.4030274 | AO127: 173.6601001 | AP127: 174.9867494 | AQ127: 176.8066115 | AR127: 178.6454003 | AS127: 180.9978421 | AT127: 182.3805469 | AU127: 184.2773046 | AW127: 195.7793401 | AX127: 204.4388054 | AY127: 213.4812852 | AZ127: 223.5344705 | BA127: 232.7838019 | BB127: 243.080002 | BC127: 253.8316105 | BD127: 265.7849591 | BE127: 276.7825165 | BF127: 289.0248123 | BI127: 8170.778067 | BJ127: 8255.754159 | BK127: 8341.614002 | BL127: 8451.458203 | BM127: 8516.021802 | BN127: 8604.588429 | BO127: 8694.076148 | BP127: 8808.561649 | BQ127: 8875.853284 | BR127: 8968.162158 | BU127: 9527.927887 | BV127: 9949.355196 | BW127: 10389.42255 | BX127: 10878.67757 | BY127: 11328.81169 | BZ127: 11829.89343 | CA127: 12353.13838 | CB127: 12934.86801 | CC127: 13470.08247 | CD127: 14065.8742
B128: LED 200 | C128: Offered | D128: 45.202 | E128: 45.6721008 | F128: 46.14709065 | G128: 46.62702039 | H128: 47.1119414 | I128: 47.60190559 | J128: 48.09696541 | K128: 48.59717385 | L128: 49.10258446 | M128: 49.61325134 | P128: 52.70996138 | Q128: 55.04136202 | R128: 57.47588224 | S128: 60.0180831 | T128: 62.67272738 | U128: 65.44478854 | V128: 68.33946002 | W128: 71.36216497 | X128: 74.5185664 | Y128: 77.8145778 | AA128: 4 | AB128: 4 | AC128: 4 | AD128: 4 | AE128: 4 | AF128: 4 | AG128: 4 | AH128: 4 | AI128: 4 | AJ128: 4 | AL128: 164.9873 | AM128: 166.7031679 | AN128: 168.4368809 | AO128: 170.6548946 | AP128: 171.9585861 | AQ128: 173.7469554 | AR128: 175.5539238 | AS128: 177.8656563 | AT128: 179.2244333 | AU128: 181.0883674 | AW128: 192.391359 | AX128: 200.9009714 | AY128: 209.7869702 | AZ128: 219.6661841 | BA128: 228.7554549 | BB128: 238.8734782 | BC128: 249.4390291 | BD128: 261.1855238 | BE128: 271.9927673 | BF128: 284.023209 | BI128: 659.9492 | BJ128: 666.8126717 | BK128: 673.7475235 | BL128: 682.6195785 | BM128: 687.8343445 | BN128: 694.9878217 | BO128: 702.215695 | BP128: 711.4626252 | BQ128: 716.8977331 | BR128: 724.3534695 | BU128: 769.5654362 | BV128: 803.6038855 | BW128: 839.1478808 | BX128: 878.6647365 | BY128: 915.0218197 | BZ128: 955.4939127 | CA128: 997.7561163 | CB128: 1044.742095 | CC128: 1087.971069 | CD128: 1136.092836
B129: LED 240 | C129: Offered | D129: 45.202 | E129: 45.6721008 | F129: 46.14709065 | G129: 46.62702039 | H129: 47.1119414 | I129: 47.60190559 | J129: 48.09696541 | K129: 48.59717385 | L129: 49.10258446 | M129: 49.61325134 | P129: 52.70996138 | Q129: 55.04136202 | R129: 57.47588224 | S129: 60.0180831 | T129: 62.67272738 | U129: 65.44478854 | V129: 68.33946002 | W129: 71.36216497 | X129: 74.5185664 | Y129: 77.8145778 | AA129: 30.83333333 | AB129: 30.83333333 | AC129: 30.83333333 | AD129: 30.83333333 | AE129: 30.83333333 | AF129: 30.83333333 | AG129: 30.83333333 | AH129: 30.83333333 | AI129: 30.83333333 | AJ129: 30.83333333 | AL129: 164.9873 | AM129: 166.7031679 | AN129: 168.4368809 | AO129: 170.6548946 | AP129: 171.9585861 | AQ129: 173.7469554 | AR129: 175.5539238 | AS129: 177.8656563 | AT129: 179.2244333 | AU129: 181.0883674 | AW129: 192.391359 | AX129: 200.9009714 | AY129: 209.7869702 | AZ129: 219.6661841 | BA129: 228.7554549 | BB129: 238.8734782 | BC129: 249.4390291 | BD129: 261.1855238 | BE129: 271.9927673 | BF129: 284.023209 | BI129: 5087.108417 | BJ129: 5140.014344 | BK129: 5193.470493 | BL129: 5261.859251 | BM129: 5302.056405 | BN129: 5357.197792 | BO129: 5412.912649 | BP129: 5484.191069 | BQ129: 5526.086693 | BR129: 5583.557994 | BU129: 5932.066904 | BV129: 6194.446618 | BW129: 6468.431581 | BX129: 6773.040677 | BY129: 7053.293194 | BZ129: 7365.265577 | CA129: 7691.03673 | CB129: 8053.220317 | CC129: 8386.44366 | CD129: 8757.382276
B130: LED 25 | C130: Offered | D130: 42.638 | E130: 43.0814352 | F130: 43.52948213 | G130: 43.98218874 | H130: 44.4396035 | I130: 44.90177538 | J130: 45.36875384 | K130: 45.84058888 | L130: 46.31733101 | M130: 46.79903125 | P130: 49.72008613 | Q130: 51.91924238 | R130: 54.21566893 | S130: 56.61366814 | T130: 59.11773262 | U130: 61.73255373 | V130: 64.46303032 | W130: 67.31427791 | X130: 70.29163829 | Y130: 73.40068953 | AA130: 75 | AB130: 75 | AC130: 75 | AD130: 75 | AE130: 75 | AF130: 75 | AG130: 75 | AH130: 75 | AI130: 75 | AJ130: 75 | AL130: 155.6287 | AM130: 157.2472385 | AN130: 158.8826098 | AO130: 160.9748108 | AP130: 162.2045528 | AQ130: 163.8914801 | AR130: 165.5959515 | AS130: 167.7765553 | AT130: 169.0582582 | AU130: 170.8164641 | AW130: 181.4783144 | AX130: 189.5052347 | AY130: 197.8871916 | AZ130: 207.2060254 | BA130: 215.7797241 | BB130: 225.3238211 | BC130: 235.2900607 | BD130: 246.3702571 | BE130: 256.5644798 | BF130: 267.9125168 | BI130: 11672.1525 | BJ130: 11793.54289 | BK130: 11916.19573 | BL130: 12073.11081 | BM130: 12165.34146 | BN130: 12291.86101 | BO130: 12419.69636 | BP130: 12583.24165 | BQ130: 12679.36936 | BR130: 12811.2348 | BU130: 13610.87358 | BV130: 14212.8926 | BW130: 14841.53937 | BX130: 15540.4519 | BY130: 16183.4793 | BZ130: 16899.28658 | CA130: 17646.75455 | CB130: 18477.76929 | CC130: 19242.33598 | CD130: 20093.43876
B131: 0 | C131: NA | AA131: 0 | AB131: 0 | AC131: 0 | AD131: 0 | AE131: 0 | AF131: 0 | AG131: 0 | AH131: 0 | AI131: 0 | AJ131: 0 | BI131: 0 | BJ131: 0 | BK131: 0 | BL131: 0 | BM131: 0 | BN131: 0 | BO131: 0 | BP131: 0 | BQ131: 0 | BR131: 0 | BU131: 0 | BV131: 0 | BW131: 0 | BX131: 0 | BY131: 0 | BZ131: 0 | CA131: 0 | CB131: 0 | CC131: 0 | CD131: 0
B132: 0 | C132: NA | AA132: 0 | AB132: 0 | AC132: 0 | AD132: 0 | AE132: 0 | AF132: 0 | AG132: 0 | AH132: 0 | AI132: 0 | AJ132: 0 | BI132: 0 | BJ132: 0 | BK132: 0 | BL132: 0 | BM132: 0 | BN132: 0 | BO132: 0 | BP132: 0 | BQ132: 0 | BR132: 0 | BU132: 0 | BV132: 0 | BW132: 0 | BX132: 0 | BY132: 0 | BZ132: 0 | CA132: 0 | CB132: 0 | CC132: 0 | CD132: 0
B133: 0 | C133: NA | AA133: 0 | AB133: 0 | AC133: 0 | AD133: 0 | AE133: 0 | AF133: 0 | AG133: 0 | AH133: 0 | AI133: 0 | AJ133: 0 | BI133: 0 | BJ133: 0 | BK133: 0 | BL133: 0 | BM133: 0 | BN133: 0 | BO133: 0 | BP133: 0 | BQ133: 0 | BR133: 0 | BU133: 0 | BV133: 0 | BW133: 0 | BX133: 0 | BY133: 0 | BZ133: 0 | CA133: 0 | CB133: 0 | CC133: 0 | CD133: 0
B134: LED 265 | C134: Offered | D134: 41.729 | E134: 42.1629816 | F134: 42.60147661 | G134: 43.04453197 | H134: 43.4921951 | I134: 43.94451393 | J134: 44.40153687 | K134: 44.86331286 | L134: 45.32989131 | M134: 45.80132218 | P134: 48.66010306 | Q134: 50.81237547 | R134: 53.05984448 | S134: 55.40672071 | T134: 57.85740102 | U134: 60.41647673 | V134: 63.08874225 | W134: 65.87920406 | X134: 68.79309007 | Y134: 71.83585941 | AA134: 44 | AB134: 44 | AC134: 44 | AD134: 44 | AE134: 44 | AF134: 44 | AG134: 44 | AH134: 44 | AI134: 44 | AJ134: 44 | AL134: 152.31085 | AM134: 153.8948828 | AN134: 155.4953896 | AO134: 157.542987 | AP134: 158.7465121 | AQ134: 160.3974758 | AR134: 162.0656096 | AS134: 164.199725 | AT134: 165.4541033 | AU134: 167.174826 | AW134: 177.6093762 | AX134: 185.4651705 | AY134: 193.6684323 | AZ134: 202.7885978 | BA134: 211.1795137 | BB134: 220.5201401 | BC134: 230.2739092 | BD134: 241.1178869 | BE134: 251.0947787 | BF134: 262.2008868 | BI134: 6701.6774 | BJ134: 6771.374845 | BK134: 6841.797143 | BL134: 6931.891428 | BM134: 6984.846533 | BN134: 7057.488937 | BO134: 7130.886822 | BP134: 7224.787902 | BQ134: 7279.980544 | BR134: 7355.692342 | BU134: 7814.812551 | BV134: 8160.4675 | BW134: 8521.411023 | BX134: 8922.698303 | BY134: 9291.898603 | BZ134: 9702.886162 | CA134: 10132.05201 | CB134: 10609.18702 | CC134: 11048.17026 | CD134: 11536.83902
B135: LED 30 | C135: Offered | D135: 32.444 | E135: 32.7814176 | F135: 33.12234434 | G135: 33.46681672 | H135: 33.81487162 | I135: 34.16654628 | J135: 34.52187836 | K135: 34.8809059 | L135: 35.24366732 | M135: 35.61020146 | P135: 37.83288321 | Q135: 39.50625967 | R135: 41.2536508 | S135: 43.07833034 | T135: 44.9837168 | U135: 46.97337993 | V135: 49.05104732 | W135: 51.22061148 | X135: 53.48613708 | Y135: 55.85186855 | AA135: 0 | AB135: 0 | AC135: 0 | AD135: 0 | AE135: 0 | AF135: 0 | AG135: 0 | AH135: 0 | AI135: 0 | AJ135: 0 | AL135: 118.4206 | AM135: 119.6521742 | AN135: 120.8965569 | AO135: 122.4885492 | AP135: 123.4242814 | AQ135: 124.7078939 | AR135: 126.004856 | AS135: 127.6641156 | AT135: 128.6393857 | AU135: 129.9772353 | AW135: 138.0900237 | AX135: 144.1978478 | AY135: 150.5758254 | AZ135: 157.666689 | BA135: 164.1905663 | BB135: 171.4528367 | BC135: 179.0363227 | BD135: 187.467438 | BE135: 195.2244003 | BF135: 203.8593202 | BI135: 0 | BJ135: 0 | BK135: 0 | BL135: 0 | BM135: 0 | BN135: 0 | BO135: 0 | BP135: 0 | BQ135: 0 | BR135: 0 | BU135: 0 | BV135: 0 | BW135: 0 | BX135: 0 | BY135: 0 | BZ135: 0 | CA135: 0 | CB135: 0 | CC135: 0 | CD135: 0
B136: LED 75 | C136: Offered | D136: 40.405 | E136: 40.825212 | F136: 41.2497942 | G136: 41.67879206 | H136: 42.1122515 | I136: 42.55021892 | J136: 42.99274119 | K136: 43.4398657 | L136: 43.89164031 | M136: 44.34811337 | P136: 47.11618932 | Q136: 49.20017328 | R136: 51.37633339 | S136: 53.64874668 | T136: 56.02167049 | U136: 58.49955048 | V136: 61.08702894 | W136: 63.78895349 | X136: 66.61038616 | Y136: 69.55661289 | AA136: 386 | AB136: 386 | AC136: 386 | AD136: 386 | AE136: 386 | AF136: 386 | AG136: 386 | AH136: 386 | AI136: 386 | AJ136: 386 | AL136: 147.47825 | AM136: 149.0120238 | AN136: 150.5617488 | AO136: 152.544379 | AP136: 153.709718 | AQ136: 155.308299 | AR136: 156.9235054 | AS136: 158.9899085 | AT136: 160.2044871 | AU136: 161.8706138 | AW136: 171.974091 | AX136: 179.5806325 | AY136: 187.5236169 | AZ136: 196.3544129 | BA136: 204.4790973 | BB136: 213.5233593 | BC136: 222.9676556 | BD136: 233.4675698 | BE136: 243.1279095 | BF136: 253.881637 | BI136: 56926.6045 | BJ136: 57518.64119 | BK136: 58116.83506 | BL136: 58882.13028 | BM136: 59331.95114 | BN136: 59949.00343 | BO136: 60572.47307 | BP136: 61370.10467 | BQ136: 61838.93203 | BR136: 62482.05692 | BU136: 66381.99913 | BV136: 69318.12413 | BW136: 72384.11612 | BX136: 75792.80336 | BY136: 78928.93156 | BZ136: 82420.01668 | CA136: 86065.51508 | CB136: 90118.48193 | CC136: 93847.37306 | CD136: 97998.3119
B137: LED 155 | C137: Offered | D137: 30.882 | E137: 31.2031728 | F137: 31.5276858 | G137: 31.85557373 | H137: 32.1868717 | I137: 32.52161516 | J137: 32.85983996 | K137: 33.2015823 | L137: 33.54687875 | M137: 33.89576629 | P137: 36.01143815 | Q137: 37.60425074 | R137: 39.26751461 | S137: 41.00434587 | T137: 42.81799847 | U137: 44.71187026 | V137: 46.68950941 | W137: 48.754621 | X137: 50.91107401 | Y137: 53.16290853 | AA137: 14 | AB137: 14 | AC137: 14 | AD137: 14 | AE137: 14 | AF137: 14 | AG137: 14 | AH137: 14 | AI137: 14 | AJ137: 14 | AL137: 112.7193 | AM137: 113.8915807 | AN137: 115.0760532 | AO137: 116.5913998 | AP137: 117.4820817 | AQ137: 118.7038953 | AR137: 119.9384159 | AS137: 121.5177912 | AT137: 122.4461074 | AU137: 123.719547 | AW137: 131.4417493 | AX137: 137.2555152 | AY137: 143.3264283 | AZ137: 150.0759059 | BA137: 156.2856944 | BB137: 163.1983265 | BC137: 170.4167094 | BD137: 178.4419129 | BE137: 185.8254201 | BF137: 194.0446161 | BI137: 1578.0702 | BJ137: 1594.48213 | BK137: 1611.064744 | BL137: 1632.279598 | BM137: 1644.749144 | BN137: 1661.854535 | BO137: 1679.137822 | BP137: 1701.249077 | BQ137: 1714.245504 | BR137: 1732.073657 | BU137: 1840.18449 | BV137: 1921.577213 | BW137: 2006.569997 | BX137: 2101.062683 | BY137: 2187.999722 | BZ137: 2284.776571 | CA137: 2385.833931 | CB137: 2498.18678 | CC137: 2601.555882 | CD137: 2716.624626
B138: LED 14 | C138: Offered | D138: 31.342 | E138: 31.6679568 | F138: 31.99730355 | G138: 32.33007551 | H138: 32.66630829 | I138: 33.0060379 | J138: 33.34930069 | K138: 33.69613342 | L138: 34.04657321 | M138: 34.40065757 | P138: 36.54784323 | Q138: 38.16438141 | R138: 39.85242027 | S138: 41.61512235 | T138: 43.45579004 | U138: 45.37787183 | V138: 47.38496872 | W138: 49.48084099 | X138: 51.66941525 | Y138: 53.95479176 | AA138: 15104.13333 | AB138: 16289.15 | AC138: 17474.16667 | AD138: 17474.16667 | AE138: 17474.16667 | AF138: 17474.16667 | AG138: 17474.16667 | AH138: 17474.16667 | AI138: 17474.16667 | AJ138: 17474.16667 | AL138: 114.3983 | AM138: 115.5880423 | AN138: 116.790158 | AO138: 118.3280764 | AP138: 119.2320253 | AQ138: 120.4720383 | AR138: 121.7249475 | AS138: 123.3278483 | AT138: 124.2699922 | AU138: 125.5624001 | AW138: 133.3996278 | AX138: 139.2999921 | AY138: 145.461334 | AZ138: 152.3113478 | BA138: 158.6136337 | BB138: 165.6292322 | BC138: 172.9551358 | BD138: 181.099878 | BE138: 188.5933657 | BF138: 196.9349899 | BI138: 1727887.176 | BJ138: 1882830.96 | BK138: 2040810.685 | BL138: 2067684.528 | BM138: 2083480.282 | BN138: 2105148.476 | BO138: 2127042.021 | BP138: 2155051.376 | BQ138: 2171514.556 | BR138: 2194098.307 | BU138: 2014885.765 | BV138: 2269078.467 | BW138: 2541815.594 | BX138: 2661513.877 | BY138: 2771641.07 | BZ138: 2894232.808 | CA138: 3022246.869 | CB138: 3164569.452 | CC138: 3295511.904 | CD138: 3441274.837
B139: 0 | C139: NA | AA139: 0 | AB139: 0 | AC139: 0 | AD139: 0 | AE139: 0 | AF139: 0 | AG139: 0 | AH139: 0 | AI139: 0 | AJ139: 0 | BI139: 0 | BJ139: 0 | BK139: 0 | BL139: 0 | BM139: 0 | BN139: 0 | BO139: 0 | BP139: 0 | BQ139: 0 | BR139: 0 | BU139: 0 | BV139: 0 | BW139: 0 | BX139: 0 | BY139: 0 | BZ139: 0 | CA139: 0 | CB139: 0 | CC139: 0 | CD139: 0
B140: 0 | C140: NA | AA140: 0 | AB140: 0 | AC140: 0 | AD140: 0 | AE140: 0 | AF140: 0 | AG140: 0 | AH140: 0 | AI140: 0 | AJ140: 0 | BI140: 0 | BJ140: 0 | BK140: 0 | BL140: 0 | BM140: 0 | BN140: 0 | BO140: 0 | BP140: 0 | BQ140: 0 | BR140: 0 | BU140: 0 | BV140: 0 | BW140: 0 | BX140: 0 | BY140: 0 | BZ140: 0 | CA140: 0 | CB140: 0 | CC140: 0 | CD140: 0
B141: 0 | C141: NA | AA141: 0 | AB141: 0 | AC141: 0 | AD141: 0 | AE141: 0 | AF141: 0 | AG141: 0 | AH141: 0 | AI141: 0 | AJ141: 0 | BI141: 0 | BJ141: 0 | BK141: 0 | BL141: 0 | BM141: 0 | BN141: 0 | BO141: 0 | BP141: 0 | BQ141: 0 | BR141: 0 | BU141: 0 | BV141: 0 | BW141: 0 | BX141: 0 | BY141: 0 | BZ141: 0 | CA141: 0 | CB141: 0 | CC141: 0 | CD141: 0
B142: LED 17 | C142: Offered | D142: 37.149 | E142: 37.5353496 | F142: 37.92571724 | G142: 38.3201447 | H142: 38.7186742 | I142: 39.12134841 | J142: 39.52821044 | K142: 39.93930382 | L142: 40.35467258 | M142: 40.77436118 | P142: 43.31937426 | Q142: 45.23542228 | R142: 47.23621852 | S142: 49.32551146 | T142: 51.50721537 | U142: 53.78541767 | V142: 56.16438654 | W142: 58.64857897 | X142: 61.24264907 | Y142: 63.95145681 | AA142: 15.66666667 | AB142: 15.66666667 | AC142: 15.66666667 | AD142: 15.66666667 | AE142: 15.66666667 | AF142: 15.66666667 | AG142: 15.66666667 | AH142: 15.66666667 | AI142: 15.66666667 | AJ142: 15.66666667 | AL142: 135.59385 | AM142: 137.004026 | AN142: 138.4288679 | AO142: 140.2517296 | AP142: 141.3231608 | AQ142: 142.7929217 | AR142: 144.2779681 | AS142: 146.177852 | AT142: 147.2945549 | AU142: 148.8264183 | AW142: 158.1157161 | AX142: 165.1092913 | AY142: 172.4121976 | AZ142: 180.5313719 | BA142: 188.0013361 | BB142: 196.3167745 | BC142: 205.0000109 | BD142: 214.653799 | BE142: 223.5356691 | BF142: 233.4228173 | BI142: 2124.30365 | BJ142: 2146.396408 | BK142: 2168.718931 | BL142: 2197.277097 | BM142: 2214.062853 | BN142: 2237.089107 | BO142: 2260.354833 | BP142: 2290.119681 | BQ142: 2307.614694 | BR142: 2331.613887 | BU142: 2477.146218 | BV142: 2586.712231 | BW142: 2701.124429 | BX142: 2828.324827 | BY142: 2945.354266 | BZ142: 3075.629467 | CA142: 3211.666837 | CB142: 3362.909518 | CC142: 3502.058816 | CD142: 3656.957472
B143: LED 175 | C143: Offered | D143: 40.771 | E143: 41.1950184 | F143: 41.62344659 | G143: 42.05633044 | H143: 42.49371627 | I143: 42.93565092 | J143: 43.38218169 | K143: 43.83335638 | L143: 44.28922329 | M143: 44.74983121 | P143: 47.54298118 | Q143: 49.64584246 | R143: 51.84171486 | S143: 54.13471231 | T143: 56.52913074 | U143: 59.02945608 | V143: 61.64037265 | W143: 64.366772 | X143: 67.21376201 | Y143: 70.1866765 | AA143: 799.5833333 | AB143: 799.5833333 | AC143: 799.5833333 | AD143: 799.5833333 | AE143: 799.5833333 | AF143: 799.5833333 | AG143: 799.5833333 | AH143: 799.5833333 | AI143: 799.5833333 | AJ143: 799.5833333 | AL143: 148.81415 | AM143: 150.3618172 | AN143: 151.9255801 | AO143: 153.9261694 | AP143: 155.1020644 | AQ143: 156.7151259 | AR143: 158.3449632 | AS143: 160.4300844 | AT143: 161.655665 | AU143: 163.3368839 | AW143: 173.5318813 | AX143: 181.207325 | AY143: 189.2222592 | AZ143: 198.1330471 | BA143: 206.3313272 | BB143: 215.4575147 | BC143: 224.9873602 | BD143: 235.5823855 | BE143: 245.3302313 | BF143: 256.1813692 | BI143: 118989.3141 | BJ143: 120226.803 | BK143: 121477.1617 | BL143: 123076.7996 | BM143: 124017.0257 | BN143: 125306.8027 | BO143: 126609.9935 | BP143: 128277.2216 | BQ143: 129257.1755 | BR143: 130601.4501 | BU143: 138753.2001 | BV143: 144890.3569 | BW143: 151298.9648 | BX143: 158423.8822 | BY143: 164979.0904 | BZ143: 172276.2378 | CA143: 179896.1434 | CB143: 188367.7491 | CC143: 196161.9641 | CD143: 204838.3532
B144: LED 14 New Tech | C144: Offered | D144: 31.965 | E144: 32.297436 | F144: 32.63332933 | G144: 32.97271596 | H144: 33.31563221 | I144: 33.66211478 | J144: 34.01220077 | K144: 34.36592766 | L144: 34.72333331 | M144: 35.08445598 | P144: 37.27432228 | Q144: 38.92299317 | R144: 40.64458599 | S144: 42.44232614 | T144: 44.31958167 | U144: 46.2798696 | V144: 48.32686252 | W144: 50.46439545 | X144: 52.69647305 | Y144: 55.02727709 | AA144: 1 | AB144: 1 | AC144: 1 | AD144: 1 | AE144: 1 | AF144: 1 | AG144: 1 | AH144: 1 | AI144: 1 | AJ144: 1 | AL144: 116.67225 | AM144: 117.8856414 | AN144: 119.1116521 | AO144: 120.6801404 | AP144: 121.6020575 | AQ144: 122.8667189 | AR144: 124.1445328 | AS144: 125.7792952 | AT144: 126.7401666 | AU144: 128.0582643 | AW144: 136.0512763 | AX144: 142.0689251 | AY144: 148.3527389 | AZ144: 155.3389137 | BA144: 161.7664731 | BB144: 168.921524 | BC144: 176.3930482 | BD144: 184.6996874 | BE144: 192.3421266 | BF144: 200.8495614 | BI144: 116.67225 | BJ144: 117.8856414 | BK144: 119.1116521 | BL144: 120.6801404 | BM144: 121.6020575 | BN144: 122.8667189 | BO144: 124.1445328 | BP144: 125.7792952 | BQ144: 126.7401666 | BR144: 128.0582643 | BU144: 136.0512763 | BV144: 142.0689251 | BW144: 148.3527389 | BX144: 155.3389137 | BY144: 161.7664731 | BZ144: 168.921524 | CA144: 176.3930482 | CB144: 184.6996874 | CC144: 192.3421266 | CD144: 200.8495614
B145: LED 75 New Tech | C145: Offered | D145: 40.405 | E145: 40.825212 | F145: 41.2497942 | G145: 41.67879206 | H145: 42.1122515 | I145: 42.55021892 | J145: 42.99274119 | K145: 43.4398657 | L145: 43.89164031 | M145: 44.34811337 | P145: 47.11618932 | Q145: 49.20017328 | R145: 51.37633339 | S145: 53.64874668 | T145: 56.02167049 | U145: 58.49955048 | V145: 61.08702894 | W145: 63.78895349 | X145: 66.61038616 | Y145: 69.55661289 | AA145: 1 | AB145: 1 | AC145: 1 | AD145: 1 | AE145: 1 | AF145: 1 | AG145: 1 | AH145: 1 | AI145: 1 | AJ145: 1 | AL145: 147.47825 | AM145: 149.0120238 | AN145: 150.5617488 | AO145: 152.544379 | AP145: 153.709718 | AQ145: 155.308299 | AR145: 156.9235054 | AS145: 158.9899085 | AT145: 160.2044871 | AU145: 161.8706138 | AW145: 171.974091 | AX145: 179.5806325 | AY145: 187.5236169 | AZ145: 196.3544129 | BA145: 204.4790973 | BB145: 213.5233593 | BC145: 222.9676556 | BD145: 233.4675698 | BE145: 243.1279095 | BF145: 253.881637 | BI145: 147.47825 | BJ145: 149.0120238 | BK145: 150.5617488 | BL145: 152.544379 | BM145: 153.709718 | BN145: 155.308299 | BO145: 156.9235054 | BP145: 158.9899085 | BQ145: 160.2044871 | BR145: 161.8706138 | BU145: 171.974091 | BV145: 179.5806325 | BW145: 187.5236169 | BX145: 196.3544129 | BY145: 204.4790973 | BZ145: 213.5233593 | CA145: 222.9676556 | CB145: 233.4675698 | CC145: 243.1279095 | CD145: 253.881637
B146: 0 | C146: NA | AA146: 0 | AB146: 0 | AC146: 0 | AD146: 0 | AE146: 0 | AF146: 0 | AG146: 0 | AH146: 0 | AI146: 0 | AJ146: 0 | BI146: 0 | BJ146: 0 | BK146: 0 | BL146: 0 | BM146: 0 | BN146: 0 | BO146: 0 | BP146: 0 | BQ146: 0 | BR146: 0 | BU146: 0 | BV146: 0 | BW146: 0 | BX146: 0 | BY146: 0 | BZ146: 0 | CA146: 0 | CB146: 0 | CC146: 0 | CD146: 0
B147: 0 | C147: NA | AA147: 0 | AB147: 0 | AC147: 0 | AD147: 0 | AE147: 0 | AF147: 0 | AG147: 0 | AH147: 0 | AI147: 0 | AJ147: 0 | BI147: 0 | BJ147: 0 | BK147: 0 | BL147: 0 | BM147: 0 | BN147: 0 | BO147: 0 | BP147: 0 | BQ147: 0 | BR147: 0 | BU147: 0 | BV147: 0 | BW147: 0 | BX147: 0 | BY147: 0 | BZ147: 0 | CA147: 0 | CB147: 0 | CC147: 0 | CD147: 0
B148: 0 | C148: NA | AA148: 0 | AB148: 0 | AC148: 0 | AD148: 0 | AE148: 0 | AF148: 0 | AG148: 0 | AH148: 0 | AI148: 0 | AJ148: 0 | BI148: 0 | BJ148: 0 | BK148: 0 | BL148: 0 | BM148: 0 | BN148: 0 | BO148: 0 | BP148: 0 | BQ148: 0 | BR148: 0 | BU148: 0 | BV148: 0 | BW148: 0 | BX148: 0 | BY148: 0 | BZ148: 0 | CA148: 0 | CB148: 0 | CC148: 0 | CD148: 0
B149: 0 | C149: NA | AA149: 0 | AB149: 0 | AC149: 0 | AD149: 0 | AE149: 0 | AF149: 0 | AG149: 0 | AH149: 0 | AI149: 0 | AJ149: 0 | BI149: 0 | BJ149: 0 | BK149: 0 | BL149: 0 | BM149: 0 | BN149: 0 | BO149: 0 | BP149: 0 | BQ149: 0 | BR149: 0 | BU149: 0 | BV149: 0 | BW149: 0 | BX149: 0 | BY149: 0 | BZ149: 0 | CA149: 0 | CB149: 0 | CC149: 0 | CD149: 0
B150: 0 | C150: NA | AA150: 0 | AB150: 0 | AC150: 0 | AD150: 0 | AE150: 0 | AF150: 0 | AG150: 0 | AH150: 0 | AI150: 0 | AJ150: 0 | BI150: 0 | BJ150: 0 | BK150: 0 | BL150: 0 | BM150: 0 | BN150: 0 | BO150: 0 | BP150: 0 | BQ150: 0 | BR150: 0 | BU150: 0 | BV150: 0 | BW150: 0 | BX150: 0 | BY150: 0 | BZ150: 0 | CA150: 0 | CB150: 0 | CC150: 0 | CD150: 0
B151: 0 | C151: NA | AA151: 0 | AB151: 0 | AC151: 0 | AD151: 0 | AE151: 0 | AF151: 0 | AG151: 0 | AH151: 0 | AI151: 0 | AJ151: 0 | BI151: 0 | BJ151: 0 | BK151: 0 | BL151: 0 | BM151: 0 | BN151: 0 | BO151: 0 | BP151: 0 | BQ151: 0 | BR151: 0 | BU151: 0 | BV151: 0 | BW151: 0 | BX151: 0 | BY151: 0 | BZ151: 0 | CA151: 0 | CB151: 0 | CC151: 0 | CD151: 0
B152: 0 | C152: NA | AA152: 0 | AB152: 0 | AC152: 0 | AD152: 0 | AE152: 0 | AF152: 0 | AG152: 0 | AH152: 0 | AI152: 0 | AJ152: 0 | BI152: 0 | BJ152: 0 | BK152: 0 | BL152: 0 | BM152: 0 | BN152: 0 | BO152: 0 | BP152: 0 | BQ152: 0 | BR152: 0 | BU152: 0 | BV152: 0 | BW152: 0 | BX152: 0 | BY152: 0 | BZ152: 0 | CA152: 0 | CB152: 0 | CC152: 0 | CD152: 0
B153: 0 | C153: NA | AA153: 0 | AB153: 0 | AC153: 0 | AD153: 0 | AE153: 0 | AF153: 0 | AG153: 0 | AH153: 0 | AI153: 0 | AJ153: 0 | BI153: 0 | BJ153: 0 | BK153: 0 | BL153: 0 | BM153: 0 | BN153: 0 | BO153: 0 | BP153: 0 | BQ153: 0 | BR153: 0 | BU153: 0 | BV153: 0 | BW153: 0 | BX153: 0 | BY153: 0 | BZ153: 0 | CA153: 0 | CB153: 0 | CC153: 0 | CD153: 0
AA154: 30238 | AB154: 30238 | AC154: 30238 | AD154: 30238 | AE154: 30238 | AF154: 30238 | AG154: 30238 | AH154: 30238 | AI154: 30238 | AJ154: 30238 | BI154: 3696571.973 | BJ154: 3661913.309 | BK154: 3626133.924 | BL154: 3673883.65 | BM154: 3701949.712 | BN154: 3740449.989 | BO154: 3779350.669 | BP154: 3829117.987 | BQ154: 3858369.938 | BR154: 3898496.985 | BU154: 4310565.151 | BV154: 4413125.138 | BW154: 4516324.723 | BX154: 4729005.893 | BY154: 4924681.05 | BZ154: 5142503.342 | CA154: 5369960.074 | CB154: 5622840.339 | CC154: 5855500.266 | CD154: 6114493.381
AA155: TRUE | AB155: TRUE | AC155: TRUE | AD155: TRUE | AE155: TRUE | AF155: TRUE | AG155: TRUE | AH155: TRUE | AI155: TRUE | AJ155: TRUE
B156: Total | O156: Price (cents) per Light per day Nominal Smoothed | P156: 0 | Q156: 0 | R156: 0 | S156: 0 | T156: 0 | U156: 0 | V156: 0 | W156: 0 | X156: 0 | Y156: 0 | AA156: 51858.75 | AB156: 51858.75 | AC156: 51858.75 | AD156: 51858.75 | AE156: 51858.75 | AF156: 51858.75 | AG156: 51858.75 | AH156: 51858.75 | AI156: 51858.75 | AJ156: 51858.75 | BI156: 4497057.745 | BJ156: 4463198.304 | BK156: 4428148.185 | BL156: 4486459.011 | BM156: 4520732.616 | BN156: 4559232.893 | BO156: 4606648.915 | BP156: 4667310.278 | BQ156: 4702965.468 | BR156: 4751876.308 | BU156: 5233435.04 | BV156: 5373265.904 | BW156: 5515227.939 | BX156: 5774949.106 | BY156: 6013902.937 | BZ156: 6268195.125 | CA156: 6545442.039 | CB156: 6853677.685 | CC156: 7137266.771 | CD156: 7452953.368
AA157: TRUE | AB157: TRUE | AC157: TRUE | AD157: TRUE | AE157: TRUE | AF157: TRUE | AG157: TRUE | AH157: TRUE | AI157: TRUE | AJ157: TRUE

Sheet Unsmoothed Prices
B4: Private Contract Lights
O6: Days | Q6: 365 | R6: 365 | S6: 365 | T6: 366 | U6: 365 | V6: 365 | W6: 365 | X6: 366 | Y6: 365 | Z6: 365
D7: 2 | E7: 16 | F7: 17 | G7: 18 | H7: 19 | I7: 20 | J7: 21 | K7: 22 | L7: 23 | M7: 24 | N7: 25
C8: Price (cents) per Light per day | P8: Revenue ($m) - Real | AB8: Volumes
B9: Private Contract Lights | C9: Offered / No Longer Offered / NA | D9: 2023-24 | E9: 2024-25 | F9: 2025-26 | G9: 2026-27 | H9: 2027-28 | I9: 2028-29 | J9: 2029-30 | K9: 2030-31 | L9: 2031-32 | M9: 2032-33 | N9: 2033-34 | Q9: 2024-25 | R9: 2025-26 | S9: 2026-27 | T9: 2027-28 | U9: 2028-29 | V9: 2029-30 | W9: 2030-31 | X9: 2031-32 | Y9: 2032-33 | Z9: 2033-34 | AC9: 2024-25 | AD9: 2025-26 | AE9: 2026-27 | AF9: 2027-28 | AG9: 2028-29 | AH9: 2029-30 | AI9: 2030-31 | AJ9: 2031-32 | AK9: 2032-33 | AL9: 2033-34
A10: -0.2901367188 | B10: 50W Mercury Vapour | C10: Obsolete, no new Connections | D10: 20.48 | E10: 14.538 | F10: 14.712 | G10: 15.116 | H10: 15.078 | I10: 15.126 | J10: 12.793 | K10: 12.8 | L10: 12.772 | M10: 12.814 | N10: 12.821 | Q10: 0.00362955708 | R10: 0.00183649896 | S10: 0 | T10: 0 | U10: 0 | V10: 0 | W10: 0 | X10: 0 | Y10: 0 | Z10: 0 | AC10: 68.4 | AD10: 34.2 | AE10: 0 | AF10: 0 | AG10: 0 | AH10: 0 | AI10: 0 | AJ10: 0 | AK10: 0 | AL10: 0
A11: -0.2893835616 | B11: 80W Mercury Vapour | C11: Obsolete, no new Connections | D11: 20.44 | E11: 14.525 | F11: 14.7 | G11: 15.103 | H11: 15.065 | I11: 15.114 | J11: 12.78 | K11: 12.787 | L11: 12.76 | M11: 12.802 | N11: 12.809 | Q11: 0.005190290875 | R11: 0.00262641225 | S11: 0 | T11: 0 | U11: 0 | V11: 0 | W11: 0 | X11: 0 | Y11: 0 | Z11: 0 | AC11: 97.9 | AD11: 48.95 | AE11: 0 | AF11: 0 | AG11: 0 | AH11: 0 | AI11: 0 | AJ11: 0 | AK11: 0 | AL11: 0
A12: -0.2895572264 | B12: 125W Mercury Vapour | C12: Obsolete, no new Connections | D12: 23.94 | E12: 17.008 | F12: 17.187 | G12: 17.593 | H12: 17.55 | I12: 17.607 | J12: 15.276 | K12: 15.285 | L12: 15.252 | M12: 15.303 | N12: 15.313 | Q12: 0.00861659296 | R12: 0.00435363897 | S12: 0 | T12: 0 | U12: 0 | V12: 0 | W12: 0 | X12: 0 | Y12: 0 | Z12: 0 | AC12: 138.8 | AD12: 69.4 | AE12: 0 | AF12: 0 | AG12: 0 | AH12: 0 | AI12: 0 | AJ12: 0 | AK12: 0 | AL12: 0
A13: -0.2781954887 | B13: 250W Mercury Vapour | C13: Obsolete, no new Connections | D13: 23.94 | E13: 17.28 | F13: 17.459 | G13: 17.865 | H13: 17.821 | I13: 17.879 | J13: 15.548 | K13: 15.557 | L13: 15.523 | M13: 15.575 | N13: 15.584 | Q13: 0.0007064064 | R13: 0.00035686196 | S13: 0 | T13: 0 | U13: 0 | V13: 0 | W13: 0 | X13: 0 | Y13: 0 | Z13: 0 | AC13: 11.2 | AD13: 5.6 | AE13: 0 | AF13: 0 | AG13: 0 | AH13: 0 | AI13: 0 | AJ13: 0 | AK13: 0 | AL13: 0
A14: 0 | B14: 0 | C14: NA | AC14: 0 | AD14: 0 | AE14: 0 | AF14: 0 | AG14: 0 | AH14: 0 | AI14: 0 | AJ14: 0 | AK14: 0 | AL14: 0
A15: -0.2473421927 | B15: 400W Mercury Vapour | C15: Obsolete, no new Connections | D15: 24.08 | E15: 18.124 | F15: 18.303 | G15: 18.709 | H15: 18.663 | I15: 18.723 | J15: 16.392 | K15: 16.401 | L15: 16.365 | M15: 16.419 | N15: 16.428 | Q15: 0.00068798704 | R15: 0.00034739094 | S15: 0 | T15: 0 | U15: 0 | V15: 0 | W15: 0 | X15: 0 | Y15: 0 | Z15: 0 | AC15: 10.4 | AD15: 5.2 | AE15: 0 | AF15: 0 | AG15: 0 | AH15: 0 | AI15: 0 | AJ15: 0 | AK15: 0 | AL15: 0
A16: -0.261938873 | B16: 70W Sodium Vapour | C16: Offered | D16: 20.94 | E16: 15.455 | F16: 15.629 | G16: 16.033 | H16: 15.993 | I16: 16.044 | J16: 13.71 | K16: 13.717 | L16: 13.687 | M16: 13.731 | N16: 13.739 | Q16: 0.001842751167 | R16: 0.0009317488833 | S16: 0 | T16: 0 | U16: 0 | V16: 0 | W16: 0 | X16: 0 | Y16: 0 | Z16: 0 | AC16: 32.66666667 | AD16: 16.33333333 | AE16: 0 | AF16: 0 | AG16: 0 | AH16: 0 | AI16: 0 | AJ16: 0 | AK16: 0 | AL16: 0
A17: 0 | B17: 0 | C17: NA | AC17: 0 | AD17: 0 | AE17: 0 | AF17: 0 | AG17: 0 | AH17: 0 | AI17: 0 | AJ17: 0 | AK17: 0 | AL17: 0
A18: -0.2574698795 | B18: 100W Sodium Vapour | C18: Offered | D18: 24.9 | E18: 18.489 | F18: 18.668 | G18: 19.074 | H18: 19.027 | I18: 19.088 | J18: 16.756 | K18: 16.766 | L18: 16.729 | M18: 16.784 | N18: 16.793 | Q18: 5.398788e-05 | R18: 2.725528e-05 | S18: 0 | T18: 0 | U18: 0 | V18: 0 | W18: 0 | X18: 0 | Y18: 0 | Z18: 0 | AC18: 0.8 | AD18: 0.4 | AE18: 0 | AF18: 0 | AG18: 0 | AH18: 0 | AI18: 0 | AJ18: 0 | AK18: 0 | AL18: 0
A19: 0 | B19: 0 | C19: NA | AC19: 0 | AD19: 0 | AE19: 0 | AF19: 0 | AG19: 0 | AH19: 0 | AI19: 0 | AJ19: 0 | AK19: 0 | AL19: 0
A20: -0.2932088959 | B20: 150W Sodium Vapour | C20: Offered | D20: 25.18 | E20: 17.797 | F20: 17.976 | G20: 18.382 | H20: 18.336 | I20: 18.396 | J20: 16.064 | K20: 16.074 | L20: 16.039 | M20: 16.092 | N20: 16.101 | Q20: 0.00431328092 | R20: 0.00217833168 | S20: 0 | T20: 0 | U20: 0 | V20: 0 | W20: 0 | X20: 0 | Y20: 0 | Z20: 0 | AC20: 66.4 | AD20: 33.2 | AE20: 0 | AF20: 0 | AG20: 0 | AH20: 0 | AI20: 0 | AJ20: 0 | AK20: 0 | AL20: 0
A21: 0 | B21: 0 | C21: NA | AC21: 0 | AD21: 0 | AE21: 0 | AF21: 0 | AG21: 0 | AH21: 0 | AI21: 0 | AJ21: 0 | AK21: 0 | AL21: 0
A22: 0 | B22: 0 | C22: NA | AC22: 0 | AD22: 0 | AE22: 0 | AF22: 0 | AG22: 0 | AH22: 0 | AI22: 0 | AJ22: 0 | AK22: 0 | AL22: 0
A23: 0 | B23: 0 | C23: NA | AC23: 0 | AD23: 0 | AE23: 0 | AF23: 0 | AG23: 0 | AH23: 0 | AI23: 0 | AJ23: 0 | AK23: 0 | AL23: 0
A24: -0.2710059172 | B24: 250W Sodium Vapour | C24: Offered | D24: 25.35 | E24: 18.48 | F24: 18.66 | G24: 19.066 | H24: 19.018 | I24: 19.079 | J24: 16.748 | K24: 16.757 | L24: 16.721 | M24: 16.776 | N24: 16.785 | Q24: 0.0047014044 | R24: 0.00237359865 | S24: 0 | T24: 0 | U24: 0 | V24: 0 | W24: 0 | X24: 0 | Y24: 0 | Z24: 0 | AC24: 69.7 | AD24: 34.85 | AE24: 0 | AF24: 0 | AG24: 0 | AH24: 0 | AI24: 0 | AJ24: 0 | AK24: 0 | AL24: 0
A25: 0 | B25: 0 | C25: NA | AC25: 0 | AD25: 0 | AE25: 0 | AF25: 0 | AG25: 0 | AH25: 0 | AI25: 0 | AJ25: 0 | AK25: 0 | AL25: 0
A26: 0 | B26: 0 | C26: NA | AC26: 0 | AD26: 0 | AE26: 0 | AF26: 0 | AG26: 0 | AH26: 0 | AI26: 0 | AJ26: 0 | AK26: 0 | AL26: 0
A27: 0 | B27: 0 | C27: NA | AC27: 0 | AD27: 0 | AE27: 0 | AF27: 0 | AG27: 0 | AH27: 0 | AI27: 0 | AJ27: 0 | AK27: 0 | AL27: 0
A28: -0.2622047244 | B28: 400W Sodium Vapour | C28: Offered | D28: 25.4 | E28: 18.74 | F28: 18.919 | G28: 19.325 | H28: 19.277 | I28: 19.339 | J28: 17.008 | K28: 17.017 | L28: 16.98 | M28: 17.035 | N28: 17.045 | Q28: 0.002599238 | R28: 0.00131203265 | S28: 0 | T28: 0 | U28: 0 | V28: 0 | W28: 0 | X28: 0 | Y28: 0 | Z28: 0 | AC28: 38 | AD28: 19 | AE28: 0 | AF28: 0 | AG28: 0 | AH28: 0 | AI28: 0 | AJ28: 0 | AK28: 0 | AL28: 0
A29: 0 | B29: 0 | C29: NA | AC29: 0 | AD29: 0 | AE29: 0 | AF29: 0 | AG29: 0 | AH29: 0 | AI29: 0 | AJ29: 0 | AK29: 0 | AL29: 0
A30: -0.2519921105 | B30: 250W Sodium Vapour - Flood Light | C30: Offered | D30: 25.35 | E30: 18.962 | F30: 19.141 | G30: 19.547 | H30: 19.498 | I30: 19.561 | J30: 17.229 | K30: 17.238 | L30: 17.2 | M30: 17.257 | N30: 17.266 | Q30: 0 | R30: 0 | S30: 0 | T30: 0 | U30: 0 | V30: 0 | W30: 0 | X30: 0 | Y30: 0 | Z30: 0 | AC30: 0 | AD30: 0 | AE30: 0 | AF30: 0 | AG30: 0 | AH30: 0 | AI30: 0 | AJ30: 0 | AK30: 0 | AL30: 0
A31: -0.2622047244 | B31: 400W Sodium Vapour - Flood Light | C31: Offered | D31: 25.4 | E31: 18.74 | F31: 18.919 | G31: 19.325 | H31: 19.277 | I31: 19.339 | J31: 17.008 | K31: 17.017 | L31: 16.98 | M31: 17.035 | N31: 17.045 | Q31: 0 | R31: 0 | S31: 0 | T31: 0 | U31: 0 | V31: 0 | W31: 0 | X31: 0 | Y31: 0 | Z31: 0 | AC31: 0 | AD31: 0 | AE31: 0 | AF31: 0 | AG31: 0 | AH31: 0 | AI31: 0 | AJ31: 0 | AK31: 0 | AL31: 0
A32: -0.2781189084 | B32: 1x20W Fluorescent | C32: Obsolete, no new Connections | D32: 20.52 | E32: 14.813 | F32: 14.988 | G32: 15.391 | H32: 15.353 | I32: 15.402 | J32: 13.069 | K32: 13.076 | L32: 13.047 | M32: 13.09 | N32: 13.097 | Q32: 0.00058392846 | R32: 0.00029541348 | S32: 0 | T32: 0 | U32: 0 | V32: 0 | W32: 0 | X32: 0 | Y32: 0 | Z32: 0 | AC32: 10.8 | AD32: 5.4 | AE32: 0 | AF32: 0 | AG32: 0 | AH32: 0 | AI32: 0 | AJ32: 0 | AK32: 0 | AL32: 0
A33: -0.2784705309 | B33: 1x40W Fluorescent | C33: Obsolete, no new Connections | D33: 20.53 | E33: 14.813 | F33: 14.988 | G33: 15.391 | H33: 15.353 | I33: 15.402 | J33: 13.069 | K33: 13.076 | L33: 13.047 | M33: 13.09 | N33: 13.097 | Q33: 0.0002162698 | R33: 0.0001094124 | S33: 0 | T33: 0 | U33: 0 | V33: 0 | W33: 0 | X33: 0 | Y33: 0 | Z33: 0 | AC33: 4 | AD33: 2 | AE33: 0 | AF33: 0 | AG33: 0 | AH33: 0 | AI33: 0 | AJ33: 0 | AK33: 0 | AL33: 0
A34: -0.2881787602 | B34: 2x20W Fluorescent | C34: Obsolete, no new Connections | D34: 20.81 | E34: 14.813 | F34: 14.988 | G34: 15.391 | H34: 15.353 | I34: 15.402 | J34: 13.069 | K34: 13.076 | L34: 13.047 | M34: 13.09 | N34: 13.097 | Q34: 0.00099484108 | R34: 0.00050329704 | S34: 0 | T34: 0 | U34: 0 | V34: 0 | W34: 0 | X34: 0 | Y34: 0 | Z34: 0 | AC34: 18.4 | AD34: 9.2 | AE34: 0 | AF34: 0 | AG34: 0 | AH34: 0 | AI34: 0 | AJ34: 0 | AK34: 0 | AL34: 0
A35: -0.2840502658 | B35: 2x24W Fluorescent | C35: Obsolete, no new Connections | D35: 20.69 | E35: 14.813 | F35: 14.988 | G35: 15.391 | H35: 15.353 | I35: 15.402 | J35: 13.069 | K35: 13.076 | L35: 13.047 | M35: 13.09 | N35: 13.097 | Q35: 0 | R35: 0 | S35: 0 | T35: 0 | U35: 0 | V35: 0 | W35: 0 | X35: 0 | Y35: 0 | Z35: 0 | AC35: 0 | AD35: 0 | AE35: 0 | AF35: 0 | AG35: 0 | AH35: 0 | AI35: 0 | AJ35: 0 | AK35: 0 | AL35: 0
A36: -0.2892034549 | B36: 2x40W Fluorescent | C36: Obsolete, no new Connections | D36: 20.84 | E36: 14.813 | F36: 14.988 | G36: 15.391 | H36: 15.353 | I36: 15.402 | J36: 13.069 | K36: 13.076 | L36: 13.047 | M36: 13.09 | N36: 13.097 | Q36: 6.488094e-05 | R36: 3.282372e-05 | S36: 0 | T36: 0 | U36: 0 | V36: 0 | W36: 0 | X36: 0 | Y36: 0 | Z36: 0 | AC36: 1.2 | AD36: 0.6 | AE36: 0 | AF36: 0 | AG36: 0 | AH36: 0 | AI36: 0 | AJ36: 0 | AK36: 0 | AL36: 0
A37: -0.4077169132 | B37: 4x40W Fluorescent | C37: Obsolete, no new Connections | D37: 25.01 | E37: 14.813 | F37: 14.988 | G37: 15.391 | H37: 15.353 | I37: 15.402 | J37: 13.069 | K37: 13.076 | L37: 13.047 | M37: 13.09 | N37: 13.097 | Q37: 2.162698e-05 | R37: 1.094124e-05 | S37: 0 | T37: 0 | U37: 0 | V37: 0 | W37: 0 | X37: 0 | Y37: 0 | Z37: 0 | AC37: 0.4 | AD37: 0.2 | AE37: 0 | AF37: 0 | AG37: 0 | AH37: 0 | AI37: 0 | AJ37: 0 | AK37: 0 | AL37: 0
A38: -0.283357523 | B38: 32W Compact Fluorescent | C38: Not Offered | D38: 20.67 | E38: 14.813 | F38: 14.988 | G38: 15.391 | H38: 15.353 | I38: 15.402 | J38: 13.069 | K38: 13.076 | L38: 13.047 | M38: 13.09 | N38: 13.097 | Q38: 0 | R38: 0 | S38: 0 | T38: 0 | U38: 0 | V38: 0 | W38: 0 | X38: 0 | Y38: 0 | Z38: 0 | AC38: 0 | AD38: 0 | AE38: 0 | AF38: 0 | AG38: 0 | AH38: 0 | AI38: 0 | AJ38: 0 | AK38: 0 | AL38: 0
A39: -0.283357523 | B39: 42W Compact Fluorescent | C39: Offered | D39: 20.67 | E39: 14.813 | F39: 14.988 | G39: 15.391 | H39: 15.353 | I39: 15.402 | J39: 13.069 | K39: 13.076 | L39: 13.047 | M39: 13.09 | N39: 13.097 | Q39: 0.0004505620833 | R39: 0.0002279425 | S39: 0 | T39: 0 | U39: 0 | V39: 0 | W39: 0 | X39: 0 | Y39: 0 | Z39: 0 | AC39: 8.333333333 | AD39: 4.166666667 | AE39: 0 | AF39: 0 | AG39: 0 | AH39: 0 | AI39: 0 | AJ39: 0 | AK39: 0 | AL39: 0
A40: 0 | B40: 0 | C40: NA | AC40: 0 | AD40: 0 | AE40: 0 | AF40: 0 | AG40: 0 | AH40: 0 | AI40: 0 | AJ40: 0 | AK40: 0 | AL40: 0
A41: -0.240913556 | B41: 60W Incandescent | C41: Obsolete, no new Connections | D41: 20.36 | E41: 15.455 | F41: 15.629 | G41: 16.033 | H41: 15.993 | I41: 16.044 | J41: 13.71 | K41: 13.717 | L41: 13.687 | M41: 13.731 | N41: 13.739 | Q41: 0.000225643 | R41: 0.0001140917 | S41: 0 | T41: 0 | U41: 0 | V41: 0 | W41: 0 | X41: 0 | Y41: 0 | Z41: 0 | AC41: 4 | AD41: 2 | AE41: 0 | AF41: 0 | AG41: 0 | AH41: 0 | AI41: 0 | AJ41: 0 | AK41: 0 | AL41: 0
A42: -0.2258995816 | B42: 100W Incandescent | C42: Obsolete, no new Connections | D42: 23.9 | E42: 18.501 | F42: 18.68 | G42: 19.086 | H42: 19.039 | I42: 19.1 | J42: 16.769 | K42: 16.778 | L42: 16.741 | M42: 16.796 | N42: 16.805 | Q42: 0.0001350573 | R42: 6.8182e-05 | S42: 0 | T42: 0 | U42: 0 | V42: 0 | W42: 0 | X42: 0 | Y42: 0 | Z42: 0 | AC42: 2 | AD42: 1 | AE42: 0 | AF42: 0 | AG42: 0 | AH42: 0 | AI42: 0 | AJ42: 0 | AK42: 0 | AL42: 0
A43: -0.2794678316 | B43: 100W Metal Halide | C43: Offered | D43: 25.18 | E43: 18.143 | F43: 18.322 | G43: 18.728 | H43: 18.682 | I43: 18.742 | J43: 16.411 | K43: 16.42 | L43: 16.384 | M43: 16.438 | N43: 16.447 | Q43: 0 | R43: 0 | S43: 0 | T43: 0 | U43: 0 | V43: 0 | W43: 0 | X43: 0 | Y43: 0 | Z43: 0 | AC43: 0 | AD43: 0 | AE43: 0 | AF43: 0 | AG43: 0 | AH43: 0 | AI43: 0 | AJ43: 0 | AK43: 0 | AL43: 0
A44: -0.2052863436 | B44: 150W Metal Halide | C44: Offered | D44: 24.97 | E44: 19.844 | F44: 20.023 | G44: 20.429 | H44: 20.378 | I44: 20.443 | J44: 18.112 | K44: 18.121 | L44: 18.08 | M44: 18.139 | N44: 18.148 | Q44: 0.00078225048 | R44: 0.00039465333 | S44: 0 | T44: 0 | U44: 0 | V44: 0 | W44: 0 | X44: 0 | Y44: 0 | Z44: 0 | AC44: 10.8 | AD44: 5.4 | AE44: 0 | AF44: 0 | AG44: 0 | AH44: 0 | AI44: 0 | AJ44: 0 | AK44: 0 | AL44: 0
A45: -0.2377252703 | B45: 250W Metal Halide | C45: Offered | D45: 24.97 | E45: 19.034 | F45: 19.213 | G45: 19.619 | H45: 19.57 | I45: 19.633 | J45: 17.302 | K45: 17.311 | L45: 17.273 | M45: 17.329 | N45: 17.338 | Q45: 0.0011115856 | R45: 0.0005610196 | S45: 0 | T45: 0 | U45: 0 | V45: 0 | W45: 0 | X45: 0 | Y45: 0 | Z45: 0 | AC45: 16 | AD45: 8 | AE45: 0 | AF45: 0 | AG45: 0 | AH45: 0 | AI45: 0 | AJ45: 0 | AK45: 0 | AL45: 0
A46: -0.2764316323 | B46: 400W Metal Halide | C46: Offered | D46: 25.67 | E46: 18.574 | F46: 18.753 | G46: 19.159 | H46: 19.111 | I46: 19.173 | J46: 16.841 | K46: 16.851 | L46: 16.814 | M46: 16.869 | N46: 16.878 | Q46: 0.00024406236 | R46: 0.00012320721 | S46: 0 | T46: 0 | U46: 0 | V46: 0 | W46: 0 | X46: 0 | Y46: 0 | Z46: 0 | AC46: 3.6 | AD46: 1.8 | AE46: 0 | AF46: 0 | AG46: 0 | AH46: 0 | AI46: 0 | AJ46: 0 | AK46: 0 | AL46: 0
A47: -0.2764316323 | B47: 400W Metal Halide - Flood Light | C47: Offered | D47: 25.67 | E47: 18.574 | F47: 18.753 | G47: 19.159 | H47: 19.111 | I47: 19.173 | J47: 16.841 | K47: 16.851 | L47: 16.814 | M47: 16.869 | N47: 16.878 | Q47: 5.423608e-05 | R47: 2.737938e-05 | S47: 0 | T47: 0 | U47: 0 | V47: 0 | W47: 0 | X47: 0 | Y47: 0 | Z47: 0 | AC47: 0.8 | AD47: 0.4 | AE47: 0 | AF47: 0 | AG47: 0 | AH47: 0 | AI47: 0 | AJ47: 0 | AK47: 0 | AL47: 0
A48: -0.3455621302 | B48: LED 18 | C48: Offered | D48: 15.21 | E48: 9.954 | F48: 10.116 | G48: 10.514 | H48: 10.486 | I48: 10.516 | J48: 8.178 | K48: 8.18 | L48: 8.159 | M48: 8.183 | N48: 8.185 | Q48: 0.1972645314 | R48: 0.2070344269 | S48: 0.2219974237 | T48: 0.2220128112 | U48: 0.2220396526 | V48: 0.1726740471 | W48: 0.172716276 | X48: 0.1727448528 | Y48: 0.1727796194 | Z48: 0.1728218483 | AC48: 5429.483333 | AD48: 5607.133333 | AE48: 5784.783333 | AF48: 5784.783333 | AG48: 5784.783333 | AH48: 5784.783333 | AI48: 5784.783333 | AJ48: 5784.783333 | AK48: 5784.783333 | AL48: 5784.783333
A49: 0 | B49: 0 | C49: NA | AC49: 0 | AD49: 0 | AE49: 0 | AF49: 0 | AG49: 0 | AH49: 0 | AI49: 0 | AJ49: 0 | AK49: 0 | AL49: 0
A50: 0 | B50: 0 | C50: NA | AC50: 0 | AD50: 0 | AE50: 0 | AF50: 0 | AG50: 0 | AH50: 0 | AI50: 0 | AJ50: 0 | AK50: 0 | AL50: 0
A51: 0 | B51: 0 | C51: NA | AC51: 0 | AD51: 0 | AE51: 0 | AF51: 0 | AG51: 0 | AH51: 0 | AI51: 0 | AJ51: 0 | AK51: 0 | AL51: 0
A52: -0.3455621302 | B52: LED 20 | C52: Offered | D52: 15.21 | E52: 9.954 | F52: 10.116 | G52: 10.514 | H52: 10.486 | I52: 10.516 | J52: 8.178 | K52: 8.18 | L52: 8.159 | M52: 8.183 | N52: 8.185 | Q52: 7.26642e-05 | R52: 7.38468e-05 | S52: 7.67522e-05 | T52: 7.675752e-05 | U52: 7.67668e-05 | V52: 5.96994e-05 | W52: 5.9714e-05 | X52: 5.972388e-05 | Y52: 5.97359e-05 | Z52: 5.97505e-05 | AC52: 2 | AD52: 2 | AE52: 2 | AF52: 2 | AG52: 2 | AH52: 2 | AI52: 2 | AJ52: 2 | AK52: 2 | AL52: 2
A53: -0.2907955293 | B53: LED 200 | C53: Offered | D53: 15.21 | E53: 10.787 | F53: 10.951 | G53: 11.349 | H53: 11.319 | I53: 11.352 | J53: 9.014 | K53: 9.016 | L53: 8.994 | M53: 9.021 | N53: 9.023 | Q53: 3.937255e-05 | R53: 3.997115e-05 | S53: 4.142385e-05 | T53: 4.142754e-05 | U53: 4.14348e-05 | V53: 3.29011e-05 | W53: 3.29084e-05 | X53: 3.291804e-05 | Y53: 3.292665e-05 | Z53: 3.293395e-05 | AC53: 1 | AD53: 1 | AE53: 1 | AF53: 1 | AG53: 1 | AH53: 1 | AI53: 1 | AJ53: 1 | AK53: 1 | AL53: 1
A54: -0.2907955293 | B54: LED 240 | C54: Offered | D54: 15.21 | E54: 10.787 | F54: 10.951 | G54: 11.349 | H54: 11.319 | I54: 11.352 | J54: 9.014 | K54: 9.016 | L54: 8.994 | M54: 9.021 | N54: 9.023 | Q54: 0.0002362353 | R54: 0.0002398269 | S54: 0.0002485431 | T54: 0.00024856524 | U54: 0.0002486088 | V54: 0.0001974066 | W54: 0.0001974504 | X54: 0.00019750824 | Y54: 0.0001975599 | Z54: 0.0001976037 | AC54: 6 | AD54: 6 | AE54: 6 | AF54: 6 | AG54: 6 | AH54: 6 | AI54: 6 | AJ54: 6 | AK54: 6 | AL54: 6
A55: -0.3455621302 | B55: LED 25 | C55: Offered | D55: 15.21 | E55: 9.954 | F55: 10.116 | G55: 10.514 | H55: 10.486 | I55: 10.516 | J55: 8.178 | K55: 8.18 | L55: 8.159 | M55: 8.183 | N55: 8.185 | Q55: 0.0018529371 | R55: 0.0018830934 | S55: 0.0019571811 | T55: 0.00195731676 | U55: 0.0019575534 | V55: 0.0015223347 | W55: 0.001522707 | X55: 0.00152295894 | Y55: 0.00152326545 | Z55: 0.00152363775 | AC55: 51 | AD55: 51 | AE55: 51 | AF55: 51 | AG55: 51 | AH55: 51 | AI55: 51 | AJ55: 51 | AK55: 51 | AL55: 51
A56: 0 | B56: 0 | C56: NA | AC56: 0 | AD56: 0 | AE56: 0 | AF56: 0 | AG56: 0 | AH56: 0 | AI56: 0 | AJ56: 0 | AK56: 0 | AL56: 0
A57: 0 | B57: 0 | C57: NA | AC57: 0 | AD57: 0 | AE57: 0 | AF57: 0 | AG57: 0 | AH57: 0 | AI57: 0 | AJ57: 0 | AK57: 0 | AL57: 0
A58: 0 | B58: 0 | C58: NA | AC58: 0 | AD58: 0 | AE58: 0 | AF58: 0 | AG58: 0 | AH58: 0 | AI58: 0 | AJ58: 0 | AK58: 0 | AL58: 0
A59: -0.2907955293 | B59: LED 265 | C59: Offered | D59: 15.21 | E59: 10.787 | F59: 10.951 | G59: 11.349 | H59: 11.319 | I59: 11.352 | J59: 9.014 | K59: 9.016 | L59: 8.994 | M59: 9.021 | N59: 9.023 | AC59: 0.9166666667 | AD59: 0.9166666667 | AE59: 0.9166666667 | AF59: 0.9166666667 | AG59: 0.9166666667 | AH59: 0.9166666667 | AI59: 0.9166666667 | AJ59: 0.9166666667 | AK59: 0.9166666667 | AL59: 0.9166666667
A60: -0.3323943662 | B60: LED 30 | C60: Offered | D60: 14.91 | E60: 9.954 | F60: 10.116 | G60: 10.514 | H60: 10.486 | I60: 10.516 | J60: 8.178 | K60: 8.18 | L60: 8.159 | M60: 8.183 | N60: 8.185 | Q60: 0.001089963 | R60: 0.001107702 | S60: 0.001151283 | T60: 0.0011513628 | U60: 0.001151502 | V60: 0.000895491 | W60: 0.00089571 | X60: 0.0008958582 | Y60: 0.0008960385 | Z60: 0.0008962575 | AC60: 30 | AD60: 30 | AE60: 30 | AF60: 30 | AG60: 30 | AH60: 30 | AI60: 30 | AJ60: 30 | AK60: 30 | AL60: 30
A61: -0.3175542406 | B61: LED 75 | C61: Offered | D61: 15.21 | E61: 10.38 | F61: 10.542 | G61: 10.94 | H61: 10.911 | I61: 10.942 | J61: 8.604 | K61: 8.606 | L61: 8.584 | M61: 8.609 | N61: 8.611 | Q61: 0.000239951 | R61: 0.0002436959 | S61: 0.0002528963333 | T61: 0.00025291698 | U61: 0.0002529425667 | V61: 0.0001988958 | W61: 0.0001989420333 | X61: 0.00019897712 | Y61: 0.0001990113833 | Z61: 0.0001990576167 | AC61: 6.333333333 | AD61: 6.333333333 | AE61: 6.333333333 | AF61: 6.333333333 | AG61: 6.333333333 | AH61: 6.333333333 | AI61: 6.333333333 | AJ61: 6.333333333 | AK61: 6.333333333 | AL61: 6.333333333
A62: -0.2907955293 | B62: LED 155 | C62: Offered | D62: 15.21 | E62: 10.787 | F62: 10.951 | G62: 11.349 | H62: 11.319 | I62: 11.352 | J62: 9.014 | K62: 9.016 | L62: 8.994 | M62: 9.021 | N62: 9.023 | Q62: 0 | R62: 0 | S62: 0 | T62: 0 | U62: 0 | V62: 0 | W62: 0 | X62: 0 | Y62: 0 | Z62: 0 | AC62: 0 | AD62: 0 | AE62: 0 | AF62: 0 | AG62: 0 | AH62: 0 | AI62: 0 | AJ62: 0 | AK62: 0 | AL62: 0
A63: -0.3120939876 | B63: LED 14 | C63: Offered | D63: 14.47 | E63: 9.954 | F63: 10.116 | G63: 10.514 | H63: 10.486 | I63: 10.516 | J63: 8.178 | K63: 8.18 | L63: 8.159 | M63: 8.183 | N63: 8.185 | Q63: 0.5618486774 | R63: 0.5757798073 | S63: 0.6034085272 | T63: 0.6034503518 | U63: 0.6035233091 | V63: 0.4693432504 | W63: 0.4694580324 | X63: 0.4695357067 | Y63: 0.4696302052 | Z63: 0.4697449871 | AC63: 15464.25 | AD63: 15593.9 | AE63: 15723.55 | AF63: 15723.55 | AG63: 15723.55 | AH63: 15723.55 | AI63: 15723.55 | AJ63: 15723.55 | AK63: 15723.55 | AL63: 15723.55
A64: 0 | B64: 0 | C64: NA | AC64: 0 | AD64: 0 | AE64: 0 | AF64: 0 | AG64: 0 | AH64: 0 | AI64: 0 | AJ64: 0 | AK64: 0 | AL64: 0
A65: 0 | B65: 0 | C65: NA | AC65: 0 | AD65: 0 | AE65: 0 | AF65: 0 | AG65: 0 | AH65: 0 | AI65: 0 | AJ65: 0 | AK65: 0 | AL65: 0
A66: 0 | B66: 0 | C66: NA | AC66: 0 | AD66: 0 | AE66: 0 | AF66: 0 | AG66: 0 | AH66: 0 | AI66: 0 | AJ66: 0 | AK66: 0 | AL66: 0
A67: -0.3455621302 | B67: LED 17 | C67: Offered | D67: 15.21 | E67: 9.954 | F67: 10.116 | G67: 10.514 | H67: 10.486 | I67: 10.516 | J67: 8.178 | K67: 8.18 | L67: 8.159 | M67: 8.183 | N67: 8.185 | Q67: 0.0002179926 | R67: 0.0002215404 | S67: 0.0002302566 | T67: 0.00023027256 | U67: 0.0002303004 | V67: 0.0001790982 | W67: 0.000179142 | X67: 0.00017917164 | Y67: 0.0001792077 | Z67: 0.0001792515 | AC67: 6 | AD67: 6 | AE67: 6 | AF67: 6 | AG67: 6 | AH67: 6 | AI67: 6 | AJ67: 6 | AK67: 6 | AL67: 6
A68: -0.2907955293 | B68: LED 175 | C68: Offered | D68: 15.21 | E68: 10.787 | F68: 10.951 | G68: 11.349 | H68: 11.319 | I68: 11.352 | J68: 9.014 | K68: 9.016 | L68: 8.994 | M68: 9.021 | N68: 9.023 | Q68: 0.0003609150417 | R68: 0.0003664022083 | S68: 0.000379718625 | T68: 0.00037975245 | U68: 0.000379819 | V68: 0.0003015934167 | W68: 0.0003016603333 | X68: 0.0003017487 | Y68: 0.000301827625 | Z68: 0.0003018945417 | AC68: 9.166666667 | AD68: 9.166666667 | AE68: 9.166666667 | AF68: 9.166666667 | AG68: 9.166666667 | AH68: 9.166666667 | AI68: 9.166666667 | AJ68: 9.166666667 | AK68: 9.166666667 | AL68: 9.166666667
A69: -0.3120939876 | B69: LED 14 New Tech | C69: Offered | D69: 14.47 | E69: 9.954 | F69: 10.116 | G69: 10.514 | H69: 10.486 | I69: 10.516 | J69: 8.178 | K69: 8.18 | L69: 8.159 | M69: 8.183 | N69: 8.185 | Q69: 0 | R69: 0 | S69: 0 | T69: 0 | U69: 0 | V69: 0 | W69: 0 | X69: 0 | Y69: 0 | Z69: 0 | AC69: 0 | AD69: 0 | AE69: 0 | AF69: 0 | AG69: 0 | AH69: 0 | AI69: 0 | AJ69: 0 | AK69: 0 | AL69: 0
A70: -0.3175542406 | B70: LED 75 New Tech | C70: Offered | D70: 15.21 | E70: 10.38 | F70: 10.542 | G70: 10.94 | H70: 10.911 | I70: 10.942 | J70: 8.604 | K70: 8.606 | L70: 8.584 | M70: 8.609 | N70: 8.611 | Q70: 0 | R70: 0 | S70: 0 | T70: 0 | U70: 0 | V70: 0 | W70: 0 | X70: 0 | Y70: 0 | Z70: 0 | AC70: 0 | AD70: 0 | AE70: 0 | AF70: 0 | AG70: 0 | AH70: 0 | AI70: 0 | AJ70: 0 | AK70: 0 | AL70: 0
A71: 0 | B71: 0 | AC71: 0 | AD71: 0 | AE71: 0 | AF71: 0 | AG71: 0 | AH71: 0 | AI71: 0 | AJ71: 0 | AK71: 0 | AL71: 0
A72: 0 | B72: 0 | AC72: 0 | AD72: 0 | AE72: 0 | AF72: 0 | AG72: 0 | AH72: 0 | AI72: 0 | AJ72: 0 | AK72: 0 | AL72: 0
A73: 0 | B73: 0 | AC73: 0 | AD73: 0 | AE73: 0 | AF73: 0 | AG73: 0 | AH73: 0 | AI73: 0 | AJ73: 0 | AK73: 0 | AL73: 0
A74: 0 | B74: 0 | AC74: 0 | AD74: 0 | AE74: 0 | AF74: 0 | AG74: 0 | AH74: 0 | AI74: 0 | AJ74: 0 | AK74: 0 | AL74: 0
A75: 0 | B75: 0 | AC75: 0 | AD75: 0 | AE75: 0 | AF75: 0 | AG75: 0 | AH75: 0 | AI75: 0 | AJ75: 0 | AK75: 0 | AL75: 0
A76: 0 | B76: 0 | AC76: 0 | AD76: 0 | AE76: 0 | AF76: 0 | AG76: 0 | AH76: 0 | AI76: 0 | AJ76: 0 | AK76: 0 | AL76: 0
A77: 0 | B77: 0 | AC77: 0 | AD77: 0 | AE77: 0 | AF77: 0 | AG77: 0 | AH77: 0 | AI77: 0 | AJ77: 0 | AK77: 0 | AL77: 0
A78: 0 | B78: 0 | AC78: 0 | AD78: 0 | AE78: 0 | AF78: 0 | AG78: 0 | AH78: 0 | AI78: 0 | AJ78: 0 | AK78: 0 | AL78: 0
A79: 0 | B79: 0 | AC79: 0 | AD79: 0 | AE79: 0 | AF79: 0 | AG79: 0 | AH79: 0 | AI79: 0 | AJ79: 0 | AK79: 0 | AL79: 0
A80: 0 | B80: 0 | AC80: 0 | AD80: 0 | AE80: 0 | AF80: 0 | AG80: 0 | AH80: 0 | AI80: 0 | AJ80: 0 | AK80: 0 | AL80: 0
A81: 0 | Q81: 0.8004496805 | R81: 0.8058024468 | S81: 0.8297440056 | T81: 0.8298015349 | U81: 0.8299018894 | V81: 0.6454047177 | W81: 0.6455625425 | X81: 0.6456694243 | Y81: 0.6457993977 | Z81: 0.6459572225 | AC81: 21620.75 | AD81: 21620.75 | AE81: 21620.75 | AF81: 21620.75 | AG81: 21620.75 | AH81: 21620.75 | AI81: 21620.75 | AJ81: 21620.75 | AK81: 21620.75 | AL81: 21620.75
A82: 0 | AC82: TRUE | AD82: TRUE | AE82: TRUE | AF82: TRUE | AG82: TRUE | AH82: TRUE | AI82: TRUE | AJ82: TRUE | AK82: TRUE | AL82: TRUE
A83: 0
A84: 0 | B84: Public Road Lights | C84: Offered / No Longer Offered / NA | D84: 2023-24 | E84: 2024-25 | F84: 2025-26 | G84: 2026-27 | H84: 2027-28 | I84: 2028-29 | J84: 2029-30 | K84: 2030-31 | L84: 2031-32 | M84: 2032-33 | N84: 2033-34 | Q84: 2024-25 | R84: 2025-26 | S84: 2026-27 | T84: 2027-28 | U84: 2028-29 | V84: 2029-30 | W84: 2030-31 | X84: 2031-32 | Y84: 2032-33 | Z84: 2033-34 | AC84: 2024-25 | AD84: 2025-26 | AE84: 2026-27 | AF84: 2027-28 | AG84: 2028-29 | AH84: 2029-30 | AI84: 2030-31 | AJ84: 2031-32 | AK84: 2032-33 | AL84: 2033-34
A85: -0.1636008783 | B85: 50W Mercury Vapour | C85: Obsolete, no new Connections | D85: 40.99 | E85: 34.284 | F85: 29.767 | G85: 30.254 | H85: 29.674 | I85: 26.002 | J85: 23.682 | K85: 23.701 | L85: 23.656 | M85: 23.741 | N85: 23.761 | Q85: 0.00670732176 | R85: 0.00291180794 | S85: 0 | T85: 0 | U85: 0 | V85: 0 | W85: 0 | X85: 0 | Y85: 0 | Z85: 0 | AC85: 53.6 | AD85: 26.8 | AE85: 0 | AF85: 0 | AG85: 0 | AH85: 0 | AI85: 0 | AJ85: 0 | AK85: 0 | AL85: 0
A86: -0.1637140068 | B86: 80W Mercury Vapour | C86: Obsolete, no new Connections | D86: 40.98 | E86: 34.271 | F86: 29.755 | G86: 30.242 | H86: 29.662 | I86: 25.989 | J86: 23.669 | K86: 23.689 | L86: 23.644 | M86: 23.728 | N86: 23.748 | Q86: 0.1457997436 | R86: 0.063293621 | S86: 0 | T86: 0 | U86: 0 | V86: 0 | W86: 0 | X86: 0 | Y86: 0 | Z86: 0 | AC86: 1165.566667 | AD86: 582.7833333 | AE86: 0 | AF86: 0 | AG86: 0 | AH86: 0 | AI86: 0 | AJ86: 0 | AK86: 0 | AL86: 0
A87: -0.2634107604 | B87: 125W Mercury Vapour | C87: Obsolete, no new Connections | D87: 50.37 | E87: 37.102 | F87: 32.595 | G87: 33.086 | H87: 32.5 | I87: 28.84 | J87: 26.523 | K87: 26.547 | L87: 26.498 | M87: 26.595 | N87: 26.619 | Q87: 0.00509187848 | R87: 0.0022366689 | S87: 0 | T87: 0 | U87: 0 | V87: 0 | W87: 0 | X87: 0 | Y87: 0 | Z87: 0 | AC87: 37.6 | AD87: 18.8 | AE87: 0 | AF87: 0 | AG87: 0 | AH87: 0 | AI87: 0 | AJ87: 0 | AK87: 0 | AL87: 0
A88: -0.2642913386 | B88: 250W Mercury Vapour | C88: Obsolete, no new Connections | D88: 50.8 | E88: 37.374 | F88: 32.867 | G88: 33.358 | H88: 32.772 | I88: 29.112 | J88: 26.795 | K88: 26.819 | L88: 26.769 | M88: 26.866 | N88: 26.89 | Q88: 0.01784309508 | R88: 0.00784568157 | S88: 0 | T88: 0 | U88: 0 | V88: 0 | W88: 0 | X88: 0 | Y88: 0 | Z88: 0 | AC88: 130.8 | AD88: 65.4 | AE88: 0 | AF88: 0 | AG88: 0 | AH88: 0 | AI88: 0 | AJ88: 0 | AK88: 0 | AL88: 0
A89: 0 | B89: 0 | C89: NA | AC89: 0 | AD89: 0 | AE89: 0 | AF89: 0 | AG89: 0 | AH89: 0 | AI89: 0 | AJ89: 0 | AK89: 0 | AL89: 0
A90: -0.222167017 | B90: 400W Mercury Vapour | C90: Obsolete, no new Connections | D90: 52.33 | E90: 40.704 | F90: 36.196 | G90: 36.688 | H90: 36.092 | I90: 32.441 | J90: 30.125 | K90: 30.148 | L90: 30.09 | M90: 30.196 | N90: 30.22 | Q90: 0.01164785664 | R90: 0.00517892368 | S90: 0 | T90: 0 | U90: 0 | V90: 0 | W90: 0 | X90: 0 | Y90: 0 | Z90: 0 | AC90: 78.4 | AD90: 39.2 | AE90: 0 | AF90: 0 | AG90: 0 | AH90: 0 | AI90: 0 | AJ90: 0 | AK90: 0 | AL90: 0
A91: -0.1906350667 | B91: 70W Sodium Vapour | C91: Offered | D91: 43.46 | E91: 35.175 | F91: 30.658 | G91: 31.145 | H91: 30.562 | I91: 26.893 | J91: 24.572 | K91: 24.592 | L91: 24.544 | M91: 24.632 | N91: 24.652 | Q91: 0.00701002575 | R91: 0.00305491641 | S91: 0 | T91: 0 | U91: 0 | V91: 0 | W91: 0 | X91: 0 | Y91: 0 | Z91: 0 | AC91: 54.6 | AD91: 27.3 | AE91: 0 | AF91: 0 | AG91: 0 | AH91: 0 | AI91: 0 | AJ91: 0 | AK91: 0 | AL91: 0
A92: 0 | B92: 0 | C92: NA | AC92: 0 | AD92: 0 | AE92: 0 | AF92: 0 | AG92: 0 | AH92: 0 | AI92: 0 | AJ92: 0 | AK92: 0 | AL92: 0
A93: -0.2258487195 | B93: 100W Sodium Vapour | C93: Offered | D93: 50.37 | E93: 38.994 | F93: 34.486 | G93: 34.978 | H93: 34.387 | I93: 30.731 | J93: 28.415 | K93: 28.438 | L93: 28.384 | M93: 28.486 | N93: 28.51 | Q93: 0.01383429132 | R93: 0.00611747154 | S93: 0 | T93: 0 | U93: 0 | V93: 0 | W93: 0 | X93: 0 | Y93: 0 | Z93: 0 | AC93: 97.2 | AD93: 48.6 | AE93: 0 | AF93: 0 | AG93: 0 | AH93: 0 | AI93: 0 | AJ93: 0 | AK93: 0 | AL93: 0
A94: 0 | B94: 0 | C94: NA | AC94: 0 | AD94: 0 | AE94: 0 | AF94: 0 | AG94: 0 | AH94: 0 | AI94: 0 | AJ94: 0 | AK94: 0 | AL94: 0
A95: -0.2602907855 | B95: 150W Sodium Vapour | C95: Offered | D95: 52.96 | E95: 39.175 | F95: 34.667 | G95: 35.159 | H95: 34.567 | I95: 30.913 | J95: 28.596 | K95: 28.62 | L95: 28.565 | M95: 28.667 | N95: 28.691 | Q95: 0.229582737 | R95: 0.1015819367 | S95: 0 | T95: 0 | U95: 0 | V95: 0 | W95: 0 | X95: 0 | Y95: 0 | Z95: 0 | AC95: 1605.6 | AD95: 802.8 | AE95: 0 | AF95: 0 | AG95: 0 | AH95: 0 | AI95: 0 | AJ95: 0 | AK95: 0 | AL95: 0
A96: 0 | B96: 0 | C96: NA | AC96: 0 | AD96: 0 | AE96: 0 | AF96: 0 | AG96: 0 | AH96: 0 | AI96: 0 | AJ96: 0 | AK96: 0 | AL96: 0
A97: 0 | B97: 0 | C97: NA | AC97: 0 | AD97: 0 | AE97: 0 | AF97: 0 | AG97: 0 | AH97: 0 | AI97: 0 | AJ97: 0 | AK97: 0 | AL97: 0
A98: 0 | B98: 0 | C98: NA | AC98: 0 | AD98: 0 | AE98: 0 | AF98: 0 | AG98: 0 | AH98: 0 | AI98: 0 | AJ98: 0 | AK98: 0 | AL98: 0
A99: -0.253165959 | B99: 250W Sodium Vapour | C99: Offered | D99: 54.17 | E99: 40.456 | F99: 35.949 | G99: 36.44 | H99: 35.845 | I99: 32.194 | J99: 29.877 | K99: 29.901 | L99: 29.843 | M99: 29.948 | N99: 29.972 | Q99: 0.2944772686 | R99: 0.1308355167 | S99: 0 | T99: 0 | U99: 0 | V99: 0 | W99: 0 | X99: 0 | Y99: 0 | Z99: 0 | AC99: 1994.233333 | AD99: 997.1166667 | AE99: 0 | AF99: 0 | AG99: 0 | AH99: 0 | AI99: 0 | AJ99: 0 | AK99: 0 | AL99: 0
A100: 0 | B100: 0 | C100: NA | AC100: 0 | AD100: 0 | AE100: 0 | AF100: 0 | AG100: 0 | AH100: 0 | AI100: 0 | AJ100: 0 | AK100: 0 | AL100: 0
A101: 0 | B101: 0 | C101: NA | AC101: 0 | AD101: 0 | AE101: 0 | AF101: 0 | AG101: 0 | AH101: 0 | AI101: 0 | AJ101: 0 | AK101: 0 | AL101: 0
A102: 0 | B102: 0 | C102: NA | AC102: 0 | AD102: 0 | AE102: 0 | AF102: 0 | AG102: 0 | AH102: 0 | AI102: 0 | AJ102: 0 | AK102: 0 | AL102: 0
A103: -0.2484206682 | B103: 400W Sodium Vapour | C103: Offered | D103: 54.77 | E103: 41.164 | F103: 36.656 | G103: 37.148 | H103: 36.551 | I103: 32.901 | J103: 30.584 | K103: 30.608 | L103: 30.548 | M103: 30.656 | N103: 30.68 | Q103: 0.02624843042 | R103: 0.01168694084 | S103: 0 | T103: 0 | U103: 0 | V103: 0 | W103: 0 | X103: 0 | Y103: 0 | Z103: 0 | AC103: 174.7 | AD103: 87.35 | AE103: 0 | AF103: 0 | AG103: 0 | AH103: 0 | AI103: 0 | AJ103: 0 | AK103: 0 | AL103: 0
A104: 0 | B104: 0 | C104: NA | AC104: 0 | AD104: 0 | AE104: 0 | AF104: 0 | AG104: 0 | AH104: 0 | AI104: 0 | AJ104: 0 | AK104: 0 | AL104: 0
A105: -0.2741438948 | B105: 250W Sodium Vapour - Flood Light | C105: Offered | D105: 57.82 | E105: 41.969 | F105: 37.461 | G105: 37.952 | H105: 37.353 | I105: 33.706 | J105: 31.389 | K105: 31.413 | L105: 31.351 | M105: 31.461 | N105: 31.485 | Q105: 0.001399106563 | R105: 0.000624412435 | S105: 0 | T105: 0 | U105: 0 | V105: 0 | W105: 0 | X105: 0 | Y105: 0 | Z105: 0 | AC105: 9.133333333 | AD105: 4.566666667 | AE105: 0 | AF105: 0 | AG105: 0 | AH105: 0 | AI105: 0 | AJ105: 0 | AK105: 0 | AL105: 0
A106: -0.2800979363 | B106: 400W Sodium Vapour - Flood Light | C106: Offered | D106: 57.18 | E106: 41.164 | F106: 36.656 | G106: 37.148 | H106: 36.551 | I106: 32.901 | J106: 30.584 | K106: 30.608 | L106: 30.548 | M106: 30.656 | N106: 30.68 | Q106: 0.0005609281067 | R106: 0.0002497495467 | S106: 0 | T106: 0 | U106: 0 | V106: 0 | W106: 0 | X106: 0 | Y106: 0 | Z106: 0 | AC106: 3.733333333 | AD106: 1.866666667 | AE106: 0 | AF106: 0 | AG106: 0 | AH106: 0 | AI106: 0 | AJ106: 0 | AK106: 0 | AL106: 0
A107: -0.1970705726 | B107: 1x20W Fluorescent | C107: Obsolete, no new Connections | D107: 45.06 | E107: 36.18 | F107: 31.663 | G107: 32.15 | H107: 31.565 | I107: 27.898 | J107: 25.577 | K107: 25.597 | L107: 25.547 | M107: 25.637 | N107: 25.657 | Q107: 0.0003169368 | R107: 0.00013868394 | S107: 0 | T107: 0 | U107: 0 | V107: 0 | W107: 0 | X107: 0 | Y107: 0 | Z107: 0 | AC107: 2.4 | AD107: 1.2 | AE107: 0 | AF107: 0 | AG107: 0 | AH107: 0 | AI107: 0 | AJ107: 0 | AK107: 0 | AL107: 0
A108: -0.1779141104 | B108: 1x40W Fluorescent | C108: Obsolete, no new Connections | D108: 44.01 | E108: 36.18 | F108: 31.663 | G108: 32.15 | H108: 31.565 | I108: 27.898 | J108: 25.577 | K108: 25.597 | L108: 25.547 | M108: 25.637 | N108: 25.657 | Q108: 0.002112912 | R108: 0.0009245596 | S108: 0 | T108: 0 | U108: 0 | V108: 0 | W108: 0 | X108: 0 | Y108: 0 | Z108: 0 | AC108: 16 | AD108: 8 | AE108: 0 | AF108: 0 | AG108: 0 | AH108: 0 | AI108: 0 | AJ108: 0 | AK108: 0 | AL108: 0
A109: -0.2020291134 | B109: 2x20W Fluorescent | C109: Obsolete, no new Connections | D109: 45.34 | E109: 36.18 | F109: 31.663 | G109: 32.15 | H109: 31.565 | I109: 27.898 | J109: 25.577 | K109: 25.597 | L109: 25.547 | M109: 25.637 | N109: 25.657 | Q109: 0.000264114 | R109: 0.00011556995 | S109: 0 | T109: 0 | U109: 0 | V109: 0 | W109: 0 | X109: 0 | Y109: 0 | Z109: 0 | AC109: 2 | AD109: 1 | AE109: 0 | AF109: 0 | AG109: 0 | AH109: 0 | AI109: 0 | AJ109: 0 | AK109: 0 | AL109: 0
A110: -0.2015007725 | B110: 2x24W Fluorescent | C110: Obsolete, no new Connections | D110: 45.31 | E110: 36.18 | F110: 31.663 | G110: 32.15 | H110: 31.565 | I110: 27.898 | J110: 25.577 | K110: 25.597 | L110: 25.547 | M110: 25.637 | N110: 25.657 | Q110: 5.28228e-05 | R110: 2.311399e-05 | S110: 0 | T110: 0 | U110: 0 | V110: 0 | W110: 0 | X110: 0 | Y110: 0 | Z110: 0 | AC110: 0.4 | AD110: 0.2 | AE110: 0 | AF110: 0 | AG110: 0 | AH110: 0 | AI110: 0 | AJ110: 0 | AK110: 0 | AL110: 0
A111: -0.1836642599 | B111: 2x40W Fluorescent | C111: Obsolete, no new Connections | D111: 44.32 | E111: 36.18 | F111: 31.663 | G111: 32.15 | H111: 31.565 | I111: 27.898 | J111: 25.577 | K111: 25.597 | L111: 25.547 | M111: 25.637 | N111: 25.657 | Q111: 0.0001056456 | R111: 4.622798e-05 | S111: 0 | T111: 0 | U111: 0 | V111: 0 | W111: 0 | X111: 0 | Y111: 0 | Z111: 0 | AC111: 0.8 | AD111: 0.4 | AE111: 0 | AF111: 0 | AG111: 0 | AH111: 0 | AI111: 0 | AJ111: 0 | AK111: 0 | AL111: 0
A112: -0.3116438356 | B112: 4x40W Fluorescent | C112: Obsolete, no new Connections | D112: 52.56 | E112: 36.18 | F112: 31.663 | G112: 32.15 | H112: 31.565 | I112: 27.898 | J112: 25.577 | K112: 25.597 | L112: 25.547 | M112: 25.637 | N112: 25.657 | Q112: 5.28228e-05 | R112: 2.311399e-05 | S112: 0 | T112: 0 | U112: 0 | V112: 0 | W112: 0 | X112: 0 | Y112: 0 | Z112: 0 | AC112: 0.4 | AD112: 0.2 | AE112: 0 | AF112: 0 | AG112: 0 | AH112: 0 | AI112: 0 | AJ112: 0 | AK112: 0 | AL112: 0
A113: -0.1617238184 | B113: 32W Compact Fluorescent | C113: Not Offered | D113: 43.16 | E113: 36.18 | F113: 31.663 | G113: 32.15 | H113: 31.565 | I113: 27.898 | J113: 25.577 | K113: 25.597 | L113: 25.547 | M113: 25.637 | N113: 25.657 | Q113: 0 | R113: 0 | S113: 0 | T113: 0 | U113: 0 | V113: 0 | W113: 0 | X113: 0 | Y113: 0 | Z113: 0 | AC113: 0 | AD113: 0 | AE113: 0 | AF113: 0 | AG113: 0 | AH113: 0 | AI113: 0 | AJ113: 0 | AK113: 0 | AL113: 0
A114: -0.1623060894 | B114: 42W Compact Fluorescent | C114: Offered | D114: 43.19 | E114: 36.18 | F114: 31.663 | G114: 32.15 | H114: 31.565 | I114: 27.898 | J114: 25.577 | K114: 25.597 | L114: 25.547 | M114: 25.637 | N114: 25.657 | Q114: 0.1282361508 | R114: 0.05611306306 | S114: 0 | T114: 0 | U114: 0 | V114: 0 | W114: 0 | X114: 0 | Y114: 0 | Z114: 0 | AC114: 971.0666667 | AD114: 485.5333333 | AE114: 0 | AF114: 0 | AG114: 0 | AH114: 0 | AI114: 0 | AJ114: 0 | AK114: 0 | AL114: 0
A115: 0 | B115: 0 | C115: NA | AC115: 0 | AD115: 0 | AE115: 0 | AF115: 0 | AG115: 0 | AH115: 0 | AI115: 0 | AJ115: 0 | AK115: 0 | AL115: 0
